Workbook

Sheet PTRM Inputs
A1: PTRM - As Incurred | H1: PTRM - As Commissioned
A3: PTRM As incurred - Total | B3: 2015 | C3: 2016 | D3: 2017 | E3: 2018 | F3: total | H3: PTRM As commissioned - Total | I3: 2015 | J3: 2016 | K3: 2017 | L3: 2018 | M3: total
A4: TL | B4: =SUMIF('Capex Incurred Summary'!$A$6:$A$14,$A4,'Capex Incurred Summary'!H$6:H$14) -> 16.97032018 | C4: =SUMIF('Capex Incurred Summary'!$A$6:$A$14,$A4,'Capex Incurred Summary'!I$6:I$14) -> 44.90053335 | D4: =SUMIF('Capex Incurred Summary'!$A$6:$A$14,$A4,'Capex Incurred Summary'!J$6:J$14) -> 27.84572381 | E4: =SUMIF('Capex Incurred Summary'!$A$6:$A$14,$A4,'Capex Incurred Summary'!K$6:K$14) -> 34.17184754 | F4: =SUM(B4:E4) -> 123.8884249 | H4: TL | I4: =SUMIF('Capex Commissioned Summary'!$A$7:$A$15,$H4,'Capex Commissioned Summary'!E$7:E$15) -> 10.85405233 | J4: =SUMIF('Capex Commissioned Summary'!$A$7:$A$15,$H4,'Capex Commissioned Summary'!F$7:F$15) -> 43.1784543 | K4: =SUMIF('Capex Commissioned Summary'!$A$7:$A$15,$H4,'Capex Commissioned Summary'!G$7:G$15) -> 25.33222799 | L4: =SUMIF('Capex Commissioned Summary'!$A$7:$A$15,$H4,'Capex Commissioned Summary'!H$7:H$15) -> 38.85309646 | M4: =SUM(I4:L4) -> 118.2178311
A5: Cables | B5: =SUMIF('Capex Incurred Summary'!$A$6:$A$14,$A5,'Capex Incurred Summary'!H$6:H$14) -> 1.35817989 | C5: =SUMIF('Capex Incurred Summary'!$A$6:$A$14,$A5,'Capex Incurred Summary'!I$6:I$14) -> 3.800767832 | D5: =SUMIF('Capex Incurred Summary'!$A$6:$A$14,$A5,'Capex Incurred Summary'!J$6:J$14) -> 1.39944597 | E5: =SUMIF('Capex Incurred Summary'!$A$6:$A$14,$A5,'Capex Incurred Summary'!K$6:K$14) -> 0.2894897461 | F5: 6.847883439 | H5: Cables | I5: =SUMIF('Capex Commissioned Summary'!$A$7:$A$15,$H5,'Capex Commissioned Summary'!E$7:E$15) -> 1.22357666 | J5: =SUMIF('Capex Commissioned Summary'!$A$7:$A$15,$H5,'Capex Commissioned Summary'!F$7:F$15) -> 0 | K5: =SUMIF('Capex Commissioned Summary'!$A$7:$A$15,$H5,'Capex Commissioned Summary'!G$7:G$15) -> 5.049700526 | L5: =SUMIF('Capex Commissioned Summary'!$A$7:$A$15,$H5,'Capex Commissioned Summary'!H$7:H$15) -> 0.5789794922 | M5: 6.852256679
A6: Subs | B6: =SUMIF('Capex Incurred Summary'!$A$6:$A$14,$A6,'Capex Incurred Summary'!H$6:H$14) -> 139.4421088 | C6: =SUMIF('Capex Incurred Summary'!$A$6:$A$14,$A6,'Capex Incurred Summary'!I$6:I$14) -> 117.20849 | D6: =SUMIF('Capex Incurred Summary'!$A$6:$A$14,$A6,'Capex Incurred Summary'!J$6:J$14) -> 127.6154099 | E6: =SUMIF('Capex Incurred Summary'!$A$6:$A$14,$A6,'Capex Incurred Summary'!K$6:K$14) -> 104.1616217 | F6: 488.4276304 | H6: Subs | I6: =SUMIF('Capex Commissioned Summary'!$A$7:$A$15,$H6,'Capex Commissioned Summary'!E$7:E$15) -> 149.8871045 | J6: =SUMIF('Capex Commissioned Summary'!$A$7:$A$15,$H6,'Capex Commissioned Summary'!F$7:F$15) -> 104.0151114 | K6: =SUMIF('Capex Commissioned Summary'!$A$7:$A$15,$H6,'Capex Commissioned Summary'!G$7:G$15) -> 117.4348953 | L6: =SUMIF('Capex Commissioned Summary'!$A$7:$A$15,$H6,'Capex Commissioned Summary'!H$7:H$15) -> 176.3948009 | M6: 547.7319121
A7: Sec Sys | B7: =SUMIF('Capex Incurred Summary'!$A$6:$A$14,$A7,'Capex Incurred Summary'!H$6:H$14) -> 29.13227095 | C7: =SUMIF('Capex Incurred Summary'!$A$6:$A$14,$A7,'Capex Incurred Summary'!I$6:I$14) -> 34.45891634 | D7: =SUMIF('Capex Incurred Summary'!$A$6:$A$14,$A7,'Capex Incurred Summary'!J$6:J$14) -> 27.76047472 | E7: =SUMIF('Capex Incurred Summary'!$A$6:$A$14,$A7,'Capex Incurred Summary'!K$6:K$14) -> 32.40298329 | F7: 123.7546453 | H7: Sec Sys | I7: =SUMIF('Capex Commissioned Summary'!$A$7:$A$15,$H7,'Capex Commissioned Summary'!E$7:E$15) -> 17.26862362 | J7: =SUMIF('Capex Commissioned Summary'!$A$7:$A$15,$H7,'Capex Commissioned Summary'!F$7:F$15) -> 41.28751986 | K7: =SUMIF('Capex Commissioned Summary'!$A$7:$A$15,$H7,'Capex Commissioned Summary'!G$7:G$15) -> 17.06747753 | L7: =SUMIF('Capex Commissioned Summary'!$A$7:$A$15,$H7,'Capex Commissioned Summary'!H$7:H$15) -> 41.00755794 | M7: 116.631179
A8: Comms | B8: =SUMIF('Capex Incurred Summary'!$A$6:$A$14,$A8,'Capex Incurred Summary'!H$6:H$14) -> 24.16159568 | C8: =SUMIF('Capex Incurred Summary'!$A$6:$A$14,$A8,'Capex Incurred Summary'!I$6:I$14) -> 13.73844577 | D8: =SUMIF('Capex Incurred Summary'!$A$6:$A$14,$A8,'Capex Incurred Summary'!J$6:J$14) -> 7.544665554 | E8: =SUMIF('Capex Incurred Summary'!$A$6:$A$14,$A8,'Capex Incurred Summary'!K$6:K$14) -> 7.881018246 | F8: 53.32572526 | H8: Comms | I8: =SUMIF('Capex Commissioned Summary'!$A$7:$A$15,$H8,'Capex Commissioned Summary'!E$7:E$15) -> 24.18147357 | J8: =SUMIF('Capex Commissioned Summary'!$A$7:$A$15,$H8,'Capex Commissioned Summary'!F$7:F$15) -> 41.72392625 | K8: =SUMIF('Capex Commissioned Summary'!$A$7:$A$15,$H8,'Capex Commissioned Summary'!G$7:G$15) -> 11.73142546 | L8: =SUMIF('Capex Commissioned Summary'!$A$7:$A$15,$H8,'Capex Commissioned Summary'!H$7:H$15) -> 10.55145285 | M8: 88.18827813
A9: Bus. IT | B9: =SUMIF('Capex Incurred Summary'!$A$6:$A$14,$A9,'Capex Incurred Summary'!H$6:H$14) -> 21.24078125 | C9: =SUMIF('Capex Incurred Summary'!$A$6:$A$14,$A9,'Capex Incurred Summary'!I$6:I$14) -> 19.65957031 | D9: =SUMIF('Capex Incurred Summary'!$A$6:$A$14,$A9,'Capex Incurred Summary'!J$6:J$14) -> 18.115625 | E9: =SUMIF('Capex Incurred Summary'!$A$6:$A$14,$A9,'Capex Incurred Summary'!K$6:K$14) -> 20.79179687 | F9: 79.80777344 | H9: Bus. IT | I9: =SUMIF('Capex Commissioned Summary'!$A$7:$A$15,$H9,'Capex Commissioned Summary'!E$7:E$15) -> 21.24078125 | J9: =SUMIF('Capex Commissioned Summary'!$A$7:$A$15,$H9,'Capex Commissioned Summary'!F$7:F$15) -> 19.65957031 | K9: =SUMIF('Capex Commissioned Summary'!$A$7:$A$15,$H9,'Capex Commissioned Summary'!G$7:G$15) -> 18.115625 | L9: =SUMIF('Capex Commissioned Summary'!$A$7:$A$15,$H9,'Capex Commissioned Summary'!H$7:H$15) -> 20.79179687 | M9: 79.80777344
A10: MV & MP | B10: =SUMIF('Capex Incurred Summary'!$A$6:$A$14,$A10,'Capex Incurred Summary'!H$6:H$14) -> 11.48318868 | C10: =SUMIF('Capex Incurred Summary'!$A$6:$A$14,$A10,'Capex Incurred Summary'!I$6:I$14) -> 9.185672754 | D10: =SUMIF('Capex Incurred Summary'!$A$6:$A$14,$A10,'Capex Incurred Summary'!J$6:J$14) -> 10.78167031 | E10: =SUMIF('Capex Incurred Summary'!$A$6:$A$14,$A10,'Capex Incurred Summary'!K$6:K$14) -> 11.77185273 | F10: 43.22238448 | H10: MV & MP | I10: =SUMIF('Capex Commissioned Summary'!$A$7:$A$15,$H10,'Capex Commissioned Summary'!E$7:E$15) -> 11.48318868 | J10: =SUMIF('Capex Commissioned Summary'!$A$7:$A$15,$H10,'Capex Commissioned Summary'!F$7:F$15) -> 9.185672754 | K10: =SUMIF('Capex Commissioned Summary'!$A$7:$A$15,$H10,'Capex Commissioned Summary'!G$7:G$15) -> 10.78167031 | L10: =SUMIF('Capex Commissioned Summary'!$A$7:$A$15,$H10,'Capex Commissioned Summary'!H$7:H$15) -> 11.77185273 | M10: 43.22238448
A11: TL Life Ext | B11: =SUMIF('Capex Incurred Summary'!$A$6:$A$14,$A11,'Capex Incurred Summary'!H$6:H$14) -> 5.897871094 | C11: =SUMIF('Capex Incurred Summary'!$A$6:$A$14,$A11,'Capex Incurred Summary'!I$6:I$14) -> 6.610401855 | D11: =SUMIF('Capex Incurred Summary'!$A$6:$A$14,$A11,'Capex Incurred Summary'!J$6:J$14) -> 4.919009766 | E11: =SUMIF('Capex Incurred Summary'!$A$6:$A$14,$A11,'Capex Incurred Summary'!K$6:K$14) -> 7.701199219 | F11: 25.12848193 | H11: TL Life Ext | I11: =SUMIF('Capex Commissioned Summary'!$A$7:$A$15,$H11,'Capex Commissioned Summary'!E$7:E$15) -> 3.805825195 | J11: =SUMIF('Capex Commissioned Summary'!$A$7:$A$15,$H11,'Capex Commissioned Summary'!F$7:F$15) -> 4.607904785 | K11: =SUMIF('Capex Commissioned Summary'!$A$7:$A$15,$H11,'Capex Commissioned Summary'!G$7:G$15) -> 8.25084375 | L11: =SUMIF('Capex Commissioned Summary'!$A$7:$A$15,$H11,'Capex Commissioned Summary'!H$7:H$15) -> 0.8491699219 | M11: 17.51374365
A12: Equity Raising | F12: 0 | H12: Equity Raising | M12: 0
A13: Land | B13: =SUMIF('Capex Incurred Summary'!$A$6:$A$14,$A13,'Capex Incurred Summary'!H$6:H$14) -> 5.600803318 | C13: =SUMIF('Capex Incurred Summary'!$A$6:$A$14,$A13,'Capex Incurred Summary'!I$6:I$14) -> 55.04282767 | D13: =SUMIF('Capex Incurred Summary'!$A$6:$A$14,$A13,'Capex Incurred Summary'!J$6:J$14) -> 9.347549162 | E13: =SUMIF('Capex Incurred Summary'!$A$6:$A$14,$A13,'Capex Incurred Summary'!K$6:K$14) -> 0.6124209526 | F13: 70.6036011 | H13: Land | I13: =SUMIF('Capex Commissioned Summary'!$A$7:$A$15,$H13,'Capex Commissioned Summary'!E$7:E$15) -> 30.10337635 | J13: =SUMIF('Capex Commissioned Summary'!$A$7:$A$15,$H13,'Capex Commissioned Summary'!F$7:F$15) -> 52.42033968 | K13: =SUMIF('Capex Commissioned Summary'!$A$7:$A$15,$H13,'Capex Commissioned Summary'!G$7:G$15) -> 16.26925343 | L13: =SUMIF('Capex Commissioned Summary'!$A$7:$A$15,$H13,'Capex Commissioned Summary'!H$7:H$15) -> 2.345290998 | M13: 101.1382605
A14: Total | B14: =SUM(B4:B13) -> 255.2871198 | C14: =SUM(C4:C13) -> 304.6056259 | D14: =SUM(D4:D13) -> 235.3295741 | E14: =SUM(E4:E13) -> 219.7842303 | F14: 1015.00655 | H14: Total | I14: =SUM(I4:I13) -> 270.0480022 | J14: =SUM(J4:J13) -> 316.0784993 | K14: =SUM(K4:K13) -> 230.0331193 | L14: =SUM(L4:L13) -> 303.1439982 | M14: 1119.303619
A16: Check | B16: =ABS('Capex Incurred Summary'!H15-B14) -> 0 | C16: =ABS('Capex Incurred Summary'!I15-C14) -> 1.136868377e-13 | D16: =ABS('Capex Incurred Summary'!J15-D14) -> 0 | E16: =ABS('Capex Incurred Summary'!K15-E14) -> 0 | F16: =ABS('Capex Incurred Summary'!L15-F14) -> 2.273736754e-13 | I16: =ABS('Capex Commissioned Summary'!E16-I14) -> 5.684341886e-14 | J16: =ABS('Capex Commissioned Summary'!F16-J14) -> 0 | K16: =ABS('Capex Commissioned Summary'!G16-K14) -> 2.842170943e-14 | L16: =ABS('Capex Commissioned Summary'!H16-L14) -> 0 | M16: =ABS('Capex Commissioned Summary'!I16-M14) -> 0

Sheet Capex Incurred Summary
B2: Capex Incurred ($M) | C2: Costs (Real $2014) Including Real Escalation
B5: Regulated Asset Class | C5: ='Costs ($2014) Incl Real Esc'!H$4 -> 2010 | D5: ='Costs ($2014) Incl Real Esc'!I$4 -> 2011 | E5: ='Costs ($2014) Incl Real Esc'!J$4 -> 2012 | F5: ='Costs ($2014) Incl Real Esc'!K$4 -> 2013 | G5: ='Costs ($2014) Incl Real Esc'!L$4 -> 2014 | H5: ='Costs ($2014) Incl Real Esc'!M$4 -> 2015 | I5: ='Costs ($2014) Incl Real Esc'!N$4 -> 2016 | J5: ='Costs ($2014) Incl Real Esc'!O$4 -> 2017 | K5: ='Costs ($2014) Incl Real Esc'!P$4 -> 2018 | L5: 2015-18 Total
A6: ='Cost Escalators'!B26 -> TL | B6: ='Cost Escalators'!C$26 -> Transmission Lines | C6: =SUMPRODUCT('Costs ($2014) Incl Real Esc'!H$5:H$764,'Input Data'!$Q$5:$Q$764)/10^6 -> 72.18424617 | D6: =SUMPRODUCT('Costs ($2014) Incl Real Esc'!I$5:I$764,'Input Data'!$Q$5:$Q$764)/10^6 -> 78.5236478 | E6: =SUMPRODUCT('Costs ($2014) Incl Real Esc'!J$5:J$764,'Input Data'!$Q$5:$Q$764)/10^6 -> 59.05260255 | F6: =SUMPRODUCT('Costs ($2014) Incl Real Esc'!K$5:K$764,'Input Data'!$Q$5:$Q$764)/10^6 -> 83.9227034 | G6: =SUMPRODUCT('Costs ($2014) Incl Real Esc'!L$5:L$764,'Input Data'!$Q$5:$Q$764)/10^6 -> 61.44456078 | H6: =SUMPRODUCT('Costs ($2014) Incl Real Esc'!M$5:M$764,'Input Data'!$Q$5:$Q$764)/10^6 -> 16.97032018 | I6: =SUMPRODUCT('Costs ($2014) Incl Real Esc'!N$5:N$764,'Input Data'!$Q$5:$Q$764)/10^6 -> 44.90053335 | J6: =SUMPRODUCT('Costs ($2014) Incl Real Esc'!O$5:O$764,'Input Data'!$Q$5:$Q$764)/10^6 -> 27.84572381 | K6: =SUMPRODUCT('Costs ($2014) Incl Real Esc'!P$5:P$764,'Input Data'!$Q$5:$Q$764)/10^6 -> 34.17184754 | L6: =SUM(H6:K6) -> 123.8884249
A7: ='Cost Escalators'!B27 -> Subs | B7: ='Cost Escalators'!C$27 -> Substations | C7: =SUMPRODUCT('Costs ($2014) Incl Real Esc'!H$5:H$764,'Input Data'!$R$5:$R$764)/10^6 -> 272.6899931 | D7: =SUMPRODUCT('Costs ($2014) Incl Real Esc'!I$5:I$764,'Input Data'!$R$5:$R$764)/10^6 -> 212.8471205 | E7: =SUMPRODUCT('Costs ($2014) Incl Real Esc'!J$5:J$764,'Input Data'!$R$5:$R$764)/10^6 -> 200.768569 | F7: =SUMPRODUCT('Costs ($2014) Incl Real Esc'!K$5:K$764,'Input Data'!$R$5:$R$764)/10^6 -> 236.6623415 | G7: =SUMPRODUCT('Costs ($2014) Incl Real Esc'!L$5:L$764,'Input Data'!$R$5:$R$764)/10^6 -> 232.2757194 | H7: =SUMPRODUCT('Costs ($2014) Incl Real Esc'!M$5:M$764,'Input Data'!$R$5:$R$764)/10^6 -> 139.4421088 | I7: =SUMPRODUCT('Costs ($2014) Incl Real Esc'!N$5:N$764,'Input Data'!$R$5:$R$764)/10^6 -> 117.20849 | J7: =SUMPRODUCT('Costs ($2014) Incl Real Esc'!O$5:O$764,'Input Data'!$R$5:$R$764)/10^6 -> 127.6154099 | K7: =SUMPRODUCT('Costs ($2014) Incl Real Esc'!P$5:P$764,'Input Data'!$R$5:$R$764)/10^6 -> 104.1616217 | L7: =SUM(H7:K7) -> 488.4276304
A8: ='Cost Escalators'!B28 -> Sec Sys | B8: ='Cost Escalators'!C$28 -> Secondary Systems | C8: =SUMPRODUCT('Costs ($2014) Incl Real Esc'!H$5:H$764,'Input Data'!$S$5:$S$764)/10^6 -> 14.12822992 | D8: =SUMPRODUCT('Costs ($2014) Incl Real Esc'!I$5:I$764,'Input Data'!$S$5:$S$764)/10^6 -> 11.40587491 | E8: =SUMPRODUCT('Costs ($2014) Incl Real Esc'!J$5:J$764,'Input Data'!$S$5:$S$764)/10^6 -> 23.41130017 | F8: =SUMPRODUCT('Costs ($2014) Incl Real Esc'!K$5:K$764,'Input Data'!$S$5:$S$764)/10^6 -> 24.54081966 | G8: =SUMPRODUCT('Costs ($2014) Incl Real Esc'!L$5:L$764,'Input Data'!$S$5:$S$764)/10^6 -> 32.27637287 | H8: =SUMPRODUCT('Costs ($2014) Incl Real Esc'!M$5:M$764,'Input Data'!$S$5:$S$764)/10^6 -> 29.13227095 | I8: =SUMPRODUCT('Costs ($2014) Incl Real Esc'!N$5:N$764,'Input Data'!$S$5:$S$764)/10^6 -> 34.45891634 | J8: =SUMPRODUCT('Costs ($2014) Incl Real Esc'!O$5:O$764,'Input Data'!$S$5:$S$764)/10^6 -> 27.76047472 | K8: =SUMPRODUCT('Costs ($2014) Incl Real Esc'!P$5:P$764,'Input Data'!$S$5:$S$764)/10^6 -> 32.40298329 | L8: 123.7546453
A9: ='Cost Escalators'!B29 -> Comms | B9: ='Cost Escalators'!C$29 -> Communications | C9: =SUMPRODUCT('Costs ($2014) Incl Real Esc'!H$5:H$764,'Input Data'!$T$5:$T$764)/10^6 -> 34.2048221 | D9: =SUMPRODUCT('Costs ($2014) Incl Real Esc'!I$5:I$764,'Input Data'!$T$5:$T$764)/10^6 -> 28.59167924 | E9: =SUMPRODUCT('Costs ($2014) Incl Real Esc'!J$5:J$764,'Input Data'!$T$5:$T$764)/10^6 -> 22.61773461 | F9: =SUMPRODUCT('Costs ($2014) Incl Real Esc'!K$5:K$764,'Input Data'!$T$5:$T$764)/10^6 -> 24.14182194 | G9: =SUMPRODUCT('Costs ($2014) Incl Real Esc'!L$5:L$764,'Input Data'!$T$5:$T$764)/10^6 -> 38.42737347 | H9: =SUMPRODUCT('Costs ($2014) Incl Real Esc'!M$5:M$764,'Input Data'!$T$5:$T$764)/10^6 -> 24.16159568 | I9: =SUMPRODUCT('Costs ($2014) Incl Real Esc'!N$5:N$764,'Input Data'!$T$5:$T$764)/10^6 -> 13.73844577 | J9: =SUMPRODUCT('Costs ($2014) Incl Real Esc'!O$5:O$764,'Input Data'!$T$5:$T$764)/10^6 -> 7.544665554 | K9: =SUMPRODUCT('Costs ($2014) Incl Real Esc'!P$5:P$764,'Input Data'!$T$5:$T$764)/10^6 -> 7.881018246 | L9: 53.32572526
A10: ='Cost Escalators'!B30 -> Land | B10: ='Cost Escalators'!C$30 -> Land and Easements | C10: =SUMPRODUCT('Costs ($2014) Incl Real Esc'!H$5:H$764,'Input Data'!$U$5:$U$764)/10^6 -> 20.30667873 | D10: =SUMPRODUCT('Costs ($2014) Incl Real Esc'!I$5:I$764,'Input Data'!$U$5:$U$764)/10^6 -> 28.1712747 | E10: =SUMPRODUCT('Costs ($2014) Incl Real Esc'!J$5:J$764,'Input Data'!$U$5:$U$764)/10^6 -> 22.14923936 | F10: =SUMPRODUCT('Costs ($2014) Incl Real Esc'!K$5:K$764,'Input Data'!$U$5:$U$764)/10^6 -> 43.29592466 | G10: =SUMPRODUCT('Costs ($2014) Incl Real Esc'!L$5:L$764,'Input Data'!$U$5:$U$764)/10^6 -> 36.59687382 | H10: =SUMPRODUCT('Costs ($2014) Incl Real Esc'!M$5:M$764,'Input Data'!$U$5:$U$764)/10^6 -> 5.600803318 | I10: =SUMPRODUCT('Costs ($2014) Incl Real Esc'!N$5:N$764,'Input Data'!$U$5:$U$764)/10^6 -> 55.04282767 | J10: =SUMPRODUCT('Costs ($2014) Incl Real Esc'!O$5:O$764,'Input Data'!$U$5:$U$764)/10^6 -> 9.347549162 | K10: =SUMPRODUCT('Costs ($2014) Incl Real Esc'!P$5:P$764,'Input Data'!$U$5:$U$764)/10^6 -> 0.6124209526 | L10: 70.6036011
A11: ='Cost Escalators'!B31 -> Cables | B11: ='Cost Escalators'!C$31 -> Underground Cables | C11: =SUMPRODUCT('Costs ($2014) Incl Real Esc'!H$5:H$764,'Input Data'!$V$5:$V$764)/10^6 -> 1.761995878 | D11: =SUMPRODUCT('Costs ($2014) Incl Real Esc'!I$5:I$764,'Input Data'!$V$5:$V$764)/10^6 -> 2.67813086 | E11: =SUMPRODUCT('Costs ($2014) Incl Real Esc'!J$5:J$764,'Input Data'!$V$5:$V$764)/10^6 -> 10.70083369 | F11: =SUMPRODUCT('Costs ($2014) Incl Real Esc'!K$5:K$764,'Input Data'!$V$5:$V$764)/10^6 -> 46.61131886 | G11: =SUMPRODUCT('Costs ($2014) Incl Real Esc'!L$5:L$764,'Input Data'!$V$5:$V$764)/10^6 -> 62.45161751 | H11: =SUMPRODUCT('Costs ($2014) Incl Real Esc'!M$5:M$764,'Input Data'!$V$5:$V$764)/10^6 -> 1.35817989 | I11: =SUMPRODUCT('Costs ($2014) Incl Real Esc'!N$5:N$764,'Input Data'!$V$5:$V$764)/10^6 -> 3.800767832 | J11: =SUMPRODUCT('Costs ($2014) Incl Real Esc'!O$5:O$764,'Input Data'!$V$5:$V$764)/10^6 -> 1.39944597 | K11: =SUMPRODUCT('Costs ($2014) Incl Real Esc'!P$5:P$764,'Input Data'!$V$5:$V$764)/10^6 -> 0.2894897461 | L11: 6.847883439
A12: ='Cost Escalators'!B32 -> TL Life Ext | B12: ='Cost Escalators'!C$32 -> Transmission Line Life Extension | C12: =SUMPRODUCT('Costs ($2014) Incl Real Esc'!H$5:H$764,'Input Data'!$W$5:$W$764)/10^6 -> 0 | D12: =SUMPRODUCT('Costs ($2014) Incl Real Esc'!I$5:I$764,'Input Data'!$W$5:$W$764)/10^6 -> 0 | E12: =SUMPRODUCT('Costs ($2014) Incl Real Esc'!J$5:J$764,'Input Data'!$W$5:$W$764)/10^6 -> 0 | F12: =SUMPRODUCT('Costs ($2014) Incl Real Esc'!K$5:K$764,'Input Data'!$W$5:$W$764)/10^6 -> 0 | G12: =SUMPRODUCT('Costs ($2014) Incl Real Esc'!L$5:L$764,'Input Data'!$W$5:$W$764)/10^6 -> 0.0002337404909 | H12: =SUMPRODUCT('Costs ($2014) Incl Real Esc'!M$5:M$764,'Input Data'!$W$5:$W$764)/10^6 -> 5.897871094 | I12: =SUMPRODUCT('Costs ($2014) Incl Real Esc'!N$5:N$764,'Input Data'!$W$5:$W$764)/10^6 -> 6.610401855 | J12: =SUMPRODUCT('Costs ($2014) Incl Real Esc'!O$5:O$764,'Input Data'!$W$5:$W$764)/10^6 -> 4.919009766 | K12: =SUMPRODUCT('Costs ($2014) Incl Real Esc'!P$5:P$764,'Input Data'!$W$5:$W$764)/10^6 -> 7.701199219 | L12: 25.12848193
A13: ='Cost Escalators'!B33 -> MV & MP | B13: ='Cost Escalators'!C$33 -> Motor Vehicles, Moveable Plant and Minor Plant | C13: =SUMPRODUCT('Costs ($2014) Incl Real Esc'!H$5:H$764,'Input Data'!$X$5:$X$764)/10^6 -> 13.61937863 | D13: =SUMPRODUCT('Costs ($2014) Incl Real Esc'!I$5:I$764,'Input Data'!$X$5:$X$764)/10^6 -> 10.64220874 | E13: =SUMPRODUCT('Costs ($2014) Incl Real Esc'!J$5:J$764,'Input Data'!$X$5:$X$764)/10^6 -> 13.8272822 | F13: =SUMPRODUCT('Costs ($2014) Incl Real Esc'!K$5:K$764,'Input Data'!$X$5:$X$764)/10^6 -> 10.24686277 | G13: =SUMPRODUCT('Costs ($2014) Incl Real Esc'!L$5:L$764,'Input Data'!$X$5:$X$764)/10^6 -> 9.837226427 | H13: =SUMPRODUCT('Costs ($2014) Incl Real Esc'!M$5:M$764,'Input Data'!$X$5:$X$764)/10^6 -> 11.48318868 | I13: =SUMPRODUCT('Costs ($2014) Incl Real Esc'!N$5:N$764,'Input Data'!$X$5:$X$764)/10^6 -> 9.185672754 | J13: =SUMPRODUCT('Costs ($2014) Incl Real Esc'!O$5:O$764,'Input Data'!$X$5:$X$764)/10^6 -> 10.78167031 | K13: =SUMPRODUCT('Costs ($2014) Incl Real Esc'!P$5:P$764,'Input Data'!$X$5:$X$764)/10^6 -> 11.77185273 | L13: 43.22238448
A14: ='Cost Escalators'!B34 -> Bus. IT | B14: ='Cost Escalators'!C$34 -> Business and Information Technology | C14: =SUMPRODUCT('Costs ($2014) Incl Real Esc'!H$5:H$764,'Input Data'!$Y$5:$Y$764)/10^6 -> 14.90270734 | D14: =SUMPRODUCT('Costs ($2014) Incl Real Esc'!I$5:I$764,'Input Data'!$Y$5:$Y$764)/10^6 -> 15.82487711 | E14: =SUMPRODUCT('Costs ($2014) Incl Real Esc'!J$5:J$764,'Input Data'!$Y$5:$Y$764)/10^6 -> 20.16594795 | F14: =SUMPRODUCT('Costs ($2014) Incl Real Esc'!K$5:K$764,'Input Data'!$Y$5:$Y$764)/10^6 -> 25.21893278 | G14: =SUMPRODUCT('Costs ($2014) Incl Real Esc'!L$5:L$764,'Input Data'!$Y$5:$Y$764)/10^6 -> 16.36490945 | H14: =SUMPRODUCT('Costs ($2014) Incl Real Esc'!M$5:M$764,'Input Data'!$Y$5:$Y$764)/10^6 -> 21.24078125 | I14: =SUMPRODUCT('Costs ($2014) Incl Real Esc'!N$5:N$764,'Input Data'!$Y$5:$Y$764)/10^6 -> 19.65957031 | J14: =SUMPRODUCT('Costs ($2014) Incl Real Esc'!O$5:O$764,'Input Data'!$Y$5:$Y$764)/10^6 -> 18.115625 | K14: =SUMPRODUCT('Costs ($2014) Incl Real Esc'!P$5:P$764,'Input Data'!$Y$5:$Y$764)/10^6 -> 20.79179687 | L14: 79.80777344
B15: Costs (Real $2014) Including Real Escalation | C15: =SUM(C6:C14) -> 443.7980518 | D15: =SUM(D6:D14) -> 388.6848138 | E15: =SUM(E6:E14) -> 372.6935095 | F15: =SUM(F6:F14) -> 494.6407255 | G15: =SUM(G6:G14) -> 489.6748875 | H15: =SUM(H6:H14) -> 255.2871198 | I15: =SUM(I6:I14) -> 304.6056259 | J15: =SUM(J6:J14) -> 235.3295741 | K15: =SUM(K6:K14) -> 219.7842303 | L15: =SUM(L6:L14) -> 1015.00655
A16: Check | B16: =SUM(C16:K16) -> 7.389644452e-13 | C16: =ABS('Costs ($2014) Incl Real Esc'!H$778/10^6-C15) -> 1.136868377e-13 | D16: =ABS('Costs ($2014) Incl Real Esc'!I$778/10^6-D15) -> 1.136868377e-13 | E16: =ABS('Costs ($2014) Incl Real Esc'!J$778/10^6-E15) -> 1.136868377e-13 | F16: =ABS('Costs ($2014) Incl Real Esc'!K$778/10^6-F15) -> 1.136868377e-13 | G16: =ABS('Costs ($2014) Incl Real Esc'!L$778/10^6-G15) -> 5.684341886e-14 | H16: =ABS('Costs ($2014) Incl Real Esc'!M$778/10^6-H15) -> 0 | I16: =ABS('Costs ($2014) Incl Real Esc'!N$778/10^6-I15) -> 1.705302566e-13 | J16: =ABS('Costs ($2014) Incl Real Esc'!O$778/10^6-J15) -> 2.842170943e-14 | K16: =ABS('Costs ($2014) Incl Real Esc'!P$778/10^6-K15) -> 2.842170943e-14
B18: Real Cost Escalation | C18: =('Costs ($2014) Incl Real Esc'!H778-'Costs ($2014) Excl Real Esc'!H778)/10^6 -> 0 | D18: =('Costs ($2014) Incl Real Esc'!I778-'Costs ($2014) Excl Real Esc'!I778)/10^6 -> 0 | E18: =('Costs ($2014) Incl Real Esc'!J778-'Costs ($2014) Excl Real Esc'!J778)/10^6 -> 0 | F18: =('Costs ($2014) Incl Real Esc'!K778-'Costs ($2014) Excl Real Esc'!K778)/10^6 -> 0 | G18: =('Costs ($2014) Incl Real Esc'!L778-'Costs ($2014) Excl Real Esc'!L778)/10^6 -> 0.0123357375 | H18: =('Costs ($2014) Incl Real Esc'!M778-'Costs ($2014) Excl Real Esc'!M778)/10^6 -> 0.9069942212 | I18: =('Costs ($2014) Incl Real Esc'!N778-'Costs ($2014) Excl Real Esc'!N778)/10^6 -> 4.288680696 | J18: =('Costs ($2014) Incl Real Esc'!O778-'Costs ($2014) Excl Real Esc'!O778)/10^6 -> 6.422578868 | K18: =('Costs ($2014) Incl Real Esc'!P778-'Costs ($2014) Excl Real Esc'!P778)/10^6 -> 7.223857414 | L18: =SUM(H18:K18) -> 18.8421112
B20: Costs (Real $2014) Excluding Real Escalation | C20: =C15-C18 -> 443.7980518 | D20: =D15-D18 -> 388.6848138 | E20: 372.6935095 | F20: 494.6407255 | G20: 489.6625517 | H20: 254.3801256 | I20: 300.3169452 | J20: 228.9069953 | K20: 212.5603729 | L20: 996.164439
B24: Capex by Project Category | C24: =C$5 -> 2010 | D24: 2011 | E24: 2012 | F24: 2013 | G24: 2014 | H24: 2015 | I24: 2016 | J24: 2017 | K24: 2018 | L24: 2015-18 Total
A25: ='Cost Escalators'!B$53 -> Load Driven | B25: ='Cost Escalators'!A$53 -> PS Augmentation | C25: =SUMIF('Costs ($2014) Incl Real Esc'!$D$5:$D$764,$B25,'Costs ($2014) Incl Real Esc'!H$5:H$764)/10^6 -> 245.9012875 | D25: =SUMIF('Costs ($2014) Incl Real Esc'!$D$5:$D$764,$B25,'Costs ($2014) Incl Real Esc'!I$5:I$764)/10^6 -> 179.8445759 | E25: =SUMIF('Costs ($2014) Incl Real Esc'!$D$5:$D$764,$B25,'Costs ($2014) Incl Real Esc'!J$5:J$764)/10^6 -> 163.3500431 | F25: =SUMIF('Costs ($2014) Incl Real Esc'!$D$5:$D$764,$B25,'Costs ($2014) Incl Real Esc'!K$5:K$764)/10^6 -> 251.2123968 | G25: =SUMIF('Costs ($2014) Incl Real Esc'!$D$5:$D$764,$B25,'Costs ($2014) Incl Real Esc'!L$5:L$764)/10^6 -> 204.4377326 | H25: =SUMIF('Costs ($2014) Incl Real Esc'!$D$5:$D$764,$B25,'Costs ($2014) Incl Real Esc'!M$5:M$764)/10^6 -> 17.15010433 | I25: =SUMIF('Costs ($2014) Incl Real Esc'!$D$5:$D$764,$B25,'Costs ($2014) Incl Real Esc'!N$5:N$764)/10^6 -> 4.810367959 | J25: =SUMIF('Costs ($2014) Incl Real Esc'!$D$5:$D$764,$B25,'Costs ($2014) Incl Real Esc'!O$5:O$764)/10^6 -> 22.63885568 | K25: =SUMIF('Costs ($2014) Incl Real Esc'!$D$5:$D$764,$B25,'Costs ($2014) Incl Real Esc'!P$5:P$764)/10^6 -> 20.56505953 | L25: =SUM(H25:K25) -> 65.1643875
A26: ='Cost Escalators'!B$54 -> Non-Load Driven | B26: ='Cost Escalators'!A$54 -> PS Connections | C26: =SUMIF('Costs ($2014) Incl Real Esc'!$D$5:$D$764,$B26,'Costs ($2014) Incl Real Esc'!H$5:H$764)/10^6 -> 1.128357854 | D26: =SUMIF('Costs ($2014) Incl Real Esc'!$D$5:$D$764,$B26,'Costs ($2014) Incl Real Esc'!I$5:I$764)/10^6 -> 1.11716813 | E26: =SUMIF('Costs ($2014) Incl Real Esc'!$D$5:$D$764,$B26,'Costs ($2014) Incl Real Esc'!J$5:J$764)/10^6 -> 2.620096916 | F26: =SUMIF('Costs ($2014) Incl Real Esc'!$D$5:$D$764,$B26,'Costs ($2014) Incl Real Esc'!K$5:K$764)/10^6 -> 2.631748621 | G26: =SUMIF('Costs ($2014) Incl Real Esc'!$D$5:$D$764,$B26,'Costs ($2014) Incl Real Esc'!L$5:L$764)/10^6 -> 3.526732723 | H26: =SUMIF('Costs ($2014) Incl Real Esc'!$D$5:$D$764,$B26,'Costs ($2014) Incl Real Esc'!M$5:M$764)/10^6 -> 5.47354101 | I26: =SUMIF('Costs ($2014) Incl Real Esc'!$D$5:$D$764,$B26,'Costs ($2014) Incl Real Esc'!N$5:N$764)/10^6 -> 2.473230848 | J26: =SUMIF('Costs ($2014) Incl Real Esc'!$D$5:$D$764,$B26,'Costs ($2014) Incl Real Esc'!O$5:O$764)/10^6 -> 1.122861377 | K26: =SUMIF('Costs ($2014) Incl Real Esc'!$D$5:$D$764,$B26,'Costs ($2014) Incl Real Esc'!P$5:P$764)/10^6 -> 0.1915424871 | L26: =SUM(H26:K26) -> 9.261175721
A27: ='Cost Escalators'!B$55 -> Load Driven | B27: ='Cost Escalators'!A$55 -> PS Easements | C27: =SUMIF('Costs ($2014) Incl Real Esc'!$D$5:$D$764,$B27,'Costs ($2014) Incl Real Esc'!H$5:H$764)/10^6 -> 10.17089174 | D27: =SUMIF('Costs ($2014) Incl Real Esc'!$D$5:$D$764,$B27,'Costs ($2014) Incl Real Esc'!I$5:I$764)/10^6 -> 18.2130713 | E27: =SUMIF('Costs ($2014) Incl Real Esc'!$D$5:$D$764,$B27,'Costs ($2014) Incl Real Esc'!J$5:J$764)/10^6 -> 10.02514131 | F27: =SUMIF('Costs ($2014) Incl Real Esc'!$D$5:$D$764,$B27,'Costs ($2014) Incl Real Esc'!K$5:K$764)/10^6 -> 17.71085415 | G27: =SUMIF('Costs ($2014) Incl Real Esc'!$D$5:$D$764,$B27,'Costs ($2014) Incl Real Esc'!L$5:L$764)/10^6 -> 11.54805159 | H27: =SUMIF('Costs ($2014) Incl Real Esc'!$D$5:$D$764,$B27,'Costs ($2014) Incl Real Esc'!M$5:M$764)/10^6 -> 0.9012800686 | I27: =SUMIF('Costs ($2014) Incl Real Esc'!$D$5:$D$764,$B27,'Costs ($2014) Incl Real Esc'!N$5:N$764)/10^6 -> 52.5093195 | J27: =SUMIF('Costs ($2014) Incl Real Esc'!$D$5:$D$764,$B27,'Costs ($2014) Incl Real Esc'!O$5:O$764)/10^6 -> 7.847744998 | K27: =SUMIF('Costs ($2014) Incl Real Esc'!$D$5:$D$764,$B27,'Costs ($2014) Incl Real Esc'!P$5:P$764)/10^6 -> 0 | L27: 61.25834457
A28: ='Cost Escalators'!B$56 -> Non-Load Driven | B28: ='Cost Escalators'!A$56 -> PS Replacement | C28: =SUMIF('Costs ($2014) Incl Real Esc'!$D$5:$D$764,$B28,'Costs ($2014) Incl Real Esc'!H$5:H$764)/10^6 -> 94.97138393 | D28: =SUMIF('Costs ($2014) Incl Real Esc'!$D$5:$D$764,$B28,'Costs ($2014) Incl Real Esc'!I$5:I$764)/10^6 -> 113.4990913 | E28: =SUMIF('Costs ($2014) Incl Real Esc'!$D$5:$D$764,$B28,'Costs ($2014) Incl Real Esc'!J$5:J$764)/10^6 -> 87.08943996 | F28: =SUMIF('Costs ($2014) Incl Real Esc'!$D$5:$D$764,$B28,'Costs ($2014) Incl Real Esc'!K$5:K$764)/10^6 -> 99.60952412 | G28: =SUMIF('Costs ($2014) Incl Real Esc'!$D$5:$D$764,$B28,'Costs ($2014) Incl Real Esc'!L$5:L$764)/10^6 -> 140.5615794 | H28: =SUMIF('Costs ($2014) Incl Real Esc'!$D$5:$D$764,$B28,'Costs ($2014) Incl Real Esc'!M$5:M$764)/10^6 -> 146.0990567 | I28: =SUMIF('Costs ($2014) Incl Real Esc'!$D$5:$D$764,$B28,'Costs ($2014) Incl Real Esc'!N$5:N$764)/10^6 -> 167.1830786 | J28: =SUMIF('Costs ($2014) Incl Real Esc'!$D$5:$D$764,$B28,'Costs ($2014) Incl Real Esc'!O$5:O$764)/10^6 -> 133.5041916 | K28: =SUMIF('Costs ($2014) Incl Real Esc'!$D$5:$D$764,$B28,'Costs ($2014) Incl Real Esc'!P$5:P$764)/10^6 -> 119.8080854 | L28: 566.5944122
A29: ='Cost Escalators'!B$57 -> Non-Load Driven | B29: ='Cost Escalators'!A$57 -> PS Network Asset Replacement | C29: =SUMIF('Costs ($2014) Incl Real Esc'!$D$5:$D$764,$B29,'Costs ($2014) Incl Real Esc'!H$5:H$764)/10^6 -> 45.51418129 | D29: =SUMIF('Costs ($2014) Incl Real Esc'!$D$5:$D$764,$B29,'Costs ($2014) Incl Real Esc'!I$5:I$764)/10^6 -> 34.77657238 | E29: =SUMIF('Costs ($2014) Incl Real Esc'!$D$5:$D$764,$B29,'Costs ($2014) Incl Real Esc'!J$5:J$764)/10^6 -> 40.57335446 | F29: =SUMIF('Costs ($2014) Incl Real Esc'!$D$5:$D$764,$B29,'Costs ($2014) Incl Real Esc'!K$5:K$764)/10^6 -> 49.73744759 | G29: =SUMIF('Costs ($2014) Incl Real Esc'!$D$5:$D$764,$B29,'Costs ($2014) Incl Real Esc'!L$5:L$764)/10^6 -> 33.47069454 | H29: =SUMIF('Costs ($2014) Incl Real Esc'!$D$5:$D$764,$B29,'Costs ($2014) Incl Real Esc'!M$5:M$764)/10^6 -> 26.00997398 | I29: =SUMIF('Costs ($2014) Incl Real Esc'!$D$5:$D$764,$B29,'Costs ($2014) Incl Real Esc'!N$5:N$764)/10^6 -> 24.63715068 | J29: =SUMIF('Costs ($2014) Incl Real Esc'!$D$5:$D$764,$B29,'Costs ($2014) Incl Real Esc'!O$5:O$764)/10^6 -> 24.12942006 | K29: =SUMIF('Costs ($2014) Incl Real Esc'!$D$5:$D$764,$B29,'Costs ($2014) Incl Real Esc'!P$5:P$764)/10^6 -> 22.18724147 | L29: 96.96378618
A30: ='Cost Escalators'!B$58 -> Non-Load Driven | B30: ='Cost Escalators'!A$58 -> PS Network-Other | C30: =SUMIF('Costs ($2014) Incl Real Esc'!$D$5:$D$764,$B30,'Costs ($2014) Incl Real Esc'!H$5:H$764)/10^6 -> 0 | D30: =SUMIF('Costs ($2014) Incl Real Esc'!$D$5:$D$764,$B30,'Costs ($2014) Incl Real Esc'!I$5:I$764)/10^6 -> 0 | E30: =SUMIF('Costs ($2014) Incl Real Esc'!$D$5:$D$764,$B30,'Costs ($2014) Incl Real Esc'!J$5:J$764)/10^6 -> 0 | F30: =SUMIF('Costs ($2014) Incl Real Esc'!$D$5:$D$764,$B30,'Costs ($2014) Incl Real Esc'!K$5:K$764)/10^6 -> 0 | G30: =SUMIF('Costs ($2014) Incl Real Esc'!$D$5:$D$764,$B30,'Costs ($2014) Incl Real Esc'!L$5:L$764)/10^6 -> 0 | H30: =SUMIF('Costs ($2014) Incl Real Esc'!$D$5:$D$764,$B30,'Costs ($2014) Incl Real Esc'!M$5:M$764)/10^6 -> 2.502731 | I30: =SUMIF('Costs ($2014) Incl Real Esc'!$D$5:$D$764,$B30,'Costs ($2014) Incl Real Esc'!N$5:N$764)/10^6 -> 1.445 | J30: =SUMIF('Costs ($2014) Incl Real Esc'!$D$5:$D$764,$B30,'Costs ($2014) Incl Real Esc'!O$5:O$764)/10^6 -> 1.511 | K30: =SUMIF('Costs ($2014) Incl Real Esc'!$D$5:$D$764,$B30,'Costs ($2014) Incl Real Esc'!P$5:P$764)/10^6 -> 1.165 | L30: 6.623731
A31: ='Cost Escalators'!B$59 -> Non-Load Driven | B31: ='Cost Escalators'!A$59 -> PS Security/Compliance | C31: =SUMIF('Costs ($2014) Incl Real Esc'!$D$5:$D$764,$B31,'Costs ($2014) Incl Real Esc'!H$5:H$764)/10^6 -> 15.26155633 | D31: =SUMIF('Costs ($2014) Incl Real Esc'!$D$5:$D$764,$B31,'Costs ($2014) Incl Real Esc'!I$5:I$764)/10^6 -> 10.35577714 | E31: =SUMIF('Costs ($2014) Incl Real Esc'!$D$5:$D$764,$B31,'Costs ($2014) Incl Real Esc'!J$5:J$764)/10^6 -> 22.50750483 | F31: =SUMIF('Costs ($2014) Incl Real Esc'!$D$5:$D$764,$B31,'Costs ($2014) Incl Real Esc'!K$5:K$764)/10^6 -> 17.07200935 | G31: =SUMIF('Costs ($2014) Incl Real Esc'!$D$5:$D$764,$B31,'Costs ($2014) Incl Real Esc'!L$5:L$764)/10^6 -> 17.82763279 | H31: =SUMIF('Costs ($2014) Incl Real Esc'!$D$5:$D$764,$B31,'Costs ($2014) Incl Real Esc'!M$5:M$764)/10^6 -> 20.20717885 | I31: =SUMIF('Costs ($2014) Incl Real Esc'!$D$5:$D$764,$B31,'Costs ($2014) Incl Real Esc'!N$5:N$764)/10^6 -> 13.17393524 | J31: =SUMIF('Costs ($2014) Incl Real Esc'!$D$5:$D$764,$B31,'Costs ($2014) Incl Real Esc'!O$5:O$764)/10^6 -> 12.35650509 | K31: =SUMIF('Costs ($2014) Incl Real Esc'!$D$5:$D$764,$B31,'Costs ($2014) Incl Real Esc'!P$5:P$764)/10^6 -> 24.46865188 | L31: 70.20627106
A32: ='Cost Escalators'!B$60 -> Business IT | B32: ='Cost Escalators'!A$60 -> PS Information Technology | C32: =SUMIF('Costs ($2014) Incl Real Esc'!$D$5:$D$764,$B32,'Costs ($2014) Incl Real Esc'!H$5:H$764)/10^6 -> 15.4387068 | D32: =SUMIF('Costs ($2014) Incl Real Esc'!$D$5:$D$764,$B32,'Costs ($2014) Incl Real Esc'!I$5:I$764)/10^6 -> 15.82487711 | E32: =SUMIF('Costs ($2014) Incl Real Esc'!$D$5:$D$764,$B32,'Costs ($2014) Incl Real Esc'!J$5:J$764)/10^6 -> 20.16594795 | F32: =SUMIF('Costs ($2014) Incl Real Esc'!$D$5:$D$764,$B32,'Costs ($2014) Incl Real Esc'!K$5:K$764)/10^6 -> 25.21893278 | G32: =SUMIF('Costs ($2014) Incl Real Esc'!$D$5:$D$764,$B32,'Costs ($2014) Incl Real Esc'!L$5:L$764)/10^6 -> 16.36490945 | H32: =SUMIF('Costs ($2014) Incl Real Esc'!$D$5:$D$764,$B32,'Costs ($2014) Incl Real Esc'!M$5:M$764)/10^6 -> 19.35078125 | I32: =SUMIF('Costs ($2014) Incl Real Esc'!$D$5:$D$764,$B32,'Costs ($2014) Incl Real Esc'!N$5:N$764)/10^6 -> 19.65957031 | J32: =SUMIF('Costs ($2014) Incl Real Esc'!$D$5:$D$764,$B32,'Costs ($2014) Incl Real Esc'!O$5:O$764)/10^6 -> 18.115625 | K32: =SUMIF('Costs ($2014) Incl Real Esc'!$D$5:$D$764,$B32,'Costs ($2014) Incl Real Esc'!P$5:P$764)/10^6 -> 20.79179687 | L32: 77.91777344
A33: ='Cost Escalators'!B$61 -> Support the Business | B33: ='Cost Escalators'!A$61 -> PS Facilities | C33: =SUMIF('Costs ($2014) Incl Real Esc'!$D$5:$D$764,$B33,'Costs ($2014) Incl Real Esc'!H$5:H$764)/10^6 -> 1.792307764 | D33: =SUMIF('Costs ($2014) Incl Real Esc'!$D$5:$D$764,$B33,'Costs ($2014) Incl Real Esc'!I$5:I$764)/10^6 -> 4.411471918 | E33: =SUMIF('Costs ($2014) Incl Real Esc'!$D$5:$D$764,$B33,'Costs ($2014) Incl Real Esc'!J$5:J$764)/10^6 -> 12.53469872 | F33: =SUMIF('Costs ($2014) Incl Real Esc'!$D$5:$D$764,$B33,'Costs ($2014) Incl Real Esc'!K$5:K$764)/10^6 -> 21.20094936 | G33: =SUMIF('Costs ($2014) Incl Real Esc'!$D$5:$D$764,$B33,'Costs ($2014) Incl Real Esc'!L$5:L$764)/10^6 -> 52.10032798 | H33: =SUMIF('Costs ($2014) Incl Real Esc'!$D$5:$D$764,$B33,'Costs ($2014) Incl Real Esc'!M$5:M$764)/10^6 -> 8.612015 | I33: =SUMIF('Costs ($2014) Incl Real Esc'!$D$5:$D$764,$B33,'Costs ($2014) Incl Real Esc'!N$5:N$764)/10^6 -> 10.9733 | J33: =SUMIF('Costs ($2014) Incl Real Esc'!$D$5:$D$764,$B33,'Costs ($2014) Incl Real Esc'!O$5:O$764)/10^6 -> 4.8327 | K33: =SUMIF('Costs ($2014) Incl Real Esc'!$D$5:$D$764,$B33,'Costs ($2014) Incl Real Esc'!P$5:P$764)/10^6 -> 0 | L33: 24.418015
A34: ='Cost Escalators'!B$62 -> Support the Business | B34: ='Cost Escalators'!A$62 -> PS Motor Vehicles | C34: =SUMIF('Costs ($2014) Incl Real Esc'!$D$5:$D$764,$B34,'Costs ($2014) Incl Real Esc'!H$5:H$764)/10^6 -> 13.61937863 | D34: =SUMIF('Costs ($2014) Incl Real Esc'!$D$5:$D$764,$B34,'Costs ($2014) Incl Real Esc'!I$5:I$764)/10^6 -> 10.64220874 | E34: =SUMIF('Costs ($2014) Incl Real Esc'!$D$5:$D$764,$B34,'Costs ($2014) Incl Real Esc'!J$5:J$764)/10^6 -> 13.8272822 | F34: =SUMIF('Costs ($2014) Incl Real Esc'!$D$5:$D$764,$B34,'Costs ($2014) Incl Real Esc'!K$5:K$764)/10^6 -> 10.24686277 | G34: =SUMIF('Costs ($2014) Incl Real Esc'!$D$5:$D$764,$B34,'Costs ($2014) Incl Real Esc'!L$5:L$764)/10^6 -> 9.837226427 | H34: =SUMIF('Costs ($2014) Incl Real Esc'!$D$5:$D$764,$B34,'Costs ($2014) Incl Real Esc'!M$5:M$764)/10^6 -> 8.98045768 | I34: =SUMIF('Costs ($2014) Incl Real Esc'!$D$5:$D$764,$B34,'Costs ($2014) Incl Real Esc'!N$5:N$764)/10^6 -> 7.740672754 | J34: =SUMIF('Costs ($2014) Incl Real Esc'!$D$5:$D$764,$B34,'Costs ($2014) Incl Real Esc'!O$5:O$764)/10^6 -> 9.270670312 | K34: =SUMIF('Costs ($2014) Incl Real Esc'!$D$5:$D$764,$B34,'Costs ($2014) Incl Real Esc'!P$5:P$764)/10^6 -> 10.60685273 | L34: 36.59865348
A35: ='Cost Escalators'!B$63 -> Non-Load Driven | B35: ='Cost Escalators'!A$63 -> PS Western Sydney Supply | C35: =SUMIF('Costs ($2014) Incl Real Esc'!$D$5:$D$764,$B35,'Costs ($2014) Incl Real Esc'!H$5:H$764)/10^6 -> 0 | D35: =SUMIF('Costs ($2014) Incl Real Esc'!$D$5:$D$764,$B35,'Costs ($2014) Incl Real Esc'!I$5:I$764)/10^6 -> 0 | E35: =SUMIF('Costs ($2014) Incl Real Esc'!$D$5:$D$764,$B35,'Costs ($2014) Incl Real Esc'!J$5:J$764)/10^6 -> 0 | F35: =SUMIF('Costs ($2014) Incl Real Esc'!$D$5:$D$764,$B35,'Costs ($2014) Incl Real Esc'!K$5:K$764)/10^6 -> 0 | G35: =SUMIF('Costs ($2014) Incl Real Esc'!$D$5:$D$764,$B35,'Costs ($2014) Incl Real Esc'!L$5:L$764)/10^6 -> 0 | H35: =SUMIF('Costs ($2014) Incl Real Esc'!$D$5:$D$764,$B35,'Costs ($2014) Incl Real Esc'!M$5:M$764)/10^6 -> 0 | I35: =SUMIF('Costs ($2014) Incl Real Esc'!$D$5:$D$764,$B35,'Costs ($2014) Incl Real Esc'!N$5:N$764)/10^6 -> 0 | J35: =SUMIF('Costs ($2014) Incl Real Esc'!$D$5:$D$764,$B35,'Costs ($2014) Incl Real Esc'!O$5:O$764)/10^6 -> 0 | K35: =SUMIF('Costs ($2014) Incl Real Esc'!$D$5:$D$764,$B35,'Costs ($2014) Incl Real Esc'!P$5:P$764)/10^6 -> 0 | L35: 0
B36: Costs (Real $2014) Including Real Escalation | C36: =SUM(C25:C35) -> 443.7980518 | D36: =SUM(D25:D35) -> 388.6848138 | E36: =SUM(E25:E35) -> 372.6935095 | F36: =SUM(F25:F35) -> 494.6407255 | G36: =SUM(G25:G35) -> 489.6748875 | H36: =SUM(H25:H35) -> 255.2871198 | I36: =SUM(I25:I35) -> 304.6056259 | J36: =SUM(J25:J35) -> 235.3295741 | K36: =SUM(K25:K35) -> 219.7842303 | L36: =SUM(L25:L35) -> 1015.00655
A37: Check | B37: =SUM(C37:L37) -> 9.094947018e-13 | C37: =ABS(C15-C36) -> 1.136868377e-13 | D37: 1.705302566e-13 | E37: 1.136868377e-13 | F37: 0 | G37: 1.136868377e-13 | H37: 0 | I37: 1.136868377e-13 | J37: 2.842170943e-14 | K37: 2.842170943e-14 | L37: 2.273736754e-13
B41: Capex by Project Component | C41: =C$5 -> 2010 | D41: 2011 | E41: 2012 | F41: 2013 | G41: 2014 | H41: 2015 | I41: 2016 | J41: 2017 | K41: 2018 | L41: 2015-18 Total
B42: ='Cost Escalators'!B38 -> CPI Only | C42: =SUMPRODUCT('Costs ($2014) Incl Real Esc'!H$5:H$764,'Input Data'!$AA$5:$AA$764)/10^6 -> 443.7980518 | D42: =SUMPRODUCT('Costs ($2014) Incl Real Esc'!I$5:I$764,'Input Data'!$AA$5:$AA$764)/10^6 -> 388.6848138 | E42: =SUMPRODUCT('Costs ($2014) Incl Real Esc'!J$5:J$764,'Input Data'!$AA$5:$AA$764)/10^6 -> 372.6935095 | F42: =SUMPRODUCT('Costs ($2014) Incl Real Esc'!K$5:K$764,'Input Data'!$AA$5:$AA$764)/10^6 -> 494.6407255 | G42: =SUMPRODUCT('Costs ($2014) Incl Real Esc'!L$5:L$764,'Input Data'!$AA$5:$AA$764)/10^6 -> 487.2141097 | H42: =SUMPRODUCT('Costs ($2014) Incl Real Esc'!M$5:M$764,'Input Data'!$AA$5:$AA$764)/10^6 -> 217.4487774 | I42: =SUMPRODUCT('Costs ($2014) Incl Real Esc'!N$5:N$764,'Input Data'!$AA$5:$AA$764)/10^6 -> 199.0502193 | J42: =SUMPRODUCT('Costs ($2014) Incl Real Esc'!O$5:O$764,'Input Data'!$AA$5:$AA$764)/10^6 -> 114.1994855 | K42: =SUMPRODUCT('Costs ($2014) Incl Real Esc'!P$5:P$764,'Input Data'!$AA$5:$AA$764)/10^6 -> 119.2998243 | L42: =SUM(H42:K42) -> 649.9983064
B43: ='Cost Escalators'!B39 -> EGW Wages | C43: =SUMPRODUCT('Costs ($2014) Incl Real Esc'!H$5:H$764,'Input Data'!$AB$5:$AB$764)/10^6 -> 0 | D43: =SUMPRODUCT('Costs ($2014) Incl Real Esc'!I$5:I$764,'Input Data'!$AB$5:$AB$764)/10^6 -> 0 | E43: =SUMPRODUCT('Costs ($2014) Incl Real Esc'!J$5:J$764,'Input Data'!$AB$5:$AB$764)/10^6 -> 0 | F43: =SUMPRODUCT('Costs ($2014) Incl Real Esc'!K$5:K$764,'Input Data'!$AB$5:$AB$764)/10^6 -> 0 | G43: =SUMPRODUCT('Costs ($2014) Incl Real Esc'!L$5:L$764,'Input Data'!$AB$5:$AB$764)/10^6 -> 2.296025043 | H43: =SUMPRODUCT('Costs ($2014) Incl Real Esc'!M$5:M$764,'Input Data'!$AB$5:$AB$764)/10^6 -> 14.19748485 | I43: =SUMPRODUCT('Costs ($2014) Incl Real Esc'!N$5:N$764,'Input Data'!$AB$5:$AB$764)/10^6 -> 34.73107912 | J43: =SUMPRODUCT('Costs ($2014) Incl Real Esc'!O$5:O$764,'Input Data'!$AB$5:$AB$764)/10^6 -> 37.52635965 | K43: =SUMPRODUCT('Costs ($2014) Incl Real Esc'!P$5:P$764,'Input Data'!$AB$5:$AB$764)/10^6 -> 34.54129008 | L43: =SUM(H43:K43) -> 120.9962137
B44: ='Cost Escalators'!B40 -> Wages General | C44: =SUMPRODUCT('Costs ($2014) Incl Real Esc'!H$5:H$764,'Input Data'!$AC$5:$AC$764)/10^6 -> 0 | D44: =SUMPRODUCT('Costs ($2014) Incl Real Esc'!I$5:I$764,'Input Data'!$AC$5:$AC$764)/10^6 -> 0 | E44: =SUMPRODUCT('Costs ($2014) Incl Real Esc'!J$5:J$764,'Input Data'!$AC$5:$AC$764)/10^6 -> 0 | F44: =SUMPRODUCT('Costs ($2014) Incl Real Esc'!K$5:K$764,'Input Data'!$AC$5:$AC$764)/10^6 -> 0 | G44: =SUMPRODUCT('Costs ($2014) Incl Real Esc'!L$5:L$764,'Input Data'!$AC$5:$AC$764)/10^6 -> 0 | H44: =SUMPRODUCT('Costs ($2014) Incl Real Esc'!M$5:M$764,'Input Data'!$AC$5:$AC$764)/10^6 -> 0.08172639972 | I44: =SUMPRODUCT('Costs ($2014) Incl Real Esc'!N$5:N$764,'Input Data'!$AC$5:$AC$764)/10^6 -> 0.2253833451 | J44: =SUMPRODUCT('Costs ($2014) Incl Real Esc'!O$5:O$764,'Input Data'!$AC$5:$AC$764)/10^6 -> 0.3816294307 | K44: =SUMPRODUCT('Costs ($2014) Incl Real Esc'!P$5:P$764,'Input Data'!$AC$5:$AC$764)/10^6 -> 0.04286084673 | L44: 0.7316000223
B45: ='Cost Escalators'!B41 -> Copper | C45: =SUMPRODUCT('Costs ($2014) Incl Real Esc'!H$5:H$764,'Input Data'!$AD$5:$AD$764)/10^6 -> 0 | D45: =SUMPRODUCT('Costs ($2014) Incl Real Esc'!I$5:I$764,'Input Data'!$AD$5:$AD$764)/10^6 -> 0 | E45: =SUMPRODUCT('Costs ($2014) Incl Real Esc'!J$5:J$764,'Input Data'!$AD$5:$AD$764)/10^6 -> 0 | F45: =SUMPRODUCT('Costs ($2014) Incl Real Esc'!K$5:K$764,'Input Data'!$AD$5:$AD$764)/10^6 -> 0 | G45: =SUMPRODUCT('Costs ($2014) Incl Real Esc'!L$5:L$764,'Input Data'!$AD$5:$AD$764)/10^6 -> 0.005568837736 | H45: =SUMPRODUCT('Costs ($2014) Incl Real Esc'!M$5:M$764,'Input Data'!$AD$5:$AD$764)/10^6 -> 0.8288776882 | I45: =SUMPRODUCT('Costs ($2014) Incl Real Esc'!N$5:N$764,'Input Data'!$AD$5:$AD$764)/10^6 -> 1.297909692 | J45: =SUMPRODUCT('Costs ($2014) Incl Real Esc'!O$5:O$764,'Input Data'!$AD$5:$AD$764)/10^6 -> 2.813537678 | K45: =SUMPRODUCT('Costs ($2014) Incl Real Esc'!P$5:P$764,'Input Data'!$AD$5:$AD$764)/10^6 -> 2.819961217 | L45: 7.760286274
B46: ='Cost Escalators'!B42 -> Aluminium | C46: =SUMPRODUCT('Costs ($2014) Incl Real Esc'!H$5:H$764,'Input Data'!$AE$5:$AE$764)/10^6 -> 0 | D46: =SUMPRODUCT('Costs ($2014) Incl Real Esc'!I$5:I$764,'Input Data'!$AE$5:$AE$764)/10^6 -> 0 | E46: =SUMPRODUCT('Costs ($2014) Incl Real Esc'!J$5:J$764,'Input Data'!$AE$5:$AE$764)/10^6 -> 0 | F46: =SUMPRODUCT('Costs ($2014) Incl Real Esc'!K$5:K$764,'Input Data'!$AE$5:$AE$764)/10^6 -> 0 | G46: =SUMPRODUCT('Costs ($2014) Incl Real Esc'!L$5:L$764,'Input Data'!$AE$5:$AE$764)/10^6 -> 0.000293096723 | H46: =SUMPRODUCT('Costs ($2014) Incl Real Esc'!M$5:M$764,'Input Data'!$AE$5:$AE$764)/10^6 -> 0.1396293049 | I46: =SUMPRODUCT('Costs ($2014) Incl Real Esc'!N$5:N$764,'Input Data'!$AE$5:$AE$764)/10^6 -> 0.3605303389 | J46: =SUMPRODUCT('Costs ($2014) Incl Real Esc'!O$5:O$764,'Input Data'!$AE$5:$AE$764)/10^6 -> 0.6622972033 | K46: =SUMPRODUCT('Costs ($2014) Incl Real Esc'!P$5:P$764,'Input Data'!$AE$5:$AE$764)/10^6 -> 0.4988015771 | L46: 1.661258424
B47: ='Cost Escalators'!B43 -> Steel | C47: =SUMPRODUCT('Costs ($2014) Incl Real Esc'!H$5:H$764,'Input Data'!$AF$5:$AF$764)/10^6 -> 0 | D47: =SUMPRODUCT('Costs ($2014) Incl Real Esc'!I$5:I$764,'Input Data'!$AF$5:$AF$764)/10^6 -> 0 | E47: =SUMPRODUCT('Costs ($2014) Incl Real Esc'!J$5:J$764,'Input Data'!$AF$5:$AF$764)/10^6 -> 0 | F47: =SUMPRODUCT('Costs ($2014) Incl Real Esc'!K$5:K$764,'Input Data'!$AF$5:$AF$764)/10^6 -> 0 | G47: =SUMPRODUCT('Costs ($2014) Incl Real Esc'!L$5:L$764,'Input Data'!$AF$5:$AF$764)/10^6 -> 0.0005861934459 | H47: =SUMPRODUCT('Costs ($2014) Incl Real Esc'!M$5:M$764,'Input Data'!$AF$5:$AF$764)/10^6 -> 0.2887148994 | I47: =SUMPRODUCT('Costs ($2014) Incl Real Esc'!N$5:N$764,'Input Data'!$AF$5:$AF$764)/10^6 -> 0.4920827009 | J47: =SUMPRODUCT('Costs ($2014) Incl Real Esc'!O$5:O$764,'Input Data'!$AF$5:$AF$764)/10^6 -> 1.413041512 | K47: =SUMPRODUCT('Costs ($2014) Incl Real Esc'!P$5:P$764,'Input Data'!$AF$5:$AF$764)/10^6 -> 1.576693414 | L47: 3.770532526
B48: ='Cost Escalators'!B44 -> Oil | C48: =SUMPRODUCT('Costs ($2014) Incl Real Esc'!H$5:H$764,'Input Data'!$AG$5:$AG$764)/10^6 -> 0 | D48: =SUMPRODUCT('Costs ($2014) Incl Real Esc'!I$5:I$764,'Input Data'!$AG$5:$AG$764)/10^6 -> 0 | E48: =SUMPRODUCT('Costs ($2014) Incl Real Esc'!J$5:J$764,'Input Data'!$AG$5:$AG$764)/10^6 -> 0 | F48: =SUMPRODUCT('Costs ($2014) Incl Real Esc'!K$5:K$764,'Input Data'!$AG$5:$AG$764)/10^6 -> 0 | G48: =SUMPRODUCT('Costs ($2014) Incl Real Esc'!L$5:L$764,'Input Data'!$AG$5:$AG$764)/10^6 -> 0.0005861934459 | H48: =SUMPRODUCT('Costs ($2014) Incl Real Esc'!M$5:M$764,'Input Data'!$AG$5:$AG$764)/10^6 -> 0.1256691401 | I48: =SUMPRODUCT('Costs ($2014) Incl Real Esc'!N$5:N$764,'Input Data'!$AG$5:$AG$764)/10^6 -> 0.1862467391 | J48: =SUMPRODUCT('Costs ($2014) Incl Real Esc'!O$5:O$764,'Input Data'!$AG$5:$AG$764)/10^6 -> 0.4171392672 | K48: =SUMPRODUCT('Costs ($2014) Incl Real Esc'!P$5:P$764,'Input Data'!$AG$5:$AG$764)/10^6 -> 0.5993700459 | L48: 1.328425192
B49: ='Cost Escalators'!B45 -> Construction | C49: =SUMPRODUCT('Costs ($2014) Incl Real Esc'!H$5:H$764,'Input Data'!$AH$5:$AH$764)/10^6 -> 0 | D49: =SUMPRODUCT('Costs ($2014) Incl Real Esc'!I$5:I$764,'Input Data'!$AH$5:$AH$764)/10^6 -> 0 | E49: =SUMPRODUCT('Costs ($2014) Incl Real Esc'!J$5:J$764,'Input Data'!$AH$5:$AH$764)/10^6 -> 0 | F49: =SUMPRODUCT('Costs ($2014) Incl Real Esc'!K$5:K$764,'Input Data'!$AH$5:$AH$764)/10^6 -> 0 | G49: =SUMPRODUCT('Costs ($2014) Incl Real Esc'!L$5:L$764,'Input Data'!$AH$5:$AH$764)/10^6 -> 0.1577184132 | H49: =SUMPRODUCT('Costs ($2014) Incl Real Esc'!M$5:M$764,'Input Data'!$AH$5:$AH$764)/10^6 -> 21.83613864 | I49: =SUMPRODUCT('Costs ($2014) Incl Real Esc'!N$5:N$764,'Input Data'!$AH$5:$AH$764)/10^6 -> 65.59920744 | J49: =SUMPRODUCT('Costs ($2014) Incl Real Esc'!O$5:O$764,'Input Data'!$AH$5:$AH$764)/10^6 -> 69.21938027 | K49: =SUMPRODUCT('Costs ($2014) Incl Real Esc'!P$5:P$764,'Input Data'!$AH$5:$AH$764)/10^6 -> 60.08886002 | L49: 216.7435864
B50: ='Cost Escalators'!B46 -> Property - Res. | C50: =SUMPRODUCT('Costs ($2014) Incl Real Esc'!H$5:H$764,'Input Data'!$AI$5:$AI$764)/10^6 -> 0 | D50: =SUMPRODUCT('Costs ($2014) Incl Real Esc'!I$5:I$764,'Input Data'!$AI$5:$AI$764)/10^6 -> 0 | E50: =SUMPRODUCT('Costs ($2014) Incl Real Esc'!J$5:J$764,'Input Data'!$AI$5:$AI$764)/10^6 -> 0 | F50: =SUMPRODUCT('Costs ($2014) Incl Real Esc'!K$5:K$764,'Input Data'!$AI$5:$AI$764)/10^6 -> 0 | G50: =SUMPRODUCT('Costs ($2014) Incl Real Esc'!L$5:L$764,'Input Data'!$AI$5:$AI$764)/10^6 -> 0 | H50: =SUMPRODUCT('Costs ($2014) Incl Real Esc'!M$5:M$764,'Input Data'!$AI$5:$AI$764)/10^6 -> 0 | I50: =SUMPRODUCT('Costs ($2014) Incl Real Esc'!N$5:N$764,'Input Data'!$AI$5:$AI$764)/10^6 -> 0 | J50: =SUMPRODUCT('Costs ($2014) Incl Real Esc'!O$5:O$764,'Input Data'!$AI$5:$AI$764)/10^6 -> 0 | K50: =SUMPRODUCT('Costs ($2014) Incl Real Esc'!P$5:P$764,'Input Data'!$AI$5:$AI$764)/10^6 -> 0 | L50: 0
B51: ='Cost Escalators'!B47 -> Property - Ind. | C51: =SUMPRODUCT('Costs ($2014) Incl Real Esc'!H$5:H$764,'Input Data'!$AJ$5:$AJ$764)/10^6 -> 0 | D51: =SUMPRODUCT('Costs ($2014) Incl Real Esc'!I$5:I$764,'Input Data'!$AJ$5:$AJ$764)/10^6 -> 0 | E51: =SUMPRODUCT('Costs ($2014) Incl Real Esc'!J$5:J$764,'Input Data'!$AJ$5:$AJ$764)/10^6 -> 0 | F51: =SUMPRODUCT('Costs ($2014) Incl Real Esc'!K$5:K$764,'Input Data'!$AJ$5:$AJ$764)/10^6 -> 0 | G51: =SUMPRODUCT('Costs ($2014) Incl Real Esc'!L$5:L$764,'Input Data'!$AJ$5:$AJ$764)/10^6 -> 0 | H51: =SUMPRODUCT('Costs ($2014) Incl Real Esc'!M$5:M$764,'Input Data'!$AJ$5:$AJ$764)/10^6 -> 0.06976869064 | I51: =SUMPRODUCT('Costs ($2014) Incl Real Esc'!N$5:N$764,'Input Data'!$AJ$5:$AJ$764)/10^6 -> 0.1364887464 | J51: =SUMPRODUCT('Costs ($2014) Incl Real Esc'!O$5:O$764,'Input Data'!$AJ$5:$AJ$764)/10^6 -> 0.0172175428 | K51: =SUMPRODUCT('Costs ($2014) Incl Real Esc'!P$5:P$764,'Input Data'!$AJ$5:$AJ$764)/10^6 -> 0 | L51: 0.2234749798
B52: ='Cost Escalators'!B48 -> Property - Rural | C52: =SUMPRODUCT('Costs ($2014) Incl Real Esc'!H$5:H$764,'Input Data'!$AK$5:$AK$764)/10^6 -> 0 | D52: =SUMPRODUCT('Costs ($2014) Incl Real Esc'!I$5:I$764,'Input Data'!$AK$5:$AK$764)/10^6 -> 0 | E52: =SUMPRODUCT('Costs ($2014) Incl Real Esc'!J$5:J$764,'Input Data'!$AK$5:$AK$764)/10^6 -> 0 | F52: =SUMPRODUCT('Costs ($2014) Incl Real Esc'!K$5:K$764,'Input Data'!$AK$5:$AK$764)/10^6 -> 0 | G52: =SUMPRODUCT('Costs ($2014) Incl Real Esc'!L$5:L$764,'Input Data'!$AK$5:$AK$764)/10^6 -> 0 | H52: =SUMPRODUCT('Costs ($2014) Incl Real Esc'!M$5:M$764,'Input Data'!$AK$5:$AK$764)/10^6 -> 0.03976989634 | I52: =SUMPRODUCT('Costs ($2014) Incl Real Esc'!N$5:N$764,'Input Data'!$AK$5:$AK$764)/10^6 -> 0.4734837479 | J52: =SUMPRODUCT('Costs ($2014) Incl Real Esc'!O$5:O$764,'Input Data'!$AK$5:$AK$764)/10^6 -> 1.7265039 | K52: =SUMPRODUCT('Costs ($2014) Incl Real Esc'!P$5:P$764,'Input Data'!$AK$5:$AK$764)/10^6 -> 0 | L52: =SUM(H52:K52) -> 2.239757544
B53: ='Cost Escalators'!B49 -> Property - Agr. | C53: =SUMPRODUCT('Costs ($2014) Incl Real Esc'!H$5:H$764,'Input Data'!$AL$5:$AL$764)/10^6 -> 0 | D53: =SUMPRODUCT('Costs ($2014) Incl Real Esc'!I$5:I$764,'Input Data'!$AL$5:$AL$764)/10^6 -> 0 | E53: =SUMPRODUCT('Costs ($2014) Incl Real Esc'!J$5:J$764,'Input Data'!$AL$5:$AL$764)/10^6 -> 0 | F53: =SUMPRODUCT('Costs ($2014) Incl Real Esc'!K$5:K$764,'Input Data'!$AL$5:$AL$764)/10^6 -> 0 | G53: =SUMPRODUCT('Costs ($2014) Incl Real Esc'!L$5:L$764,'Input Data'!$AL$5:$AL$764)/10^6 -> 0 | H53: =SUMPRODUCT('Costs ($2014) Incl Real Esc'!M$5:M$764,'Input Data'!$AL$5:$AL$764)/10^6 -> 0.2305629234 | I53: =SUMPRODUCT('Costs ($2014) Incl Real Esc'!N$5:N$764,'Input Data'!$AL$5:$AL$764)/10^6 -> 2.052994704 | J53: =SUMPRODUCT('Costs ($2014) Incl Real Esc'!O$5:O$764,'Input Data'!$AL$5:$AL$764)/10^6 -> 6.952982207 | K53: =SUMPRODUCT('Costs ($2014) Incl Real Esc'!P$5:P$764,'Input Data'!$AL$5:$AL$764)/10^6 -> 0.3165688645 | L53: 9.553108699
B54: Costs (Real $2014) Including Real Escalation | C54: =SUM(C42:C53) -> 443.7980518 | D54: =SUM(D42:D53) -> 388.6848138 | E54: 372.6935095 | F54: 494.6407255 | G54: 489.6748875 | H54: 255.2871198 | I54: 304.6056259 | J54: 235.3295741 | K54: 219.7842303 | L54: 1015.00655
A55: Check | B55: =SUM(C55:L55) -> 1.278976924e-12 | C55: =ABS(C36-C54) -> 2.273736754e-13 | D55: =ABS(D36-D54) -> 2.842170943e-13 | E55: 0 | F55: 1.136868377e-13 | G55: 1.136868377e-13 | H55: 2.273736754e-13 | I55: 0 | J55: 5.684341886e-14 | K55: 2.842170943e-14 | L55: 2.273736754e-13

Sheet Capex Commissioned Summary
B2: Capex Commissioned ($M) | C2: Costs (Real $2014) Including Real Escalation
D4: Transitional
C5: Unadjusted | D5: Adjustment | E5: Adjusted
B6: Regulated Asset Class | C6: ='Costs ($2014) Incl Real Esc'!M$4 -> 2015 | D6: =C6 -> 2015 | E6: =D6 -> 2015 | F6: ='Costs ($2014) Incl Real Esc'!N$4 -> 2016 | G6: ='Costs ($2014) Incl Real Esc'!O$4 -> 2017 | H6: ='Costs ($2014) Incl Real Esc'!P$4 -> 2018 | I6: 2015-18 Total
A7: ='Cost Escalators'!B26 -> TL | B7: ='Cost Escalators'!C$26 -> Transmission Lines | C7: =SUMPRODUCT('Costs ($2014) Incl Real Esc'!R$5:R$764,'Input Data'!$Q$5:$Q$764)/10^6 -> 15.63470693 | D7: =SUMPRODUCT('Costs ($2014) Incl Real Esc'!AC$5:AC$764,'Input Data'!$Q$5:$Q$764)/10^6 -> 4.780654598 | E7: =C7-D7 -> 10.85405233 | F7: =SUMPRODUCT('Costs ($2014) Incl Real Esc'!S$5:S$764,'Input Data'!$Q$5:$Q$764)/10^6 -> 43.1784543 | G7: =SUMPRODUCT('Costs ($2014) Incl Real Esc'!T$5:T$764,'Input Data'!$Q$5:$Q$764)/10^6 -> 25.33222799 | H7: =SUMPRODUCT('Costs ($2014) Incl Real Esc'!U$5:U$764,'Input Data'!$Q$5:$Q$764)/10^6 -> 38.85309646 | I7: =SUM(E7:H7) -> 118.2178311
A8: ='Cost Escalators'!B27 -> Subs | B8: ='Cost Escalators'!C$27 -> Substations | C8: =SUMPRODUCT('Costs ($2014) Incl Real Esc'!R$5:R$764,'Input Data'!$R$5:$R$764)/10^6 -> 269.5590171 | D8: =SUMPRODUCT('Costs ($2014) Incl Real Esc'!AC$5:AC$764,'Input Data'!$R$5:$R$764)/10^6 -> 119.6719126 | E8: =C8-D8 -> 149.8871045 | F8: =SUMPRODUCT('Costs ($2014) Incl Real Esc'!S$5:S$764,'Input Data'!$R$5:$R$764)/10^6 -> 104.0151114 | G8: =SUMPRODUCT('Costs ($2014) Incl Real Esc'!T$5:T$764,'Input Data'!$R$5:$R$764)/10^6 -> 117.4348953 | H8: =SUMPRODUCT('Costs ($2014) Incl Real Esc'!U$5:U$764,'Input Data'!$R$5:$R$764)/10^6 -> 176.3948009 | I8: =SUM(E8:H8) -> 547.7319121
A9: ='Cost Escalators'!B28 -> Sec Sys | B9: ='Cost Escalators'!C$28 -> Secondary Systems | C9: =SUMPRODUCT('Costs ($2014) Incl Real Esc'!R$5:R$764,'Input Data'!$S$5:$S$764)/10^6 -> 21.63485478 | D9: =SUMPRODUCT('Costs ($2014) Incl Real Esc'!AC$5:AC$764,'Input Data'!$S$5:$S$764)/10^6 -> 4.366231168 | E9: 17.26862362 | F9: =SUMPRODUCT('Costs ($2014) Incl Real Esc'!S$5:S$764,'Input Data'!$S$5:$S$764)/10^6 -> 41.28751986 | G9: =SUMPRODUCT('Costs ($2014) Incl Real Esc'!T$5:T$764,'Input Data'!$S$5:$S$764)/10^6 -> 17.06747753 | H9: =SUMPRODUCT('Costs ($2014) Incl Real Esc'!U$5:U$764,'Input Data'!$S$5:$S$764)/10^6 -> 41.00755794 | I9: 116.631179
A10: ='Cost Escalators'!B29 -> Comms | B10: ='Cost Escalators'!C$29 -> Communications | C10: =SUMPRODUCT('Costs ($2014) Incl Real Esc'!R$5:R$764,'Input Data'!$T$5:$T$764)/10^6 -> 28.5306257 | D10: =SUMPRODUCT('Costs ($2014) Incl Real Esc'!AC$5:AC$764,'Input Data'!$T$5:$T$764)/10^6 -> 4.349152133 | E10: 24.18147357 | F10: =SUMPRODUCT('Costs ($2014) Incl Real Esc'!S$5:S$764,'Input Data'!$T$5:$T$764)/10^6 -> 41.72392625 | G10: =SUMPRODUCT('Costs ($2014) Incl Real Esc'!T$5:T$764,'Input Data'!$T$5:$T$764)/10^6 -> 11.73142546 | H10: =SUMPRODUCT('Costs ($2014) Incl Real Esc'!U$5:U$764,'Input Data'!$T$5:$T$764)/10^6 -> 10.55145285 | I10: 88.18827813
A11: ='Cost Escalators'!B30 -> Land | B11: ='Cost Escalators'!C$30 -> Land and Easements | C11: =SUMPRODUCT('Costs ($2014) Incl Real Esc'!R$5:R$764,'Input Data'!$U$5:$U$764)/10^6 -> 68.69072411 | D11: =SUMPRODUCT('Costs ($2014) Incl Real Esc'!AC$5:AC$764,'Input Data'!$U$5:$U$764)/10^6 -> 38.58734777 | E11: 30.10337635 | F11: =SUMPRODUCT('Costs ($2014) Incl Real Esc'!S$5:S$764,'Input Data'!$U$5:$U$764)/10^6 -> 52.42033968 | G11: =SUMPRODUCT('Costs ($2014) Incl Real Esc'!T$5:T$764,'Input Data'!$U$5:$U$764)/10^6 -> 16.26925343 | H11: =SUMPRODUCT('Costs ($2014) Incl Real Esc'!U$5:U$764,'Input Data'!$U$5:$U$764)/10^6 -> 2.345290998 | I11: 101.1382605
A12: ='Cost Escalators'!B31 -> Cables | B12: ='Cost Escalators'!C$31 -> Underground Cables | C12: =SUMPRODUCT('Costs ($2014) Incl Real Esc'!R$5:R$764,'Input Data'!$V$5:$V$764)/10^6 -> 110.0712213 | D12: =SUMPRODUCT('Costs ($2014) Incl Real Esc'!AC$5:AC$764,'Input Data'!$V$5:$V$764)/10^6 -> 108.8476446 | E12: 1.22357666 | F12: =SUMPRODUCT('Costs ($2014) Incl Real Esc'!S$5:S$764,'Input Data'!$V$5:$V$764)/10^6 -> 0 | G12: =SUMPRODUCT('Costs ($2014) Incl Real Esc'!T$5:T$764,'Input Data'!$V$5:$V$764)/10^6 -> 5.049700526 | H12: =SUMPRODUCT('Costs ($2014) Incl Real Esc'!U$5:U$764,'Input Data'!$V$5:$V$764)/10^6 -> 0.5789794922 | I12: 6.852256679
A13: ='Cost Escalators'!B32 -> TL Life Ext | B13: ='Cost Escalators'!C$32 -> Transmission Line Life Extension | C13: =SUMPRODUCT('Costs ($2014) Incl Real Esc'!R$5:R$764,'Input Data'!$W$5:$W$764)/10^6 -> 3.805825195 | D13: =SUMPRODUCT('Costs ($2014) Incl Real Esc'!AC$5:AC$764,'Input Data'!$W$5:$W$764)/10^6 -> 0 | E13: 3.805825195 | F13: =SUMPRODUCT('Costs ($2014) Incl Real Esc'!S$5:S$764,'Input Data'!$W$5:$W$764)/10^6 -> 4.607904785 | G13: =SUMPRODUCT('Costs ($2014) Incl Real Esc'!T$5:T$764,'Input Data'!$W$5:$W$764)/10^6 -> 8.25084375 | H13: =SUMPRODUCT('Costs ($2014) Incl Real Esc'!U$5:U$764,'Input Data'!$W$5:$W$764)/10^6 -> 0.8491699219 | I13: 17.51374365
A14: ='Cost Escalators'!B33 -> MV & MP | B14: ='Cost Escalators'!C$33 -> Motor Vehicles, Moveable Plant and Minor Plant | C14: =SUMPRODUCT('Costs ($2014) Incl Real Esc'!R$5:R$764,'Input Data'!$X$5:$X$764)/10^6 -> 11.48318868 | D14: =SUMPRODUCT('Costs ($2014) Incl Real Esc'!AC$5:AC$764,'Input Data'!$X$5:$X$764)/10^6 -> 0 | E14: 11.48318868 | F14: =SUMPRODUCT('Costs ($2014) Incl Real Esc'!S$5:S$764,'Input Data'!$X$5:$X$764)/10^6 -> 9.185672754 | G14: =SUMPRODUCT('Costs ($2014) Incl Real Esc'!T$5:T$764,'Input Data'!$X$5:$X$764)/10^6 -> 10.78167031 | H14: =SUMPRODUCT('Costs ($2014) Incl Real Esc'!U$5:U$764,'Input Data'!$X$5:$X$764)/10^6 -> 11.77185273 | I14: 43.22238448
A15: ='Cost Escalators'!B34 -> Bus. IT | B15: ='Cost Escalators'!C$34 -> Business and Information Technology | C15: =SUMPRODUCT('Costs ($2014) Incl Real Esc'!R$5:R$764,'Input Data'!$Y$5:$Y$764)/10^6 -> 21.24078125 | D15: =SUMPRODUCT('Costs ($2014) Incl Real Esc'!AC$5:AC$764,'Input Data'!$Y$5:$Y$764)/10^6 -> 0 | E15: 21.24078125 | F15: =SUMPRODUCT('Costs ($2014) Incl Real Esc'!S$5:S$764,'Input Data'!$Y$5:$Y$764)/10^6 -> 19.65957031 | G15: =SUMPRODUCT('Costs ($2014) Incl Real Esc'!T$5:T$764,'Input Data'!$Y$5:$Y$764)/10^6 -> 18.115625 | H15: =SUMPRODUCT('Costs ($2014) Incl Real Esc'!U$5:U$764,'Input Data'!$Y$5:$Y$764)/10^6 -> 20.79179687 | I15: 79.80777344
B16: Costs (Real $2014) Including Real Escalation | C16: =SUM(C7:C15) -> 550.6509451 | D16: =SUM(D7:D15) -> 280.6029429 | E16: 270.0480022 | F16: =SUM(F7:F15) -> 316.0784993 | G16: =SUM(G7:G15) -> 230.0331193 | H16: =SUM(H7:H15) -> 303.1439982 | I16: =SUM(I7:I15) -> 1119.303619
A17: Check | B17: =SUM(C17:H17) -> 1.421085472e-13 | C17: =ABS('Costs ($2014) Incl Real Esc'!R$778/10^6-C16) -> 1.136868377e-13 | D17: =ABS('Costs ($2014) Incl Real Esc'!AC$778/10^6-D16) -> 0 | E17: =ABS(C16-D16-E16) -> 0 | F17: =ABS('Costs ($2014) Incl Real Esc'!S$778/10^6-F16) -> 0 | G17: =ABS('Costs ($2014) Incl Real Esc'!T$778/10^6-G16) -> 2.842170943e-14 | H17: =ABS('Costs ($2014) Incl Real Esc'!U$778/10^6-H16) -> 0
B19: Real Cost (Commodity) Escalation | C19: =('Costs ($2014) Incl Real Esc'!M778-'Costs ($2014) Excl Real Esc'!M778)/10^6 -> 0.9069942212 | D19: =('Costs ($2014) Incl Real Esc'!AC778-'Costs ($2014) Excl Real Esc'!W778)/10^6 -> 0 | E19: =C19-D19 -> 0.9069942212 | F19: =('Costs ($2014) Incl Real Esc'!N778-'Costs ($2014) Excl Real Esc'!N778)/10^6 -> 4.288680696 | G19: =('Costs ($2014) Incl Real Esc'!O778-'Costs ($2014) Excl Real Esc'!O778)/10^6 -> 6.422578868 | H19: =('Costs ($2014) Incl Real Esc'!P778-'Costs ($2014) Excl Real Esc'!P778)/10^6 -> 7.223857414 | I19: =SUM(D19:H19) -> 18.8421112
B21: Costs (Real $2014) Excluding Real Escalation | C21: =C16-C19 -> 549.7439509 | D21: =D16-D19 -> 280.6029429 | E21: =E16-E19 -> 269.141008 | F21: 311.7898186 | G21: 223.6105404 | H21: 295.9201408 | I21: 1100.461508
D24: Transitional
C25: Unadjusted | D25: Adjustment | E25: Adjusted
B26: Capex by Project Category | C26: =C$6 -> 2015 | D26: =D$6 -> 2015 | E26: 2015 | F26: =F$6 -> 2016 | G26: =G$6 -> 2017 | H26: =H$6 -> 2018 | I26: =I$6 -> 2015-18 Total
A27: ='Cost Escalators'!B$53 -> Load Driven | B27: ='Cost Escalators'!A$53 -> PS Augmentation | C27: =SUMIF('Costs ($2014) Incl Real Esc'!$D$5:$D$764,$B27,'Costs ($2014) Incl Real Esc'!R$5:R$764)/10^6 -> 259.9149528 | D27: =SUMIF('Costs ($2014) Incl Real Esc'!$D$5:$D$764,$B27,'Costs ($2014) Incl Real Esc'!AC$5:AC$764)/10^6 -> 240.7432848 | E27: =C27-D27 -> 19.17166798 | F27: =SUMIF('Costs ($2014) Incl Real Esc'!$D$5:$D$764,$B27,'Costs ($2014) Incl Real Esc'!S$5:S$764)/10^6 -> 0 | G27: =SUMIF('Costs ($2014) Incl Real Esc'!$D$5:$D$764,$B27,'Costs ($2014) Incl Real Esc'!T$5:T$764)/10^6 -> 0 | H27: =SUMIF('Costs ($2014) Incl Real Esc'!$D$5:$D$764,$B27,'Costs ($2014) Incl Real Esc'!U$5:U$764)/10^6 -> 50.97359692 | I27: =SUM(E27:H27) -> 70.14526491
A28: ='Cost Escalators'!B$54 -> Non-Load Driven | B28: ='Cost Escalators'!A$54 -> PS Connections | C28: =SUMIF('Costs ($2014) Incl Real Esc'!$D$5:$D$764,$B28,'Costs ($2014) Incl Real Esc'!R$5:R$764)/10^6 -> 4.665879249 | D28: =SUMIF('Costs ($2014) Incl Real Esc'!$D$5:$D$764,$B28,'Costs ($2014) Incl Real Esc'!AC$5:AC$764)/10^6 -> 0 | E28: 4.665879249 | F28: =SUMIF('Costs ($2014) Incl Real Esc'!$D$5:$D$764,$B28,'Costs ($2014) Incl Real Esc'!S$5:S$764)/10^6 -> 4.836071978 | G28: =SUMIF('Costs ($2014) Incl Real Esc'!$D$5:$D$764,$B28,'Costs ($2014) Incl Real Esc'!T$5:T$764)/10^6 -> 0.4255506172 | H28: =SUMIF('Costs ($2014) Incl Real Esc'!$D$5:$D$764,$B28,'Costs ($2014) Incl Real Esc'!U$5:U$764)/10^6 -> 1.471034642 | I28: 11.39853649
A29: ='Cost Escalators'!B$55 -> Load Driven | B29: ='Cost Escalators'!A$55 -> PS Easements | C29: =SUMIF('Costs ($2014) Incl Real Esc'!$D$5:$D$764,$B29,'Costs ($2014) Incl Real Esc'!R$5:R$764)/10^6 -> 25.11739449 | D29: =SUMIF('Costs ($2014) Incl Real Esc'!$D$5:$D$764,$B29,'Costs ($2014) Incl Real Esc'!AC$5:AC$764)/10^6 -> 0 | E29: 25.11739449 | F29: =SUMIF('Costs ($2014) Incl Real Esc'!$D$5:$D$764,$B29,'Costs ($2014) Incl Real Esc'!S$5:S$764)/10^6 -> 50.78169368 | G29: =SUMIF('Costs ($2014) Incl Real Esc'!$D$5:$D$764,$B29,'Costs ($2014) Incl Real Esc'!T$5:T$764)/10^6 -> 12.12854384 | H29: =SUMIF('Costs ($2014) Incl Real Esc'!$D$5:$D$764,$B29,'Costs ($2014) Incl Real Esc'!U$5:U$764)/10^6 -> 0 | I29: 88.02763201
A30: ='Cost Escalators'!B$56 -> Non-Load Driven | B30: ='Cost Escalators'!A$56 -> PS Replacement | C30: =SUMIF('Costs ($2014) Incl Real Esc'!$D$5:$D$764,$B30,'Costs ($2014) Incl Real Esc'!R$5:R$764)/10^6 -> 181.3166227 | D30: =SUMIF('Costs ($2014) Incl Real Esc'!$D$5:$D$764,$B30,'Costs ($2014) Incl Real Esc'!AC$5:AC$764)/10^6 -> 39.85965808 | E30: 141.4569646 | F30: =SUMIF('Costs ($2014) Incl Real Esc'!$D$5:$D$764,$B30,'Costs ($2014) Incl Real Esc'!S$5:S$764)/10^6 -> 173.5027302 | G30: =SUMIF('Costs ($2014) Incl Real Esc'!$D$5:$D$764,$B30,'Costs ($2014) Incl Real Esc'!T$5:T$764)/10^6 -> 158.2230774 | H30: =SUMIF('Costs ($2014) Incl Real Esc'!$D$5:$D$764,$B30,'Costs ($2014) Incl Real Esc'!U$5:U$764)/10^6 -> 170.7103284 | I30: 643.8931006
A31: ='Cost Escalators'!B$57 -> Non-Load Driven | B31: ='Cost Escalators'!A$57 -> PS Network Asset Replacement | C31: =SUMIF('Costs ($2014) Incl Real Esc'!$D$5:$D$764,$B31,'Costs ($2014) Incl Real Esc'!R$5:R$764)/10^6 -> 26.00997398 | D31: =SUMIF('Costs ($2014) Incl Real Esc'!$D$5:$D$764,$B31,'Costs ($2014) Incl Real Esc'!AC$5:AC$764)/10^6 -> 0 | E31: 26.00997398 | F31: =SUMIF('Costs ($2014) Incl Real Esc'!$D$5:$D$764,$B31,'Costs ($2014) Incl Real Esc'!S$5:S$764)/10^6 -> 24.63715068 | G31: =SUMIF('Costs ($2014) Incl Real Esc'!$D$5:$D$764,$B31,'Costs ($2014) Incl Real Esc'!T$5:T$764)/10^6 -> 24.12942006 | H31: =SUMIF('Costs ($2014) Incl Real Esc'!$D$5:$D$764,$B31,'Costs ($2014) Incl Real Esc'!U$5:U$764)/10^6 -> 22.18724147 | I31: 96.96378618
A32: ='Cost Escalators'!B$58 -> Non-Load Driven | B32: ='Cost Escalators'!A$58 -> PS Network-Other | C32: =SUMIF('Costs ($2014) Incl Real Esc'!$D$5:$D$764,$B32,'Costs ($2014) Incl Real Esc'!R$5:R$764)/10^6 -> 2.502731 | D32: =SUMIF('Costs ($2014) Incl Real Esc'!$D$5:$D$764,$B32,'Costs ($2014) Incl Real Esc'!AC$5:AC$764)/10^6 -> 0 | E32: 2.502731 | F32: =SUMIF('Costs ($2014) Incl Real Esc'!$D$5:$D$764,$B32,'Costs ($2014) Incl Real Esc'!S$5:S$764)/10^6 -> 1.445 | G32: =SUMIF('Costs ($2014) Incl Real Esc'!$D$5:$D$764,$B32,'Costs ($2014) Incl Real Esc'!T$5:T$764)/10^6 -> 1.511 | H32: =SUMIF('Costs ($2014) Incl Real Esc'!$D$5:$D$764,$B32,'Costs ($2014) Incl Real Esc'!U$5:U$764)/10^6 -> 1.165 | I32: 6.623731
A33: ='Cost Escalators'!B$59 -> Non-Load Driven | B33: ='Cost Escalators'!A$59 -> PS Security/Compliance | C33: =SUMIF('Costs ($2014) Incl Real Esc'!$D$5:$D$764,$B33,'Costs ($2014) Incl Real Esc'!R$5:R$764)/10^6 -> 14.18013691 | D33: =SUMIF('Costs ($2014) Incl Real Esc'!$D$5:$D$764,$B33,'Costs ($2014) Incl Real Esc'!AC$5:AC$764)/10^6 -> 0 | E33: 14.18013691 | F33: =SUMIF('Costs ($2014) Incl Real Esc'!$D$5:$D$764,$B33,'Costs ($2014) Incl Real Esc'!S$5:S$764)/10^6 -> 22.5023097 | G33: =SUMIF('Costs ($2014) Incl Real Esc'!$D$5:$D$764,$B33,'Costs ($2014) Incl Real Esc'!T$5:T$764)/10^6 -> 1.396532078 | H33: =SUMIF('Costs ($2014) Incl Real Esc'!$D$5:$D$764,$B33,'Costs ($2014) Incl Real Esc'!U$5:U$764)/10^6 -> 25.23814721 | I33: 63.31712589
A34: ='Cost Escalators'!B$60 -> Business IT | B34: ='Cost Escalators'!A$60 -> PS Information Technology | C34: =SUMIF('Costs ($2014) Incl Real Esc'!$D$5:$D$764,$B34,'Costs ($2014) Incl Real Esc'!R$5:R$764)/10^6 -> 19.35078125 | D34: =SUMIF('Costs ($2014) Incl Real Esc'!$D$5:$D$764,$B34,'Costs ($2014) Incl Real Esc'!AC$5:AC$764)/10^6 -> 0 | E34: 19.35078125 | F34: =SUMIF('Costs ($2014) Incl Real Esc'!$D$5:$D$764,$B34,'Costs ($2014) Incl Real Esc'!S$5:S$764)/10^6 -> 19.65957031 | G34: =SUMIF('Costs ($2014) Incl Real Esc'!$D$5:$D$764,$B34,'Costs ($2014) Incl Real Esc'!T$5:T$764)/10^6 -> 18.115625 | H34: =SUMIF('Costs ($2014) Incl Real Esc'!$D$5:$D$764,$B34,'Costs ($2014) Incl Real Esc'!U$5:U$764)/10^6 -> 20.79179687 | I34: 77.91777344
A35: ='Cost Escalators'!B$61 -> Support the Business | B35: ='Cost Escalators'!A$61 -> PS Facilities | C35: =SUMIF('Costs ($2014) Incl Real Esc'!$D$5:$D$764,$B35,'Costs ($2014) Incl Real Esc'!R$5:R$764)/10^6 -> 8.612015 | D35: =SUMIF('Costs ($2014) Incl Real Esc'!$D$5:$D$764,$B35,'Costs ($2014) Incl Real Esc'!AC$5:AC$764)/10^6 -> 0 | E35: 8.612015 | F35: =SUMIF('Costs ($2014) Incl Real Esc'!$D$5:$D$764,$B35,'Costs ($2014) Incl Real Esc'!S$5:S$764)/10^6 -> 10.9733 | G35: =SUMIF('Costs ($2014) Incl Real Esc'!$D$5:$D$764,$B35,'Costs ($2014) Incl Real Esc'!T$5:T$764)/10^6 -> 4.8327 | H35: =SUMIF('Costs ($2014) Incl Real Esc'!$D$5:$D$764,$B35,'Costs ($2014) Incl Real Esc'!U$5:U$764)/10^6 -> 0 | I35: 24.418015
A36: ='Cost Escalators'!B$62 -> Support the Business | B36: ='Cost Escalators'!A$62 -> PS Motor Vehicles | C36: =SUMIF('Costs ($2014) Incl Real Esc'!$D$5:$D$764,$B36,'Costs ($2014) Incl Real Esc'!R$5:R$764)/10^6 -> 8.98045768 | D36: =SUMIF('Costs ($2014) Incl Real Esc'!$D$5:$D$764,$B36,'Costs ($2014) Incl Real Esc'!AC$5:AC$764)/10^6 -> 0 | E36: 8.98045768 | F36: =SUMIF('Costs ($2014) Incl Real Esc'!$D$5:$D$764,$B36,'Costs ($2014) Incl Real Esc'!S$5:S$764)/10^6 -> 7.740672754 | G36: =SUMIF('Costs ($2014) Incl Real Esc'!$D$5:$D$764,$B36,'Costs ($2014) Incl Real Esc'!T$5:T$764)/10^6 -> 9.270670312 | H36: =SUMIF('Costs ($2014) Incl Real Esc'!$D$5:$D$764,$B36,'Costs ($2014) Incl Real Esc'!U$5:U$764)/10^6 -> 10.60685273 | I36: 36.59865348
A37: ='Cost Escalators'!B$63 -> Non-Load Driven | B37: ='Cost Escalators'!A$63 -> PS Western Sydney Supply | C37: =SUMIF('Costs ($2014) Incl Real Esc'!$D$5:$D$764,$B37,'Costs ($2014) Incl Real Esc'!R$5:R$764)/10^6 -> 0 | D37: =SUMIF('Costs ($2014) Incl Real Esc'!$D$5:$D$764,$B37,'Costs ($2014) Incl Real Esc'!AC$5:AC$764)/10^6 -> 0 | E37: 0 | F37: =SUMIF('Costs ($2014) Incl Real Esc'!$D$5:$D$764,$B37,'Costs ($2014) Incl Real Esc'!S$5:S$764)/10^6 -> 0 | G37: =SUMIF('Costs ($2014) Incl Real Esc'!$D$5:$D$764,$B37,'Costs ($2014) Incl Real Esc'!T$5:T$764)/10^6 -> 0 | H37: =SUMIF('Costs ($2014) Incl Real Esc'!$D$5:$D$764,$B37,'Costs ($2014) Incl Real Esc'!U$5:U$764)/10^6 -> 0 | I37: 0
B38: Costs (Real $2014) Including Real Escalation | C38: =SUM(C27:C37) -> 550.6509451 | D38: =SUM(D27:D37) -> 280.6029429 | E38: 270.0480022 | F38: =SUM(F27:F37) -> 316.0784993 | G38: 230.0331193 | H38: 303.1439982 | I38: 1119.303619
A39: Check | B39: =SUM(C39:H39) -> 1.98951966e-13 | C39: =ABS(C16-C38) -> 1.136868377e-13 | D39: 0 | E39: 5.684341886e-14 | F39: 0 | G39: 2.842170943e-14 | H39: 0 | I39: 0
D42: Transitional
C43: Unadjusted | D43: Adjustment | E43: Adjusted
B44: Capex by Project Component | C44: =C$6 -> 2015 | D44: =D$6 -> 2015 | E44: 2015 | F44: =F$6 -> 2016 | G44: =G$6 -> 2017 | H44: =H$6 -> 2018 | I44: =I$6 -> 2015-18 Total
B45: ='Cost Escalators'!B38 -> CPI Only | C45: =SUMPRODUCT('Costs ($2014) Incl Real Esc'!R$5:R$764,'Input Data'!$AA$5:$AA$764)/10^6 -> 545.277077 | D45: =SUMPRODUCT('Costs ($2014) Incl Real Esc'!AC$5:AC$764,'Input Data'!$AA$5:$AA$764)/10^6 -> 280.6029429 | E45: =C45-D45 -> 264.6741341 | F45: =SUMPRODUCT('Costs ($2014) Incl Real Esc'!S$5:S$764,'Input Data'!$AA$5:$AA$764)/10^6 -> 251.1535434 | G45: =SUMPRODUCT('Costs ($2014) Incl Real Esc'!T$5:T$764,'Input Data'!$AA$5:$AA$764)/10^6 -> 163.2793516 | H45: =SUMPRODUCT('Costs ($2014) Incl Real Esc'!U$5:U$764,'Input Data'!$AA$5:$AA$764)/10^6 -> 144.2123311 | I45: =SUM(E45:H45) -> 823.3193603
B46: ='Cost Escalators'!B39 -> EGW Wages | C46: =SUMPRODUCT('Costs ($2014) Incl Real Esc'!R$5:R$764,'Input Data'!$AB$5:$AB$764)/10^6 -> 2.056808403 | D46: =SUMPRODUCT('Costs ($2014) Incl Real Esc'!AC$5:AC$764,'Input Data'!$AB$5:$AB$764)/10^6 -> 0 | E46: 2.056808403 | F46: =SUMPRODUCT('Costs ($2014) Incl Real Esc'!S$5:S$764,'Input Data'!$AB$5:$AB$764)/10^6 -> 22.77649943 | G46: =SUMPRODUCT('Costs ($2014) Incl Real Esc'!T$5:T$764,'Input Data'!$AB$5:$AB$764)/10^6 -> 15.88686441 | H46: =SUMPRODUCT('Costs ($2014) Incl Real Esc'!U$5:U$764,'Input Data'!$AB$5:$AB$764)/10^6 -> 55.84730618 | I46: 96.56747841
B47: ='Cost Escalators'!B40 -> Wages General | C47: =SUMPRODUCT('Costs ($2014) Incl Real Esc'!R$5:R$764,'Input Data'!$AC$5:$AC$764)/10^6 -> 0 | D47: =SUMPRODUCT('Costs ($2014) Incl Real Esc'!AC$5:AC$764,'Input Data'!$AC$5:$AC$764)/10^6 -> 0 | E47: 0 | F47: =SUMPRODUCT('Costs ($2014) Incl Real Esc'!S$5:S$764,'Input Data'!$AC$5:$AC$764)/10^6 -> 0.1152960118 | G47: =SUMPRODUCT('Costs ($2014) Incl Real Esc'!T$5:T$764,'Input Data'!$AC$5:$AC$764)/10^6 -> 0.4078300734 | H47: =SUMPRODUCT('Costs ($2014) Incl Real Esc'!U$5:U$764,'Input Data'!$AC$5:$AC$764)/10^6 -> 0.1163675093 | I47: 0.6394935946
B48: ='Cost Escalators'!B41 -> Copper | C48: =SUMPRODUCT('Costs ($2014) Incl Real Esc'!R$5:R$764,'Input Data'!$AD$5:$AD$764)/10^6 -> 0.1795371225 | D48: =SUMPRODUCT('Costs ($2014) Incl Real Esc'!AC$5:AC$764,'Input Data'!$AD$5:$AD$764)/10^6 -> 0 | E48: 0.1795371225 | F48: =SUMPRODUCT('Costs ($2014) Incl Real Esc'!S$5:S$764,'Input Data'!$AD$5:$AD$764)/10^6 -> 0.6608379776 | G48: =SUMPRODUCT('Costs ($2014) Incl Real Esc'!T$5:T$764,'Input Data'!$AD$5:$AD$764)/10^6 -> 0.4944895714 | H48: =SUMPRODUCT('Costs ($2014) Incl Real Esc'!U$5:U$764,'Input Data'!$AD$5:$AD$764)/10^6 -> 4.662236469 | I48: 5.99710114
B49: ='Cost Escalators'!B42 -> Aluminium | C49: =SUMPRODUCT('Costs ($2014) Incl Real Esc'!R$5:R$764,'Input Data'!$AE$5:$AE$764)/10^6 -> 0.02647999523 | D49: =SUMPRODUCT('Costs ($2014) Incl Real Esc'!AC$5:AC$764,'Input Data'!$AE$5:$AE$764)/10^6 -> 0 | E49: 0.02647999523 | F49: =SUMPRODUCT('Costs ($2014) Incl Real Esc'!S$5:S$764,'Input Data'!$AE$5:$AE$764)/10^6 -> 0.276376626 | G49: =SUMPRODUCT('Costs ($2014) Incl Real Esc'!T$5:T$764,'Input Data'!$AE$5:$AE$764)/10^6 -> 0.02741010624 | H49: =SUMPRODUCT('Costs ($2014) Incl Real Esc'!U$5:U$764,'Input Data'!$AE$5:$AE$764)/10^6 -> 1.052815634 | I49: 1.383082362
B50: ='Cost Escalators'!B43 -> Steel | C50: =SUMPRODUCT('Costs ($2014) Incl Real Esc'!R$5:R$764,'Input Data'!$AF$5:$AF$764)/10^6 -> 0.03927623739 | D50: =SUMPRODUCT('Costs ($2014) Incl Real Esc'!AC$5:AC$764,'Input Data'!$AF$5:$AF$764)/10^6 -> 0 | E50: 0.03927623739 | F50: =SUMPRODUCT('Costs ($2014) Incl Real Esc'!S$5:S$764,'Input Data'!$AF$5:$AF$764)/10^6 -> 0.2656219609 | G50: =SUMPRODUCT('Costs ($2014) Incl Real Esc'!T$5:T$764,'Input Data'!$AF$5:$AF$764)/10^6 -> 0.05893720281 | H50: =SUMPRODUCT('Costs ($2014) Incl Real Esc'!U$5:U$764,'Input Data'!$AF$5:$AF$764)/10^6 -> 2.81208182 | I50: 3.175917221
B51: ='Cost Escalators'!B44 -> Oil | C51: =SUMPRODUCT('Costs ($2014) Incl Real Esc'!R$5:R$764,'Input Data'!$AG$5:$AG$764)/10^6 -> 0.02346677477 | D51: =SUMPRODUCT('Costs ($2014) Incl Real Esc'!AC$5:AC$764,'Input Data'!$AG$5:$AG$764)/10^6 -> 0 | E51: 0.02346677477 | F51: =SUMPRODUCT('Costs ($2014) Incl Real Esc'!S$5:S$764,'Input Data'!$AG$5:$AG$764)/10^6 -> 0.1080751448 | G51: =SUMPRODUCT('Costs ($2014) Incl Real Esc'!T$5:T$764,'Input Data'!$AG$5:$AG$764)/10^6 -> 0.03574010052 | H51: =SUMPRODUCT('Costs ($2014) Incl Real Esc'!U$5:U$764,'Input Data'!$AG$5:$AG$764)/10^6 -> 0.8917389797 | I51: 1.059021
B52: ='Cost Escalators'!B45 -> Construction | C52: =SUMPRODUCT('Costs ($2014) Incl Real Esc'!R$5:R$764,'Input Data'!$AH$5:$AH$764)/10^6 -> 2.98461805 | D52: =SUMPRODUCT('Costs ($2014) Incl Real Esc'!AC$5:AC$764,'Input Data'!$AH$5:$AH$764)/10^6 -> 0 | E52: 2.98461805 | F52: =SUMPRODUCT('Costs ($2014) Incl Real Esc'!S$5:S$764,'Input Data'!$AH$5:$AH$764)/10^6 -> 40.49446455 | G52: =SUMPRODUCT('Costs ($2014) Incl Real Esc'!T$5:T$764,'Input Data'!$AH$5:$AH$764)/10^6 -> 39.25799946 | H52: =SUMPRODUCT('Costs ($2014) Incl Real Esc'!U$5:U$764,'Input Data'!$AH$5:$AH$764)/10^6 -> 92.40874172 | I52: 175.1458238
B53: ='Cost Escalators'!B46 -> Property - Res. | C53: =SUMPRODUCT('Costs ($2014) Incl Real Esc'!R$5:R$764,'Input Data'!$AI$5:$AI$764)/10^6 -> 0 | D53: =SUMPRODUCT('Costs ($2014) Incl Real Esc'!AC$5:AC$764,'Input Data'!$AI$5:$AI$764)/10^6 -> 0 | E53: 0 | F53: =SUMPRODUCT('Costs ($2014) Incl Real Esc'!S$5:S$764,'Input Data'!$AI$5:$AI$764)/10^6 -> 0 | G53: =SUMPRODUCT('Costs ($2014) Incl Real Esc'!T$5:T$764,'Input Data'!$AI$5:$AI$764)/10^6 -> 0 | H53: =SUMPRODUCT('Costs ($2014) Incl Real Esc'!U$5:U$764,'Input Data'!$AI$5:$AI$764)/10^6 -> 0 | I53: 0
B54: ='Cost Escalators'!B47 -> Property - Ind. | C54: =SUMPRODUCT('Costs ($2014) Incl Real Esc'!R$5:R$764,'Input Data'!$AJ$5:$AJ$764)/10^6 -> 0.06368147405 | D54: =SUMPRODUCT('Costs ($2014) Incl Real Esc'!AC$5:AC$764,'Input Data'!$AJ$5:$AJ$764)/10^6 -> 0 | E54: 0.06368147405 | F54: =SUMPRODUCT('Costs ($2014) Incl Real Esc'!S$5:S$764,'Input Data'!$AJ$5:$AJ$764)/10^6 -> 0 | G54: =SUMPRODUCT('Costs ($2014) Incl Real Esc'!T$5:T$764,'Input Data'!$AJ$5:$AJ$764)/10^6 -> 0.1597935058 | H54: =SUMPRODUCT('Costs ($2014) Incl Real Esc'!U$5:U$764,'Input Data'!$AJ$5:$AJ$764)/10^6 -> 0 | I54: 0.2234749798
B55: ='Cost Escalators'!B48 -> Property - Rural | C55: =SUMPRODUCT('Costs ($2014) Incl Real Esc'!R$5:R$764,'Input Data'!$AK$5:$AK$764)/10^6 -> 0 | D55: =SUMPRODUCT('Costs ($2014) Incl Real Esc'!AC$5:AC$764,'Input Data'!$AK$5:$AK$764)/10^6 -> 0 | E55: 0 | F55: =SUMPRODUCT('Costs ($2014) Incl Real Esc'!S$5:S$764,'Input Data'!$AK$5:$AK$764)/10^6 -> 0 | G55: =SUMPRODUCT('Costs ($2014) Incl Real Esc'!T$5:T$764,'Input Data'!$AK$5:$AK$764)/10^6 -> 2.239757544 | H55: =SUMPRODUCT('Costs ($2014) Incl Real Esc'!U$5:U$764,'Input Data'!$AK$5:$AK$764)/10^6 -> 0 | I55: 2.239757544
B56: ='Cost Escalators'!B49 -> Property - Agr. | C56: =SUMPRODUCT('Costs ($2014) Incl Real Esc'!R$5:R$764,'Input Data'!$AL$5:$AL$764)/10^6 -> 0 | D56: =SUMPRODUCT('Costs ($2014) Incl Real Esc'!AC$5:AC$764,'Input Data'!$AL$5:$AL$764)/10^6 -> 0 | E56: 0 | F56: =SUMPRODUCT('Costs ($2014) Incl Real Esc'!S$5:S$764,'Input Data'!$AL$5:$AL$764)/10^6 -> 0.2277841699 | G56: =SUMPRODUCT('Costs ($2014) Incl Real Esc'!T$5:T$764,'Input Data'!$AL$5:$AL$764)/10^6 -> 8.18494574 | H56: =SUMPRODUCT('Costs ($2014) Incl Real Esc'!U$5:U$764,'Input Data'!$AL$5:$AL$764)/10^6 -> 1.140378788 | I56: 9.553108699
B57: Costs (Real $2014) Including Real Escalation | C57: =SUM(C45:C56) -> 550.6509451 | D57: =SUM(D45:D56) -> 280.6029429 | E57: 270.0480022 | F57: 316.0784993 | G57: 230.0331193 | H57: 303.1439982 | I57: 1119.303619
A58: Check | B58: =SUM(C58:H58) -> 2.557953849e-13 | C58: =ABS(C38-C57) -> 0 | D58: =ABS(D38-D57) -> 0 | E58: 1.136868377e-13 | F58: 5.684341886e-14 | G58: 2.842170943e-14 | H58: 5.684341886e-14 | I58: 2.273736754e-13

Sheet Cost Escalators
A1: Cost Escalators
A3: CPI
A4: Financial Year: | B4: 2013 | C4: 2014 | D4: 2015 | E4: 2016
A5: Forecast CPI (included in Input data) | B5: 0.02502502503 | C5: 0.029296875 | D5: 0.0275 | E5: 0.025
A6: Cumulative CPI to Report Year 2014 | B6: =C6*(1+C5) -> 1.029296875 | C6: 1 | D6: =C6/(1+D5) -> 0.9732360097 | E6: =D6/(1+E5) -> 0.9494985461
A8: Annual Escalation (Real Commodity escalation, no CPI escalation )
A9: =A4 -> Financial Year: | B9: =$B38 -> CPI Only | C9: =$B39 -> EGW Wages | D9: =$B40 -> Wages General | E9: =$B41 -> Copper | F9: =$B42 -> Aluminium | G9: =$B43 -> Steel | H9: =$B44 -> Oil | I9: =$B45 -> Construction | J9: =$B46 -> Property - Res. | K9: =$B47 -> Property - Ind. | L9: =$B48 -> Property - Rural | M9: =$B49 -> Property - Agr.
A10: 2014 | B10: 0 | C10: 0.0045 | D10: 0.0045 | E10: 0 | F10: 0 | G10: 0 | H10: 0 | I10: 0.013 | J10: 0.056 | K10: -0.026 | L10: 0.046 | M10: -0.011
A11: 2015 | B11: 0 | C11: 0.006969818886 | D11: 0.006969818886 | E11: 0 | F11: 0 | G11: 0 | H11: 0 | I11: 0.0217 | J11: 0.062 | K11: -0.008 | L11: 0.044 | M11: -0.012
A12: 2016 | B12: 0 | C12: 0.006239455274 | D12: 0.006239455274 | E12: 0 | F12: 0 | G12: 0 | H12: 0 | I12: 0.0225 | J12: 0.051 | K12: -0.001 | L12: 0.039 | M12: -0.002
A13: 2017 | B13: 0 | C13: 0.009158079789 | D13: 0.009158079789 | E13: 0 | F13: 0 | G13: 0 | H13: 0 | I13: 0.022 | J13: 0.013 | K13: 0.01 | L13: 0.017 | M13: -0.007
A14: 2018 | B14: 0 | C14: 0.01250604812 | D14: 0.01250604812 | E14: 0 | F14: 0 | G14: 0 | H14: 0 | I14: 0.0212 | J14: -0.006 | K14: 0.023 | L14: 0.011 | M14: 0.02
A16: Cumulative Escalation (Real Commodity escalation, no CPI escalation )
A17: =A9 -> Financial Year: | B17: CPI Only | C17: EGW Wages | D17: Wages General | E17: Copper | F17: Aluminium | G17: Steel | H17: Oil | I17: Construction | J17: Property - Res. | K17: Property - Ind. | L17: Property - Rural | M17: Property - Agr.
A18: 2014 | B18: =B10+1 -> 1 | C18: =C10+1 -> 1.0045 | D18: =D10+1 -> 1.0045 | E18: 1 | F18: 1 | G18: 1 | H18: 1 | I18: 1.013 | J18: 1.056 | K18: 0.974 | L18: 1.046 | M18: 0.989
A19: 2015 | B19: =B18*(1+B11) -> 1 | C19: 1.011501183 | D19: 1.011501183 | E19: 1 | F19: 1 | G19: 1 | H19: 1 | I19: 1.0349821 | J19: 1.121472 | K19: 0.966208 | L19: 1.092024 | M19: 0.977132
A20: 2016 | B20: 1 | C20: 1.017812399 | D20: 1.017812399 | E20: 1 | F20: 1 | G20: 1 | H20: 1 | I20: 1.058269197 | J20: 1.178667072 | K20: 0.965241792 | L20: 1.134612936 | M20: 0.975177736
A21: 2017 | B21: 1 | C21: 1.027133607 | D21: 1.027133607 | E21: 1 | F21: 1 | G21: 1 | H21: 1 | I21: 1.08155112 | J21: 1.193989744 | K21: 0.9748942099 | L21: 1.153901356 | M21: 0.9683514918
A22: 2018 | B22: 1 | C22: 1.039978989 | D22: 1.039978989 | E22: 1 | F22: 1 | G22: 1 | H22: 1 | I22: 1.104480003 | J22: 1.186825805 | K22: 0.9973167767 | L22: 1.166594271 | M22: 0.9877185217
A24: Regulatory Asset Classes
A25: Item | B25: Name | C25: Description
A26: Reg Asset Class 1 | B26: TL | C26: Transmission Lines
A27: Reg Asset Class 2 | B27: Subs | C27: Substations
A28: Reg Asset Class 3 | B28: Sec Sys | C28: Secondary Systems
A29: Reg Asset Class 4 | B29: Comms | C29: Communications
A30: Reg Asset Class 5 | B30: Land | C30: Land and Easements
A31: Reg Asset Class 6 | B31: Cables | C31: Underground Cables
A32: Reg Asset Class 7 | B32: TL Life Ext | C32: Transmission Line Life Extension
A33: Reg Asset Class 8 | B33: MV & MP | C33: Motor Vehicles, Moveable Plant and Minor Plant
A34: Reg Asset Class 9 | B34: Bus. IT | C34: Business and Information Technology
A36: Project Components
A37: Description | B37: Name | C37: Description
A38: Project Component 1 | B38: CPI Only | C38: Inflation Amount to be escalated by CPI (no commodity esc.)
A39: Project Component 2 | B39: EGW Wages | C39: Electricity Gas and Water Wages
A40: Project Component 3 | B40: Wages General | C40: General Wages
A41: Project Component 4 | B41: Copper | C41: Copper
A42: Project Component 5 | B42: Aluminium | C42: Aluminium
A43: Project Component 6 | B43: Steel | C43: Steel
A44: Project Component 7 | B44: Oil | C44: Crude Oil
A45: Project Component 8 | B45: Construction | C45: Construction
A46: Project Component 9 | B46: Property - Res. | C46: Property - Residential
A47: Project Component 10 | B47: Property - Ind. | C47: Property - Industrial
A48: Project Component 11 | B48: Property - Rural | C48: Property - Rural
A49: Project Component 12 | B49: Property - Agr. | C49: Property - Agricultural
A51: Capex by Project Category
A52: Category | B52: Grouping | C52: Network or Non-Network
A53: PS Augmentation | B53: Load Driven | C53: Network
A54: PS Connections | B54: Non-Load Driven | C54: Network
A55: PS Easements | B55: Load Driven | C55: Network
A56: PS Replacement | B56: Non-Load Driven | C56: Network
A57: PS Network Asset Replacement | B57: Non-Load Driven | C57: Network
A58: PS Network-Other | B58: Non-Load Driven | C58: Network
A59: PS Security/Compliance | B59: Non-Load Driven | C59: Network
A60: PS Information Technology | B60: Business IT | C60: Non-Network
A61: PS Facilities | B61: Support the Business | C61: Non-Network
A62: PS Motor Vehicles | B62: Support the Business | C62: Non-Network
A63: PS Western Sydney Supply | B63: Non-Load Driven | C63: Network
A66: Capex Commissioned 2015 - Transitional Adjustment
A67: ='Input Data'!A4 -> Program \ Project No. | B67: ='Input Data'!B4 -> Program \ Project Grouping | D67: ='Input Data'!C4 -> Program \ Project Name
A68: ='Costs ($2014) Incl Real Esc'!A328 -> 6650 | B68: ='Costs ($2014) Incl Real Esc'!B328 -> Western Sydney Supply Project | D68: ='Costs ($2014) Incl Real Esc'!C328 -> Holroyd - Rookwood 330kV Cable
A69: ='Costs ($2014) Incl Real Esc'!A329 -> 6651 | B69: ='Costs ($2014) Incl Real Esc'!B329 -> Western Sydney Supply Project | D69: ='Costs ($2014) Incl Real Esc'!C329 -> Rookwood Road 330/132kV Substation
A70: ='Costs ($2014) Incl Real Esc'!A555 -> 6314 | B70: ='Costs ($2014) Incl Real Esc'!B555 -> Substation Renewal | D70: ='Costs ($2014) Incl Real Esc'!C555 -> Upper Tumut Switching Station Renewal
A71: ='Costs ($2014) Incl Real Esc'!A572 -> 7298 | B71: ='Costs ($2014) Incl Real Esc'!B572 -> SVC Control System Replacement | D71: ='Costs ($2014) Incl Real Esc'!C572 -> Kemps Creek SVC Control System Replacement

Sheet Input Data
A1: Program \ Project Cost Inputs
H2: =SUM(H5:H764) -> 431166228.7 | I2: 377621678.7 | J2: 362085534.8 | K2: 480561767.5 | L2: 475727101.5 | M2: 248188145.4 | N2: 296924014.6 | O2: 223250717.8 | P2: 207164099.5
H3: Capex Incurred | Q3: Capex by Regulatory Asset Class (%) - Calculated | Z3: =ABS(SUM(Z5:Z764)) -> 1.165734176e-14 | AA3: Capex by Component (%) | AM3: =ABS(SUM(AM5:AM764)) -> 4.996003611e-15
A4: Program \ Project No. | B4: Program \ Project Grouping | C4: Program \ Project Name | D4: Program \ Project Category | E4: Committed / Future | F4: Commissioning Date | G4: Effective Estimate Year | H4: 2010 | I4: 2011 | J4: 2012 | K4: 2013 | L4: 2014 | M4: 2015 | N4: 2016 | O4: 2017 | P4: 2018 | Q4: Reg Asset Class 1 TL | R4: Reg Asset Class 2 Subs | S4: Reg Asset Class 3 Sec Sys | T4: Reg Asset Class 4 Comms | U4: Reg Asset Class 5 Land | V4: Reg Asset Class 6 Cables | W4: Reg Asset Class 7 TL Life Ext | X4: Reg Asset Class 8 MV & MP | Y4: Reg Asset Class 9 Bus. IT | Z4: Check | AA4: CPI Only | AB4: EGW Wages | AC4: Wages General | AD4: Copper | AE4: Aluminium | AF4: Steel | AG4: Oil | AH4: Construction | AI4: Property - Res. | AJ4: Property - Ind. | AK4: Property - Rural | AL4: Property - Agr. | AM4: Check
A5: 6716 | B5: Communications | C5: Establishment of Gigabit Ethernet CDN Network | D5: PS Facilities | E5: Input_Prog_Commit | F5: 0 | G5: 2013 | H5: -0.9314622605 | I5: 0 | J5: 0 | K5: 0 | L5: 2334232.849 | M5: 0 | N5: 0 | O5: 0 | P5: 0 | Q5: 0 | R5: 0 | S5: 0 | T5: 1 | U5: 0 | V5: 0 | W5: 0 | X5: 0 | Y5: 0 | Z5: =ABS(1-SUM(Q5:Y5)) -> 0 | AA5: 1 | AB5: 0 | AC5: 0 | AD5: 0 | AE5: 0 | AF5: 0 | AG5: 0 | AH5: 0 | AI5: 0 | AJ5: 0 | AK5: 0 | AL5: 0 | AM5: =ABS(1-SUM(AA5:AL5)) -> 0
A6: 5161 | B6: Non HV Buildings & Civil Work | C6: Building Improvements | D6: PS Facilities | E6: Input_Prog_Commit | F6: 0 | G6: 2013 | H6: 3086017.593 | I6: 3644494.662 | J6: 5282894.724 | K6: 5226536.631 | L6: 6101191.123 | M6: 0 | N6: 0 | O6: 0 | P6: 0 | Q6: 0 | R6: 1 | S6: 0 | T6: 0 | U6: 0 | V6: 0 | W6: 0 | X6: 0 | Y6: 0 | Z6: =ABS(1-SUM(Q6:Y6)) -> 0 | AA6: 1 | AB6: 0 | AC6: 0 | AD6: 0 | AE6: 0 | AF6: 0 | AG6: 0 | AH6: 0 | AI6: 0 | AJ6: 0 | AK6: 0 | AL6: 0 | AM6: 0
A7: 5976 | B7: Non HV Buildings & Civil Work | C7: HO Refurbishment | D7: PS Facilities | E7: Input_Prog_Commit | F7: 0 | G7: 2013 | H7: -1446786.628 | I7: 1284.09482 | J7: 0 | K7: 0 | L7: 0 | M7: 0 | N7: 0 | O7: 0 | P7: 0 | Q7: 0 | R7: 1 | S7: 0 | T7: 0 | U7: 0 | V7: 0 | W7: 0 | X7: 0 | Y7: 0 | Z7: 0 | AA7: 1 | AB7: 0 | AC7: 0 | AD7: 0 | AE7: 0 | AF7: 0 | AG7: 0 | AH7: 0 | AI7: 0 | AJ7: 0 | AK7: 0 | AL7: 0 | AM7: 0
A8: 5989 | B8: Non HV Buildings & Civil Work | C8: Sydney West Warehouse Extension | D8: PS Facilities | E8: Input_Prog_Commit | F8: 0 | G8: 2013 | H8: 102063.2783 | I8: 121664.9013 | J8: 0 | K8: 0 | L8: 0 | M8: 0 | N8: 0 | O8: 0 | P8: 0 | Q8: 0 | R8: 1 | S8: 0 | T8: 0 | U8: 0 | V8: 0 | W8: 0 | X8: 0 | Y8: 0 | Z8: 0 | AA8: 1 | AB8: 0 | AC8: 0 | AD8: 0 | AE8: 0 | AF8: 0 | AG8: 0 | AH8: 0 | AI8: 0 | AJ8: 0 | AK8: 0 | AL8: 0 | AM8: 0
A9: 7332 | B9: Non HV Buildings & Civil Work | C9: Strategic Accomodation | D9: PS Facilities | E9: Input_Prog_Commit | F9: 0 | G9: 2013 | H9: 0 | I9: 481753.2862 | J9: 6895028.891 | K9: 0 | L9: 0 | M9: 0 | N9: 0 | O9: 0 | P9: 0 | Q9: 0.04654065402 | R9: 0.7446504643 | S9: 0.02327032701 | T9: 0.02327032701 | U9: 0.1622682277 | V9: 0 | W9: 0 | X9: 0 | Y9: 0 | Z9: 0 | AA9: 1 | AB9: 0 | AC9: 0 | AD9: 0 | AE9: 0 | AF9: 0 | AG9: 0 | AH9: 0 | AI9: 0 | AJ9: 0 | AK9: 0 | AL9: 0 | AM9: 0
A10: 7332 | B10: Non HV Buildings & Civil Work | C10: Strategic Accomodation | D10: PS Facilities | E10: Input_Prog_Commit | F10: 0 | G10: 2014 | H10: 0 | I10: 0 | J10: 0 | K10: 0 | L10: 0 | M10: 8612015 | N10: 10973300 | O10: 4832700 | P10: 0 | Q10: 0 | R10: 1 | S10: 0 | T10: 0 | U10: 0 | V10: 0 | W10: 0 | X10: 0 | Y10: 0 | Z10: 0 | AA10: 1 | AB10: 0 | AC10: 0 | AD10: 0 | AE10: 0 | AF10: 0 | AG10: 0 | AH10: 0 | AI10: 0 | AJ10: 0 | AK10: 0 | AL10: 0 | AM10: 0
A11: 7332 | B11: Non HV Buildings & Civil Work | C11: Strategic Accomodation | D11: PS Facilities | E11: Input_Prog_Commit | F11: 0 | G11: 2013 | H11: 0 | I11: 0 | J11: 0 | K11: 15370970.15 | L11: 42181972.47 | M11: 0 | N11: 0 | O11: 0 | P11: 0 | Q11: 0 | R11: 1 | S11: 0 | T11: 0 | U11: 0 | V11: 0 | W11: 0 | X11: 0 | Y11: 0 | Z11: 0 | AA11: 1 | AB11: 0 | AC11: 0 | AD11: 0 | AE11: 0 | AF11: 0 | AG11: 0 | AH11: 0 | AI11: 0 | AJ11: 0 | AK11: 0 | AL11: 0 | AM11: 0
A12: 7517 | B12: Non HV Buildings & Civil Work | C12: Newcastle Mezzanine Floor | D12: PS Facilities | E12: Input_Prog_Commit | F12: 0 | G12: 2013 | H12: 0 | I12: 36711.25634 | J12: 0 | K12: 0 | L12: 0 | M12: 0 | N12: 0 | O12: 0 | P12: 0 | Q12: 0 | R12: 1 | S12: 0 | T12: 0 | U12: 0 | V12: 0 | W12: 0 | X12: 0 | Y12: 0 | Z12: 0 | AA12: 1 | AB12: 0 | AC12: 0 | AD12: 0 | AE12: 0 | AF12: 0 | AG12: 0 | AH12: 0 | AI12: 0 | AJ12: 0 | AK12: 0 | AL12: 0 | AM12: 0
A13: 8050 | B13: Non HV Buildings & Civil Work | C13: Haymarket Blast Wall | D13: PS Facilities | E13: Input_Prog_Commit | F13: 0 | G13: 2014 | H13: 0 | I13: 0 | J13: 0 | K13: 0 | L13: 0 | M13: 0 | N13: 0 | O13: 0 | P13: 0 | Q13: 0 | R13: 1 | S13: 0 | T13: 0 | U13: 0 | V13: 0 | W13: 0 | X13: 0 | Y13: 0 | Z13: 0 | AA13: 1 | AB13: 0 | AC13: 0 | AD13: 0 | AE13: 0 | AF13: 0 | AG13: 0 | AH13: 0 | AI13: 0 | AJ13: 0 | AK13: 0 | AL13: 0 | AM13: 0
A14: 6420 | B14: Information Technology | C14: Video Conferencing & Collaboration | D14: PS Information Technology | E14: Input_Prog_Commit | F14: 0 | G14: 2013 | H14: 520743.3125 | I14: 0 | J14: 0 | K14: 0 | L14: 0 | M14: 0 | N14: 0 | O14: 0 | P14: 0 | Q14: 0 | R14: 0 | S14: 0 | T14: 1 | U14: 0 | V14: 0 | W14: 0 | X14: 0 | Y14: 0 | Z14: 0 | AA14: 1 | AB14: 0 | AC14: 0 | AD14: 0 | AE14: 0 | AF14: 0 | AG14: 0 | AH14: 0 | AI14: 0 | AJ14: 0 | AK14: 0 | AL14: 0 | AM14: 0
A15: ICT Applications | B15: Information Technology | C15: Capital Program Delivery | D15: PS Information Technology | E15: Input_Prog_Commit | F15: 0 | G15: 2013 | H15: 2672971.221 | I15: 895263.7212 | J15: 23525.82312 | K15: 0 | L15: 0 | M15: 0 | N15: 0 | O15: 0 | P15: 0 | Q15: 0 | R15: 0 | S15: 0 | T15: 0 | U15: 0 | V15: 0 | W15: 0 | X15: 0 | Y15: 1 | Z15: 0 | AA15: 1 | AB15: 0 | AC15: 0 | AD15: 0 | AE15: 0 | AF15: 0 | AG15: 0 | AH15: 0 | AI15: 0 | AJ15: 0 | AK15: 0 | AL15: 0 | AM15: 0
A16: ICT Applications | B16: Information Technology | C16: Finance & Information Systems | D16: PS Information Technology | E16: Input_Prog_Commit | F16: 0 | G16: 2013 | H16: 2677587.508 | I16: 9423444.293 | J16: 12204307.28 | K16: 19630733.62 | L16: 0 | M16: 0 | N16: 0 | O16: 0 | P16: 0 | Q16: 0 | R16: 0 | S16: 0 | T16: 0 | U16: 0 | V16: 0 | W16: 0 | X16: 0 | Y16: 1 | Z16: 0 | AA16: 1 | AB16: 0 | AC16: 0 | AD16: 0 | AE16: 0 | AF16: 0 | AG16: 0 | AH16: 0 | AI16: 0 | AJ16: 0 | AK16: 0 | AL16: 0 | AM16: 0
A17: ICT Applications | B17: Information Technology | C17: Network Planning & Performance | D17: PS Information Technology | E17: Input_Prog_Commit | F17: 0 | G17: 2013 | H17: 773619.5683 | I17: 385802.2267 | J17: 11550.76668 | K17: 0 | L17: 0 | M17: 0 | N17: 0 | O17: 0 | P17: 0 | Q17: 0 | R17: 0 | S17: 0 | T17: 0 | U17: 0 | V17: 0 | W17: 0 | X17: 0 | Y17: 1 | Z17: 0 | AA17: 1 | AB17: 0 | AC17: 0 | AD17: 0 | AE17: 0 | AF17: 0 | AG17: 0 | AH17: 0 | AI17: 0 | AJ17: 0 | AK17: 0 | AL17: 0 | AM17: 0
A18: ICT Applications | B18: Information Technology | C18: Network Services & Operations | D18: PS Information Technology | E18: Input_Prog_Commit | F18: 0 | G18: 2013 | H18: 98115.28974 | I18: 267262.0319 | J18: 72318.33945 | K18: 0 | L18: 0 | M18: 0 | N18: 0 | O18: 0 | P18: 0 | Q18: 0 | R18: 0 | S18: 0 | T18: 0 | U18: 0 | V18: 0 | W18: 0 | X18: 0 | Y18: 1 | Z18: 0 | AA18: 1 | AB18: 0 | AC18: 0 | AD18: 0 | AE18: 0 | AF18: 0 | AG18: 0 | AH18: 0 | AI18: 0 | AJ18: 0 | AK18: 0 | AL18: 0 | AM18: 0
A19: ICT Applications | B19: Information Technology | C19: People, Strategy & Corporate Services | D19: PS Information Technology | E19: Input_Prog_Commit | F19: 0 | G19: 2013 | H19: 73228.81164 | I19: 80129.04096 | J19: 3467.87581 | K19: 0 | L19: 0 | M19: 0 | N19: 0 | O19: 0 | P19: 0 | Q19: 0 | R19: 0 | S19: 0 | T19: 0 | U19: 0 | V19: 0 | W19: 0 | X19: 0 | Y19: 1 | Z19: 0 | AA19: 1 | AB19: 0 | AC19: 0 | AD19: 0 | AE19: 0 | AF19: 0 | AG19: 0 | AH19: 0 | AI19: 0 | AJ19: 0 | AK19: 0 | AL19: 0 | AM19: 0
A20: ICT Applications | B20: Information Technology | C20: 0 | D20: PS Information Technology | E20: Input_Prog_Commit | F20: 0 | G20: 2013 | H20: 0 | I20: 0 | J20: 0 | K20: 0 | L20: 9637107.539 | M20: 0 | N20: 0 | O20: 0 | P20: 0 | Q20: 0 | R20: 0 | S20: 0 | T20: 0 | U20: 0 | V20: 0 | W20: 0 | X20: 0 | Y20: 1 | Z20: 0 | AA20: 1 | AB20: 0 | AC20: 0 | AD20: 0 | AE20: 0 | AF20: 0 | AG20: 0 | AH20: 0 | AI20: 0 | AJ20: 0 | AK20: 0 | AL20: 0 | AM20: 0
A21: ICT Corporate Data Network | B21: Information Technology | C21: Finance & Information Systems | D21: PS Information Technology | E21: Input_Prog_Commit | F21: 0 | G21: 2013 | H21: 2230293.374 | I21: 1032197.395 | J21: 1059277.022 | K21: 785259.752 | L21: 0 | M21: 0 | N21: 0 | O21: 0 | P21: 0 | Q21: 0 | R21: 0 | S21: 0 | T21: 0 | U21: 0 | V21: 0 | W21: 0 | X21: 0 | Y21: 1 | Z21: 0 | AA21: 1 | AB21: 0 | AC21: 0 | AD21: 0 | AE21: 0 | AF21: 0 | AG21: 0 | AH21: 0 | AI21: 0 | AJ21: 0 | AK21: 0 | AL21: 0 | AM21: 0
A22: ICT Corporate Data Network | B22: Information Technology | C22: 0 | D22: PS Information Technology | E22: Input_Prog_Commit | F22: 0 | G22: 2013 | H22: 0 | I22: 0 | J22: 0 | K22: 0 | L22: 1392600.375 | M22: 0 | N22: 0 | O22: 0 | P22: 0 | Q22: 0 | R22: 0 | S22: 0 | T22: 0 | U22: 0 | V22: 0 | W22: 0 | X22: 0 | Y22: 1 | Z22: 0 | AA22: 1 | AB22: 0 | AC22: 0 | AD22: 0 | AE22: 0 | AF22: 0 | AG22: 0 | AH22: 0 | AI22: 0 | AJ22: 0 | AK22: 0 | AL22: 0 | AM22: 0
A23: ICT Infrastructure | B23: Information Technology | C23: Finance & Information Systems | D23: PS Information Technology | E23: Input_Prog_Commit | F23: 0 | G23: 2013 | H23: 5208288.876 | I23: 3266074.274 | J23: 6217517.504 | K23: 4085132.965 | L23: 0 | M23: 0 | N23: 0 | O23: 0 | P23: 0 | Q23: 0 | R23: 0 | S23: 0 | T23: 0 | U23: 0 | V23: 0 | W23: 0 | X23: 0 | Y23: 1 | Z23: 0 | AA23: 1 | AB23: 0 | AC23: 0 | AD23: 0 | AE23: 0 | AF23: 0 | AG23: 0 | AH23: 0 | AI23: 0 | AJ23: 0 | AK23: 0 | AL23: 0 | AM23: 0
A24: ICT Infrastructure | B24: Information Technology | C24: Network Services & Operations | D24: PS Information Technology | E24: Input_Prog_Commit | F24: 0 | G24: 2013 | H24: 323387.4297 | I24: 79284.45872 | J24: 0 | K24: 0 | L24: 0 | M24: 0 | N24: 0 | O24: 0 | P24: 0 | Q24: 0 | R24: 0 | S24: 0 | T24: 0 | U24: 0 | V24: 0 | W24: 0 | X24: 0 | Y24: 1 | Z24: 0 | AA24: 1 | AB24: 0 | AC24: 0 | AD24: 0 | AE24: 0 | AF24: 0 | AG24: 0 | AH24: 0 | AI24: 0 | AJ24: 0 | AK24: 0 | AL24: 0 | AM24: 0
A25: ICT Infrastructure | B25: Information Technology | C25: 0 | D25: PS Information Technology | E25: Input_Prog_Commit | F25: 0 | G25: 2013 | H25: 0 | I25: 0 | J25: 0 | K25: 0 | L25: 4869407.154 | M25: 0 | N25: 0 | O25: 0 | P25: 0 | Q25: 0 | R25: 0 | S25: 0 | T25: 0 | U25: 0 | V25: 0 | W25: 0 | X25: 0 | Y25: 1 | Z25: 0 | AA25: 1 | AB25: 0 | AC25: 0 | AD25: 0 | AE25: 0 | AF25: 0 | AG25: 0 | AH25: 0 | AI25: 0 | AJ25: 0 | AK25: 0 | AL25: 0 | AM25: 0
A26: 0 | B26: Information Technology | C26: Finance & Information Systems | D26: PS Information Technology | E26: Input_Prog_Commit | F26: 0 | G26: 2013 | H26: 421039.5278 | I26: -55003.77794 | J26: 0 | K26: 0 | L26: 0 | M26: 0 | N26: 0 | O26: 0 | P26: 0 | Q26: 0 | R26: 0 | S26: 0 | T26: 0 | U26: 0 | V26: 0 | W26: 0 | X26: 0 | Y26: 1 | Z26: 0 | AA26: 1 | AB26: 0 | AC26: 0 | AD26: 0 | AE26: 0 | AF26: 0 | AG26: 0 | AH26: 0 | AI26: 0 | AJ26: 0 | AK26: 0 | AL26: 0 | AM26: 0
A27: 5739 | B27: Motor Vehicles & Mobile Plant | C27: TG Mobile Plant | D27: PS Motor Vehicles | E27: Input_Prog_Commit | F27: 0 | G27: 2013 | H27: 0 | I27: 0 | J27: 0 | K27: 0 | L27: 0 | M27: 2919314 | N27: 1762500 | O27: 1643591 | P27: 2177280 | Q27: 0 | R27: 0 | S27: 0 | T27: 0 | U27: 0 | V27: 0 | W27: 0 | X27: 1 | Y27: 0 | Z27: 0 | AA27: 1 | AB27: 0 | AC27: 0 | AD27: 0 | AE27: 0 | AF27: 0 | AG27: 0 | AH27: 0 | AI27: 0 | AJ27: 0 | AK27: 0 | AL27: 0 | AM27: 0
A28: 5777 | B28: Motor Vehicles & Mobile Plant | C28: TG Business Vehicles | D28: PS Motor Vehicles | E28: Input_Prog_Commit | F28: 0 | G28: 2013 | H28: 0 | I28: 0 | J28: 0 | K28: 0 | L28: 0 | M28: 5805532.93 | N28: 5757850 | O28: 7363208.24 | P28: 8127669.902 | Q28: 0 | R28: 0 | S28: 0 | T28: 0 | U28: 0 | V28: 0 | W28: 0 | X28: 1 | Y28: 0 | Z28: 0 | AA28: 1 | AB28: 0 | AC28: 0 | AD28: 0 | AE28: 0 | AF28: 0 | AG28: 0 | AH28: 0 | AI28: 0 | AJ28: 0 | AK28: 0 | AL28: 0 | AM28: 0
A29: 0 | B29: Motor Vehicles & Mobile Plant | C29: Capital Program Delivery | D29: PS Motor Vehicles | E29: Input_Prog_Commit | F29: 0 | G29: 2013 | H29: -448.2721742 | I29: 75486.07206 | J29: 86165.18225 | K29: 149631.6448 | L29: 0 | M29: 0 | N29: 0 | O29: 0 | P29: 0 | Q29: 0 | R29: 0 | S29: 0 | T29: 0 | U29: 0 | V29: 0 | W29: 0 | X29: 1 | Y29: 0 | Z29: 0 | AA29: 1 | AB29: 0 | AC29: 0 | AD29: 0 | AE29: 0 | AF29: 0 | AG29: 0 | AH29: 0 | AI29: 0 | AJ29: 0 | AK29: 0 | AL29: 0 | AM29: 0
A30: 0 | B30: Motor Vehicles & Mobile Plant | C30: Finance & Information Systems | D30: PS Motor Vehicles | E30: Input_Prog_Commit | F30: 0 | G30: 2013 | H30: 2106.408824 | I30: 59336.26295 | J30: 13117.06111 | K30: 0 | L30: 0 | M30: 0 | N30: 0 | O30: 0 | P30: 0 | Q30: 0 | R30: 0 | S30: 0 | T30: 0 | U30: 0 | V30: 0 | W30: 0 | X30: 1 | Y30: 0 | Z30: 0 | AA30: 1 | AB30: 0 | AC30: 0 | AD30: 0 | AE30: 0 | AF30: 0 | AG30: 0 | AH30: 0 | AI30: 0 | AJ30: 0 | AK30: 0 | AL30: 0 | AM30: 0
A31: 0 | B31: Motor Vehicles & Mobile Plant | C31: Network Planning & Performance | D31: PS Motor Vehicles | E31: Input_Prog_Commit | F31: 0 | G31: 2013 | H31: 0 | I31: 18750.97039 | J31: 0 | K31: 0 | L31: 0 | M31: 0 | N31: 0 | O31: 0 | P31: 0 | Q31: 0 | R31: 0 | S31: 0 | T31: 0 | U31: 0 | V31: 0 | W31: 0 | X31: 1 | Y31: 0 | Z31: 0 | AA31: 1 | AB31: 0 | AC31: 0 | AD31: 0 | AE31: 0 | AF31: 0 | AG31: 0 | AH31: 0 | AI31: 0 | AJ31: 0 | AK31: 0 | AL31: 0 | AM31: 0
A32: 0 | B32: Motor Vehicles & Mobile Plant | C32: Network Services & Operations | D32: PS Motor Vehicles | E32: Input_Prog_Commit | F32: 0 | G32: 2013 | H32: 1130126.861 | I32: 2449379.13 | J32: 3412979.457 | K32: 1496117.15 | L32: 0 | M32: 0 | N32: 0 | O32: 0 | P32: 0 | Q32: 0 | R32: 0 | S32: 0 | T32: 0 | U32: 0 | V32: 0 | W32: 0 | X32: 1 | Y32: 0 | Z32: 0 | AA32: 1 | AB32: 0 | AC32: 0 | AD32: 0 | AE32: 0 | AF32: 0 | AG32: 0 | AH32: 0 | AI32: 0 | AJ32: 0 | AK32: 0 | AL32: 0 | AM32: 0
A33: 0 | B33: Motor Vehicles & Mobile Plant | C33: People, Strategy & Corporate Services | D33: PS Motor Vehicles | E33: Input_Prog_Commit | F33: 0 | G33: 2013 | H33: 19805.61265 | I33: 71920.77324 | J33: 201147.3761 | K33: 0 | L33: 0 | M33: 0 | N33: 0 | O33: 0 | P33: 0 | Q33: 0 | R33: 0 | S33: 0 | T33: 0 | U33: 0 | V33: 0 | W33: 0 | X33: 1 | Y33: 0 | Z33: 0 | AA33: 1 | AB33: 0 | AC33: 0 | AD33: 0 | AE33: 0 | AF33: 0 | AG33: 0 | AH33: 0 | AI33: 0 | AJ33: 0 | AK33: 0 | AL33: 0 | AM33: 0
A34: 0 | B34: Motor Vehicles & Mobile Plant | C34: People, Strategy & Corporate Services | D34: PS Motor Vehicles | E34: Input_Prog_Commit | F34: 0 | G34: 2013 | H34: 12080139.67 | I34: 7664426.366 | J34: 9720307.219 | K34: 8309457.535 | L34: 9557229.47 | M34: 0 | N34: 0 | O34: 0 | P34: 0 | Q34: 0 | R34: 0 | S34: 0 | T34: 0 | U34: 0 | V34: 0 | W34: 0 | X34: 1 | Y34: 0 | Z34: 0 | AA34: 1 | AB34: 0 | AC34: 0 | AD34: 0 | AE34: 0 | AF34: 0 | AG34: 0 | AH34: 0 | AI34: 0 | AJ34: 0 | AK34: 0 | AL34: 0 | AM34: 0
A35: 6424 | B35: Cables | C35: 42 Tunnel (Sydney Park) Water Treatment Plant | D35: PS Network Asset Replacement | E35: Input_Prog_Commit | F35: 0 | G35: 2013 | H35: 114509.3553 | I35: -151176.3758 | J35: 0 | K35: 0 | L35: 0 | M35: 0 | N35: 0 | O35: 0 | P35: 0 | Q35: 1 | R35: 0 | S35: 0 | T35: 0 | U35: 0 | V35: 0 | W35: 0 | X35: 0 | Y35: 0 | Z35: 0 | AA35: 1 | AB35: 0 | AC35: 0 | AD35: 0 | AE35: 0 | AF35: 0 | AG35: 0 | AH35: 0 | AI35: 0 | AJ35: 0 | AK35: 0 | AL35: 0 | AM35: 0
A36: 0 | B36: Cables | C36: Network Asset Replacement | D36: PS Network Asset Replacement | E36: Input_Prog_Commit | F36: 0 | G36: 2013 | H36: 113824.9195 | I36: 50853.89129 | J36: 31889.07024 | K36: 22926.68713 | L36: 0 | M36: 0 | N36: 0 | O36: 0 | P36: 0 | Q36: 1 | R36: 0 | S36: 0 | T36: 0 | U36: 0 | V36: 0 | W36: 0 | X36: 0 | Y36: 0 | Z36: 0 | AA36: 1 | AB36: 0 | AC36: 0 | AD36: 0 | AE36: 0 | AF36: 0 | AG36: 0 | AH36: 0 | AI36: 0 | AJ36: 0 | AK36: 0 | AL36: 0 | AM36: 0
A37: 4967 | B37: Communications | C37: Installation of PLC Voice Equipment | D37: PS Network Asset Replacement | E37: Input_Prog_Commit | F37: 0 | G37: 2014 | H37: 0 | I37: 0 | J37: 0 | K37: 0 | L37: 0 | M37: 660032.5052 | N37: 440021.6701 | O37: 385018.9614 | P37: 0 | Q37: 0 | R37: 0 | S37: 0 | T37: 1 | U37: 0 | V37: 0 | W37: 0 | X37: 0 | Y37: 0 | Z37: 0 | AA37: 1 | AB37: 0 | AC37: 0 | AD37: 0 | AE37: 0 | AF37: 0 | AG37: 0 | AH37: 0 | AI37: 0 | AJ37: 0 | AK37: 0 | AL37: 0 | AM37: 0
A38: 4968 | B38: Communications | C38: Installation of PLC Intertrips | D38: PS Network Asset Replacement | E38: Input_Prog_Commit | F38: 0 | G38: 2014 | H38: 0 | I38: 0 | J38: 0 | K38: 0 | L38: 0 | M38: 229930.659 | N38: 344895.9885 | O38: 114965.3295 | P38: 172447.9942 | Q38: 0 | R38: 0 | S38: 0 | T38: 1 | U38: 0 | V38: 0 | W38: 0 | X38: 0 | Y38: 0 | Z38: 0 | AA38: 1 | AB38: 0 | AC38: 0 | AD38: 0 | AE38: 0 | AF38: 0 | AG38: 0 | AH38: 0 | AI38: 0 | AJ38: 0 | AK38: 0 | AL38: 0 | AM38: 0
A39: 4969 | B39: Communications | C39: Installation of VF Intertrips | D39: PS Network Asset Replacement | E39: Input_Prog_Commit | F39: 0 | G39: 2014 | H39: 0 | I39: 0 | J39: 0 | K39: 0 | L39: 0 | M39: 53152.99928 | N39: 212611.9971 | O39: 186035.4975 | P39: 159458.9978 | Q39: 0 | R39: 0 | S39: 0 | T39: 1 | U39: 0 | V39: 0 | W39: 0 | X39: 0 | Y39: 0 | Z39: 0 | AA39: 1 | AB39: 0 | AC39: 0 | AD39: 0 | AE39: 0 | AF39: 0 | AG39: 0 | AH39: 0 | AI39: 0 | AJ39: 0 | AK39: 0 | AL39: 0 | AM39: 0
A40: 7425 | B40: Communications | C40: SSZ Upgrade Work | D40: PS Network Asset Replacement | E40: Input_Prog_Commit | F40: 0 | G40: 2014 | H40: 0 | I40: 0 | J40: 0 | K40: 0 | L40: 0 | M40: 68982.57782 | N40: 34491.28891 | O40: 77605.40004 | P40: 25868.46668 | Q40: 0 | R40: 0 | S40: 0 | T40: 1 | U40: 0 | V40: 0 | W40: 0 | X40: 0 | Y40: 0 | Z40: 0 | AA40: 1 | AB40: 0 | AC40: 0 | AD40: 0 | AE40: 0 | AF40: 0 | AG40: 0 | AH40: 0 | AI40: 0 | AJ40: 0 | AK40: 0 | AL40: 0 | AM40: 0
A41: 0 | B41: Communications | C41: Network Asset Replacement | D41: PS Network Asset Replacement | E41: Input_Prog_Commit | F41: 0 | G41: 2013 | H41: 1316139.251 | I41: 1420926.403 | J41: 0 | K41: 0 | L41: 0 | M41: 0 | N41: 0 | O41: 0 | P41: 0 | Q41: 0 | R41: 1 | S41: 0 | T41: 0 | U41: 0 | V41: 0 | W41: 0 | X41: 0 | Y41: 0 | Z41: 0 | AA41: 1 | AB41: 0 | AC41: 0 | AD41: 0 | AE41: 0 | AF41: 0 | AG41: 0 | AH41: 0 | AI41: 0 | AJ41: 0 | AK41: 0 | AL41: 0 | AM41: 0
A42: 0 | B42: Communications | C42: Network Asset Replacement | D42: PS Network Asset Replacement | E42: Input_Prog_Commit | F42: 0 | G42: 2013 | H42: 0 | I42: 0 | J42: 362475.1341 | K42: 3189385.431 | L42: 22464.91958 | M42: 0 | N42: 0 | O42: 0 | P42: 0 | Q42: 0 | R42: 0 | S42: 0 | T42: 1 | U42: 0 | V42: 0 | W42: 0 | X42: 0 | Y42: 0 | Z42: 0 | AA42: 1 | AB42: 0 | AC42: 0 | AD42: 0 | AE42: 0 | AF42: 0 | AG42: 0 | AH42: 0 | AI42: 0 | AJ42: 0 | AK42: 0 | AL42: 0 | AM42: 0
A43: 4978 | B43: Controls & Alarms | C43: Installation of RTU Equipment | D43: PS Network Asset Replacement | E43: Input_Prog_Commit | F43: 0 | G43: 2014 | H43: 0 | I43: 0 | J43: 0 | K43: 0 | L43: 0 | M43: 1842866.083 | N43: 2580012.516 | O43: 675717.5637 | P43: 860004.172 | Q43: 0 | R43: 0 | S43: 0 | T43: 1 | U43: 0 | V43: 0 | W43: 0 | X43: 0 | Y43: 0 | Z43: 0 | AA43: 1 | AB43: 0 | AC43: 0 | AD43: 0 | AE43: 0 | AF43: 0 | AG43: 0 | AH43: 0 | AI43: 0 | AJ43: 0 | AK43: 0 | AL43: 0 | AM43: 0
A44: 0 | B44: Controls & Alarms | C44: Network Asset Replacement | D44: PS Network Asset Replacement | E44: Input_Prog_Commit | F44: 0 | G44: 2013 | H44: 1792090.707 | I44: 2564493.248 | J44: 0 | K44: 0 | L44: 0 | M44: 0 | N44: 0 | O44: 0 | P44: 0 | Q44: 0 | R44: 1 | S44: 0 | T44: 0 | U44: 0 | V44: 0 | W44: 0 | X44: 0 | Y44: 0 | Z44: 0 | AA44: 1 | AB44: 0 | AC44: 0 | AD44: 0 | AE44: 0 | AF44: 0 | AG44: 0 | AH44: 0 | AI44: 0 | AJ44: 0 | AK44: 0 | AL44: 0 | AM44: 0
A45: 0 | B45: Controls & Alarms | C45: Network Asset Replacement | D45: PS Network Asset Replacement | E45: Input_Prog_Commit | F45: 0 | G45: 2013 | H45: 0 | I45: 0 | J45: 3439884.567 | K45: 2573616.443 | L45: 0 | M45: 0 | N45: 0 | O45: 0 | P45: 0 | Q45: 0 | R45: 0 | S45: 1 | T45: 0 | U45: 0 | V45: 0 | W45: 0 | X45: 0 | Y45: 0 | Z45: 0 | AA45: 1 | AB45: 0 | AC45: 0 | AD45: 0 | AE45: 0 | AF45: 0 | AG45: 0 | AH45: 0 | AI45: 0 | AJ45: 0 | AK45: 0 | AL45: 0 | AM45: 0
A46: 5071 | B46: HV Buildings & Civil Work | C46: Perimeter Security Fence | D46: PS Network Asset Replacement | E46: Input_Prog_Commit | F46: 0 | G46: 2014 | H46: 0 | I46: 0 | J46: 0 | K46: 0 | L46: 0 | M46: 0 | N46: 0 | O46: 0 | P46: 0 | Q46: 0 | R46: 1 | S46: 0 | T46: 0 | U46: 0 | V46: 0 | W46: 0 | X46: 0 | Y46: 0 | Z46: 0 | AA46: 1 | AB46: 0 | AC46: 0 | AD46: 0 | AE46: 0 | AF46: 0 | AG46: 0 | AH46: 0 | AI46: 0 | AJ46: 0 | AK46: 0 | AL46: 0 | AM46: 0
A47: 5077 | B47: HV Buildings & Civil Work | C47: Switchyard Security Fence | D47: PS Network Asset Replacement | E47: Input_Prog_Commit | F47: 0 | G47: 2014 | H47: 0 | I47: 0 | J47: 0 | K47: 0 | L47: 0 | M47: 0 | N47: 0 | O47: 0 | P47: 0 | Q47: 0 | R47: 1 | S47: 0 | T47: 0 | U47: 0 | V47: 0 | W47: 0 | X47: 0 | Y47: 0 | Z47: 0 | AA47: 1 | AB47: 0 | AC47: 0 | AD47: 0 | AE47: 0 | AF47: 0 | AG47: 0 | AH47: 0 | AI47: 0 | AJ47: 0 | AK47: 0 | AL47: 0 | AM47: 0
A48: 5098 | B48: HV Buildings & Civil Work | C48: Fire Protection Systems | D48: PS Network Asset Replacement | E48: Input_Prog_Commit | F48: 0 | G48: 2014 | H48: 0 | I48: 0 | J48: 0 | K48: 0 | L48: 0 | M48: 0 | N48: 198475.5 | O48: 198475.5 | P48: 0 | Q48: 0 | R48: 1 | S48: 0 | T48: 0 | U48: 0 | V48: 0 | W48: 0 | X48: 0 | Y48: 0 | Z48: 0 | AA48: 1 | AB48: 0 | AC48: 0 | AD48: 0 | AE48: 0 | AF48: 0 | AG48: 0 | AH48: 0 | AI48: 0 | AJ48: 0 | AK48: 0 | AL48: 0 | AM48: 0
A49: 5161 | B49: HV Buildings & Civil Work | C49: Depot Building Improvements and Upgrades | D49: PS Network Asset Replacement | E49: Input_Prog_Commit | F49: 0 | G49: 2014 | H49: 0 | I49: 0 | J49: 0 | K49: 0 | L49: 0 | M49: 648750 | N49: 0 | O49: 150000 | P49: 0 | Q49: 0 | R49: 1 | S49: 0 | T49: 0 | U49: 0 | V49: 0 | W49: 0 | X49: 0 | Y49: 0 | Z49: 0 | AA49: 1 | AB49: 0 | AC49: 0 | AD49: 0 | AE49: 0 | AF49: 0 | AG49: 0 | AH49: 0 | AI49: 0 | AJ49: 0 | AK49: 0 | AL49: 0 | AM49: 0
A50: 5201 | B50: HV Buildings & Civil Work | C50: Substations Building and Property | D50: PS Network Asset Replacement | E50: Input_Prog_Commit | F50: 0 | G50: 2014 | H50: 0 | I50: 0 | J50: 0 | K50: 0 | L50: 0 | M50: 2965255.045 | N50: 854308.51 | O50: 679063.8896 | P50: 362305.6218 | Q50: 0 | R50: 1 | S50: 0 | T50: 0 | U50: 0 | V50: 0 | W50: 0 | X50: 0 | Y50: 0 | Z50: 0 | AA50: 1 | AB50: 0 | AC50: 0 | AD50: 0 | AE50: 0 | AF50: 0 | AG50: 0 | AH50: 0 | AI50: 0 | AJ50: 0 | AK50: 0 | AL50: 0 | AM50: 0
A51: 5949 | B51: HV Buildings & Civil Work | C51: Air Conditioning in Relay Rooms | D51: PS Network Asset Replacement | E51: Input_Prog_Commit | F51: 0 | G51: 2014 | H51: 0 | I51: 0 | J51: 0 | K51: 0 | L51: 0 | M51: 520918.485 | N51: 0 | O51: 0 | P51: 0 | Q51: 0 | R51: 1 | S51: 0 | T51: 0 | U51: 0 | V51: 0 | W51: 0 | X51: 0 | Y51: 0 | Z51: 0 | AA51: 1 | AB51: 0 | AC51: 0 | AD51: 0 | AE51: 0 | AF51: 0 | AG51: 0 | AH51: 0 | AI51: 0 | AJ51: 0 | AK51: 0 | AL51: 0 | AM51: 0
A52: 6337 | B52: HV Buildings & Civil Work | C52: Security Fence Replace D-Pales | D52: PS Network Asset Replacement | E52: Input_Prog_Commit | F52: 0 | G52: 2014 | H52: 0 | I52: 0 | J52: 0 | K52: 0 | L52: 0 | M52: 0 | N52: 0 | O52: 0 | P52: 0 | Q52: 0 | R52: 1 | S52: 0 | T52: 0 | U52: 0 | V52: 0 | W52: 0 | X52: 0 | Y52: 0 | Z52: 0 | AA52: 1 | AB52: 0 | AC52: 0 | AD52: 0 | AE52: 0 | AF52: 0 | AG52: 0 | AH52: 0 | AI52: 0 | AJ52: 0 | AK52: 0 | AL52: 0 | AM52: 0
A53: 0 | B53: HV Buildings & Civil Work | C53: Network Asset Replacement | D53: PS Network Asset Replacement | E53: Input_Prog_Commit | F53: 0 | G53: 2013 | H53: 1738239.503 | I53: 1208290.992 | J53: 4756775.91 | K53: 4817161.699 | L53: 0 | M53: 0 | N53: 0 | O53: 0 | P53: 0 | Q53: 0 | R53: 1 | S53: 0 | T53: 0 | U53: 0 | V53: 0 | W53: 0 | X53: 0 | Y53: 0 | Z53: 0 | AA53: 1 | AB53: 0 | AC53: 0 | AD53: 0 | AE53: 0 | AF53: 0 | AG53: 0 | AH53: 0 | AI53: 0 | AJ53: 0 | AK53: 0 | AL53: 0 | AM53: 0
A54: 5651 | B54: IT | C54: SCADA Upgrade | D54: PS Network Asset Replacement | E54: Input_Prog_Commit | F54: 0 | G54: 2014 | H54: 0 | I54: 0 | J54: 0 | K54: 0 | L54: 0 | M54: 1515000 | N54: 0 | O54: 0 | P54: 0 | Q54: 0 | R54: 0 | S54: 0 | T54: 0 | U54: 0 | V54: 0 | W54: 0 | X54: 0 | Y54: 1 | Z54: 0 | AA54: 1 | AB54: 0 | AC54: 0 | AD54: 0 | AE54: 0 | AF54: 0 | AG54: 0 | AH54: 0 | AI54: 0 | AJ54: 0 | AK54: 0 | AL54: 0 | AM54: 0
A55: 8238 | B55: IT | C55: SCADA Facilities Augmentation | D55: PS Network Asset Replacement | E55: Input_Prog_Commit | F55: 0 | G55: 2014 | H55: 0 | I55: 0 | J55: 0 | K55: 0 | L55: 0 | M55: 375000 | N55: 0 | O55: 0 | P55: 0 | Q55: 0 | R55: 0 | S55: 0 | T55: 0 | U55: 0 | V55: 0 | W55: 0 | X55: 0 | Y55: 1 | Z55: 0 | AA55: 1 | AB55: 0 | AC55: 0 | AD55: 0 | AE55: 0 | AF55: 0 | AG55: 0 | AH55: 0 | AI55: 0 | AJ55: 0 | AK55: 0 | AL55: 0 | AM55: 0
A56: 5923 | B56: Metering | C56: Replacement of Siements 7EC Meters | D56: PS Network Asset Replacement | E56: Input_Prog_Commit | F56: 0 | G56: 2014 | H56: 0 | I56: 0 | J56: 0 | K56: 0 | L56: 0 | M56: 0 | N56: 0 | O56: 241838.665 | P56: 0 | Q56: 0 | R56: 0 | S56: 1 | T56: 0 | U56: 0 | V56: 0 | W56: 0 | X56: 0 | Y56: 0 | Z56: 0 | AA56: 1 | AB56: 0 | AC56: 0 | AD56: 0 | AE56: 0 | AF56: 0 | AG56: 0 | AH56: 0 | AI56: 0 | AJ56: 0 | AK56: 0 | AL56: 0 | AM56: 0
A57: 5925 | B57: Metering | C57: Replacement of Email A1R-AL Meters | D57: PS Network Asset Replacement | E57: Input_Prog_Commit | F57: 0 | G57: 2014 | H57: 0 | I57: 0 | J57: 0 | K57: 0 | L57: 0 | M57: 0 | N57: 0 | O57: 0 | P57: 0 | Q57: 0 | R57: 0 | S57: 1 | T57: 0 | U57: 0 | V57: 0 | W57: 0 | X57: 0 | Y57: 0 | Z57: 0 | AA57: 1 | AB57: 0 | AC57: 0 | AD57: 0 | AE57: 0 | AF57: 0 | AG57: 0 | AH57: 0 | AI57: 0 | AJ57: 0 | AK57: 0 | AL57: 0 | AM57: 0
A58: 5926 | B58: Metering | C58: Replacement of CEWE CEP/CEQ Meters | D58: PS Network Asset Replacement | E58: Input_Prog_Commit | F58: 0 | G58: 2014 | H58: 0 | I58: 0 | J58: 0 | K58: 0 | L58: 0 | M58: 331827.1262 | N58: 0 | O58: 0 | P58: 0 | Q58: 0 | R58: 0 | S58: 1 | T58: 0 | U58: 0 | V58: 0 | W58: 0 | X58: 0 | Y58: 0 | Z58: 0 | AA58: 1 | AB58: 0 | AC58: 0 | AD58: 0 | AE58: 0 | AF58: 0 | AG58: 0 | AH58: 0 | AI58: 0 | AJ58: 0 | AK58: 0 | AL58: 0 | AM58: 0
A59: 5927 | B59: Metering | C59: Replacement of Ferrari Disc Pulsing Meters | D59: PS Network Asset Replacement | E59: Input_Prog_Commit | F59: 0 | G59: 2014 | H59: 0 | I59: 0 | J59: 0 | K59: 0 | L59: 0 | M59: 228462.9996 | N59: 152308.6664 | O59: 262309.3699 | P59: 169231.8516 | Q59: 0 | R59: 0 | S59: 1 | T59: 0 | U59: 0 | V59: 0 | W59: 0 | X59: 0 | Y59: 0 | Z59: 0 | AA59: 1 | AB59: 0 | AC59: 0 | AD59: 0 | AE59: 0 | AF59: 0 | AG59: 0 | AH59: 0 | AI59: 0 | AJ59: 0 | AK59: 0 | AL59: 0 | AM59: 0
A60: 6296 | B60: Metering | C60: Upgrade Site Metering Schemes | D60: PS Network Asset Replacement | E60: Input_Prog_Commit | F60: 0 | G60: 2014 | H60: 0 | I60: 0 | J60: 0 | K60: 0 | L60: 0 | M60: 362757.9974 | N60: 483677.3299 | O60: 45015.9075 | P60: 606412.2498 | Q60: 0 | R60: 0 | S60: 1 | T60: 0 | U60: 0 | V60: 0 | W60: 0 | X60: 0 | Y60: 0 | Z60: 0 | AA60: 1 | AB60: 0 | AC60: 0 | AD60: 0 | AE60: 0 | AF60: 0 | AG60: 0 | AH60: 0 | AI60: 0 | AJ60: 0 | AK60: 0 | AL60: 0 | AM60: 0
A61: 0 | B61: Metering | C61: Network Asset Replacement | D61: PS Network Asset Replacement | E61: Input_Prog_Commit | F61: 0 | G61: 2013 | H61: 1224175.035 | I61: 727800.6411 | J61: 0 | K61: 0 | L61: 0 | M61: 0 | N61: 0 | O61: 0 | P61: 0 | Q61: 0 | R61: 1 | S61: 0 | T61: 0 | U61: 0 | V61: 0 | W61: 0 | X61: 0 | Y61: 0 | Z61: =ABS(1-SUM(Q61:Y61)) -> 0 | AA61: 1 | AB61: 0 | AC61: 0 | AD61: 0 | AE61: 0 | AF61: 0 | AG61: 0 | AH61: 0 | AI61: 0 | AJ61: 0 | AK61: 0 | AL61: 0 | AM61: 0
A62: 0 | B62: Metering | C62: Network Asset Replacement | D62: PS Network Asset Replacement | E62: Input_Prog_Commit | F62: 0 | G62: 2013 | H62: 0 | I62: 0 | J62: 1731342.577 | K62: 3015697.081 | L62: 0 | M62: 0 | N62: 0 | O62: 0 | P62: 0 | Q62: 0 | R62: 0 | S62: 1 | T62: 0 | U62: 0 | V62: 0 | W62: 0 | X62: 0 | Y62: 0 | Z62: 0 | AA62: 1 | AB62: 0 | AC62: 0 | AD62: 0 | AE62: 0 | AF62: 0 | AG62: 0 | AH62: 0 | AI62: 0 | AJ62: 0 | AK62: 0 | AL62: 0 | AM62: 0
A63: 4946 | B63: Protection | C63: Replacement of H-Type Relays - Key Metro Sites | D63: PS Network Asset Replacement | E63: Input_Prog_Commit | F63: 0 | G63: 2014 | H63: 0 | I63: 0 | J63: 0 | K63: 0 | L63: 0 | M63: 0 | N63: 0 | O63: 0 | P63: 0 | Q63: 0 | R63: 0 | S63: 1 | T63: 0 | U63: 0 | V63: 0 | W63: 0 | X63: 0 | Y63: 0 | Z63: 0 | AA63: 1 | AB63: 0 | AC63: 0 | AD63: 0 | AE63: 0 | AF63: 0 | AG63: 0 | AH63: 0 | AI63: 0 | AJ63: 0 | AK63: 0 | AL63: 0 | AM63: 0
A64: 4947 | B64: Protection | C64: Replacement of H-Type Relays - Remaining Sites | D64: PS Network Asset Replacement | E64: Input_Prog_Commit | F64: 0 | G64: 2014 | H64: 0 | I64: 0 | J64: 0 | K64: 0 | L64: 0 | M64: 0 | N64: 0 | O64: 0 | P64: 57500.11916 | Q64: 0 | R64: 0 | S64: 1 | T64: 0 | U64: 0 | V64: 0 | W64: 0 | X64: 0 | Y64: 0 | Z64: 0 | AA64: 1 | AB64: 0 | AC64: 0 | AD64: 0 | AE64: 0 | AF64: 0 | AG64: 0 | AH64: 0 | AI64: 0 | AJ64: 0 | AK64: 0 | AL64: 0 | AM64: 0
A65: 4954 | B65: Protection | C65: Replacement of CSD IMS Fault Recorders | D65: PS Network Asset Replacement | E65: Input_Prog_Commit | F65: 0 | G65: 2014 | H65: 0 | I65: 0 | J65: 0 | K65: 0 | L65: 0 | M65: 0 | N65: 0 | O65: 80944.64507 | P65: 161889.2901 | Q65: 0 | R65: 0 | S65: 1 | T65: 0 | U65: 0 | V65: 0 | W65: 0 | X65: 0 | Y65: 0 | Z65: 0 | AA65: 1 | AB65: 0 | AC65: 0 | AD65: 0 | AE65: 0 | AF65: 0 | AG65: 0 | AH65: 0 | AI65: 0 | AJ65: 0 | AK65: 0 | AL65: 0 | AM65: 0
A66: 4957 | B66: Protection | C66: Replacement of TS Relays | D66: PS Network Asset Replacement | E66: Input_Prog_Commit | F66: 0 | G66: 2014 | H66: 0 | I66: 0 | J66: 0 | K66: 0 | L66: 0 | M66: 0 | N66: 0 | O66: 0 | P66: 0 | Q66: 0 | R66: 0 | S66: 1 | T66: 0 | U66: 0 | V66: 0 | W66: 0 | X66: 0 | Y66: 0 | Z66: 0 | AA66: 1 | AB66: 0 | AC66: 0 | AD66: 0 | AE66: 0 | AF66: 0 | AG66: 0 | AH66: 0 | AI66: 0 | AJ66: 0 | AK66: 0 | AL66: 0 | AM66: 0
A67: 4960 | B67: Protection | C67: Replacement of THS Relays | D67: PS Network Asset Replacement | E67: Input_Prog_Commit | F67: 0 | G67: 2014 | H67: 0 | I67: 0 | J67: 0 | K67: 0 | L67: 0 | M67: 468415.5692 | N67: 112974.962 | O67: 171665.1437 | P67: 0 | Q67: 0 | R67: 0 | S67: 1 | T67: 0 | U67: 0 | V67: 0 | W67: 0 | X67: 0 | Y67: 0 | Z67: 0 | AA67: 1 | AB67: 0 | AC67: 0 | AD67: 0 | AE67: 0 | AF67: 0 | AG67: 0 | AH67: 0 | AI67: 0 | AJ67: 0 | AK67: 0 | AL67: 0 | AM67: 0
A68: 4961 | B68: Protection | C68: Replacement of THR Relays | D68: PS Network Asset Replacement | E68: Input_Prog_Commit | F68: 0 | G68: 2014 | H68: 0 | I68: 0 | J68: 0 | K68: 0 | L68: 0 | M68: 0 | N68: 1796398.068 | O68: 745529.8809 | P68: 623120.2505 | Q68: 0 | R68: 0 | S68: 1 | T68: 0 | U68: 0 | V68: 0 | W68: 0 | X68: 0 | Y68: 0 | Z68: 0 | AA68: 1 | AB68: 0 | AC68: 0 | AD68: 0 | AE68: 0 | AF68: 0 | AG68: 0 | AH68: 0 | AI68: 0 | AJ68: 0 | AK68: 0 | AL68: 0 | AM68: 0
A69: 4962 | B69: Protection | C69: Replacement of YTG Relays | D69: PS Network Asset Replacement | E69: Input_Prog_Commit | F69: 0 | G69: 2014 | H69: 0 | I69: 0 | J69: 0 | K69: 0 | L69: 0 | M69: 958743.5939 | N69: 1458549.844 | O69: 1194833.565 | P69: 761074.3134 | Q69: 0 | R69: 0 | S69: 1 | T69: 0 | U69: 0 | V69: 0 | W69: 0 | X69: 0 | Y69: 0 | Z69: 0 | AA69: 1 | AB69: 0 | AC69: 0 | AD69: 0 | AE69: 0 | AF69: 0 | AG69: 0 | AH69: 0 | AI69: 0 | AJ69: 0 | AK69: 0 | AL69: 0 | AM69: =ABS(1-SUM(AA69:AL69)) -> 0
A70: 5150 | B70: Protection | C70: Replacement of RAZFE Relays | D70: PS Network Asset Replacement | E70: Input_Prog_Commit | F70: 0 | G70: 2014 | H70: 0 | I70: 0 | J70: 0 | K70: 0 | L70: 0 | M70: 0 | N70: 230165.9141 | O70: 111546.9233 | P70: 111546.9233 | Q70: 0 | R70: 0 | S70: 1 | T70: 0 | U70: 0 | V70: 0 | W70: 0 | X70: 0 | Y70: 0 | Z70: 0 | AA70: 1 | AB70: 0 | AC70: 0 | AD70: 0 | AE70: 0 | AF70: 0 | AG70: 0 | AH70: 0 | AI70: 0 | AJ70: 0 | AK70: 0 | AL70: 0 | AM70: 0
A71: 5541 | B71: Protection | C71: Replacement of Optimho Relays | D71: PS Network Asset Replacement | E71: Input_Prog_Commit | F71: 0 | G71: 2014 | H71: 0 | I71: 0 | J71: 0 | K71: 0 | L71: 0 | M71: 0 | N71: 228273.8192 | O71: 113273.5808 | P71: 726619.4675 | Q71: 0 | R71: 0 | S71: 1 | T71: 0 | U71: 0 | V71: 0 | W71: 0 | X71: 0 | Y71: 0 | Z71: 0 | AA71: 1 | AB71: 0 | AC71: 0 | AD71: 0 | AE71: 0 | AF71: 0 | AG71: 0 | AH71: 0 | AI71: 0 | AJ71: 0 | AK71: 0 | AL71: 0 | AM71: 0
A72: 5921 | B72: Protection | C72: Replacement of D202,D203,D21SE,D22SE Transformer Differential Relays | D72: PS Network Asset Replacement | E72: Input_Prog_Commit | F72: 0 | G72: 2014 | H72: 0 | I72: 0 | J72: 0 | K72: 0 | L72: 0 | M72: 235428.4722 | N72: 147716.7126 | O72: 292592.5053 | P72: 135606.225 | Q72: 0 | R72: 0 | S72: 1 | T72: 0 | U72: 0 | V72: 0 | W72: 0 | X72: 0 | Y72: 0 | Z72: 0 | AA72: 1 | AB72: 0 | AC72: 0 | AD72: 0 | AE72: 0 | AF72: 0 | AG72: 0 | AH72: 0 | AI72: 0 | AJ72: 0 | AK72: 0 | AL72: 0 | AM72: 0
A73: 5922 | B73: Protection | C73: Replacement of DB Transformer Differential Relays | D73: PS Network Asset Replacement | E73: Input_Prog_Commit | F73: 0 | G73: 2014 | H73: 0 | I73: 0 | J73: 0 | K73: 0 | L73: 0 | M73: 305404.7448 | N73: 649186.3391 | O73: 783491.5606 | P73: 206399.7675 | Q73: 0 | R73: 0 | S73: 1 | T73: 0 | U73: 0 | V73: 0 | W73: 0 | X73: 0 | Y73: 0 | Z73: 0 | AA73: 1 | AB73: 0 | AC73: 0 | AD73: 0 | AE73: 0 | AF73: 0 | AG73: 0 | AH73: 0 | AI73: 0 | AJ73: 0 | AK73: 0 | AL73: 0 | AM73: 0
A74: 5929 | B74: Protection | C74: Replacement of Feeder OC & EF Protection | D74: PS Network Asset Replacement | E74: Input_Prog_Commit | F74: 0 | G74: 2014 | H74: 0 | I74: 0 | J74: 0 | K74: 0 | L74: 0 | M74: 208949.616 | N74: 111546.9233 | O74: 55773.46166 | P74: 278867.3083 | Q74: 0 | R74: 0 | S74: 1 | T74: 0 | U74: 0 | V74: 0 | W74: 0 | X74: 0 | Y74: 0 | Z74: 0 | AA74: 1 | AB74: 0 | AC74: 0 | AD74: 0 | AE74: 0 | AF74: 0 | AG74: 0 | AH74: 0 | AI74: 0 | AJ74: 0 | AK74: 0 | AL74: 0 | AM74: 0
A75: 6291 | B75: Protection | C75: GPS Clocks | D75: PS Network Asset Replacement | E75: Input_Prog_Commit | F75: 0 | G75: 2014 | H75: 0 | I75: 0 | J75: 0 | K75: 0 | L75: 0 | M75: 141224.396 | N75: 141224.396 | O75: 112979.5168 | P75: 84734.63762 | Q75: 0 | R75: 0 | S75: 1 | T75: 0 | U75: 0 | V75: 0 | W75: 0 | X75: 0 | Y75: 0 | Z75: 0 | AA75: 1 | AB75: 0 | AC75: 0 | AD75: 0 | AE75: 0 | AF75: 0 | AG75: 0 | AH75: 0 | AI75: 0 | AJ75: 0 | AK75: 0 | AL75: 0 | AM75: 0
A76: 6351 | B76: Protection | C76: Replacement of Siemens 7SA502 & 7SA511 Relays | D76: PS Network Asset Replacement | E76: Input_Prog_Commit | F76: 0 | G76: 2014 | H76: 0 | I76: 0 | J76: 0 | K76: 0 | L76: 0 | M76: 0 | N76: 0 | O76: 0 | P76: 0 | Q76: 0 | R76: 0 | S76: 1 | T76: 0 | U76: 0 | V76: 0 | W76: 0 | X76: 0 | Y76: 0 | Z76: 0 | AA76: 1 | AB76: 0 | AC76: 0 | AD76: 0 | AE76: 0 | AF76: 0 | AG76: 0 | AH76: 0 | AI76: 0 | AJ76: 0 | AK76: 0 | AL76: 0 | AM76: 0
A77: 6353 | B77: Protection | C77: Replacement of HO2 Pilot Wire Relays | D77: PS Network Asset Replacement | E77: Input_Prog_Commit | F77: 0 | G77: 2014 | H77: 0 | I77: 0 | J77: 0 | K77: 0 | L77: 0 | M77: 296480.5433 | N77: 0 | O77: 0 | P77: 0 | Q77: 0 | R77: 0 | S77: 1 | T77: 0 | U77: 0 | V77: 0 | W77: 0 | X77: 0 | Y77: 0 | Z77: 0 | AA77: 1 | AB77: 0 | AC77: 0 | AD77: 0 | AE77: 0 | AF77: 0 | AG77: 0 | AH77: 0 | AI77: 0 | AJ77: 0 | AK77: 0 | AL77: 0 | AM77: 0
A78: 6612 | B78: Protection | C78: Relay Replacement For 940/941 132kV Feeders | D78: PS Network Asset Replacement | E78: Input_Prog_Commit | F78: 0 | G78: 2013 | H78: -38.54983583 | I78: 0 | J78: 0 | K78: 0 | L78: 0 | M78: 0 | N78: 0 | O78: 0 | P78: 0 | Q78: 0 | R78: 0 | S78: 1 | T78: 0 | U78: 0 | V78: 0 | W78: 0 | X78: 0 | Y78: 0 | Z78: 0 | AA78: 1 | AB78: 0 | AC78: 0 | AD78: 0 | AE78: 0 | AF78: 0 | AG78: 0 | AH78: 0 | AI78: 0 | AJ78: 0 | AK78: 0 | AL78: 0 | AM78: 0
A79: 6725 | B79: Protection | C79: Replacement of MBCI Pilot Wire Relays | D79: PS Network Asset Replacement | E79: Input_Prog_Commit | F79: 0 | G79: 2014 | H79: 0 | I79: 0 | J79: 0 | K79: 0 | L79: 0 | M79: 168563.895 | N79: 0 | O79: 0 | P79: 0 | Q79: 0 | R79: 0 | S79: 1 | T79: 0 | U79: 0 | V79: 0 | W79: 0 | X79: 0 | Y79: 0 | Z79: 0 | AA79: 1 | AB79: 0 | AC79: 0 | AD79: 0 | AE79: 0 | AF79: 0 | AG79: 0 | AH79: 0 | AI79: 0 | AJ79: 0 | AK79: 0 | AL79: 0 | AM79: 0
A80: 6865 | B80: Protection | C80: Replacement of Quadramho Relays | D80: PS Network Asset Replacement | E80: Input_Prog_Commit | F80: 0 | G80: 2014 | H80: 0 | I80: 0 | J80: 0 | K80: 0 | L80: 0 | M80: 167086.8178 | N80: 523699.9156 | O80: 115000.2383 | P80: 1226573.554 | Q80: 0 | R80: 0 | S80: 1 | T80: 0 | U80: 0 | V80: 0 | W80: 0 | X80: 0 | Y80: 0 | Z80: 0 | AA80: 1 | AB80: 0 | AC80: 0 | AD80: 0 | AE80: 0 | AF80: 0 | AG80: 0 | AH80: 0 | AI80: 0 | AJ80: 0 | AK80: 0 | AL80: 0 | AM80: 0
A81: 6866 | B81: Protection | C81: Replacement of 7SA513 Relays | D81: PS Network Asset Replacement | E81: Input_Prog_Commit | F81: 0 | G81: 2014 | H81: 0 | I81: 0 | J81: 0 | K81: 0 | L81: 0 | M81: 290000.4767 | N81: 0 | O81: 0 | P81: 407646.8034 | Q81: 0 | R81: 0 | S81: 1 | T81: 0 | U81: 0 | V81: 0 | W81: 0 | X81: 0 | Y81: 0 | Z81: 0 | AA81: 1 | AB81: 0 | AC81: 0 | AD81: 0 | AE81: 0 | AF81: 0 | AG81: 0 | AH81: 0 | AI81: 0 | AJ81: 0 | AK81: 0 | AL81: 0 | AM81: 0
A82: 7576 | B82: Protection | C82: Remote Interrogation of Protection Relays | D82: PS Network Asset Replacement | E82: Input_Prog_Commit | F82: 0 | G82: 2014 | H82: 0 | I82: 0 | J82: 0 | K82: 0 | L82: 0 | M82: 0 | N82: 0 | O82: 0 | P82: 0 | Q82: 0 | R82: 0 | S82: 1 | T82: 0 | U82: 0 | V82: 0 | W82: 0 | X82: 0 | Y82: 0 | Z82: 0 | AA82: 1 | AB82: 0 | AC82: 0 | AD82: 0 | AE82: 0 | AF82: 0 | AG82: 0 | AH82: 0 | AI82: 0 | AJ82: 0 | AK82: 0 | AL82: 0 | AM82: 0
A83: 7746 | B83: Protection | C83: Replacement of EDMI Fault Recorders | D83: PS Network Asset Replacement | E83: Input_Prog_Commit | F83: 0 | G83: 2014 | H83: 0 | I83: 0 | J83: 0 | K83: 0 | L83: 0 | M83: 0 | N83: 0 | O83: 0 | P83: 0 | Q83: 0 | R83: 0 | S83: 1 | T83: 0 | U83: 0 | V83: 0 | W83: 0 | X83: 0 | Y83: 0 | Z83: 0 | AA83: 1 | AB83: 0 | AC83: 0 | AD83: 0 | AE83: 0 | AF83: 0 | AG83: 0 | AH83: 0 | AI83: 0 | AJ83: 0 | AK83: 0 | AL83: 0 | AM83: 0
A84: 7747 | B84: Protection | C84: Install Fault Recorders | D84: PS Network Asset Replacement | E84: Input_Prog_Commit | F84: 0 | G84: 2014 | H84: 0 | I84: 0 | J84: 0 | K84: 0 | L84: 0 | M84: 509476.5002 | N84: 0 | O84: 0 | P84: 80944.64507 | Q84: 0 | R84: 0 | S84: 1 | T84: 0 | U84: 0 | V84: 0 | W84: 0 | X84: 0 | Y84: 0 | Z84: 0 | AA84: 1 | AB84: 0 | AC84: 0 | AD84: 0 | AE84: 0 | AF84: 0 | AG84: 0 | AH84: 0 | AI84: 0 | AJ84: 0 | AK84: 0 | AL84: 0 | AM84: 0
A85: 7750 | B85: Protection | C85: Replacement of 7SD511 Relays | D85: PS Network Asset Replacement | E85: Input_Prog_Commit | F85: 0 | G85: 2014 | H85: 0 | I85: 0 | J85: 0 | K85: 0 | L85: 0 | M85: 181849.815 | N85: 0 | O85: 115000.2383 | P85: 207124.4531 | Q85: 0 | R85: 0 | S85: 1 | T85: 0 | U85: 0 | V85: 0 | W85: 0 | X85: 0 | Y85: 0 | Z85: 0 | AA85: 1 | AB85: 0 | AC85: 0 | AD85: 0 | AE85: 0 | AF85: 0 | AG85: 0 | AH85: 0 | AI85: 0 | AJ85: 0 | AK85: 0 | AL85: 0 | AM85: 0
A86: 8266 | B86: Protection | C86: Efficient Relay Replacements | D86: PS Network Asset Replacement | E86: Input_Prog_Commit | F86: 0 | G86: 2014 | H86: 0 | I86: 0 | J86: 0 | K86: 0 | L86: 0 | M86: 72437.89636 | N86: 0 | O86: 0 | P86: 0 | Q86: 0 | R86: 0 | S86: 1 | T86: 0 | U86: 0 | V86: 0 | W86: 0 | X86: 0 | Y86: 0 | Z86: 0 | AA86: 1 | AB86: 0 | AC86: 0 | AD86: 0 | AE86: 0 | AF86: 0 | AG86: 0 | AH86: 0 | AI86: 0 | AJ86: 0 | AK86: 0 | AL86: 0 | AM86: 0
A87: 0 | B87: Protection | C87: Network Asset Replacement | D87: PS Network Asset Replacement | E87: Input_Prog_Commit | F87: 0 | G87: 2013 | H87: 3935376.888 | I87: 5300873.884 | J87: 0 | K87: 0 | L87: 0 | M87: 0 | N87: 0 | O87: 0 | P87: 0 | Q87: 0 | R87: 1 | S87: 0 | T87: 0 | U87: 0 | V87: 0 | W87: 0 | X87: 0 | Y87: 0 | Z87: 0 | AA87: 1 | AB87: 0 | AC87: 0 | AD87: 0 | AE87: 0 | AF87: 0 | AG87: 0 | AH87: 0 | AI87: 0 | AJ87: 0 | AK87: 0 | AL87: 0 | AM87: 0
A88: 0 | B88: Protection | C88: Network Asset Replacement | D88: PS Network Asset Replacement | E88: Input_Prog_Commit | F88: 0 | G88: 2013 | H88: 0 | I88: 0 | J88: 6892164.523 | K88: 7010155.611 | L88: 7395546.255 | M88: 0 | N88: 0 | O88: 0 | P88: 0 | Q88: 0 | R88: 0 | S88: 1 | T88: 0 | U88: 0 | V88: 0 | W88: 0 | X88: 0 | Y88: 0 | Z88: 0 | AA88: 1 | AB88: 0 | AC88: 0 | AD88: 0 | AE88: 0 | AF88: 0 | AG88: 0 | AH88: 0 | AI88: 0 | AJ88: 0 | AK88: 0 | AL88: 0 | AM88: 0
A89: 6702 | B89: SCADA | C89: Data Centre Infrastructure | D89: PS Network Asset Replacement | E89: Input_Prog_Commit | F89: 0 | G89: 2014 | H89: 0 | I89: 0 | J89: 0 | K89: 0 | L89: 0 | M89: 0 | N89: 0 | O89: 0 | P89: 0 | Q89: 0 | R89: 0 | S89: 0 | T89: 0 | U89: 0 | V89: 0 | W89: 0 | X89: 0 | Y89: 1 | Z89: 0 | AA89: 1 | AB89: 0 | AC89: 0 | AD89: 0 | AE89: 0 | AF89: 0 | AG89: 0 | AH89: 0 | AI89: 0 | AJ89: 0 | AK89: 0 | AL89: 0 | AM89: 0
A90: 7910 | B90: SCADA | C90: Sydney North SCADA Fibre Marshalling Kiosk | D90: PS Network Asset Replacement | E90: Input_Prog_Commit | F90: 0 | G90: 2013 | H90: 0 | I90: 0 | J90: 0 | K90: 141436.2608 | L90: 3756731.568 | M90: 0 | N90: 0 | O90: 0 | P90: 0 | Q90: 0 | R90: 0.3 | S90: 0.25 | T90: 0.45 | U90: 0 | V90: 0 | W90: 0 | X90: 0 | Y90: 0 | Z90: 0 | AA90: 1 | AB90: 0 | AC90: 0 | AD90: 0 | AE90: 0 | AF90: 0 | AG90: 0 | AH90: 0 | AI90: 0 | AJ90: 0 | AK90: 0 | AL90: 0 | AM90: 0
A91: 0 | B91: SCADA | C91: Network Asset Replacement | D91: PS Network Asset Replacement | E91: Input_Prog_Commit | F91: 0 | G91: 2013 | H91: 1481023.335 | I91: 1669809.552 | J91: 1505378.863 | K91: 875306.6495 | L91: 0 | M91: 0 | N91: 0 | O91: 0 | P91: 0 | Q91: 0 | R91: 0 | S91: 0 | T91: 1 | U91: 0 | V91: 0 | W91: 0 | X91: 0 | Y91: 0 | Z91: 0 | AA91: 1 | AB91: 0 | AC91: 0 | AD91: 0 | AE91: 0 | AF91: 0 | AG91: 0 | AH91: 0 | AI91: 0 | AJ91: 0 | AK91: 0 | AL91: 0 | AM91: 0
A92: 4882 | B92: Substations | C92: Transformer and Reactor Life Extension | D92: PS Network Asset Replacement | E92: Input_Prog_Commit | F92: 0 | G92: 2013 | H92: 0 | I92: 45908.49481 | J92: 0 | K92: 0 | L92: 0 | M92: 0 | N92: 0 | O92: 0 | P92: 0 | Q92: 0 | R92: 0.95 | S92: 0.05 | T92: 0 | U92: 0 | V92: 0 | W92: 0 | X92: 0 | Y92: 0 | Z92: 0 | AA92: 1 | AB92: 0 | AC92: 0 | AD92: 0 | AE92: 0 | AF92: 0 | AG92: 0 | AH92: 0 | AI92: 0 | AJ92: 0 | AK92: 0 | AL92: 0 | AM92: 0
A93: 4882 | B93: Substations | C93: Transformer and Reactor Life Extension | D93: PS Network Asset Replacement | E93: Input_Prog_Commit | F93: 0 | G93: 2014 | H93: 0 | I93: 0 | J93: 0 | K93: 0 | L93: 0 | M93: 1792109.36 | N93: 1454874.814 | O93: 2075718.907 | P93: 2246525.903 | Q93: 0 | R93: 1 | S93: 0 | T93: 0 | U93: 0 | V93: 0 | W93: 0 | X93: 0 | Y93: 0 | Z93: 0 | AA93: 1 | AB93: 0 | AC93: 0 | AD93: 0 | AE93: 0 | AF93: 0 | AG93: 0 | AH93: 0 | AI93: 0 | AJ93: 0 | AK93: 0 | AL93: 0 | AM93: 0
A94: 4884 | B94: Substations | C94: Unplanned Transformer and Reactor Replacement | D94: PS Network Asset Replacement | E94: Input_Prog_Commit | F94: 0 | G94: 2013 | H94: 0 | I94: 0 | J94: 0 | K94: -4471.878686 | L94: 0 | M94: 0 | N94: 0 | O94: 0 | P94: 0 | Q94: 0 | R94: 0.95 | S94: 0.05 | T94: 0 | U94: 0 | V94: 0 | W94: 0 | X94: 0 | Y94: 0 | Z94: 0 | AA94: 1 | AB94: 0 | AC94: 0 | AD94: 0 | AE94: 0 | AF94: 0 | AG94: 0 | AH94: 0 | AI94: 0 | AJ94: 0 | AK94: 0 | AL94: 0 | AM94: 0
A95: 4904 | B95: Substations | C95: Replacement of ABB 132kV HLD CBs | D95: PS Network Asset Replacement | E95: Input_Prog_Commit | F95: 0 | G95: 2014 | H95: 0 | I95: 0 | J95: 0 | K95: 0 | L95: 0 | M95: 352393.8834 | N95: 626116.5335 | O95: 939174.8003 | P95: 156529.1334 | Q95: 0 | R95: 1 | S95: 0 | T95: 0 | U95: 0 | V95: 0 | W95: 0 | X95: 0 | Y95: 0 | Z95: 0 | AA95: 1 | AB95: 0 | AC95: 0 | AD95: 0 | AE95: 0 | AF95: 0 | AG95: 0 | AH95: 0 | AI95: 0 | AJ95: 0 | AK95: 0 | AL95: 0 | AM95: 0
A96: 4905 | B96: Substations | C96: Replacement of DELLE 66kV HPGE CBs | D96: PS Network Asset Replacement | E96: Input_Prog_Commit | F96: 0 | G96: 2014 | H96: 0 | I96: 0 | J96: 0 | K96: 0 | L96: 0 | M96: 45000 | N96: 0 | O96: 1285350 | P96: 233700 | Q96: 0 | R96: 1 | S96: 0 | T96: 0 | U96: 0 | V96: 0 | W96: 0 | X96: 0 | Y96: 0 | Z96: 0 | AA96: 1 | AB96: 0 | AC96: 0 | AD96: 0 | AE96: 0 | AF96: 0 | AG96: 0 | AH96: 0 | AI96: 0 | AJ96: 0 | AK96: 0 | AL96: 0 | AM96: 0
A97: 4906 | B97: Substations | C97: Replacement of Instrument Transformers with No Sampling Point | D97: PS Network Asset Replacement | E97: Input_Prog_Commit | F97: 0 | G97: 2014 | H97: 0 | I97: 0 | J97: 0 | K97: 0 | L97: 0 | M97: 47205.61417 | N97: 283233.685 | O97: 519262.5708 | P97: 188823 | Q97: 0 | R97: 1 | S97: 0 | T97: 0 | U97: 0 | V97: 0 | W97: 0 | X97: 0 | Y97: 0 | Z97: 0 | AA97: 1 | AB97: 0 | AC97: 0 | AD97: 0 | AE97: 0 | AF97: 0 | AG97: 0 | AH97: 0 | AI97: 0 | AJ97: 0 | AK97: 0 | AL97: 0 | AM97: 0
A98: 4907 | B98: Substations | C98: Replacement of Substation Batteries - 50V As Required | D98: PS Network Asset Replacement | E98: Input_Prog_Commit | F98: 0 | G98: 2014 | H98: 0 | I98: 0 | J98: 0 | K98: 0 | L98: 0 | M98: 123318 | N98: 64787.25 | O98: 166722.954 | P98: 108192.204 | Q98: 0 | R98: 1 | S98: 0 | T98: 0 | U98: 0 | V98: 0 | W98: 0 | X98: 0 | Y98: 0 | Z98: 0 | AA98: 1 | AB98: 0 | AC98: 0 | AD98: 0 | AE98: 0 | AF98: 0 | AG98: 0 | AH98: 0 | AI98: 0 | AJ98: 0 | AK98: 0 | AL98: 0 | AM98: 0
A99: 4908 | B99: Substations | C99: Replacement of Substation Batteries - 110V As Required | D99: PS Network Asset Replacement | E99: Input_Prog_Commit | F99: 0 | G99: 2014 | H99: 0 | I99: 0 | J99: 0 | K99: 0 | L99: 0 | M99: 136481.1075 | N99: 41669.68945 | O99: 131234.0683 | P99: 131234.0683 | Q99: 0 | R99: 1 | S99: 0 | T99: 0 | U99: 0 | V99: 0 | W99: 0 | X99: 0 | Y99: 0 | Z99: 0 | AA99: 1 | AB99: 0 | AC99: 0 | AD99: 0 | AE99: 0 | AF99: 0 | AG99: 0 | AH99: 0 | AI99: 0 | AJ99: 0 | AK99: 0 | AL99: 0 | AM99: 0
A100: 4909 | B100: Substations | C100: Replacement of Substation Batteries - 240V As Required | D100: PS Network Asset Replacement | E100: Input_Prog_Commit | F100: 0 | G100: 2014 | H100: 0 | I100: 0 | J100: 0 | K100: 0 | L100: 0 | M100: 0 | N100: 0 | O100: 0 | P100: 0 | Q100: 0 | R100: 1 | S100: 0 | T100: 0 | U100: 0 | V100: 0 | W100: 0 | X100: 0 | Y100: 0 | Z100: 0 | AA100: 1 | AB100: 0 | AC100: 0 | AD100: 0 | AE100: 0 | AF100: 0 | AG100: 0 | AH100: 0 | AI100: 0 | AJ100: 0 | AK100: 0 | AL100: 0 | AM100: 0
A101: 4910 | B101: Substations | C101: Replacement of High DGA Instrument Transformers 132kV As Required | D101: PS Network Asset Replacement | E101: Input_Prog_Commit | F101: 0 | G101: 2014 | H101: 0 | I101: 0 | J101: 0 | K101: 0 | L101: 0 | M101: 354290.8773 | N101: 1206851.646 | O101: 221693.8773 | P101: 226194 | Q101: 0 | R101: 1 | S101: 0 | T101: 0 | U101: 0 | V101: 0 | W101: 0 | X101: 0 | Y101: 0 | Z101: 0 | AA101: 1 | AB101: 0 | AC101: 0 | AD101: 0 | AE101: 0 | AF101: 0 | AG101: 0 | AH101: 0 | AI101: 0 | AJ101: 0 | AK101: 0 | AL101: 0 | AM101: 0
A102: 4914 | B102: Substations | C102: Replacement of Isolators & Earth Switches > 220kV | D102: PS Network Asset Replacement | E102: Input_Prog_Commit | F102: 0 | G102: 2014 | H102: 0 | I102: 0 | J102: 0 | K102: 0 | L102: 0 | M102: 425242.6902 | N102: 425242.6902 | O102: 425242.6902 | P102: 425242.6902 | Q102: 0 | R102: 1 | S102: 0 | T102: 0 | U102: 0 | V102: 0 | W102: 0 | X102: 0 | Y102: 0 | Z102: 0 | AA102: 1 | AB102: 0 | AC102: 0 | AD102: 0 | AE102: 0 | AF102: 0 | AG102: 0 | AH102: 0 | AI102: 0 | AJ102: 0 | AK102: 0 | AL102: 0 | AM102: 0
A103: 4915 | B103: Substations | C103: Replacement of Isolators & Earth Switches 132kV | D103: PS Network Asset Replacement | E103: Input_Prog_Commit | F103: 0 | G103: 2014 | H103: 0 | I103: 0 | J103: 0 | K103: 0 | L103: 0 | M103: 127584.4961 | N103: 127584.4961 | O103: 127584.4961 | P103: 127584.4961 | Q103: 0 | R103: 1 | S103: 0 | T103: 0 | U103: 0 | V103: 0 | W103: 0 | X103: 0 | Y103: 0 | Z103: 0 | AA103: 1 | AB103: 0 | AC103: 0 | AD103: 0 | AE103: 0 | AF103: 0 | AG103: 0 | AH103: 0 | AI103: 0 | AJ103: 0 | AK103: 0 | AL103: 0 | AM103: 0
A104: 4920 | B104: Substations | C104: Condition Monitoring DGA | D104: PS Network Asset Replacement | E104: Input_Prog_Commit | F104: 0 | G104: 2014 | H104: 0 | I104: 0 | J104: 0 | K104: 0 | L104: 0 | M104: 0 | N104: 0 | O104: 0 | P104: 0 | Q104: 0 | R104: 1 | S104: 0 | T104: 0 | U104: 0 | V104: 0 | W104: 0 | X104: 0 | Y104: 0 | Z104: 0 | AA104: 1 | AB104: 0 | AC104: 0 | AD104: 0 | AE104: 0 | AF104: 0 | AG104: 0 | AH104: 0 | AI104: 0 | AJ104: 0 | AK104: 0 | AL104: 0 | AM104: 0
A105: 4928 | B105: Substations | C105: Replacement of Current Transformers | D105: PS Network Asset Replacement | E105: Input_Prog_Commit | F105: 0 | G105: 2014 | H105: 0 | I105: 0 | J105: 0 | K105: 0 | L105: 0 | M105: 306903.8029 | N105: 86837.54238 | O105: 347350.1695 | P105: 141616.8425 | Q105: 0 | R105: 1 | S105: 0 | T105: 0 | U105: 0 | V105: 0 | W105: 0 | X105: 0 | Y105: 0 | Z105: 0 | AA105: 1 | AB105: 0 | AC105: 0 | AD105: 0 | AE105: 0 | AF105: 0 | AG105: 0 | AH105: 0 | AI105: 0 | AJ105: 0 | AK105: 0 | AL105: 0 | AM105: 0
A106: 4929 | B106: Substations | C106: Replacement of Ducon CTs and CVTs | D106: PS Network Asset Replacement | E106: Input_Prog_Commit | F106: 0 | G106: 2014 | H106: 0 | I106: 0 | J106: 0 | K106: 0 | L106: 0 | M106: 396705.75 | N106: 0 | O106: 0 | P106: 0 | Q106: 0 | R106: 1 | S106: 0 | T106: 0 | U106: 0 | V106: 0 | W106: 0 | X106: 0 | Y106: 0 | Z106: 0 | AA106: 1 | AB106: 0 | AC106: 0 | AD106: 0 | AE106: 0 | AF106: 0 | AG106: 0 | AH106: 0 | AI106: 0 | AJ106: 0 | AK106: 0 | AL106: 0 | AM106: 0
A107: 5085 | B107: Substations | C107: Replacement of High DGA Instrument Transformers > 220kV As Required | D107: PS Network Asset Replacement | E107: Input_Prog_Commit | F107: 0 | G107: 2014 | H107: 0 | I107: 0 | J107: 0 | K107: 0 | L107: 0 | M107: 752438.8135 | N107: 902925 | O107: 752437.5 | P107: 1048913.16 | Q107: 0 | R107: 1 | S107: 0 | T107: 0 | U107: 0 | V107: 0 | W107: 0 | X107: 0 | Y107: 0 | Z107: 0 | AA107: 1 | AB107: 0 | AC107: 0 | AD107: 0 | AE107: 0 | AF107: 0 | AG107: 0 | AH107: 0 | AI107: 0 | AJ107: 0 | AK107: 0 | AL107: 0 | AM107: 0
A108: 5087 | B108: Substations | C108: Replacement of High DGA Instrument Transformers < 66kV As Required | D108: PS Network Asset Replacement | E108: Input_Prog_Commit | F108: 0 | G108: 2014 | H108: 0 | I108: 0 | J108: 0 | K108: 0 | L108: 0 | M108: 116911.5 | N108: 181401.75 | O108: 135771 | P108: 137346 | Q108: 0 | R108: 1 | S108: 0 | T108: 0 | U108: 0 | V108: 0 | W108: 0 | X108: 0 | Y108: 0 | Z108: 0 | AA108: 1 | AB108: 0 | AC108: 0 | AD108: 0 | AE108: 0 | AF108: 0 | AG108: 0 | AH108: 0 | AI108: 0 | AJ108: 0 | AK108: 0 | AL108: 0 | AM108: 0
A109: 5517 | B109: Substations | C109: Replacement of Merlin Gerin FA2 CBs | D109: PS Network Asset Replacement | E109: Input_Prog_Commit | F109: 0 | G109: 2014 | H109: 0 | I109: 0 | J109: 0 | K109: 0 | L109: 0 | M109: 2104552.645 | N109: 1516293.798 | O109: 303258.7983 | P109: 1516293.847 | Q109: 0 | R109: 1 | S109: 0 | T109: 0 | U109: 0 | V109: 0 | W109: 0 | X109: 0 | Y109: 0 | Z109: 0 | AA109: 1 | AB109: 0 | AC109: 0 | AD109: 0 | AE109: 0 | AF109: 0 | AG109: 0 | AH109: 0 | AI109: 0 | AJ109: 0 | AK109: 0 | AL109: 0 | AM109: 0
A110: 5519 | B110: Substations | C110: Replacement of Sprecher & Schuh CBs | D110: PS Network Asset Replacement | E110: Input_Prog_Commit | F110: 0 | G110: 2014 | H110: 0 | I110: 0 | J110: 0 | K110: 0 | L110: 0 | M110: 0 | N110: 0 | O110: 0 | P110: 0 | Q110: 0 | R110: 1 | S110: 0 | T110: 0 | U110: 0 | V110: 0 | W110: 0 | X110: 0 | Y110: 0 | Z110: 0 | AA110: 1 | AB110: 0 | AC110: 0 | AD110: 0 | AE110: 0 | AF110: 0 | AG110: 0 | AH110: 0 | AI110: 0 | AJ110: 0 | AK110: 0 | AL110: 0 | AM110: 0
A111: 5916 | B111: Substations | C111: Replacement of CBs Approaching Rated Operations | D111: PS Network Asset Replacement | E111: Input_Prog_Commit | F111: 0 | G111: 2014 | H111: 0 | I111: 0 | J111: 0 | K111: 0 | L111: 0 | M111: 0 | N111: 0 | O111: 0 | P111: 0 | Q111: 0 | R111: 1 | S111: 0 | T111: 0 | U111: 0 | V111: 0 | W111: 0 | X111: 0 | Y111: 0 | Z111: 0 | AA111: 1 | AB111: 0 | AC111: 0 | AD111: 0 | AE111: 0 | AF111: 0 | AG111: 0 | AH111: 0 | AI111: 0 | AJ111: 0 | AK111: 0 | AL111: 0 | AM111: 0
A112: 6103 | B112: Substations | C112: Sydney South Substation 330kV Bus Coupling | D112: PS Network Asset Replacement | E112: Input_Prog_Commit | F112: 0 | G112: 2013 | H112: 3410.591406 | I112: 0 | J112: 0 | K112: 0 | L112: 0 | M112: 0 | N112: 0 | O112: 0 | P112: 0 | Q112: 0 | R112: 1 | S112: 0 | T112: 0 | U112: 0 | V112: 0 | W112: 0 | X112: 0 | Y112: 0 | Z112: 0 | AA112: 1 | AB112: 0 | AC112: 0 | AD112: 0 | AE112: 0 | AF112: 0 | AG112: 0 | AH112: 0 | AI112: 0 | AJ112: 0 | AK112: 0 | AL112: 0 | AM112: 0
A113: 6338 | B113: Substations | C113: Security Fence Disturbance Detection | D113: PS Network Asset Replacement | E113: Input_Prog_Commit | F113: 0 | G113: 2014 | H113: 0 | I113: 0 | J113: 0 | K113: 0 | L113: 0 | M113: 0 | N113: 75000 | O113: 0 | P113: 0 | Q113: 0 | R113: 1 | S113: 0 | T113: 0 | U113: 0 | V113: 0 | W113: 0 | X113: 0 | Y113: 0 | Z113: 0 | AA113: 1 | AB113: 0 | AC113: 0 | AD113: 0 | AE113: 0 | AF113: 0 | AG113: 0 | AH113: 0 | AI113: 0 | AJ113: 0 | AK113: 0 | AL113: 0 | AM113: 0
A114: 6340 | B114: Substations | C114: Security Lighting Upgrade | D114: PS Network Asset Replacement | E114: Input_Prog_Commit | F114: 0 | G114: 2014 | H114: 0 | I114: 0 | J114: 0 | K114: 0 | L114: 0 | M114: 93750 | N114: 801782.25 | O114: 447430.5 | P114: 939927.75 | Q114: 0 | R114: 1 | S114: 0 | T114: 0 | U114: 0 | V114: 0 | W114: 0 | X114: 0 | Y114: 0 | Z114: 0 | AA114: 1 | AB114: 0 | AC114: 0 | AD114: 0 | AE114: 0 | AF114: 0 | AG114: 0 | AH114: 0 | AI114: 0 | AJ114: 0 | AK114: 0 | AL114: 0 | AM114: 0
A115: 7308 | B115: Substations | C115: Replacment of Capacitor CBs | D115: PS Network Asset Replacement | E115: Input_Prog_Commit | F115: 0 | G115: 2013 | H115: 265.3714811 | I115: -178.8011113 | J115: 0 | K115: -8677.710704 | L115: 0 | M115: 0 | N115: 0 | O115: 0 | P115: 0 | Q115: 0 | R115: 0.9 | S115: 0.05 | T115: 0.05 | U115: 0 | V115: 0 | W115: 0 | X115: 0 | Y115: 0 | Z115: 0 | AA115: 1 | AB115: 0 | AC115: 0 | AD115: 0 | AE115: 0 | AF115: 0 | AG115: 0 | AH115: 0 | AI115: 0 | AJ115: 0 | AK115: 0 | AL115: 0 | AM115: 0
A116: 7469 | B116: Substations | C116: Liddell 330kV 84 Line Connection | D116: PS Network Asset Replacement | E116: Input_Prog_Commit | F116: 0 | G116: 2014 | H116: 0 | I116: 0 | J116: 0 | K116: 0 | L116: 0 | M116: 0 | N116: 0 | O116: 0 | P116: 0 | Q116: 0 | R116: 1 | S116: 0 | T116: 0 | U116: 0 | V116: 0 | W116: 0 | X116: 0 | Y116: 0 | Z116: 0 | AA116: 1 | AB116: 0 | AC116: 0 | AD116: 0 | AE116: 0 | AF116: 0 | AG116: 0 | AH116: 0 | AI116: 0 | AJ116: 0 | AK116: 0 | AL116: 0 | AM116: 0
A117: 7753 | B117: Substations | C117: SF6 CT Monitoring | D117: PS Network Asset Replacement | E117: Input_Prog_Commit | F117: 0 | G117: 2014 | H117: 0 | I117: 0 | J117: 0 | K117: 0 | L117: 0 | M117: 0 | N117: 0 | O117: 0 | P117: 0 | Q117: 0 | R117: 1 | S117: 0 | T117: 0 | U117: 0 | V117: 0 | W117: 0 | X117: 0 | Y117: 0 | Z117: 0 | AA117: 1 | AB117: 0 | AC117: 0 | AD117: 0 | AE117: 0 | AF117: 0 | AG117: 0 | AH117: 0 | AI117: 0 | AJ117: 0 | AK117: 0 | AL117: 0 | AM117: 0
A118: 8273 | B118: Substations | C118: Online Condition Monitoring | D118: PS Network Asset Replacement | E118: Input_Prog_Commit | F118: 0 | G118: 2014 | H118: 0 | I118: 0 | J118: 0 | K118: 0 | L118: 0 | M118: 45166.50633 | N118: 191845.5331 | O118: 396688.4655 | P118: 94556.78164 | Q118: 0 | R118: 1 | S118: 0 | T118: 0 | U118: 0 | V118: 0 | W118: 0 | X118: 0 | Y118: 0 | Z118: 0 | AA118: 1 | AB118: 0 | AC118: 0 | AD118: 0 | AE118: 0 | AF118: 0 | AG118: 0 | AH118: 0 | AI118: 0 | AJ118: 0 | AK118: 0 | AL118: 0 | AM118: 0
A119: 0 | B119: Substations | C119: Network Asset Replacement | D119: PS Network Asset Replacement | E119: Input_Prog_Commit | F119: 0 | G119: 2013 | H119: -6.035461553 | I119: 31754.39524 | J119: 0 | K119: 2910.953674 | L119: 0 | M119: 0 | N119: 0 | O119: 0 | P119: 0 | Q119: 0 | R119: 1 | S119: 0 | T119: 0 | U119: 0 | V119: 0 | W119: 0 | X119: 0 | Y119: 0 | Z119: 0 | AA119: 1 | AB119: 0 | AC119: 0 | AD119: 0 | AE119: 0 | AF119: 0 | AG119: 0 | AH119: 0 | AI119: 0 | AJ119: 0 | AK119: 0 | AL119: 0 | AM119: 0
A120: 0 | B120: Substations | C120: Network Asset Replacement | D120: PS Network Asset Replacement | E120: Input_Prog_Commit | F120: 0 | G120: 2013 | H120: 4870294.047 | I120: 3855778.586 | J120: 5604808.918 | K120: 5805952.655 | L120: 5156356.325 | M120: 0 | N120: 0 | O120: 0 | P120: 0 | Q120: 0 | R120: 1 | S120: 0 | T120: 0 | U120: 0 | V120: 0 | W120: 0 | X120: 0 | Y120: 0 | Z120: 0 | AA120: 1 | AB120: 0 | AC120: 0 | AD120: 0 | AE120: 0 | AF120: 0 | AG120: 0 | AH120: 0 | AI120: 0 | AJ120: 0 | AK120: 0 | AL120: 0 | AM120: 0
A121: 0 | B121: Substations | C121: Network Asset Replacement | D121: PS Network Asset Replacement | E121: Input_Prog_Commit | F121: 0 | G121: 2013 | H121: 9520017.458 | I121: 7984801.858 | J121: 8658982.699 | K121: 4875642.305 | L121: 4641117.554 | M121: 0 | N121: 0 | O121: 0 | P121: 0 | Q121: 0 | R121: 1 | S121: 0 | T121: 0 | U121: 0 | V121: 0 | W121: 0 | X121: 0 | Y121: 0 | Z121: 0 | AA121: 1 | AB121: 0 | AC121: 0 | AD121: 0 | AE121: 0 | AF121: 0 | AG121: 0 | AH121: 0 | AI121: 0 | AJ121: 0 | AK121: 0 | AL121: 0 | AM121: 0
A122: 0 | B122: Substations | C122: Network Asset Replacement | D122: PS Network Asset Replacement | E122: Input_Prog_Commit | F122: 0 | G122: 2013 | H122: 3207529.813 | I122: 2868049.781 | J122: 2932580.305 | K122: 11170059.91 | L122: 6118212.743 | M122: 0 | N122: 0 | O122: 0 | P122: 0 | Q122: 0 | R122: 1 | S122: 0 | T122: 0 | U122: 0 | V122: 0 | W122: 0 | X122: 0 | Y122: 0 | Z122: 0 | AA122: 1 | AB122: 0 | AC122: 0 | AD122: 0 | AE122: 0 | AF122: 0 | AG122: 0 | AH122: 0 | AI122: 0 | AJ122: 0 | AK122: 0 | AL122: 0 | AM122: 0
A123: 0 | B123: Substations | C123: Network Asset Replacement | D123: PS Network Asset Replacement | E123: Input_Prog_Commit | F123: 0 | G123: 2013 | H123: 183472.3668 | I123: 382133.726 | J123: 183427.0877 | K123: 99526.25734 | L123: 1147888.53 | M123: 0 | N123: 0 | O123: 0 | P123: 0 | Q123: 0 | R123: 1 | S123: 0 | T123: 0 | U123: 0 | V123: 0 | W123: 0 | X123: 0 | Y123: 0 | Z123: 0 | AA123: 1 | AB123: 0 | AC123: 0 | AD123: 0 | AE123: 0 | AF123: 0 | AG123: 0 | AH123: 0 | AI123: 0 | AJ123: 0 | AK123: 0 | AL123: 0 | AM123: 0
A124: 0 | B124: Substations | C124: Network Asset Replacement | D124: PS Network Asset Replacement | E124: Input_Prog_Commit | F124: 0 | G124: 2013 | H124: 6201263.038 | I124: 1659215.439 | J124: 154953.1425 | K124: 1949067.556 | L124: 1266652.137 | M124: 0 | N124: 0 | O124: 0 | P124: 0 | Q124: 0 | R124: 1 | S124: 0 | T124: 0 | U124: 0 | V124: 0 | W124: 0 | X124: 0 | Y124: 0 | Z124: 0 | AA124: 1 | AB124: 0 | AC124: 0 | AD124: 0 | AE124: 0 | AF124: 0 | AG124: 0 | AH124: 0 | AI124: 0 | AJ124: 0 | AK124: 0 | AL124: 0 | AM124: 0
A125: 4939 | B125: Transmission Lines | C125: Aging Wood Poles | D125: PS Network Asset Replacement | E125: Input_Prog_Commit | F125: 0 | G125: 2014 | H125: 0 | I125: 0 | J125: 0 | K125: 0 | L125: 0 | M125: 1125000 | N125: 0 | O125: 0 | P125: 0 | Q125: 1 | R125: 0 | S125: 0 | T125: 0 | U125: 0 | V125: 0 | W125: 0 | X125: 0 | Y125: 0 | Z125: =ABS(1-SUM(Q125:Y125)) -> 0 | AA125: 1 | AB125: 0 | AC125: 0 | AD125: 0 | AE125: 0 | AF125: 0 | AG125: 0 | AH125: 0 | AI125: 0 | AJ125: 0 | AK125: 0 | AL125: 0 | AM125: 0
A126: 4943 | B126: Transmission Lines | C126: Emergency Structures (Guyed Masts) | D126: PS Network Asset Replacement | E126: Input_Prog_Commit | F126: 0 | G126: 2013 | H126: 118930.2552 | I126: 61167.08845 | J126: 0 | K126: 0 | L126: 0 | M126: 0 | N126: 0 | O126: 0 | P126: 0 | Q126: 1 | R126: 0 | S126: 0 | T126: 0 | U126: 0 | V126: 0 | W126: 0 | X126: 0 | Y126: 0 | Z126: 0 | AA126: 1 | AB126: 0 | AC126: 0 | AD126: 0 | AE126: 0 | AF126: 0 | AG126: 0 | AH126: 0 | AI126: 0 | AJ126: 0 | AK126: 0 | AL126: 0 | AM126: 0
A127: 0 | B127: Transmission Lines | C127: Transmission Line Minor Upgrades | D127: PS Network Asset Replacement | E127: Input_Prog_Commit | F127: 0 | G127: 2013 | H127: 945714.2497 | I127: 763939.5774 | J127: 922721.5813 | K127: 228323.6158 | L127: 18418.00265 | M127: 0 | N127: 0 | O127: 0 | P127: 0 | Q127: 1 | R127: 0 | S127: 0 | T127: 0 | U127: 0 | V127: 0 | W127: 0 | X127: 0 | Y127: 0 | Z127: 0 | AA127: 1 | AB127: 0 | AC127: 0 | AD127: 0 | AE127: 0 | AF127: 0 | AG127: 0 | AH127: 0 | AI127: 0 | AJ127: 0 | AK127: 0 | AL127: 0 | AM127: 0
A128: 0 | B128: Transmission Lines | C128: Network Asset Replacement | D128: PS Network Asset Replacement | E128: Input_Prog_Commit | F128: 0 | G128: 2013 | H128: 7452479.636 | I128: 3342284.484 | J128: 2241130.776 | K128: 2557751.188 | L128: 2994630.194 | M128: 0 | N128: 0 | O128: 0 | P128: 0 | Q128: 1 | R128: 0 | S128: 0 | T128: 0 | U128: 0 | V128: 0 | W128: 0 | X128: 0 | Y128: 0 | Z128: 0 | AA128: 1 | AB128: 0 | AC128: 0 | AD128: 0 | AE128: 0 | AF128: 0 | AG128: 0 | AH128: 0 | AI128: 0 | AJ128: 0 | AK128: 0 | AL128: 0 | AM128: 0
A129: 8165 | B129: Misc Assets & Office Equipment | C129: Misc Assets & Office Equipment | D129: PS Network-Other | E129: Input_Prog_Commit | F129: 0 | G129: 2014 | H129: 0 | I129: 0 | J129: 0 | K129: 0 | L129: 0 | M129: 2502731 | N129: 1445000 | O129: 1511000 | P129: 1165000 | Q129: 0 | R129: 0 | S129: 0 | T129: 0 | U129: 0 | V129: 0 | W129: 0 | X129: 1 | Y129: 0 | Z129: 0 | AA129: 1 | AB129: 0 | AC129: 0 | AD129: 0 | AE129: 0 | AF129: 0 | AG129: 0 | AH129: 0 | AI129: 0 | AJ129: 0 | AK129: 0 | AL129: 0 | AM129: 0
A130: 4931 | B130: Substations | C130: CCTV | D130: PS Security/Compliance | E130: Input_Prog_Commit | F130: 0 | G130: 2013 | H130: 1036481.229 | I130: 79593.73595 | J130: 85255.77296 | K130: 0 | L130: 0 | M130: 0 | N130: 0 | O130: 0 | P130: 0 | Q130: 0 | R130: 1 | S130: 0 | T130: 0 | U130: 0 | V130: 0 | W130: 0 | X130: 0 | Y130: 0 | Z130: 0 | AA130: 1 | AB130: 0 | AC130: 0 | AD130: 0 | AE130: 0 | AF130: 0 | AG130: 0 | AH130: 0 | AI130: 0 | AJ130: 0 | AK130: 0 | AL130: 0 | AM130: 0
A131: 4979 | B131: Substations | C131: RRS Security | D131: PS Security/Compliance | E131: Input_Prog_Commit | F131: 0 | G131: 2013 | H131: 293002.0786 | I131: 112253.0785 | J131: 0 | K131: 0 | L131: 0 | M131: 0 | N131: 0 | O131: 0 | P131: 0 | Q131: 0 | R131: 1 | S131: 0 | T131: 0 | U131: 0 | V131: 0 | W131: 0 | X131: 0 | Y131: 0 | Z131: 0 | AA131: 1 | AB131: 0 | AC131: 0 | AD131: 0 | AE131: 0 | AF131: 0 | AG131: 0 | AH131: 0 | AI131: 0 | AJ131: 0 | AK131: 0 | AL131: 0 | AM131: 0
A132: 5071 | B132: Substations | C132: Security Perimeter Fence | D132: PS Security/Compliance | E132: Input_Prog_Commit | F132: 0 | G132: 2013 | H132: 2507518.996 | I132: 1199763.148 | J132: 1086343.948 | K132: 377653.3828 | L132: 176838.5119 | M132: 0 | N132: 0 | O132: 0 | P132: 0 | Q132: 0 | R132: 1 | S132: 0 | T132: 0 | U132: 0 | V132: 0 | W132: 0 | X132: 0 | Y132: 0 | Z132: 0 | AA132: 1 | AB132: 0 | AC132: 0 | AD132: 0 | AE132: 0 | AF132: 0 | AG132: 0 | AH132: 0 | AI132: 0 | AJ132: 0 | AK132: 0 | AL132: 0 | AM132: 0
A133: 5073 | B133: Substations | C133: Replace Lock & Key System | D133: PS Security/Compliance | E133: Input_Prog_Commit | F133: 0 | G133: 2013 | H133: 88209.64576 | I133: 49634.84006 | J133: 3795.145793 | K133: -16943.103 | L133: 0 | M133: 0 | N133: 0 | O133: 0 | P133: 0 | Q133: 0 | R133: 1 | S133: 0 | T133: 0 | U133: 0 | V133: 0 | W133: 0 | X133: 0 | Y133: 0 | Z133: 0 | AA133: 1 | AB133: 0 | AC133: 0 | AD133: 0 | AE133: 0 | AF133: 0 | AG133: 0 | AH133: 0 | AI133: 0 | AJ133: 0 | AK133: 0 | AL133: 0 | AM133: =ABS(1-SUM(AA133:AL133)) -> 0
A134: 5077 | B134: Substations | C134: Security Delineation Fence | D134: PS Security/Compliance | E134: Input_Prog_Commit | F134: 0 | G134: 2013 | H134: 1805429.12 | I134: 1062951.548 | J134: 57534.80281 | K134: 0 | L134: 0 | M134: 0 | N134: 0 | O134: 0 | P134: 0 | Q134: 0 | R134: 1 | S134: 0 | T134: 0 | U134: 0 | V134: 0 | W134: 0 | X134: 0 | Y134: 0 | Z134: 0 | AA134: 1 | AB134: 0 | AC134: 0 | AD134: 0 | AE134: 0 | AF134: 0 | AG134: 0 | AH134: 0 | AI134: 0 | AJ134: 0 | AK134: 0 | AL134: 0 | AM134: 0
A135: 5100 | B135: Substations | C135: Intrusion Detection | D135: PS Security/Compliance | E135: Input_Prog_Commit | F135: 0 | G135: 2013 | H135: 1605207.104 | I135: 458045.9421 | J135: 5575.460204 | K135: 0 | L135: 0 | M135: 0 | N135: 0 | O135: 0 | P135: 0 | Q135: 0 | R135: 1 | S135: 0 | T135: 0 | U135: 0 | V135: 0 | W135: 0 | X135: 0 | Y135: 0 | Z135: 0 | AA135: 1 | AB135: 0 | AC135: 0 | AD135: 0 | AE135: 0 | AF135: 0 | AG135: 0 | AH135: 0 | AI135: 0 | AJ135: 0 | AK135: 0 | AL135: 0 | AM135: 0
A136: 6337 | B136: Substations | C136: Security Fence Replace D-Pales | D136: PS Security/Compliance | E136: Input_Prog_Commit | F136: 0 | G136: 2013 | H136: 752001.3635 | I136: 1533.874893 | J136: 115942.453 | K136: 172459.416 | L136: 76009.53668 | M136: 0 | N136: 0 | O136: 0 | P136: 0 | Q136: 0 | R136: 1 | S136: 0 | T136: 0 | U136: 0 | V136: 0 | W136: 0 | X136: 0 | Y136: 0 | Z136: 0 | AA136: 1 | AB136: 0 | AC136: 0 | AD136: 0 | AE136: 0 | AF136: 0 | AG136: 0 | AH136: 0 | AI136: 0 | AJ136: 0 | AK136: 0 | AL136: 0 | AM136: 0
A137: 6338 | B137: Substations | C137: Fence Disturbance Detection | D137: PS Security/Compliance | E137: Input_Prog_Commit | F137: 0 | G137: 2013 | H137: 0 | I137: 0 | J137: 24439.69546 | K137: 388588.989 | L137: 80192.26849 | M137: 0 | N137: 0 | O137: 0 | P137: 0 | Q137: 0 | R137: 1 | S137: 0 | T137: 0 | U137: 0 | V137: 0 | W137: 0 | X137: 0 | Y137: 0 | Z137: 0 | AA137: 1 | AB137: 0 | AC137: 0 | AD137: 0 | AE137: 0 | AF137: 0 | AG137: 0 | AH137: 0 | AI137: 0 | AJ137: 0 | AK137: 0 | AL137: 0 | AM137: 0
A138: 6340 | B138: Substations | C138: Security Lighting Upgrade | D138: PS Security/Compliance | E138: Input_Prog_Commit | F138: 0 | G138: 2013 | H138: 0 | I138: 226844.5613 | J138: 188093.7998 | K138: 77886.61934 | L138: 0 | M138: 0 | N138: 0 | O138: 0 | P138: 0 | Q138: 0 | R138: 1 | S138: 0 | T138: 0 | U138: 0 | V138: 0 | W138: 0 | X138: 0 | Y138: 0 | Z138: 0 | AA138: 1 | AB138: 0 | AC138: 0 | AD138: 0 | AE138: 0 | AF138: 0 | AG138: 0 | AH138: 0 | AI138: 0 | AJ138: 0 | AK138: 0 | AL138: 0 | AM138: 0
A139: 7076 | B139: Substations | C139: Southern Region | D139: PS Security/Compliance | E139: Input_Prog_Commit | F139: 0 | G139: 2013 | H139: 0 | I139: 0 | J139: 0 | K139: 4059.986626 | L139: 0 | M139: 0 | N139: 0 | O139: 0 | P139: 0 | Q139: 0 | R139: 1 | S139: 0 | T139: 0 | U139: 0 | V139: 0 | W139: 0 | X139: 0 | Y139: 0 | Z139: 0 | AA139: 1 | AB139: 0 | AC139: 0 | AD139: 0 | AE139: 0 | AF139: 0 | AG139: 0 | AH139: 0 | AI139: 0 | AJ139: 0 | AK139: 0 | AL139: 0 | AM139: 0
A140: 0 | B140: Information Technology | C140: ICT Applications | D140: PS Information Technology | E140: Input_Prog_Future | F140: 0 | G140: 2013 | H140: 0 | I140: 0 | J140: 0 | K140: 0 | L140: 0 | M140: 11350000 | N140: 10650000 | O140: 10750000 | P140: 9950000 | Q140: 0 | R140: 0 | S140: 0 | T140: 0 | U140: 0 | V140: 0 | W140: 0 | X140: 0 | Y140: 1 | Z140: 0 | AA140: 1 | AB140: 0 | AC140: 0 | AD140: 0 | AE140: 0 | AF140: 0 | AG140: 0 | AH140: 0 | AI140: 0 | AJ140: 0 | AK140: 0 | AL140: 0 | AM140: 0
A141: 0 | B141: Information Technology | C141: ICT Corporate Data Network | D141: PS Information Technology | E141: Input_Prog_Future | F141: 0 | G141: 2013 | H141: 0 | I141: 0 | J141: 0 | K141: 0 | L141: 0 | M141: 2750000 | N141: 3750000 | O141: 3000000 | P141: 2000000 | Q141: 0 | R141: 0 | S141: 0 | T141: 0 | U141: 0 | V141: 0 | W141: 0 | X141: 0 | Y141: 1 | Z141: =ABS(1-SUM(Q141:Y141)) -> 0 | AA141: 1 | AB141: 0 | AC141: 0 | AD141: 0 | AE141: 0 | AF141: 0 | AG141: 0 | AH141: 0 | AI141: 0 | AJ141: 0 | AK141: 0 | AL141: 0 | AM141: 0
A142: 0 | B142: Information Technology | C142: ICT Infrastructure | D142: PS Information Technology | E142: Input_Prog_Future | F142: 0 | G142: 2013 | H142: 0 | I142: 0 | J142: 0 | K142: 0 | L142: 0 | M142: 4700000 | N142: 4700000 | O142: 3850000 | P142: 8250000 | Q142: 0 | R142: 0 | S142: 0 | T142: 0 | U142: 0 | V142: 0 | W142: 0 | X142: 0 | Y142: 1 | Z142: 0 | AA142: 1 | AB142: 0 | AC142: 0 | AD142: 0 | AE142: 0 | AF142: 0 | AG142: 0 | AH142: 0 | AI142: 0 | AJ142: 0 | AK142: 0 | AL142: 0 | AM142: 0
A143: 4907 | B143: Communications | C143: 50V Batteries | D143: PS Network Asset Replacement | E143: Input_Prog_Future | F143: 0 | G143: 2013 | H143: 0 | I143: 0 | J143: 0 | K143: 0 | L143: 0 | M143: 217024.5 | N143: 260430 | O143: 173619.75 | P143: 217024.5 | Q143: 0 | R143: 1 | S143: 0 | T143: 0 | U143: 0 | V143: 0 | W143: 0 | X143: 0 | Y143: 0 | Z143: 0 | AA143: 0.6842537242 | AB143: 0.3157462758 | AC143: 0 | AD143: 0 | AE143: 0 | AF143: 0 | AG143: 0 | AH143: 0 | AI143: 0 | AJ143: 0 | AK143: 0 | AL143: 0 | AM143: 0
A144: 5068 | B144: Communications | C144: 50V Battery Chargers | D144: PS Network Asset Replacement | E144: Input_Prog_Future | F144: 0 | G144: 2013 | H144: 0 | I144: 0 | J144: 0 | K144: 0 | L144: 0 | M144: 63052.5 | N144: 126104.25 | O144: 105087 | P144: 147122.25 | Q144: 0 | R144: 1 | S144: 0 | T144: 0 | U144: 0 | V144: 0 | W144: 0 | X144: 0 | Y144: 0 | Z144: 0 | AA144: 0.454024783 | AB144: 0.545975217 | AC144: 0 | AD144: 0 | AE144: 0 | AF144: 0 | AG144: 0 | AH144: 0 | AI144: 0 | AJ144: 0 | AK144: 0 | AL144: 0 | AM144: 0
A145: 4972 | B145: Communications | C145: 50V Power Systems | D145: PS Network Asset Replacement | E145: Input_Prog_Future | F145: 0 | G145: 2014 | H145: 0 | I145: 0 | J145: 0 | K145: 0 | L145: 0 | M145: 105203.28 | N145: 156402.8376 | O145: 156402.8376 | P145: 104268.5584 | Q145: 0 | R145: 0 | S145: 0 | T145: 1 | U145: 0 | V145: 0 | W145: 0 | X145: 0 | Y145: 0 | Z145: 0 | AA145: 1 | AB145: 0 | AC145: 0 | AD145: 0 | AE145: 0 | AF145: 0 | AG145: 0 | AH145: 0 | AI145: 0 | AJ145: 0 | AK145: 0 | AL145: 0 | AM145: 0
A146: 8222 | B146: Communications | C146: Hammonds Hill Radio Repeater Site Mains Power | D146: PS Network Asset Replacement | E146: Input_Prog_Future | F146: 0 | G146: 2014 | H146: 0 | I146: 0 | J146: 0 | K146: 0 | L146: 0 | M146: 37500 | N146: 0 | O146: 0 | P146: 0 | Q146: 0 | R146: 0 | S146: 0 | T146: 1 | U146: 0 | V146: 0 | W146: 0 | X146: 0 | Y146: 0 | Z146: 0 | AA146: 1 | AB146: 0 | AC146: 0 | AD146: 0 | AE146: 0 | AF146: 0 | AG146: 0 | AH146: 0 | AI146: 0 | AJ146: 0 | AK146: 0 | AL146: 0 | AM146: 0
A147: 8260 | B147: Communications | C147: CAS and BAS Equipment | D147: PS Network Asset Replacement | E147: Input_Prog_Future | F147: 0 | G147: 2014 | H147: 0 | I147: 0 | J147: 0 | K147: 0 | L147: 0 | M147: 216315.4608 | N147: 203591.0219 | O147: 216315.4608 | P147: 216315.4608 | Q147: 0 | R147: 0 | S147: 0 | T147: 1 | U147: 0 | V147: 0 | W147: 0 | X147: 0 | Y147: 0 | Z147: 0 | AA147: 1 | AB147: 0 | AC147: 0 | AD147: 0 | AE147: 0 | AF147: 0 | AG147: 0 | AH147: 0 | AI147: 0 | AJ147: 0 | AK147: 0 | AL147: 0 | AM147: 0
A148: 7770 | B148: Metering | C148: Replacement of E1 Meters | D148: PS Network Asset Replacement | E148: Input_Prog_Future | F148: 0 | G148: 2014 | H148: 0 | I148: 0 | J148: 0 | K148: 0 | L148: 0 | M148: 0 | N148: 241838.665 | O148: 0 | P148: 0 | Q148: 0 | R148: 0 | S148: 1 | T148: 0 | U148: 0 | V148: 0 | W148: 0 | X148: 0 | Y148: 0 | Z148: 0 | AA148: 1 | AB148: 0 | AC148: 0 | AD148: 0 | AE148: 0 | AF148: 0 | AG148: 0 | AH148: 0 | AI148: 0 | AJ148: 0 | AK148: 0 | AL148: 0 | AM148: 0
A149: 8043 | B149: Metering | C149: Replacement of EDMI MK III Energy Meters | D149: PS Network Asset Replacement | E149: Input_Prog_Future | F149: 0 | G149: 2014 | H149: 0 | I149: 0 | J149: 0 | K149: 0 | L149: 0 | M149: 146898.0166 | N149: 9081.625079 | O149: 69503.6184 | P149: 26624.84274 | Q149: 0 | R149: 0 | S149: 1 | T149: 0 | U149: 0 | V149: 0 | W149: 0 | X149: 0 | Y149: 0 | Z149: 0 | AA149: 1 | AB149: 0 | AC149: 0 | AD149: 0 | AE149: 0 | AF149: 0 | AG149: 0 | AH149: 0 | AI149: 0 | AJ149: 0 | AK149: 0 | AL149: 0 | AM149: 0
A150: 4949 | B150: Protection | C150: Replacement of D202 Relays | D150: PS Network Asset Replacement | E150: Input_Prog_Future | F150: 0 | G150: 2014 | H150: 0 | I150: 0 | J150: 0 | K150: 0 | L150: 0 | M150: 73858.35631 | N150: 0 | O150: 0 | P150: 0 | Q150: 0 | R150: 0 | S150: 1 | T150: 0 | U150: 0 | V150: 0 | W150: 0 | X150: 0 | Y150: 0 | Z150: 0 | AA150: 1 | AB150: 0 | AC150: 0 | AD150: 0 | AE150: 0 | AF150: 0 | AG150: 0 | AH150: 0 | AI150: 0 | AJ150: 0 | AK150: 0 | AL150: 0 | AM150: 0
A151: 4956 | B151: Protection | C151: Replacement of TH1A Relays | D151: PS Network Asset Replacement | E151: Input_Prog_Future | F151: 0 | G151: 2014 | H151: 0 | I151: 0 | J151: 0 | K151: 0 | L151: 0 | M151: 64426.8208 | N151: 0 | O151: 0 | P151: 0 | Q151: 0 | R151: 0 | S151: 1 | T151: 0 | U151: 0 | V151: 0 | W151: 0 | X151: 0 | Y151: 0 | Z151: 0 | AA151: 1 | AB151: 0 | AC151: 0 | AD151: 0 | AE151: 0 | AF151: 0 | AG151: 0 | AH151: 0 | AI151: 0 | AJ151: 0 | AK151: 0 | AL151: 0 | AM151: 0
A152: 5919 | B152: Protection | C152: Replacement of THR Relays | D152: PS Network Asset Replacement | E152: Input_Prog_Future | F152: 0 | G152: 2014 | H152: 0 | I152: 0 | J152: 0 | K152: 0 | L152: 0 | M152: 0 | N152: 6926.701631 | O152: 605600.0341 | P152: 1340267.207 | Q152: 0 | R152: 0 | S152: 1 | T152: 0 | U152: 0 | V152: 0 | W152: 0 | X152: 0 | Y152: 0 | Z152: 0 | AA152: 1 | AB152: 0 | AC152: 0 | AD152: 0 | AE152: 0 | AF152: 0 | AG152: 0 | AH152: 0 | AI152: 0 | AJ152: 0 | AK152: 0 | AL152: 0 | AM152: 0
A153: 5920 | B153: Protection | C153: Replacement of YTG Relays | D153: PS Network Asset Replacement | E153: Input_Prog_Future | F153: 0 | G153: 2014 | H153: 0 | I153: 0 | J153: 0 | K153: 0 | L153: 0 | M153: 0 | N153: 0 | O153: 0 | P153: 449173.874 | Q153: 0 | R153: 0 | S153: 1 | T153: 0 | U153: 0 | V153: 0 | W153: 0 | X153: 0 | Y153: 0 | Z153: 0 | AA153: 1 | AB153: 0 | AC153: 0 | AD153: 0 | AE153: 0 | AF153: 0 | AG153: 0 | AH153: 0 | AI153: 0 | AJ153: 0 | AK153: 0 | AL153: 0 | AM153: 0
A154: 6864 | B154: Protection | C154: Replacement of Micromho Relays | D154: PS Network Asset Replacement | E154: Input_Prog_Future | F154: 0 | G154: 2014 | H154: 0 | I154: 0 | J154: 0 | K154: 0 | L154: 0 | M154: 410639.9882 | N154: 0 | O154: 0 | P154: 513506.7793 | Q154: 0 | R154: 0 | S154: 1 | T154: 0 | U154: 0 | V154: 0 | W154: 0 | X154: 0 | Y154: 0 | Z154: 0 | AA154: 1 | AB154: 0 | AC154: 0 | AD154: 0 | AE154: 0 | AF154: 0 | AG154: 0 | AH154: 0 | AI154: 0 | AJ154: 0 | AK154: 0 | AL154: 0 | AM154: 0
A155: 7556 | B155: Protection | C155: Replacement of RADSB Transformer Differential Relays | D155: PS Network Asset Replacement | E155: Input_Prog_Future | F155: 0 | G155: 2014 | H155: 0 | I155: 0 | J155: 0 | K155: 0 | L155: 0 | M155: 140603.88 | N155: 144875.7927 | O155: 70301.94 | P155: 147716.7126 | Q155: 0 | R155: 0 | S155: 1 | T155: 0 | U155: 0 | V155: 0 | W155: 0 | X155: 0 | Y155: 0 | Z155: 0 | AA155: 1 | AB155: 0 | AC155: 0 | AD155: 0 | AE155: 0 | AF155: 0 | AG155: 0 | AH155: 0 | AI155: 0 | AJ155: 0 | AK155: 0 | AL155: 0 | AM155: 0
A156: 7748 | B156: Protection | C156: Replacement of DLN90 Relays | D156: PS Network Asset Replacement | E156: Input_Prog_Future | F156: 0 | G156: 2014 | H156: 0 | I156: 0 | J156: 0 | K156: 0 | L156: 0 | M156: 0 | N156: 0 | O156: 0 | P156: 0 | Q156: 0 | R156: 0 | S156: 1 | T156: 0 | U156: 0 | V156: 0 | W156: 0 | X156: 0 | Y156: 0 | Z156: 0 | AA156: 1 | AB156: 0 | AC156: 0 | AD156: 0 | AE156: 0 | AF156: 0 | AG156: 0 | AH156: 0 | AI156: 0 | AJ156: 0 | AK156: 0 | AL156: 0 | AM156: 0
A157: 8020 | B157: Protection | C157: Replacement of LFCB102 Relays | D157: PS Network Asset Replacement | E157: Input_Prog_Future | F157: 0 | G157: 2014 | H157: 0 | I157: 0 | J157: 0 | K157: 0 | L157: 0 | M157: 0 | N157: 0 | O157: 0 | P157: 85832.57184 | Q157: 0 | R157: 0 | S157: 1 | T157: 0 | U157: 0 | V157: 0 | W157: 0 | X157: 0 | Y157: 0 | Z157: 0 | AA157: 1 | AB157: 0 | AC157: 0 | AD157: 0 | AE157: 0 | AF157: 0 | AG157: 0 | AH157: 0 | AI157: 0 | AJ157: 0 | AK157: 0 | AL157: 0 | AM157: 0
A158: 8261 | B158: Protection | C158: Secondary System Technology Upgrades | D158: PS Network Asset Replacement | E158: Input_Prog_Future | F158: 0 | G158: 2014 | H158: 0 | I158: 0 | J158: 0 | K158: 0 | L158: 0 | M158: 0 | N158: 0 | O158: 3010362.446 | P158: 1560932.47 | Q158: 0 | R158: 0 | S158: 0.8451854063 | T158: 0.1548145937 | U158: 0 | V158: 0 | W158: 0 | X158: 0 | Y158: 0 | Z158: 0 | AA158: 1 | AB158: 0 | AC158: 0 | AD158: 0 | AE158: 0 | AF158: 0 | AG158: 0 | AH158: 0 | AI158: 0 | AJ158: 0 | AK158: 0 | AL158: 0 | AM158: 0
A159: 5518 | B159: Substations | C159: Replacement of Merlin Gerin FA4 CBs | D159: PS Network Asset Replacement | E159: Input_Prog_Future | F159: 0 | G159: 2014 | H159: 0 | I159: 0 | J159: 0 | K159: 0 | L159: 0 | M159: 652267.5966 | N159: 1630668.895 | O159: 1304535.145 | P159: 0 | Q159: 0 | R159: 1 | S159: 0 | T159: 0 | U159: 0 | V159: 0 | W159: 0 | X159: 0 | Y159: 0 | Z159: 0 | AA159: 1 | AB159: 0 | AC159: 0 | AD159: 0 | AE159: 0 | AF159: 0 | AG159: 0 | AH159: 0 | AI159: 0 | AJ159: 0 | AK159: 0 | AL159: 0 | AM159: 0
A160: 6860 | B160: Substations | C160: Replacement of ASEA 66kV HLR CBs | D160: PS Network Asset Replacement | E160: Input_Prog_Future | F160: 0 | G160: 2014 | H160: 0 | I160: 0 | J160: 0 | K160: 0 | L160: 0 | M160: 0 | N160: 350550 | O160: 116850 | P160: 0 | Q160: 0 | R160: 1 | S160: 0 | T160: 0 | U160: 0 | V160: 0 | W160: 0 | X160: 0 | Y160: 0 | Z160: 0 | AA160: 1 | AB160: 0 | AC160: 0 | AD160: 0 | AE160: 0 | AF160: 0 | AG160: 0 | AH160: 0 | AI160: 0 | AJ160: 0 | AK160: 0 | AL160: 0 | AM160: 0
A161: 6861 | B161: Substations | C161: Replacement of Magrini 11kV MAG12MG500 CBs | D161: PS Network Asset Replacement | E161: Input_Prog_Future | F161: 0 | G161: 2014 | H161: 0 | I161: 0 | J161: 0 | K161: 0 | L161: 0 | M161: 116849.7417 | N161: 0 | O161: 0 | P161: 0 | Q161: 0 | R161: 1 | S161: 0 | T161: 0 | U161: 0 | V161: 0 | W161: 0 | X161: 0 | Y161: 0 | Z161: 0 | AA161: 1 | AB161: 0 | AC161: 0 | AD161: 0 | AE161: 0 | AF161: 0 | AG161: 0 | AH161: 0 | AI161: 0 | AJ161: 0 | AK161: 0 | AL161: 0 | AM161: 0
A162: 6862 | B162: Substations | C162: Replacement of Siemens 330kV 3AQ2 CBs | D162: PS Network Asset Replacement | E162: Input_Prog_Future | F162: 0 | G162: 2014 | H162: 0 | I162: 0 | J162: 0 | K162: 0 | L162: 0 | M162: 0 | N162: 0 | O162: 0 | P162: 606517.5483 | Q162: 0 | R162: 1 | S162: 0 | T162: 0 | U162: 0 | V162: 0 | W162: 0 | X162: 0 | Y162: 0 | Z162: 0 | AA162: 1 | AB162: 0 | AC162: 0 | AD162: 0 | AE162: 0 | AF162: 0 | AG162: 0 | AH162: 0 | AI162: 0 | AJ162: 0 | AK162: 0 | AL162: 0 | AM162: 0
A163: 6863 | B163: Substations | C163: Replacement of Siemens 330kV 3AS2 CBs | D163: PS Network Asset Replacement | E163: Input_Prog_Future | F163: 0 | G163: 2014 | H163: 0 | I163: 0 | J163: 0 | K163: 0 | L163: 0 | M163: 606517.5 | N163: 606517.5 | O163: 303258.75 | P163: 0 | Q163: 0 | R163: 1 | S163: 0 | T163: 0 | U163: 0 | V163: 0 | W163: 0 | X163: 0 | Y163: 0 | Z163: 0 | AA163: 1 | AB163: 0 | AC163: 0 | AD163: 0 | AE163: 0 | AF163: 0 | AG163: 0 | AH163: 0 | AI163: 0 | AJ163: 0 | AK163: 0 | AL163: 0 | AM163: 0
A164: 7308 | B164: Substations | C164: Replacement of Capacitor CBs | D164: PS Network Asset Replacement | E164: Input_Prog_Future | F164: 0 | G164: 2014 | H164: 0 | I164: 0 | J164: 0 | K164: 0 | L164: 0 | M164: 315439.1479 | N164: 726524.1197 | O164: 919222.0176 | P164: 847302.4436 | Q164: 0 | R164: 1 | S164: 0 | T164: 0 | U164: 0 | V164: 0 | W164: 0 | X164: 0 | Y164: 0 | Z164: 0 | AA164: 1 | AB164: 0 | AC164: 0 | AD164: 0 | AE164: 0 | AF164: 0 | AG164: 0 | AH164: 0 | AI164: 0 | AJ164: 0 | AK164: 0 | AL164: 0 | AM164: 0
A165: 7799 | B165: Substations | C165: Replacement of Sprecher HGF215 CBs | D165: PS Network Asset Replacement | E165: Input_Prog_Future | F165: 0 | G165: 2014 | H165: 0 | I165: 0 | J165: 0 | K165: 0 | L165: 0 | M165: 135000 | N165: 0 | O165: 0 | P165: 0 | Q165: 0 | R165: 1 | S165: 0 | T165: 0 | U165: 0 | V165: 0 | W165: 0 | X165: 0 | Y165: 0 | Z165: =ABS(1-SUM(Q165:Y165)) -> 0 | AA165: 1 | AB165: 0 | AC165: 0 | AD165: 0 | AE165: 0 | AF165: 0 | AG165: 0 | AH165: 0 | AI165: 0 | AJ165: 0 | AK165: 0 | AL165: 0 | AM165: 0
A166: 8082 | B166: Substations | C166: Replacement of Sprecher HGF215 CBs | D166: PS Network Asset Replacement | E166: Input_Prog_Future | F166: 0 | G166: 2014 | H166: 0 | I166: 0 | J166: 0 | K166: 0 | L166: 0 | M166: 0 | N166: 303258.7983 | O166: 303258.7983 | P166: 303258.7983 | Q166: 0 | R166: 1 | S166: 0 | T166: 0 | U166: 0 | V166: 0 | W166: 0 | X166: 0 | Y166: 0 | Z166: 0 | AA166: 1 | AB166: 0 | AC166: 0 | AD166: 0 | AE166: 0 | AF166: 0 | AG166: 0 | AH166: 0 | AI166: 0 | AJ166: 0 | AK166: 0 | AL166: 0 | AM166: 0
A167: 8101 | B167: Substations | C167: Replacement of Magrini MAG38MGE-0 CBs | D167: PS Network Asset Replacement | E167: Input_Prog_Future | F167: 0 | G167: 2014 | H167: 0 | I167: 0 | J167: 0 | K167: 0 | L167: 0 | M167: 0 | N167: 574835.3084 | O167: 718544.1355 | P167: 287417.6542 | Q167: 0 | R167: 1 | S167: 0 | T167: 0 | U167: 0 | V167: 0 | W167: 0 | X167: 0 | Y167: 0 | Z167: 0 | AA167: 1 | AB167: 0 | AC167: 0 | AD167: 0 | AE167: 0 | AF167: 0 | AG167: 0 | AH167: 0 | AI167: 0 | AJ167: 0 | AK167: 0 | AL167: 0 | AM167: 0
A168: 4918 | B168: Substations | C168: Removal of PCB from In Service Equipment | D168: PS Network Asset Replacement | E168: Input_Prog_Future | F168: 0 | G168: 2014 | H168: 0 | I168: 0 | J168: 0 | K168: 0 | L168: 0 | M168: 108596.8773 | N168: 113097 | O168: 556484.632 | P168: 0 | Q168: 0 | R168: 1 | S168: 0 | T168: 0 | U168: 0 | V168: 0 | W168: 0 | X168: 0 | Y168: 0 | Z168: 0 | AA168: 1 | AB168: 0 | AC168: 0 | AD168: 0 | AE168: 0 | AF168: 0 | AG168: 0 | AH168: 0 | AI168: 0 | AJ168: 0 | AK168: 0 | AL168: 0 | AM168: 0
A169: 8253 | B169: Substations | C169: Management of CTs with PCB Contamination | D169: PS Network Asset Replacement | E169: Input_Prog_Future | F169: 0 | G169: 2014 | H169: 0 | I169: 0 | J169: 0 | K169: 0 | L169: 0 | M169: 154865.2627 | N169: 413426.3444 | O169: 115050 | P169: 0 | Q169: 0 | R169: 1 | S169: 0 | T169: 0 | U169: 0 | V169: 0 | W169: 0 | X169: 0 | Y169: 0 | Z169: 0 | AA169: 1 | AB169: 0 | AC169: 0 | AD169: 0 | AE169: 0 | AF169: 0 | AG169: 0 | AH169: 0 | AI169: 0 | AJ169: 0 | AK169: 0 | AL169: 0 | AM169: 0
A170: 4916 | B170: Substations | C170: Replace Isolator and Earth Switch - 66kV and Below as Required | D170: PS Network Asset Replacement | E170: Input_Prog_Future | F170: 0 | G170: 2014 | H170: 0 | I170: 0 | J170: 0 | K170: 0 | L170: 0 | M170: 0 | N170: 0 | O170: 98724.49608 | P170: 98724.49608 | Q170: 0 | R170: 1 | S170: 0 | T170: 0 | U170: 0 | V170: 0 | W170: 0 | X170: 0 | Y170: 0 | Z170: 0 | AA170: 1 | AB170: 0 | AC170: 0 | AD170: 0 | AE170: 0 | AF170: 0 | AG170: 0 | AH170: 0 | AI170: 0 | AJ170: 0 | AK170: 0 | AL170: 0 | AM170: 0
A171: 5066 | B171: Substations | C171: 110V Battery Chargers | D171: PS Network Asset Replacement | E171: Input_Prog_Future | F171: 0 | G171: 2014 | H171: 0 | I171: 0 | J171: 0 | K171: 0 | L171: 0 | M171: 70384.74406 | N171: 46923.16271 | O171: 70384.74406 | P171: 70384.74406 | Q171: 0 | R171: 1 | S171: 0 | T171: 0 | U171: 0 | V171: 0 | W171: 0 | X171: 0 | Y171: 0 | Z171: 0 | AA171: 1 | AB171: 0 | AC171: 0 | AD171: 0 | AE171: 0 | AF171: 0 | AG171: 0 | AH171: 0 | AI171: 0 | AJ171: 0 | AK171: 0 | AL171: 0 | AM171: 0
A172: 5068 | B172: Substations | C172: 50V Battery Chargers | D172: PS Network Asset Replacement | E172: Input_Prog_Future | F172: 0 | G172: 2014 | H172: 0 | I172: 0 | J172: 0 | K172: 0 | L172: 0 | M172: 63052.3294 | N172: 21017.44313 | O172: 21017.44313 | P172: 0 | Q172: 0 | R172: 1 | S172: 0 | T172: 0 | U172: 0 | V172: 0 | W172: 0 | X172: 0 | Y172: 0 | Z172: 0 | AA172: 1 | AB172: 0 | AC172: 0 | AD172: 0 | AE172: 0 | AF172: 0 | AG172: 0 | AH172: 0 | AI172: 0 | AJ172: 0 | AK172: 0 | AL172: 0 | AM172: 0
A173: 8274 | B173: Substations | C173: Fault Throwing Switches | D173: PS Network Asset Replacement | E173: Input_Prog_Future | F173: 0 | G173: 2014 | H173: 0 | I173: 0 | J173: 0 | K173: 0 | L173: 0 | M173: 150000 | N173: 0 | O173: 0 | P173: 0 | Q173: 0 | R173: 1 | S173: 0 | T173: 0 | U173: 0 | V173: 0 | W173: 0 | X173: 0 | Y173: 0 | Z173: 0 | AA173: 1 | AB173: 0 | AC173: 0 | AD173: 0 | AE173: 0 | AF173: 0 | AG173: 0 | AH173: 0 | AI173: 0 | AJ173: 0 | AK173: 0 | AL173: 0 | AM173: 0
A174: 6370 | B174: Cable Minor Projects | C174: 42 Cable Tunnel Life Extension | D174: PS Augmentation | E174: Input_Proj_Commit | F174: 2011 | G174: 2013 | H174: 30698.13821 | I174: 33877.24728 | J174: 0 | K174: 0 | L174: 0 | M174: 0 | N174: 0 | O174: 0 | P174: 0 | Q174: 1 | R174: 0 | S174: 0 | T174: 0 | U174: 0 | V174: 0 | W174: 0 | X174: 0 | Y174: 0 | Z174: 0 | AA174: 1 | AB174: 0 | AC174: 0 | AD174: 0 | AE174: 0 | AF174: 0 | AG174: 0 | AH174: 0 | AI174: 0 | AJ174: 0 | AK174: 0 | AL174: 0 | AM174: 0
A175: 5657 | B175: Capacitor Bank | C175: Muswellbrook No.1 132kV Capacitor Bank Detuning | D175: PS Augmentation | E175: Input_Proj_Commit | F175: 2010 | G175: 2013 | H175: -80.40212876 | I175: 0 | J175: 0 | K175: 0 | L175: 0 | M175: 0 | N175: 0 | O175: 0 | P175: 0 | Q175: 0 | R175: 1 | S175: 0 | T175: 0 | U175: 0 | V175: 0 | W175: 0 | X175: 0 | Y175: 0 | Z175: =ABS(1-SUM(Q175:Y175)) -> 0 | AA175: 1 | AB175: 0 | AC175: 0 | AD175: 0 | AE175: 0 | AF175: 0 | AG175: 0 | AH175: 0 | AI175: 0 | AJ175: 0 | AK175: 0 | AL175: 0 | AM175: 0
A176: 6234 | B176: Capacitor Bank | C176: Capacitor Banks | D176: PS Augmentation | E176: Input_Proj_Commit | F176: 2010 | G176: 2013 | H176: 6.901288566 | I176: 0 | J176: 0 | K176: 0 | L176: 0 | M176: 0 | N176: 0 | O176: 0 | P176: 0 | Q176: 0 | R176: 1 | S176: 0 | T176: 0 | U176: 0 | V176: 0 | W176: 0 | X176: 0 | Y176: 0 | Z176: =ABS(1-SUM(Q176:Y176)) -> 0 | AA176: 1 | AB176: 0 | AC176: 0 | AD176: 0 | AE176: 0 | AF176: 0 | AG176: 0 | AH176: 0 | AI176: 0 | AJ176: 0 | AK176: 0 | AL176: 0 | AM176: 0
A177: 6192 | B177: Capacitor Bank | C177: Beryl 66kV Capacitor Bank | D177: PS Augmentation | E177: Input_Proj_Commit | F177: 2011 | G177: 2013 | H177: 193.8394134 | I177: 0 | J177: 0 | K177: 0 | L177: 0 | M177: 0 | N177: 0 | O177: 0 | P177: 0 | Q177: 0 | R177: 1 | S177: 0 | T177: 0 | U177: 0 | V177: 0 | W177: 0 | X177: 0 | Y177: 0 | Z177: 0 | AA177: 1 | AB177: 0 | AC177: 0 | AD177: 0 | AE177: 0 | AF177: 0 | AG177: 0 | AH177: 0 | AI177: 0 | AJ177: 0 | AK177: 0 | AL177: 0 | AM177: 0
A178: 6211 | B178: Capacitor Bank | C178: Sydney North & East 330kV 2 x 200 MVAr Capacitor Banks | D178: PS Augmentation | E178: Input_Proj_Commit | F178: 2011 | G178: 2013 | H178: 105206.4713 | I178: 554764.8041 | J178: -17865.73519 | K178: 0 | L178: 0 | M178: 0 | N178: 0 | O178: 0 | P178: 0 | Q178: 0 | R178: 0.99 | S178: 0.01 | T178: 0 | U178: 0 | V178: 0 | W178: 0 | X178: 0 | Y178: 0 | Z178: 0 | AA178: 1 | AB178: 0 | AC178: 0 | AD178: 0 | AE178: 0 | AF178: 0 | AG178: 0 | AH178: 0 | AI178: 0 | AJ178: 0 | AK178: 0 | AL178: 0 | AM178: 0
A179: 6241 | B179: Capacitor Bank | C179: Sydney North & East 330kV 2 x 200 MVAr Capacitor Banks | D179: PS Augmentation | E179: Input_Proj_Commit | F179: 2011 | G179: 2013 | H179: 0 | I179: -491.245903 | J179: 0 | K179: 0 | L179: 0 | M179: 0 | N179: 0 | O179: 0 | P179: 0 | Q179: 0 | R179: 1 | S179: 0 | T179: 0 | U179: 0 | V179: 0 | W179: 0 | X179: 0 | Y179: 0 | Z179: 0 | AA179: 1 | AB179: 0 | AC179: 0 | AD179: 0 | AE179: 0 | AF179: 0 | AG179: 0 | AH179: 0 | AI179: 0 | AJ179: 0 | AK179: 0 | AL179: 0 | AM179: 0
A180: 6258 | B180: Capacitor Bank | C180: Regentville 330kV Capacitor Bank | D180: PS Augmentation | E180: Input_Proj_Commit | F180: 2011 | G180: 2013 | H180: 0 | I180: -202.2734708 | J180: 0 | K180: 0 | L180: 0 | M180: 0 | N180: 0 | O180: 0 | P180: 0 | Q180: 0 | R180: 0.99 | S180: 0.01 | T180: 0 | U180: 0 | V180: 0 | W180: 0 | X180: 0 | Y180: 0 | Z180: 0 | AA180: 1 | AB180: 0 | AC180: 0 | AD180: 0 | AE180: 0 | AF180: 0 | AG180: 0 | AH180: 0 | AI180: 0 | AJ180: 0 | AK180: 0 | AL180: 0 | AM180: 0
A181: 6384 | B181: Capacitor Bank | C181: Sydney Area 200MVAr Capacitor Bank | D181: PS Augmentation | E181: Input_Proj_Commit | F181: 2011 | G181: 2013 | H181: -0.2116959683 | I181: -1581.098959 | J181: 0 | K181: 0 | L181: 0 | M181: 0 | N181: 0 | O181: 0 | P181: 0 | Q181: 0 | R181: 0.99 | S181: 0.01 | T181: 0 | U181: 0 | V181: 0 | W181: 0 | X181: 0 | Y181: 0 | Z181: 0 | AA181: 1 | AB181: 0 | AC181: 0 | AD181: 0 | AE181: 0 | AF181: 0 | AG181: 0 | AH181: 0 | AI181: 0 | AJ181: 0 | AK181: 0 | AL181: 0 | AM181: 0
A182: 6579 | B182: Capacitor Bank | C182: Beryl No.2 66kV Capacitor Bank | D182: PS Augmentation | E182: Input_Proj_Commit | F182: 2011 | G182: 2013 | H182: 1944723.748 | I182: 1049022.649 | J182: 224336.1094 | K182: 0 | L182: 0 | M182: 0 | N182: 0 | O182: 0 | P182: 0 | Q182: 0 | R182: 0.94 | S182: 0.06 | T182: 0 | U182: 0 | V182: 0 | W182: 0 | X182: 0 | Y182: 0 | Z182: 0 | AA182: 1 | AB182: 0 | AC182: 0 | AD182: 0 | AE182: 0 | AF182: 0 | AG182: 0 | AH182: 0 | AI182: 0 | AJ182: 0 | AK182: 0 | AL182: 0 | AM182: 0
A183: 6936 | B183: Capacitor Bank | C183: Capacitor Banks | D183: PS Augmentation | E183: Input_Proj_Commit | F183: 2011 | G183: 2013 | H183: 0 | I183: 9.391010007 | J183: 0 | K183: 0 | L183: 0 | M183: 0 | N183: 0 | O183: 0 | P183: 0 | Q183: 0 | R183: 0 | S183: 0 | T183: 0 | U183: 1 | V183: 0 | W183: 0 | X183: 0 | Y183: 0 | Z183: 0 | AA183: 1 | AB183: 0 | AC183: 0 | AD183: 0 | AE183: 0 | AF183: 0 | AG183: 0 | AH183: 0 | AI183: 0 | AJ183: 0 | AK183: 0 | AL183: 0 | AM183: 0
A184: 7268 | B184: Capacitor Bank | C184: Regentville 132kV Capacitor Bank | D184: PS Augmentation | E184: Input_Proj_Commit | F184: 2011 | G184: 2013 | H184: 0 | I184: 3829.176582 | J184: 3233.728139 | K184: -6801.527477 | L184: 0 | M184: 0 | N184: 0 | O184: 0 | P184: 0 | Q184: 0 | R184: 0.95 | S184: 0.05 | T184: 0 | U184: 0 | V184: 0 | W184: 0 | X184: 0 | Y184: 0 | Z184: 1.110223025e-16 | AA184: 1 | AB184: 0 | AC184: 0 | AD184: 0 | AE184: 0 | AF184: 0 | AG184: 0 | AH184: 0 | AI184: 0 | AJ184: 0 | AK184: 0 | AL184: 0 | AM184: 0
A185: 7270 | B185: Capacitor Bank | C185: Sydney Area No.2 200MVAr Capacitor Bank | D185: PS Augmentation | E185: Input_Proj_Commit | F185: 2011 | G185: 2013 | H185: 0 | I185: 4735.848121 | J185: -4373.902283 | K185: -260.0580557 | L185: 0 | M185: 0 | N185: 0 | O185: 0 | P185: 0 | Q185: 0 | R185: 0.99 | S185: 0.01 | T185: 0 | U185: 0 | V185: 0 | W185: 0 | X185: 0 | Y185: 0 | Z185: 0 | AA185: 1 | AB185: 0 | AC185: 0 | AD185: 0 | AE185: 0 | AF185: 0 | AG185: 0 | AH185: 0 | AI185: 0 | AJ185: 0 | AK185: 0 | AL185: 0 | AM185: 0
A186: 7274 | B186: Capacitor Bank | C186: Tumut 132kV Capacitor Bank | D186: PS Augmentation | E186: Input_Proj_Commit | F186: 2011 | G186: 2013 | H186: 0 | I186: 30836.08904 | J186: 85.51027661 | K186: 0 | L186: -29503.10541 | M186: 0 | N186: 0 | O186: 0 | P186: 0 | Q186: 0 | R186: 1 | S186: 0 | T186: 0 | U186: 0 | V186: 0 | W186: 0 | X186: 0 | Y186: 0 | Z186: 0 | AA186: 1 | AB186: 0 | AC186: 0 | AD186: 0 | AE186: 0 | AF186: 0 | AG186: 0 | AH186: 0 | AI186: 0 | AJ186: 0 | AK186: 0 | AL186: 0 | AM186: 0
A187: 7326 | B187: Capacitor Bank | C187: Beryl No.2 66kV Capacitor Bank | D187: PS Augmentation | E187: Input_Proj_Commit | F187: 2011 | G187: 2013 | H187: 0 | I187: 0 | J187: 268.9129123 | K187: 0 | L187: 0 | M187: 0 | N187: 0 | O187: 0 | P187: 0 | Q187: 0 | R187: 0.99 | S187: 0.01 | T187: 0 | U187: 0 | V187: 0 | W187: 0 | X187: 0 | Y187: 0 | Z187: 0 | AA187: 1 | AB187: 0 | AC187: 0 | AD187: 0 | AE187: 0 | AF187: 0 | AG187: 0 | AH187: 0 | AI187: 0 | AJ187: 0 | AK187: 0 | AL187: 0 | AM187: 0
A188: 7828 | B188: Capacitor Bank | C188: Port Macquarie No.3 Capacitor Bank | D188: PS Augmentation | E188: Input_Proj_Commit | F188: 2012 | G188: 2013 | H188: 0 | I188: 0 | J188: 2372.297653 | K188: 2347.382735 | L188: 0 | M188: 0 | N188: 0 | O188: 0 | P188: 0 | Q188: 0 | R188: 0.9 | S188: 0.05 | T188: 0.05 | U188: 0 | V188: 0 | W188: 0 | X188: 0 | Y188: 0 | Z188: 1.110223025e-16 | AA188: 1 | AB188: 0 | AC188: 0 | AD188: 0 | AE188: 0 | AF188: 0 | AG188: 0 | AH188: 0 | AI188: 0 | AJ188: 0 | AK188: 0 | AL188: 0 | AM188: 0
A189: 6239 | B189: Capacitor Bank | C189: Tamworth Capacitor Banks | D189: PS Augmentation | E189: Input_Proj_Commit | F189: 2013 | G189: 2013 | H189: 1879.203941 | I189: 0 | J189: 0 | K189: -1623.283093 | L189: 0 | M189: 0 | N189: 0 | O189: 0 | P189: 0 | Q189: 0 | R189: 1 | S189: 0 | T189: 0 | U189: 0 | V189: 0 | W189: 0 | X189: 0 | Y189: 0 | Z189: 0 | AA189: 1 | AB189: 0 | AC189: 0 | AD189: 0 | AE189: 0 | AF189: 0 | AG189: 0 | AH189: 0 | AI189: 0 | AJ189: 0 | AK189: 0 | AL189: 0 | AM189: 0
A190: 7269 | B190: Capacitor Bank | C190: Sydney South 200 MVAr Capacitor Bank | D190: PS Augmentation | E190: Input_Proj_Commit | F190: 2014 | G190: 2013 | H190: 0 | I190: 29921.06994 | J190: 90937.79995 | K190: 1275232.663 | L190: 3467326.448 | M190: 0 | N190: 0 | O190: 0 | P190: 0 | Q190: 0 | R190: 0.9 | S190: 0.05 | T190: 0.05 | U190: 0 | V190: 0 | W190: 0 | X190: 0 | Y190: 0 | Z190: 0 | AA190: 1 | AB190: 0 | AC190: 0 | AD190: 0 | AE190: 0 | AF190: 0 | AG190: 0 | AH190: 0 | AI190: 0 | AJ190: 0 | AK190: 0 | AL190: 0 | AM190: 0
A191: 6383 | B191: Capacitor Bank | C191: Canberra 132kV 120MVAr Capacitor Bank | D191: PS Augmentation | E191: Input_Proj_Commit | F191: 2015 | G191: 2013 | H191: -6.319124653 | I191: -9539.912787 | J191: 0 | K191: 0 | L191: 0 | M191: 0 | N191: 0 | O191: 0 | P191: 0 | Q191: 0 | R191: 1 | S191: 0 | T191: 0 | U191: 0 | V191: 0 | W191: 0 | X191: 0 | Y191: 0 | Z191: 0 | AA191: 1 | AB191: 0 | AC191: 0 | AD191: 0 | AE191: 0 | AF191: 0 | AG191: 0 | AH191: 0 | AI191: 0 | AJ191: 0 | AK191: 0 | AL191: 0 | AM191: 0
A192: 7265 | B192: Capacitor Bank | C192: Canberra 132kV 120MVAr Capacitor Bank | D192: PS Augmentation | E192: Input_Proj_Commit | F192: 2015 | G192: 2013 | H192: 0 | I192: 6941.020503 | J192: 0 | K192: 0 | L192: 0 | M192: 0 | N192: 0 | O192: 0 | P192: 0 | Q192: 0 | R192: 0.99 | S192: 0.01 | T192: 0 | U192: 0 | V192: 0 | W192: 0 | X192: 0 | Y192: 0 | Z192: 0 | AA192: 1 | AB192: 0 | AC192: 0 | AD192: 0 | AE192: 0 | AF192: 0 | AG192: 0 | AH192: 0 | AI192: 0 | AJ192: 0 | AK192: 0 | AL192: 0 | AM192: 0
A193: 7266 | B193: Capacitor Bank | C193: Canberra 132kV 120MVAr Capacitor Bank | D193: PS Augmentation | E193: Input_Proj_Commit | F193: 2015 | G193: 2013 | H193: -5.620527958 | I193: 223.2146999 | J193: 0 | K193: 90436.55893 | L193: 1941773.308 | M193: 774639.93 | N193: 0 | O193: 0 | P193: 0 | Q193: 0 | R193: 0.95 | S193: 0.05 | T193: 0 | U193: 0 | V193: 0 | W193: 0 | X193: 0 | Y193: 0 | Z193: 0 | AA193: 1 | AB193: 0 | AC193: 0 | AD193: 0 | AE193: 0 | AF193: 0 | AG193: 0 | AH193: 0 | AI193: 0 | AJ193: 0 | AK193: 0 | AL193: 0 | AM193: 0
A194: 7276 | B194: Capacitor Bank | C194: Yass 132kV 80MVAr Capacitor Bank | D194: PS Augmentation | E194: Input_Proj_Commit | F194: 2015 | G194: 2013 | H194: -5.165381626 | I194: 4467.176387 | J194: 1618.438406 | K194: 81698.07994 | L194: 1477051.366 | M194: 1187443.63 | N194: 0 | O194: 0 | P194: 0 | Q194: 0 | R194: 0.9499999998 | S194: 0.05000000024 | T194: 0 | U194: 0 | V194: 0 | W194: 0 | X194: 0 | Y194: 0 | Z194: 0 | AA194: 1 | AB194: 0 | AC194: 0 | AD194: 0 | AE194: 0 | AF194: 0 | AG194: 0 | AH194: 0 | AI194: 0 | AJ194: 0 | AK194: 0 | AL194: 0 | AM194: 0
A195: 5893 | B195: Capacity of Armidale to Coffs Harbour | C195: Armidale 132kV Phase Shifting Transformer | D195: PS Augmentation | E195: Input_Proj_Commit | F195: 2011 | G195: 2013 | H195: 14084.9478 | I195: 7231.800886 | J195: 0 | K195: 0 | L195: 0 | M195: 0 | N195: 0 | O195: 0 | P195: 0 | Q195: 0 | R195: 1 | S195: 0 | T195: 0 | U195: 0 | V195: 0 | W195: 0 | X195: 0 | Y195: 0 | Z195: 0 | AA195: 1 | AB195: 0 | AC195: 0 | AD195: 0 | AE195: 0 | AF195: 0 | AG195: 0 | AH195: 0 | AI195: 0 | AJ195: 0 | AK195: 0 | AL195: 0 | AM195: 0
A196: 6719 | B196: Capacity of Armidale to Coffs Harbour | C196: Line 96C Armidale to Coffs Harbour Upgrade | D196: PS Augmentation | E196: Input_Proj_Commit | F196: 2011 | G196: 2013 | H196: 334261.8371 | I196: 4105600.807 | J196: 571275.5495 | K196: 86766.26489 | L196: 0 | M196: 0 | N196: 0 | O196: 0 | P196: 0 | Q196: 1 | R196: 0 | S196: 0 | T196: 0 | U196: 0 | V196: 0 | W196: 0 | X196: 0 | Y196: 0 | Z196: 0 | AA196: 1 | AB196: 0 | AC196: 0 | AD196: 0 | AE196: 0 | AF196: 0 | AG196: 0 | AH196: 0 | AI196: 0 | AJ196: 0 | AK196: 0 | AL196: 0 | AM196: 0
A197: 5907 | B197: Capacity of Coffs Harbour to Kempsey | C197: Coffs Harbour to Kempsey Transmission Line Upgrade from 66kV to 132kV | D197: PS Augmentation | E197: Input_Proj_Commit | F197: 2010 | G197: 2013 | H197: 2690761.234 | I197: 261866.2995 | J197: 40011.60091 | K197: 34582.05382 | L197: 187.2764955 | M197: 0 | N197: 0 | O197: 0 | P197: 0 | Q197: 0.9001869231 | R197: 0 | S197: 0 | T197: 0 | U197: 0.09981307694 | V197: 0 | W197: 0 | X197: 0 | Y197: 0 | Z197: 0 | AA197: 1 | AB197: 0 | AC197: 0 | AD197: 0 | AE197: 0 | AF197: 0 | AG197: 0 | AH197: 0 | AI197: 0 | AJ197: 0 | AK197: 0 | AL197: 0 | AM197: =ABS(1-SUM(AA197:AL197)) -> 0
A198: 3912 | B198: Capacity of Kempsey to Port Macquarie | C198: Kempsey to Port Macquarie 132kV Transmission Line | D198: PS Augmentation | E198: Input_Proj_Commit | F198: 2012 | G198: 2013 | H198: 11283339.26 | I198: 11024603.22 | J198: 7096165.666 | K198: 278178.3872 | L198: 3479.508577 | M198: 0 | N198: 0 | O198: 0 | P198: 0 | Q198: 0.85 | R198: 0.05 | S198: 0 | T198: 0 | U198: 0.1 | V198: 0 | W198: 0 | X198: 0 | Y198: 0 | Z198: 0 | AA198: 1 | AB198: 0 | AC198: 0 | AD198: 0 | AE198: 0 | AF198: 0 | AG198: 0 | AH198: 0 | AI198: 0 | AJ198: 0 | AK198: 0 | AL198: 0 | AM198: 0
A199: 5553 | B199: Capacity of Queensland to NSW Interconnector | C199: Bulli Creek to Dumaresq Terminal Equipment Upgrade | D199: PS Augmentation | E199: Input_Proj_Commit | F199: 2013 | G199: 2013 | H199: 165.9802239 | I199: 0 | J199: 0 | K199: -4877.921882 | L199: 0 | M199: 0 | N199: 0 | O199: 0 | P199: 0 | Q199: 1 | R199: 0 | S199: 0 | T199: 0 | U199: 0 | V199: 0 | W199: 0 | X199: 0 | Y199: 0 | Z199: 0 | AA199: 1 | AB199: 0 | AC199: 0 | AD199: 0 | AE199: 0 | AF199: 0 | AG199: 0 | AH199: 0 | AI199: 0 | AJ199: 0 | AK199: 0 | AL199: 0 | AM199: 0
A200: 6098 | B200: Capacity of Queensland to NSW Interconnector | C200: Armidale 330kV Static VAR Compensator | D200: PS Augmentation | E200: Input_Proj_Commit | F200: 2013 | G200: 2013 | H200: 497.2209055 | I200: 3771.3635 | J200: 23527.87014 | K200: 12627.52183 | L200: 0 | M200: 0 | N200: 0 | O200: 0 | P200: 0 | Q200: 0 | R200: 1 | S200: 0 | T200: 0 | U200: 0 | V200: 0 | W200: 0 | X200: 0 | Y200: 0 | Z200: 0 | AA200: 1 | AB200: 0 | AC200: 0 | AD200: 0 | AE200: 0 | AF200: 0 | AG200: 0 | AH200: 0 | AI200: 0 | AJ200: 0 | AK200: 0 | AL200: 0 | AM200: 0
... 573 more rows

Sheet Costs ($2014) Excl Real Esc
A1: Costs (Real $2014) Excluding Real Escalation
H2: =SUM(H5:H764) -> 443798051.8 | I2: 388684813.8 | J2: 372693509.5 | K2: 494640725.5 | L2: 489662551.7 | M2: 254380125.6 | N2: 300316945.2 | O2: 228906995.3 | P2: 212560372.9 | R2: =SUM(R5:R764) -> 550526931.4 | S2: =SUM(S5:S764) -> 313674619 | T2: =SUM(T5:T764) -> 226978391.3 | U2: =SUM(U5:U764) -> 293824082.3
H3: Capex Incurred | R3: Capex Commissioned | W3: ='Cost Escalators'!$A66 -> Capex Commissioned 2015 - Transitional Adjustment
A4: ='Input Data'!A4 -> Program \ Project No. | B4: ='Input Data'!B4 -> Program \ Project Grouping | C4: ='Input Data'!C4 -> Program \ Project Name | D4: ='Input Data'!D4 -> Program \ Project Category | E4: ='Input Data'!E4 -> Committed / Future | F4: ='Input Data'!F4 -> Commissioning Date | G4: ='Input Data'!G4 -> Effective Estimate Year | H4: ='Input Data'!H4 -> 2010 | I4: ='Input Data'!I4 -> 2011 | J4: ='Input Data'!J4 -> 2012 | K4: ='Input Data'!K4 -> 2013 | L4: ='Input Data'!L4 -> 2014 | M4: ='Input Data'!M4 -> 2015 | N4: ='Input Data'!N4 -> 2016 | O4: ='Input Data'!O4 -> 2017 | P4: ='Input Data'!P4 -> 2018 | R4: =M4 -> 2015 | S4: =N4 -> 2016 | T4: 2017 | U4: 2018 | W4: =R4 -> 2015
A5: ='Input Data'!A5 -> 6716 | B5: ='Input Data'!B5 -> Communications | C5: ='Input Data'!C5 -> Establishment of Gigabit Ethernet CDN Network | D5: ='Input Data'!D5 -> PS Facilities | E5: ='Input Data'!E5 -> Input_Prog_Commit | F5: ='Input Data'!F5 -> 0 | G5: ='Input Data'!G5 -> 2013 | H5: ='Input Data'!H5*IF($G5='Cost Escalators'!$B$4,'Cost Escalators'!$B$6,IF($G5='Cost Escalators'!$C$4,'Cost Escalators'!$C$6,'Cost Escalators'!$E$6)) -> -0.9587511939 | I5: ='Input Data'!I5*IF($G5='Cost Escalators'!$B$4,'Cost Escalators'!$B$6,IF($G5='Cost Escalators'!$C$4,'Cost Escalators'!$C$6,'Cost Escalators'!$E$6)) -> 0 | J5: ='Input Data'!J5*IF($G5='Cost Escalators'!$B$4,'Cost Escalators'!$B$6,IF($G5='Cost Escalators'!$C$4,'Cost Escalators'!$C$6,'Cost Escalators'!$E$6)) -> 0 | K5: ='Input Data'!K5*IF($G5='Cost Escalators'!$B$4,'Cost Escalators'!$B$6,IF($G5='Cost Escalators'!$C$4,'Cost Escalators'!$C$6,'Cost Escalators'!$E$6)) -> 0 | L5: ='Input Data'!L5*IF($G5='Cost Escalators'!$B$4,'Cost Escalators'!$B$6,IF($G5='Cost Escalators'!$C$4,'Cost Escalators'!$C$6,'Cost Escalators'!$E$6)) -> 2402618.577 | M5: ='Input Data'!M5*IF($G5='Cost Escalators'!$B$4,'Cost Escalators'!$B$6,IF($G5='Cost Escalators'!$C$4,'Cost Escalators'!$C$6,'Cost Escalators'!$E$6)) -> 0 | N5: ='Input Data'!N5*IF($G5='Cost Escalators'!$B$4,'Cost Escalators'!$B$6,IF($G5='Cost Escalators'!$C$4,'Cost Escalators'!$C$6,'Cost Escalators'!$E$6)) -> 0 | O5: ='Input Data'!O5*IF($G5='Cost Escalators'!$B$4,'Cost Escalators'!$B$6,IF($G5='Cost Escalators'!$C$4,'Cost Escalators'!$C$6,'Cost Escalators'!$E$6)) -> 0 | P5: ='Input Data'!P5*IF($G5='Cost Escalators'!$B$4,'Cost Escalators'!$B$6,IF($G5='Cost Escalators'!$C$4,'Cost Escalators'!$C$6,'Cost Escalators'!$E$6)) -> 0 | R5: =IF($F5=0,M5,IF($F5=R$4,SUM($H5:$P5),0)) -> 0 | S5: =IF($F5=0,N5,IF($F5=S$4,SUM($H5:$P5),0)) -> 0 | T5: =IF($F5=0,O5,IF($F5=T$4,SUM($H5:$P5),0)) -> 0 | U5: =IF($F5=0,P5,IF($F5=U$4,SUM($H5:$P5),0)) -> 0 | W5: =IF(OR($A5='Cost Escalators'!$A$68,$A5='Cost Escalators'!$A$69,$A5='Cost Escalators'!$A$70,$A5='Cost Escalators'!$A$71),SUM($H5:$L5),0) -> 0
A6: ='Input Data'!A6 -> 5161 | B6: ='Input Data'!B6 -> Non HV Buildings & Civil Work | C6: ='Input Data'!C6 -> Building Improvements | D6: ='Input Data'!D6 -> PS Facilities | E6: ='Input Data'!E6 -> Input_Prog_Commit | F6: ='Input Data'!F6 -> 0 | G6: ='Input Data'!G6 -> 2013 | H6: ='Input Data'!H6*IF($G6='Cost Escalators'!$B$4,'Cost Escalators'!$B$6,IF($G6='Cost Escalators'!$C$4,'Cost Escalators'!$C$6,'Cost Escalators'!$E$6)) -> 3176428.264 | I6: ='Input Data'!I6*IF($G6='Cost Escalators'!$B$4,'Cost Escalators'!$B$6,IF($G6='Cost Escalators'!$C$4,'Cost Escalators'!$C$6,'Cost Escalators'!$E$6)) -> 3751266.967 | J6: ='Input Data'!J6*IF($G6='Cost Escalators'!$B$4,'Cost Escalators'!$B$6,IF($G6='Cost Escalators'!$C$4,'Cost Escalators'!$C$6,'Cost Escalators'!$E$6)) -> 5437667.03 | K6: ='Input Data'!K6*IF($G6='Cost Escalators'!$B$4,'Cost Escalators'!$B$6,IF($G6='Cost Escalators'!$C$4,'Cost Escalators'!$C$6,'Cost Escalators'!$E$6)) -> 5379657.821 | L6: ='Input Data'!L6*IF($G6='Cost Escalators'!$B$4,'Cost Escalators'!$B$6,IF($G6='Cost Escalators'!$C$4,'Cost Escalators'!$C$6,'Cost Escalators'!$E$6)) -> 6279936.957 | M6: ='Input Data'!M6*IF($G6='Cost Escalators'!$B$4,'Cost Escalators'!$B$6,IF($G6='Cost Escalators'!$C$4,'Cost Escalators'!$C$6,'Cost Escalators'!$E$6)) -> 0 | N6: ='Input Data'!N6*IF($G6='Cost Escalators'!$B$4,'Cost Escalators'!$B$6,IF($G6='Cost Escalators'!$C$4,'Cost Escalators'!$C$6,'Cost Escalators'!$E$6)) -> 0 | O6: ='Input Data'!O6*IF($G6='Cost Escalators'!$B$4,'Cost Escalators'!$B$6,IF($G6='Cost Escalators'!$C$4,'Cost Escalators'!$C$6,'Cost Escalators'!$E$6)) -> 0 | P6: ='Input Data'!P6*IF($G6='Cost Escalators'!$B$4,'Cost Escalators'!$B$6,IF($G6='Cost Escalators'!$C$4,'Cost Escalators'!$C$6,'Cost Escalators'!$E$6)) -> 0 | R6: 0 | S6: 0 | T6: 0 | U6: 0 | W6: =IF(OR(A6='Cost Escalators'!A$68,A6='Cost Escalators'!A$69,A6='Cost Escalators'!A$70,A6='Cost Escalators'!A$71),SUM(H6:L6),0) -> 0
A7: ='Input Data'!A7 -> 5976 | B7: ='Input Data'!B7 -> Non HV Buildings & Civil Work | C7: ='Input Data'!C7 -> HO Refurbishment | D7: ='Input Data'!D7 -> PS Facilities | E7: ='Input Data'!E7 -> Input_Prog_Commit | F7: ='Input Data'!F7 -> 0 | G7: ='Input Data'!G7 -> 2013 | H7: ='Input Data'!H7*IF($G7='Cost Escalators'!$B$4,'Cost Escalators'!$B$6,IF($G7='Cost Escalators'!$C$4,'Cost Escalators'!$C$6,'Cost Escalators'!$E$6)) -> -1489172.955 | I7: ='Input Data'!I7*IF($G7='Cost Escalators'!$B$4,'Cost Escalators'!$B$6,IF($G7='Cost Escalators'!$C$4,'Cost Escalators'!$C$6,'Cost Escalators'!$E$6)) -> 1321.714785 | J7: ='Input Data'!J7*IF($G7='Cost Escalators'!$B$4,'Cost Escalators'!$B$6,IF($G7='Cost Escalators'!$C$4,'Cost Escalators'!$C$6,'Cost Escalators'!$E$6)) -> 0 | K7: ='Input Data'!K7*IF($G7='Cost Escalators'!$B$4,'Cost Escalators'!$B$6,IF($G7='Cost Escalators'!$C$4,'Cost Escalators'!$C$6,'Cost Escalators'!$E$6)) -> 0 | L7: ='Input Data'!L7*IF($G7='Cost Escalators'!$B$4,'Cost Escalators'!$B$6,IF($G7='Cost Escalators'!$C$4,'Cost Escalators'!$C$6,'Cost Escalators'!$E$6)) -> 0 | M7: ='Input Data'!M7*IF($G7='Cost Escalators'!$B$4,'Cost Escalators'!$B$6,IF($G7='Cost Escalators'!$C$4,'Cost Escalators'!$C$6,'Cost Escalators'!$E$6)) -> 0 | N7: ='Input Data'!N7*IF($G7='Cost Escalators'!$B$4,'Cost Escalators'!$B$6,IF($G7='Cost Escalators'!$C$4,'Cost Escalators'!$C$6,'Cost Escalators'!$E$6)) -> 0 | O7: ='Input Data'!O7*IF($G7='Cost Escalators'!$B$4,'Cost Escalators'!$B$6,IF($G7='Cost Escalators'!$C$4,'Cost Escalators'!$C$6,'Cost Escalators'!$E$6)) -> 0 | P7: ='Input Data'!P7*IF($G7='Cost Escalators'!$B$4,'Cost Escalators'!$B$6,IF($G7='Cost Escalators'!$C$4,'Cost Escalators'!$C$6,'Cost Escalators'!$E$6)) -> 0 | R7: 0 | S7: 0 | T7: 0 | U7: 0 | W7: =IF(OR(A7='Cost Escalators'!A$68,A7='Cost Escalators'!A$69,A7='Cost Escalators'!A$70,A7='Cost Escalators'!A$71),SUM(H7:L7),0) -> 0
A8: ='Input Data'!A8 -> 5989 | B8: ='Input Data'!B8 -> Non HV Buildings & Civil Work | C8: ='Input Data'!C8 -> Sydney West Warehouse Extension | D8: ='Input Data'!D8 -> PS Facilities | E8: ='Input Data'!E8 -> Input_Prog_Commit | F8: ='Input Data'!F8 -> 0 | G8: ='Input Data'!G8 -> 2013 | H8: ='Input Data'!H8*IF($G8='Cost Escalators'!$B$4,'Cost Escalators'!$B$6,IF($G8='Cost Escalators'!$C$4,'Cost Escalators'!$C$6,'Cost Escalators'!$E$6)) -> 105053.4134 | I8: ='Input Data'!I8*IF($G8='Cost Escalators'!$B$4,'Cost Escalators'!$B$6,IF($G8='Cost Escalators'!$C$4,'Cost Escalators'!$C$6,'Cost Escalators'!$E$6)) -> 125229.3027 | J8: ='Input Data'!J8*IF($G8='Cost Escalators'!$B$4,'Cost Escalators'!$B$6,IF($G8='Cost Escalators'!$C$4,'Cost Escalators'!$C$6,'Cost Escalators'!$E$6)) -> 0 | K8: ='Input Data'!K8*IF($G8='Cost Escalators'!$B$4,'Cost Escalators'!$B$6,IF($G8='Cost Escalators'!$C$4,'Cost Escalators'!$C$6,'Cost Escalators'!$E$6)) -> 0 | L8: ='Input Data'!L8*IF($G8='Cost Escalators'!$B$4,'Cost Escalators'!$B$6,IF($G8='Cost Escalators'!$C$4,'Cost Escalators'!$C$6,'Cost Escalators'!$E$6)) -> 0 | M8: ='Input Data'!M8*IF($G8='Cost Escalators'!$B$4,'Cost Escalators'!$B$6,IF($G8='Cost Escalators'!$C$4,'Cost Escalators'!$C$6,'Cost Escalators'!$E$6)) -> 0 | N8: ='Input Data'!N8*IF($G8='Cost Escalators'!$B$4,'Cost Escalators'!$B$6,IF($G8='Cost Escalators'!$C$4,'Cost Escalators'!$C$6,'Cost Escalators'!$E$6)) -> 0 | O8: ='Input Data'!O8*IF($G8='Cost Escalators'!$B$4,'Cost Escalators'!$B$6,IF($G8='Cost Escalators'!$C$4,'Cost Escalators'!$C$6,'Cost Escalators'!$E$6)) -> 0 | P8: ='Input Data'!P8*IF($G8='Cost Escalators'!$B$4,'Cost Escalators'!$B$6,IF($G8='Cost Escalators'!$C$4,'Cost Escalators'!$C$6,'Cost Escalators'!$E$6)) -> 0 | R8: 0 | S8: 0 | T8: 0 | U8: 0 | W8: =IF(OR(A8='Cost Escalators'!A$68,A8='Cost Escalators'!A$69,A8='Cost Escalators'!A$70,A8='Cost Escalators'!A$71),SUM(H8:L8),0) -> 0
A9: ='Input Data'!A9 -> 7332 | B9: ='Input Data'!B9 -> Non HV Buildings & Civil Work | C9: ='Input Data'!C9 -> Strategic Accomodation | D9: ='Input Data'!D9 -> PS Facilities | E9: ='Input Data'!E9 -> Input_Prog_Commit | F9: ='Input Data'!F9 -> 0 | G9: ='Input Data'!G9 -> 2013 | H9: ='Input Data'!H9*IF($G9='Cost Escalators'!$B$4,'Cost Escalators'!$B$6,IF($G9='Cost Escalators'!$C$4,'Cost Escalators'!$C$6,'Cost Escalators'!$E$6)) -> 0 | I9: ='Input Data'!I9*IF($G9='Cost Escalators'!$B$4,'Cost Escalators'!$B$6,IF($G9='Cost Escalators'!$C$4,'Cost Escalators'!$C$6,'Cost Escalators'!$E$6)) -> 495867.152 | J9: ='Input Data'!J9*IF($G9='Cost Escalators'!$B$4,'Cost Escalators'!$B$6,IF($G9='Cost Escalators'!$C$4,'Cost Escalators'!$C$6,'Cost Escalators'!$E$6)) -> 7097031.691 | K9: ='Input Data'!K9*IF($G9='Cost Escalators'!$B$4,'Cost Escalators'!$B$6,IF($G9='Cost Escalators'!$C$4,'Cost Escalators'!$C$6,'Cost Escalators'!$E$6)) -> 0 | L9: ='Input Data'!L9*IF($G9='Cost Escalators'!$B$4,'Cost Escalators'!$B$6,IF($G9='Cost Escalators'!$C$4,'Cost Escalators'!$C$6,'Cost Escalators'!$E$6)) -> 0 | M9: ='Input Data'!M9*IF($G9='Cost Escalators'!$B$4,'Cost Escalators'!$B$6,IF($G9='Cost Escalators'!$C$4,'Cost Escalators'!$C$6,'Cost Escalators'!$E$6)) -> 0 | N9: ='Input Data'!N9*IF($G9='Cost Escalators'!$B$4,'Cost Escalators'!$B$6,IF($G9='Cost Escalators'!$C$4,'Cost Escalators'!$C$6,'Cost Escalators'!$E$6)) -> 0 | O9: ='Input Data'!O9*IF($G9='Cost Escalators'!$B$4,'Cost Escalators'!$B$6,IF($G9='Cost Escalators'!$C$4,'Cost Escalators'!$C$6,'Cost Escalators'!$E$6)) -> 0 | P9: ='Input Data'!P9*IF($G9='Cost Escalators'!$B$4,'Cost Escalators'!$B$6,IF($G9='Cost Escalators'!$C$4,'Cost Escalators'!$C$6,'Cost Escalators'!$E$6)) -> 0 | R9: 0 | S9: 0 | T9: 0 | U9: 0 | W9: =IF(OR(A9='Cost Escalators'!A$68,A9='Cost Escalators'!A$69,A9='Cost Escalators'!A$70,A9='Cost Escalators'!A$71),SUM(H9:L9),0) -> 0
A10: ='Input Data'!A10 -> 7332 | B10: ='Input Data'!B10 -> Non HV Buildings & Civil Work | C10: ='Input Data'!C10 -> Strategic Accomodation | D10: ='Input Data'!D10 -> PS Facilities | E10: ='Input Data'!E10 -> Input_Prog_Commit | F10: ='Input Data'!F10 -> 0 | G10: ='Input Data'!G10 -> 2014 | H10: ='Input Data'!H10*IF($G10='Cost Escalators'!$B$4,'Cost Escalators'!$B$6,IF($G10='Cost Escalators'!$C$4,'Cost Escalators'!$C$6,'Cost Escalators'!$E$6)) -> 0 | I10: ='Input Data'!I10*IF($G10='Cost Escalators'!$B$4,'Cost Escalators'!$B$6,IF($G10='Cost Escalators'!$C$4,'Cost Escalators'!$C$6,'Cost Escalators'!$E$6)) -> 0 | J10: ='Input Data'!J10*IF($G10='Cost Escalators'!$B$4,'Cost Escalators'!$B$6,IF($G10='Cost Escalators'!$C$4,'Cost Escalators'!$C$6,'Cost Escalators'!$E$6)) -> 0 | K10: ='Input Data'!K10*IF($G10='Cost Escalators'!$B$4,'Cost Escalators'!$B$6,IF($G10='Cost Escalators'!$C$4,'Cost Escalators'!$C$6,'Cost Escalators'!$E$6)) -> 0 | L10: ='Input Data'!L10*IF($G10='Cost Escalators'!$B$4,'Cost Escalators'!$B$6,IF($G10='Cost Escalators'!$C$4,'Cost Escalators'!$C$6,'Cost Escalators'!$E$6)) -> 0 | M10: ='Input Data'!M10*IF($G10='Cost Escalators'!$B$4,'Cost Escalators'!$B$6,IF($G10='Cost Escalators'!$C$4,'Cost Escalators'!$C$6,'Cost Escalators'!$E$6)) -> 8612015 | N10: ='Input Data'!N10*IF($G10='Cost Escalators'!$B$4,'Cost Escalators'!$B$6,IF($G10='Cost Escalators'!$C$4,'Cost Escalators'!$C$6,'Cost Escalators'!$E$6)) -> 10973300 | O10: ='Input Data'!O10*IF($G10='Cost Escalators'!$B$4,'Cost Escalators'!$B$6,IF($G10='Cost Escalators'!$C$4,'Cost Escalators'!$C$6,'Cost Escalators'!$E$6)) -> 4832700 | P10: ='Input Data'!P10*IF($G10='Cost Escalators'!$B$4,'Cost Escalators'!$B$6,IF($G10='Cost Escalators'!$C$4,'Cost Escalators'!$C$6,'Cost Escalators'!$E$6)) -> 0 | R10: 8612015 | S10: 10973300 | T10: 4832700 | U10: 0 | W10: =IF(OR(A10='Cost Escalators'!A$68,A10='Cost Escalators'!A$69,A10='Cost Escalators'!A$70,A10='Cost Escalators'!A$71),SUM(H10:L10),0) -> 0
A11: ='Input Data'!A11 -> 7332 | B11: ='Input Data'!B11 -> Non HV Buildings & Civil Work | C11: ='Input Data'!C11 -> Strategic Accomodation | D11: ='Input Data'!D11 -> PS Facilities | E11: ='Input Data'!E11 -> Input_Prog_Commit | F11: ='Input Data'!F11 -> 0 | G11: ='Input Data'!G11 -> 2013 | H11: ='Input Data'!H11*IF($G11='Cost Escalators'!$B$4,'Cost Escalators'!$B$6,IF($G11='Cost Escalators'!$C$4,'Cost Escalators'!$C$6,'Cost Escalators'!$E$6)) -> 0 | I11: ='Input Data'!I11*IF($G11='Cost Escalators'!$B$4,'Cost Escalators'!$B$6,IF($G11='Cost Escalators'!$C$4,'Cost Escalators'!$C$6,'Cost Escalators'!$E$6)) -> 0 | J11: ='Input Data'!J11*IF($G11='Cost Escalators'!$B$4,'Cost Escalators'!$B$6,IF($G11='Cost Escalators'!$C$4,'Cost Escalators'!$C$6,'Cost Escalators'!$E$6)) -> 0 | K11: ='Input Data'!K11*IF($G11='Cost Escalators'!$B$4,'Cost Escalators'!$B$6,IF($G11='Cost Escalators'!$C$4,'Cost Escalators'!$C$6,'Cost Escalators'!$E$6)) -> 15821291.54 | L11: ='Input Data'!L11*IF($G11='Cost Escalators'!$B$4,'Cost Escalators'!$B$6,IF($G11='Cost Escalators'!$C$4,'Cost Escalators'!$C$6,'Cost Escalators'!$E$6)) -> 43417772.45 | M11: ='Input Data'!M11*IF($G11='Cost Escalators'!$B$4,'Cost Escalators'!$B$6,IF($G11='Cost Escalators'!$C$4,'Cost Escalators'!$C$6,'Cost Escalators'!$E$6)) -> 0 | N11: ='Input Data'!N11*IF($G11='Cost Escalators'!$B$4,'Cost Escalators'!$B$6,IF($G11='Cost Escalators'!$C$4,'Cost Escalators'!$C$6,'Cost Escalators'!$E$6)) -> 0 | O11: ='Input Data'!O11*IF($G11='Cost Escalators'!$B$4,'Cost Escalators'!$B$6,IF($G11='Cost Escalators'!$C$4,'Cost Escalators'!$C$6,'Cost Escalators'!$E$6)) -> 0 | P11: ='Input Data'!P11*IF($G11='Cost Escalators'!$B$4,'Cost Escalators'!$B$6,IF($G11='Cost Escalators'!$C$4,'Cost Escalators'!$C$6,'Cost Escalators'!$E$6)) -> 0 | R11: 0 | S11: 0 | T11: 0 | U11: 0 | W11: =IF(OR(A11='Cost Escalators'!A$68,A11='Cost Escalators'!A$69,A11='Cost Escalators'!A$70,A11='Cost Escalators'!A$71),SUM(H11:L11),0) -> 0
A12: ='Input Data'!A12 -> 7517 | B12: ='Input Data'!B12 -> Non HV Buildings & Civil Work | C12: ='Input Data'!C12 -> Newcastle Mezzanine Floor | D12: ='Input Data'!D12 -> PS Facilities | E12: ='Input Data'!E12 -> Input_Prog_Commit | F12: ='Input Data'!F12 -> 0 | G12: ='Input Data'!G12 -> 2013 | H12: ='Input Data'!H12*IF($G12='Cost Escalators'!$B$4,'Cost Escalators'!$B$6,IF($G12='Cost Escalators'!$C$4,'Cost Escalators'!$C$6,'Cost Escalators'!$E$6)) -> 0 | I12: ='Input Data'!I12*IF($G12='Cost Escalators'!$B$4,'Cost Escalators'!$B$6,IF($G12='Cost Escalators'!$C$4,'Cost Escalators'!$C$6,'Cost Escalators'!$E$6)) -> 37786.78143 | J12: ='Input Data'!J12*IF($G12='Cost Escalators'!$B$4,'Cost Escalators'!$B$6,IF($G12='Cost Escalators'!$C$4,'Cost Escalators'!$C$6,'Cost Escalators'!$E$6)) -> 0 | K12: ='Input Data'!K12*IF($G12='Cost Escalators'!$B$4,'Cost Escalators'!$B$6,IF($G12='Cost Escalators'!$C$4,'Cost Escalators'!$C$6,'Cost Escalators'!$E$6)) -> 0 | L12: ='Input Data'!L12*IF($G12='Cost Escalators'!$B$4,'Cost Escalators'!$B$6,IF($G12='Cost Escalators'!$C$4,'Cost Escalators'!$C$6,'Cost Escalators'!$E$6)) -> 0 | M12: ='Input Data'!M12*IF($G12='Cost Escalators'!$B$4,'Cost Escalators'!$B$6,IF($G12='Cost Escalators'!$C$4,'Cost Escalators'!$C$6,'Cost Escalators'!$E$6)) -> 0 | N12: ='Input Data'!N12*IF($G12='Cost Escalators'!$B$4,'Cost Escalators'!$B$6,IF($G12='Cost Escalators'!$C$4,'Cost Escalators'!$C$6,'Cost Escalators'!$E$6)) -> 0 | O12: ='Input Data'!O12*IF($G12='Cost Escalators'!$B$4,'Cost Escalators'!$B$6,IF($G12='Cost Escalators'!$C$4,'Cost Escalators'!$C$6,'Cost Escalators'!$E$6)) -> 0 | P12: ='Input Data'!P12*IF($G12='Cost Escalators'!$B$4,'Cost Escalators'!$B$6,IF($G12='Cost Escalators'!$C$4,'Cost Escalators'!$C$6,'Cost Escalators'!$E$6)) -> 0 | R12: 0 | S12: 0 | T12: 0 | U12: 0 | W12: =IF(OR(A12='Cost Escalators'!A$68,A12='Cost Escalators'!A$69,A12='Cost Escalators'!A$70,A12='Cost Escalators'!A$71),SUM(H12:L12),0) -> 0
A13: ='Input Data'!A13 -> 8050 | B13: ='Input Data'!B13 -> Non HV Buildings & Civil Work | C13: ='Input Data'!C13 -> Haymarket Blast Wall | D13: ='Input Data'!D13 -> PS Facilities | E13: ='Input Data'!E13 -> Input_Prog_Commit | F13: ='Input Data'!F13 -> 0 | G13: ='Input Data'!G13 -> 2014 | H13: ='Input Data'!H13*IF($G13='Cost Escalators'!$B$4,'Cost Escalators'!$B$6,IF($G13='Cost Escalators'!$C$4,'Cost Escalators'!$C$6,'Cost Escalators'!$E$6)) -> 0 | I13: ='Input Data'!I13*IF($G13='Cost Escalators'!$B$4,'Cost Escalators'!$B$6,IF($G13='Cost Escalators'!$C$4,'Cost Escalators'!$C$6,'Cost Escalators'!$E$6)) -> 0 | J13: ='Input Data'!J13*IF($G13='Cost Escalators'!$B$4,'Cost Escalators'!$B$6,IF($G13='Cost Escalators'!$C$4,'Cost Escalators'!$C$6,'Cost Escalators'!$E$6)) -> 0 | K13: ='Input Data'!K13*IF($G13='Cost Escalators'!$B$4,'Cost Escalators'!$B$6,IF($G13='Cost Escalators'!$C$4,'Cost Escalators'!$C$6,'Cost Escalators'!$E$6)) -> 0 | L13: ='Input Data'!L13*IF($G13='Cost Escalators'!$B$4,'Cost Escalators'!$B$6,IF($G13='Cost Escalators'!$C$4,'Cost Escalators'!$C$6,'Cost Escalators'!$E$6)) -> 0 | M13: ='Input Data'!M13*IF($G13='Cost Escalators'!$B$4,'Cost Escalators'!$B$6,IF($G13='Cost Escalators'!$C$4,'Cost Escalators'!$C$6,'Cost Escalators'!$E$6)) -> 0 | N13: ='Input Data'!N13*IF($G13='Cost Escalators'!$B$4,'Cost Escalators'!$B$6,IF($G13='Cost Escalators'!$C$4,'Cost Escalators'!$C$6,'Cost Escalators'!$E$6)) -> 0 | O13: ='Input Data'!O13*IF($G13='Cost Escalators'!$B$4,'Cost Escalators'!$B$6,IF($G13='Cost Escalators'!$C$4,'Cost Escalators'!$C$6,'Cost Escalators'!$E$6)) -> 0 | P13: ='Input Data'!P13*IF($G13='Cost Escalators'!$B$4,'Cost Escalators'!$B$6,IF($G13='Cost Escalators'!$C$4,'Cost Escalators'!$C$6,'Cost Escalators'!$E$6)) -> 0 | R13: 0 | S13: 0 | T13: 0 | U13: 0 | W13: =IF(OR(A13='Cost Escalators'!A$68,A13='Cost Escalators'!A$69,A13='Cost Escalators'!A$70,A13='Cost Escalators'!A$71),SUM(H13:L13),0) -> 0
A14: ='Input Data'!A14 -> 6420 | B14: ='Input Data'!B14 -> Information Technology | C14: ='Input Data'!C14 -> Video Conferencing & Collaboration | D14: ='Input Data'!D14 -> PS Information Technology | E14: ='Input Data'!E14 -> Input_Prog_Commit | F14: ='Input Data'!F14 -> 0 | G14: ='Input Data'!G14 -> 2013 | H14: ='Input Data'!H14*IF($G14='Cost Escalators'!$B$4,'Cost Escalators'!$B$6,IF($G14='Cost Escalators'!$C$4,'Cost Escalators'!$C$6,'Cost Escalators'!$E$6)) -> 535999.4642 | I14: ='Input Data'!I14*IF($G14='Cost Escalators'!$B$4,'Cost Escalators'!$B$6,IF($G14='Cost Escalators'!$C$4,'Cost Escalators'!$C$6,'Cost Escalators'!$E$6)) -> 0 | J14: ='Input Data'!J14*IF($G14='Cost Escalators'!$B$4,'Cost Escalators'!$B$6,IF($G14='Cost Escalators'!$C$4,'Cost Escalators'!$C$6,'Cost Escalators'!$E$6)) -> 0 | K14: ='Input Data'!K14*IF($G14='Cost Escalators'!$B$4,'Cost Escalators'!$B$6,IF($G14='Cost Escalators'!$C$4,'Cost Escalators'!$C$6,'Cost Escalators'!$E$6)) -> 0 | L14: ='Input Data'!L14*IF($G14='Cost Escalators'!$B$4,'Cost Escalators'!$B$6,IF($G14='Cost Escalators'!$C$4,'Cost Escalators'!$C$6,'Cost Escalators'!$E$6)) -> 0 | M14: ='Input Data'!M14*IF($G14='Cost Escalators'!$B$4,'Cost Escalators'!$B$6,IF($G14='Cost Escalators'!$C$4,'Cost Escalators'!$C$6,'Cost Escalators'!$E$6)) -> 0 | N14: ='Input Data'!N14*IF($G14='Cost Escalators'!$B$4,'Cost Escalators'!$B$6,IF($G14='Cost Escalators'!$C$4,'Cost Escalators'!$C$6,'Cost Escalators'!$E$6)) -> 0 | O14: ='Input Data'!O14*IF($G14='Cost Escalators'!$B$4,'Cost Escalators'!$B$6,IF($G14='Cost Escalators'!$C$4,'Cost Escalators'!$C$6,'Cost Escalators'!$E$6)) -> 0 | P14: ='Input Data'!P14*IF($G14='Cost Escalators'!$B$4,'Cost Escalators'!$B$6,IF($G14='Cost Escalators'!$C$4,'Cost Escalators'!$C$6,'Cost Escalators'!$E$6)) -> 0 | R14: 0 | S14: 0 | T14: 0 | U14: 0 | W14: =IF(OR(A14='Cost Escalators'!A$68,A14='Cost Escalators'!A$69,A14='Cost Escalators'!A$70,A14='Cost Escalators'!A$71),SUM(H14:L14),0) -> 0
A15: ='Input Data'!A15 -> ICT Applications | B15: ='Input Data'!B15 -> Information Technology | C15: ='Input Data'!C15 -> Capital Program Delivery | D15: ='Input Data'!D15 -> PS Information Technology | E15: ='Input Data'!E15 -> Input_Prog_Commit | F15: ='Input Data'!F15 -> 0 | G15: ='Input Data'!G15 -> 2013 | H15: ='Input Data'!H15*IF($G15='Cost Escalators'!$B$4,'Cost Escalators'!$B$6,IF($G15='Cost Escalators'!$C$4,'Cost Escalators'!$C$6,'Cost Escalators'!$E$6)) -> 2751280.924 | I15: ='Input Data'!I15*IF($G15='Cost Escalators'!$B$4,'Cost Escalators'!$B$6,IF($G15='Cost Escalators'!$C$4,'Cost Escalators'!$C$6,'Cost Escalators'!$E$6)) -> 921492.1505 | J15: ='Input Data'!J15*IF($G15='Cost Escalators'!$B$4,'Cost Escalators'!$B$6,IF($G15='Cost Escalators'!$C$4,'Cost Escalators'!$C$6,'Cost Escalators'!$E$6)) -> 24215.05622 | K15: ='Input Data'!K15*IF($G15='Cost Escalators'!$B$4,'Cost Escalators'!$B$6,IF($G15='Cost Escalators'!$C$4,'Cost Escalators'!$C$6,'Cost Escalators'!$E$6)) -> 0 | L15: ='Input Data'!L15*IF($G15='Cost Escalators'!$B$4,'Cost Escalators'!$B$6,IF($G15='Cost Escalators'!$C$4,'Cost Escalators'!$C$6,'Cost Escalators'!$E$6)) -> 0 | M15: ='Input Data'!M15*IF($G15='Cost Escalators'!$B$4,'Cost Escalators'!$B$6,IF($G15='Cost Escalators'!$C$4,'Cost Escalators'!$C$6,'Cost Escalators'!$E$6)) -> 0 | N15: ='Input Data'!N15*IF($G15='Cost Escalators'!$B$4,'Cost Escalators'!$B$6,IF($G15='Cost Escalators'!$C$4,'Cost Escalators'!$C$6,'Cost Escalators'!$E$6)) -> 0 | O15: ='Input Data'!O15*IF($G15='Cost Escalators'!$B$4,'Cost Escalators'!$B$6,IF($G15='Cost Escalators'!$C$4,'Cost Escalators'!$C$6,'Cost Escalators'!$E$6)) -> 0 | P15: ='Input Data'!P15*IF($G15='Cost Escalators'!$B$4,'Cost Escalators'!$B$6,IF($G15='Cost Escalators'!$C$4,'Cost Escalators'!$C$6,'Cost Escalators'!$E$6)) -> 0 | R15: 0 | S15: 0 | T15: 0 | U15: 0 | W15: =IF(OR(A15='Cost Escalators'!A$68,A15='Cost Escalators'!A$69,A15='Cost Escalators'!A$70,A15='Cost Escalators'!A$71),SUM(H15:L15),0) -> 0
A16: ='Input Data'!A16 -> ICT Applications | B16: ='Input Data'!B16 -> Information Technology | C16: ='Input Data'!C16 -> Finance & Information Systems | D16: ='Input Data'!D16 -> PS Information Technology | E16: ='Input Data'!E16 -> Input_Prog_Commit | F16: ='Input Data'!F16 -> 0 | G16: ='Input Data'!G16 -> 2013 | H16: ='Input Data'!H16*IF($G16='Cost Escalators'!$B$4,'Cost Escalators'!$B$6,IF($G16='Cost Escalators'!$C$4,'Cost Escalators'!$C$6,'Cost Escalators'!$E$6)) -> 2756032.455 | I16: ='Input Data'!I16*IF($G16='Cost Escalators'!$B$4,'Cost Escalators'!$B$6,IF($G16='Cost Escalators'!$C$4,'Cost Escalators'!$C$6,'Cost Escalators'!$E$6)) -> 9699521.762 | J16: ='Input Data'!J16*IF($G16='Cost Escalators'!$B$4,'Cost Escalators'!$B$6,IF($G16='Cost Escalators'!$C$4,'Cost Escalators'!$C$6,'Cost Escalators'!$E$6)) -> 12561855.35 | K16: ='Input Data'!K16*IF($G16='Cost Escalators'!$B$4,'Cost Escalators'!$B$6,IF($G16='Cost Escalators'!$C$4,'Cost Escalators'!$C$6,'Cost Escalators'!$E$6)) -> 20205852.77 | L16: ='Input Data'!L16*IF($G16='Cost Escalators'!$B$4,'Cost Escalators'!$B$6,IF($G16='Cost Escalators'!$C$4,'Cost Escalators'!$C$6,'Cost Escalators'!$E$6)) -> 0 | M16: ='Input Data'!M16*IF($G16='Cost Escalators'!$B$4,'Cost Escalators'!$B$6,IF($G16='Cost Escalators'!$C$4,'Cost Escalators'!$C$6,'Cost Escalators'!$E$6)) -> 0 | N16: ='Input Data'!N16*IF($G16='Cost Escalators'!$B$4,'Cost Escalators'!$B$6,IF($G16='Cost Escalators'!$C$4,'Cost Escalators'!$C$6,'Cost Escalators'!$E$6)) -> 0 | O16: ='Input Data'!O16*IF($G16='Cost Escalators'!$B$4,'Cost Escalators'!$B$6,IF($G16='Cost Escalators'!$C$4,'Cost Escalators'!$C$6,'Cost Escalators'!$E$6)) -> 0 | P16: ='Input Data'!P16*IF($G16='Cost Escalators'!$B$4,'Cost Escalators'!$B$6,IF($G16='Cost Escalators'!$C$4,'Cost Escalators'!$C$6,'Cost Escalators'!$E$6)) -> 0 | R16: 0 | S16: 0 | T16: 0 | U16: 0 | W16: =IF(OR(A16='Cost Escalators'!A$68,A16='Cost Escalators'!A$69,A16='Cost Escalators'!A$70,A16='Cost Escalators'!A$71),SUM(H16:L16),0) -> 0
A17: ='Input Data'!A17 -> ICT Applications | B17: ='Input Data'!B17 -> Information Technology | C17: ='Input Data'!C17 -> Network Planning & Performance | D17: ='Input Data'!D17 -> PS Information Technology | E17: ='Input Data'!E17 -> Input_Prog_Commit | F17: ='Input Data'!F17 -> 0 | G17: ='Input Data'!G17 -> 2013 | H17: ='Input Data'!H17*IF($G17='Cost Escalators'!$B$4,'Cost Escalators'!$B$6,IF($G17='Cost Escalators'!$C$4,'Cost Escalators'!$C$6,'Cost Escalators'!$E$6)) -> 796284.204 | I17: ='Input Data'!I17*IF($G17='Cost Escalators'!$B$4,'Cost Escalators'!$B$6,IF($G17='Cost Escalators'!$C$4,'Cost Escalators'!$C$6,'Cost Escalators'!$E$6)) -> 397105.0263 | J17: ='Input Data'!J17*IF($G17='Cost Escalators'!$B$4,'Cost Escalators'!$B$6,IF($G17='Cost Escalators'!$C$4,'Cost Escalators'!$C$6,'Cost Escalators'!$E$6)) -> 11889.16805 | K17: ='Input Data'!K17*IF($G17='Cost Escalators'!$B$4,'Cost Escalators'!$B$6,IF($G17='Cost Escalators'!$C$4,'Cost Escalators'!$C$6,'Cost Escalators'!$E$6)) -> 0 | L17: ='Input Data'!L17*IF($G17='Cost Escalators'!$B$4,'Cost Escalators'!$B$6,IF($G17='Cost Escalators'!$C$4,'Cost Escalators'!$C$6,'Cost Escalators'!$E$6)) -> 0 | M17: ='Input Data'!M17*IF($G17='Cost Escalators'!$B$4,'Cost Escalators'!$B$6,IF($G17='Cost Escalators'!$C$4,'Cost Escalators'!$C$6,'Cost Escalators'!$E$6)) -> 0 | N17: ='Input Data'!N17*IF($G17='Cost Escalators'!$B$4,'Cost Escalators'!$B$6,IF($G17='Cost Escalators'!$C$4,'Cost Escalators'!$C$6,'Cost Escalators'!$E$6)) -> 0 | O17: ='Input Data'!O17*IF($G17='Cost Escalators'!$B$4,'Cost Escalators'!$B$6,IF($G17='Cost Escalators'!$C$4,'Cost Escalators'!$C$6,'Cost Escalators'!$E$6)) -> 0 | P17: ='Input Data'!P17*IF($G17='Cost Escalators'!$B$4,'Cost Escalators'!$B$6,IF($G17='Cost Escalators'!$C$4,'Cost Escalators'!$C$6,'Cost Escalators'!$E$6)) -> 0 | R17: 0 | S17: 0 | T17: 0 | U17: 0 | W17: =IF(OR(A17='Cost Escalators'!A$68,A17='Cost Escalators'!A$69,A17='Cost Escalators'!A$70,A17='Cost Escalators'!A$71),SUM(H17:L17),0) -> 0
A18: ='Input Data'!A18 -> ICT Applications | B18: ='Input Data'!B18 -> Information Technology | C18: ='Input Data'!C18 -> Network Services & Operations | D18: ='Input Data'!D18 -> PS Information Technology | E18: ='Input Data'!E18 -> Input_Prog_Commit | F18: ='Input Data'!F18 -> 0 | G18: ='Input Data'!G18 -> 2013 | H18: ='Input Data'!H18*IF($G18='Cost Escalators'!$B$4,'Cost Escalators'!$B$6,IF($G18='Cost Escalators'!$C$4,'Cost Escalators'!$C$6,'Cost Escalators'!$E$6)) -> 100989.7611 | I18: ='Input Data'!I18*IF($G18='Cost Escalators'!$B$4,'Cost Escalators'!$B$6,IF($G18='Cost Escalators'!$C$4,'Cost Escalators'!$C$6,'Cost Escalators'!$E$6)) -> 275091.9742 | J18: ='Input Data'!J18*IF($G18='Cost Escalators'!$B$4,'Cost Escalators'!$B$6,IF($G18='Cost Escalators'!$C$4,'Cost Escalators'!$C$6,'Cost Escalators'!$E$6)) -> 74437.0408 | K18: ='Input Data'!K18*IF($G18='Cost Escalators'!$B$4,'Cost Escalators'!$B$6,IF($G18='Cost Escalators'!$C$4,'Cost Escalators'!$C$6,'Cost Escalators'!$E$6)) -> 0 | L18: ='Input Data'!L18*IF($G18='Cost Escalators'!$B$4,'Cost Escalators'!$B$6,IF($G18='Cost Escalators'!$C$4,'Cost Escalators'!$C$6,'Cost Escalators'!$E$6)) -> 0 | M18: ='Input Data'!M18*IF($G18='Cost Escalators'!$B$4,'Cost Escalators'!$B$6,IF($G18='Cost Escalators'!$C$4,'Cost Escalators'!$C$6,'Cost Escalators'!$E$6)) -> 0 | N18: ='Input Data'!N18*IF($G18='Cost Escalators'!$B$4,'Cost Escalators'!$B$6,IF($G18='Cost Escalators'!$C$4,'Cost Escalators'!$C$6,'Cost Escalators'!$E$6)) -> 0 | O18: ='Input Data'!O18*IF($G18='Cost Escalators'!$B$4,'Cost Escalators'!$B$6,IF($G18='Cost Escalators'!$C$4,'Cost Escalators'!$C$6,'Cost Escalators'!$E$6)) -> 0 | P18: ='Input Data'!P18*IF($G18='Cost Escalators'!$B$4,'Cost Escalators'!$B$6,IF($G18='Cost Escalators'!$C$4,'Cost Escalators'!$C$6,'Cost Escalators'!$E$6)) -> 0 | R18: 0 | S18: 0 | T18: 0 | U18: 0 | W18: =IF(OR(A18='Cost Escalators'!A$68,A18='Cost Escalators'!A$69,A18='Cost Escalators'!A$70,A18='Cost Escalators'!A$71),SUM(H18:L18),0) -> 0
A19: ='Input Data'!A19 -> ICT Applications | B19: ='Input Data'!B19 -> Information Technology | C19: ='Input Data'!C19 -> People, Strategy & Corporate Services | D19: ='Input Data'!D19 -> PS Information Technology | E19: ='Input Data'!E19 -> Input_Prog_Commit | F19: ='Input Data'!F19 -> 0 | G19: ='Input Data'!G19 -> 2013 | H19: ='Input Data'!H19*IF($G19='Cost Escalators'!$B$4,'Cost Escalators'!$B$6,IF($G19='Cost Escalators'!$C$4,'Cost Escalators'!$C$6,'Cost Escalators'!$E$6)) -> 75374.18698 | I19: ='Input Data'!I19*IF($G19='Cost Escalators'!$B$4,'Cost Escalators'!$B$6,IF($G19='Cost Escalators'!$C$4,'Cost Escalators'!$C$6,'Cost Escalators'!$E$6)) -> 82476.57145 | J19: ='Input Data'!J19*IF($G19='Cost Escalators'!$B$4,'Cost Escalators'!$B$6,IF($G19='Cost Escalators'!$C$4,'Cost Escalators'!$C$6,'Cost Escalators'!$E$6)) -> 3569.473734 | K19: ='Input Data'!K19*IF($G19='Cost Escalators'!$B$4,'Cost Escalators'!$B$6,IF($G19='Cost Escalators'!$C$4,'Cost Escalators'!$C$6,'Cost Escalators'!$E$6)) -> 0 | L19: ='Input Data'!L19*IF($G19='Cost Escalators'!$B$4,'Cost Escalators'!$B$6,IF($G19='Cost Escalators'!$C$4,'Cost Escalators'!$C$6,'Cost Escalators'!$E$6)) -> 0 | M19: ='Input Data'!M19*IF($G19='Cost Escalators'!$B$4,'Cost Escalators'!$B$6,IF($G19='Cost Escalators'!$C$4,'Cost Escalators'!$C$6,'Cost Escalators'!$E$6)) -> 0 | N19: ='Input Data'!N19*IF($G19='Cost Escalators'!$B$4,'Cost Escalators'!$B$6,IF($G19='Cost Escalators'!$C$4,'Cost Escalators'!$C$6,'Cost Escalators'!$E$6)) -> 0 | O19: ='Input Data'!O19*IF($G19='Cost Escalators'!$B$4,'Cost Escalators'!$B$6,IF($G19='Cost Escalators'!$C$4,'Cost Escalators'!$C$6,'Cost Escalators'!$E$6)) -> 0 | P19: ='Input Data'!P19*IF($G19='Cost Escalators'!$B$4,'Cost Escalators'!$B$6,IF($G19='Cost Escalators'!$C$4,'Cost Escalators'!$C$6,'Cost Escalators'!$E$6)) -> 0 | R19: 0 | S19: 0 | T19: 0 | U19: 0 | W19: =IF(OR(A19='Cost Escalators'!A$68,A19='Cost Escalators'!A$69,A19='Cost Escalators'!A$70,A19='Cost Escalators'!A$71),SUM(H19:L19),0) -> 0
A20: ='Input Data'!A20 -> ICT Applications | B20: ='Input Data'!B20 -> Information Technology | C20: ='Input Data'!C20 -> 0 | D20: ='Input Data'!D20 -> PS Information Technology | E20: ='Input Data'!E20 -> Input_Prog_Commit | F20: ='Input Data'!F20 -> 0 | G20: ='Input Data'!G20 -> 2013 | H20: ='Input Data'!H20*IF($G20='Cost Escalators'!$B$4,'Cost Escalators'!$B$6,IF($G20='Cost Escalators'!$C$4,'Cost Escalators'!$C$6,'Cost Escalators'!$E$6)) -> 0 | I20: ='Input Data'!I20*IF($G20='Cost Escalators'!$B$4,'Cost Escalators'!$B$6,IF($G20='Cost Escalators'!$C$4,'Cost Escalators'!$C$6,'Cost Escalators'!$E$6)) -> 0 | J20: ='Input Data'!J20*IF($G20='Cost Escalators'!$B$4,'Cost Escalators'!$B$6,IF($G20='Cost Escalators'!$C$4,'Cost Escalators'!$C$6,'Cost Escalators'!$E$6)) -> 0 | K20: ='Input Data'!K20*IF($G20='Cost Escalators'!$B$4,'Cost Escalators'!$B$6,IF($G20='Cost Escalators'!$C$4,'Cost Escalators'!$C$6,'Cost Escalators'!$E$6)) -> 0 | L20: ='Input Data'!L20*IF($G20='Cost Escalators'!$B$4,'Cost Escalators'!$B$6,IF($G20='Cost Escalators'!$C$4,'Cost Escalators'!$C$6,'Cost Escalators'!$E$6)) -> 9919444.674 | M20: ='Input Data'!M20*IF($G20='Cost Escalators'!$B$4,'Cost Escalators'!$B$6,IF($G20='Cost Escalators'!$C$4,'Cost Escalators'!$C$6,'Cost Escalators'!$E$6)) -> 0 | N20: ='Input Data'!N20*IF($G20='Cost Escalators'!$B$4,'Cost Escalators'!$B$6,IF($G20='Cost Escalators'!$C$4,'Cost Escalators'!$C$6,'Cost Escalators'!$E$6)) -> 0 | O20: ='Input Data'!O20*IF($G20='Cost Escalators'!$B$4,'Cost Escalators'!$B$6,IF($G20='Cost Escalators'!$C$4,'Cost Escalators'!$C$6,'Cost Escalators'!$E$6)) -> 0 | P20: ='Input Data'!P20*IF($G20='Cost Escalators'!$B$4,'Cost Escalators'!$B$6,IF($G20='Cost Escalators'!$C$4,'Cost Escalators'!$C$6,'Cost Escalators'!$E$6)) -> 0 | R20: 0 | S20: 0 | T20: 0 | U20: 0 | W20: =IF(OR(A20='Cost Escalators'!A$68,A20='Cost Escalators'!A$69,A20='Cost Escalators'!A$70,A20='Cost Escalators'!A$71),SUM(H20:L20),0) -> 0
A21: ='Input Data'!A21 -> ICT Corporate Data Network | B21: ='Input Data'!B21 -> Information Technology | C21: ='Input Data'!C21 -> Finance & Information Systems | D21: ='Input Data'!D21 -> PS Information Technology | E21: ='Input Data'!E21 -> Input_Prog_Commit | F21: ='Input Data'!F21 -> 0 | G21: ='Input Data'!G21 -> 2013 | H21: ='Input Data'!H21*IF($G21='Cost Escalators'!$B$4,'Cost Escalators'!$B$6,IF($G21='Cost Escalators'!$C$4,'Cost Escalators'!$C$6,'Cost Escalators'!$E$6)) -> 2295634 | I21: ='Input Data'!I21*IF($G21='Cost Escalators'!$B$4,'Cost Escalators'!$B$6,IF($G21='Cost Escalators'!$C$4,'Cost Escalators'!$C$6,'Cost Escalators'!$E$6)) -> 1062437.553 | J21: ='Input Data'!J21*IF($G21='Cost Escalators'!$B$4,'Cost Escalators'!$B$6,IF($G21='Cost Escalators'!$C$4,'Cost Escalators'!$C$6,'Cost Escalators'!$E$6)) -> 1090310.529 | K21: ='Input Data'!K21*IF($G21='Cost Escalators'!$B$4,'Cost Escalators'!$B$6,IF($G21='Cost Escalators'!$C$4,'Cost Escalators'!$C$6,'Cost Escalators'!$E$6)) -> 808265.4088 | L21: ='Input Data'!L21*IF($G21='Cost Escalators'!$B$4,'Cost Escalators'!$B$6,IF($G21='Cost Escalators'!$C$4,'Cost Escalators'!$C$6,'Cost Escalators'!$E$6)) -> 0 | M21: ='Input Data'!M21*IF($G21='Cost Escalators'!$B$4,'Cost Escalators'!$B$6,IF($G21='Cost Escalators'!$C$4,'Cost Escalators'!$C$6,'Cost Escalators'!$E$6)) -> 0 | N21: ='Input Data'!N21*IF($G21='Cost Escalators'!$B$4,'Cost Escalators'!$B$6,IF($G21='Cost Escalators'!$C$4,'Cost Escalators'!$C$6,'Cost Escalators'!$E$6)) -> 0 | O21: ='Input Data'!O21*IF($G21='Cost Escalators'!$B$4,'Cost Escalators'!$B$6,IF($G21='Cost Escalators'!$C$4,'Cost Escalators'!$C$6,'Cost Escalators'!$E$6)) -> 0 | P21: ='Input Data'!P21*IF($G21='Cost Escalators'!$B$4,'Cost Escalators'!$B$6,IF($G21='Cost Escalators'!$C$4,'Cost Escalators'!$C$6,'Cost Escalators'!$E$6)) -> 0 | R21: 0 | S21: 0 | T21: 0 | U21: 0 | W21: =IF(OR(A21='Cost Escalators'!A$68,A21='Cost Escalators'!A$69,A21='Cost Escalators'!A$70,A21='Cost Escalators'!A$71),SUM(H21:L21),0) -> 0
A22: ='Input Data'!A22 -> ICT Corporate Data Network | B22: ='Input Data'!B22 -> Information Technology | C22: ='Input Data'!C22 -> 0 | D22: ='Input Data'!D22 -> PS Information Technology | E22: ='Input Data'!E22 -> Input_Prog_Commit | F22: ='Input Data'!F22 -> 0 | G22: ='Input Data'!G22 -> 2013 | H22: ='Input Data'!H22*IF($G22='Cost Escalators'!$B$4,'Cost Escalators'!$B$6,IF($G22='Cost Escalators'!$C$4,'Cost Escalators'!$C$6,'Cost Escalators'!$E$6)) -> 0 | I22: ='Input Data'!I22*IF($G22='Cost Escalators'!$B$4,'Cost Escalators'!$B$6,IF($G22='Cost Escalators'!$C$4,'Cost Escalators'!$C$6,'Cost Escalators'!$E$6)) -> 0 | J22: ='Input Data'!J22*IF($G22='Cost Escalators'!$B$4,'Cost Escalators'!$B$6,IF($G22='Cost Escalators'!$C$4,'Cost Escalators'!$C$6,'Cost Escalators'!$E$6)) -> 0 | K22: ='Input Data'!K22*IF($G22='Cost Escalators'!$B$4,'Cost Escalators'!$B$6,IF($G22='Cost Escalators'!$C$4,'Cost Escalators'!$C$6,'Cost Escalators'!$E$6)) -> 0 | L22: ='Input Data'!L22*IF($G22='Cost Escalators'!$B$4,'Cost Escalators'!$B$6,IF($G22='Cost Escalators'!$C$4,'Cost Escalators'!$C$6,'Cost Escalators'!$E$6)) -> 1433399.214 | M22: ='Input Data'!M22*IF($G22='Cost Escalators'!$B$4,'Cost Escalators'!$B$6,IF($G22='Cost Escalators'!$C$4,'Cost Escalators'!$C$6,'Cost Escalators'!$E$6)) -> 0 | N22: ='Input Data'!N22*IF($G22='Cost Escalators'!$B$4,'Cost Escalators'!$B$6,IF($G22='Cost Escalators'!$C$4,'Cost Escalators'!$C$6,'Cost Escalators'!$E$6)) -> 0 | O22: ='Input Data'!O22*IF($G22='Cost Escalators'!$B$4,'Cost Escalators'!$B$6,IF($G22='Cost Escalators'!$C$4,'Cost Escalators'!$C$6,'Cost Escalators'!$E$6)) -> 0 | P22: ='Input Data'!P22*IF($G22='Cost Escalators'!$B$4,'Cost Escalators'!$B$6,IF($G22='Cost Escalators'!$C$4,'Cost Escalators'!$C$6,'Cost Escalators'!$E$6)) -> 0 | R22: 0 | S22: 0 | T22: 0 | U22: 0 | W22: =IF(OR(A22='Cost Escalators'!A$68,A22='Cost Escalators'!A$69,A22='Cost Escalators'!A$70,A22='Cost Escalators'!A$71),SUM(H22:L22),0) -> 0
A23: ='Input Data'!A23 -> ICT Infrastructure | B23: ='Input Data'!B23 -> Information Technology | C23: ='Input Data'!C23 -> Finance & Information Systems | D23: ='Input Data'!D23 -> PS Information Technology | E23: ='Input Data'!E23 -> Input_Prog_Commit | F23: ='Input Data'!F23 -> 0 | G23: ='Input Data'!G23 -> 2013 | H23: ='Input Data'!H23*IF($G23='Cost Escalators'!$B$4,'Cost Escalators'!$B$6,IF($G23='Cost Escalators'!$C$4,'Cost Escalators'!$C$6,'Cost Escalators'!$E$6)) -> 5360875.464 | I23: ='Input Data'!I23*IF($G23='Cost Escalators'!$B$4,'Cost Escalators'!$B$6,IF($G23='Cost Escalators'!$C$4,'Cost Escalators'!$C$6,'Cost Escalators'!$E$6)) -> 3361760.044 | J23: ='Input Data'!J23*IF($G23='Cost Escalators'!$B$4,'Cost Escalators'!$B$6,IF($G23='Cost Escalators'!$C$4,'Cost Escalators'!$C$6,'Cost Escalators'!$E$6)) -> 6399671.338 | K23: ='Input Data'!K23*IF($G23='Cost Escalators'!$B$4,'Cost Escalators'!$B$6,IF($G23='Cost Escalators'!$C$4,'Cost Escalators'!$C$6,'Cost Escalators'!$E$6)) -> 4204814.595 | L23: ='Input Data'!L23*IF($G23='Cost Escalators'!$B$4,'Cost Escalators'!$B$6,IF($G23='Cost Escalators'!$C$4,'Cost Escalators'!$C$6,'Cost Escalators'!$E$6)) -> 0 | M23: ='Input Data'!M23*IF($G23='Cost Escalators'!$B$4,'Cost Escalators'!$B$6,IF($G23='Cost Escalators'!$C$4,'Cost Escalators'!$C$6,'Cost Escalators'!$E$6)) -> 0 | N23: ='Input Data'!N23*IF($G23='Cost Escalators'!$B$4,'Cost Escalators'!$B$6,IF($G23='Cost Escalators'!$C$4,'Cost Escalators'!$C$6,'Cost Escalators'!$E$6)) -> 0 | O23: ='Input Data'!O23*IF($G23='Cost Escalators'!$B$4,'Cost Escalators'!$B$6,IF($G23='Cost Escalators'!$C$4,'Cost Escalators'!$C$6,'Cost Escalators'!$E$6)) -> 0 | P23: ='Input Data'!P23*IF($G23='Cost Escalators'!$B$4,'Cost Escalators'!$B$6,IF($G23='Cost Escalators'!$C$4,'Cost Escalators'!$C$6,'Cost Escalators'!$E$6)) -> 0 | R23: 0 | S23: 0 | T23: 0 | U23: 0 | W23: =IF(OR(A23='Cost Escalators'!A$68,A23='Cost Escalators'!A$69,A23='Cost Escalators'!A$70,A23='Cost Escalators'!A$71),SUM(H23:L23),0) -> 0
A24: ='Input Data'!A24 -> ICT Infrastructure | B24: ='Input Data'!B24 -> Information Technology | C24: ='Input Data'!C24 -> Network Services & Operations | D24: ='Input Data'!D24 -> PS Information Technology | E24: ='Input Data'!E24 -> Input_Prog_Commit | F24: ='Input Data'!F24 -> 0 | G24: ='Input Data'!G24 -> 2013 | H24: ='Input Data'!H24*IF($G24='Cost Escalators'!$B$4,'Cost Escalators'!$B$6,IF($G24='Cost Escalators'!$C$4,'Cost Escalators'!$C$6,'Cost Escalators'!$E$6)) -> 332861.6708 | I24: ='Input Data'!I24*IF($G24='Cost Escalators'!$B$4,'Cost Escalators'!$B$6,IF($G24='Cost Escalators'!$C$4,'Cost Escalators'!$C$6,'Cost Escalators'!$E$6)) -> 81607.2456 | J24: ='Input Data'!J24*IF($G24='Cost Escalators'!$B$4,'Cost Escalators'!$B$6,IF($G24='Cost Escalators'!$C$4,'Cost Escalators'!$C$6,'Cost Escalators'!$E$6)) -> 0 | K24: ='Input Data'!K24*IF($G24='Cost Escalators'!$B$4,'Cost Escalators'!$B$6,IF($G24='Cost Escalators'!$C$4,'Cost Escalators'!$C$6,'Cost Escalators'!$E$6)) -> 0 | L24: ='Input Data'!L24*IF($G24='Cost Escalators'!$B$4,'Cost Escalators'!$B$6,IF($G24='Cost Escalators'!$C$4,'Cost Escalators'!$C$6,'Cost Escalators'!$E$6)) -> 0 | M24: ='Input Data'!M24*IF($G24='Cost Escalators'!$B$4,'Cost Escalators'!$B$6,IF($G24='Cost Escalators'!$C$4,'Cost Escalators'!$C$6,'Cost Escalators'!$E$6)) -> 0 | N24: ='Input Data'!N24*IF($G24='Cost Escalators'!$B$4,'Cost Escalators'!$B$6,IF($G24='Cost Escalators'!$C$4,'Cost Escalators'!$C$6,'Cost Escalators'!$E$6)) -> 0 | O24: ='Input Data'!O24*IF($G24='Cost Escalators'!$B$4,'Cost Escalators'!$B$6,IF($G24='Cost Escalators'!$C$4,'Cost Escalators'!$C$6,'Cost Escalators'!$E$6)) -> 0 | P24: ='Input Data'!P24*IF($G24='Cost Escalators'!$B$4,'Cost Escalators'!$B$6,IF($G24='Cost Escalators'!$C$4,'Cost Escalators'!$C$6,'Cost Escalators'!$E$6)) -> 0 | R24: 0 | S24: 0 | T24: 0 | U24: 0 | W24: =IF(OR(A24='Cost Escalators'!A$68,A24='Cost Escalators'!A$69,A24='Cost Escalators'!A$70,A24='Cost Escalators'!A$71),SUM(H24:L24),0) -> 0
A25: ='Input Data'!A25 -> ICT Infrastructure | B25: ='Input Data'!B25 -> Information Technology | C25: ='Input Data'!C25 -> 0 | D25: ='Input Data'!D25 -> PS Information Technology | E25: ='Input Data'!E25 -> Input_Prog_Commit | F25: ='Input Data'!F25 -> 0 | G25: ='Input Data'!G25 -> 2013 | H25: ='Input Data'!H25*IF($G25='Cost Escalators'!$B$4,'Cost Escalators'!$B$6,IF($G25='Cost Escalators'!$C$4,'Cost Escalators'!$C$6,'Cost Escalators'!$E$6)) -> 0 | I25: ='Input Data'!I25*IF($G25='Cost Escalators'!$B$4,'Cost Escalators'!$B$6,IF($G25='Cost Escalators'!$C$4,'Cost Escalators'!$C$6,'Cost Escalators'!$E$6)) -> 0 | J25: ='Input Data'!J25*IF($G25='Cost Escalators'!$B$4,'Cost Escalators'!$B$6,IF($G25='Cost Escalators'!$C$4,'Cost Escalators'!$C$6,'Cost Escalators'!$E$6)) -> 0 | K25: ='Input Data'!K25*IF($G25='Cost Escalators'!$B$4,'Cost Escalators'!$B$6,IF($G25='Cost Escalators'!$C$4,'Cost Escalators'!$C$6,'Cost Escalators'!$E$6)) -> 0 | L25: ='Input Data'!L25*IF($G25='Cost Escalators'!$B$4,'Cost Escalators'!$B$6,IF($G25='Cost Escalators'!$C$4,'Cost Escalators'!$C$6,'Cost Escalators'!$E$6)) -> 5012065.567 | M25: ='Input Data'!M25*IF($G25='Cost Escalators'!$B$4,'Cost Escalators'!$B$6,IF($G25='Cost Escalators'!$C$4,'Cost Escalators'!$C$6,'Cost Escalators'!$E$6)) -> 0 | N25: ='Input Data'!N25*IF($G25='Cost Escalators'!$B$4,'Cost Escalators'!$B$6,IF($G25='Cost Escalators'!$C$4,'Cost Escalators'!$C$6,'Cost Escalators'!$E$6)) -> 0 | O25: ='Input Data'!O25*IF($G25='Cost Escalators'!$B$4,'Cost Escalators'!$B$6,IF($G25='Cost Escalators'!$C$4,'Cost Escalators'!$C$6,'Cost Escalators'!$E$6)) -> 0 | P25: ='Input Data'!P25*IF($G25='Cost Escalators'!$B$4,'Cost Escalators'!$B$6,IF($G25='Cost Escalators'!$C$4,'Cost Escalators'!$C$6,'Cost Escalators'!$E$6)) -> 0 | R25: 0 | S25: 0 | T25: 0 | U25: 0 | W25: =IF(OR(A25='Cost Escalators'!A$68,A25='Cost Escalators'!A$69,A25='Cost Escalators'!A$70,A25='Cost Escalators'!A$71),SUM(H25:L25),0) -> 0
A26: ='Input Data'!A26 -> 0 | B26: ='Input Data'!B26 -> Information Technology | C26: ='Input Data'!C26 -> Finance & Information Systems | D26: ='Input Data'!D26 -> PS Information Technology | E26: ='Input Data'!E26 -> Input_Prog_Commit | F26: ='Input Data'!F26 -> 0 | G26: ='Input Data'!G26 -> 2013 | H26: ='Input Data'!H26*IF($G26='Cost Escalators'!$B$4,'Cost Escalators'!$B$6,IF($G26='Cost Escalators'!$C$4,'Cost Escalators'!$C$6,'Cost Escalators'!$E$6)) -> 433374.6702 | I26: ='Input Data'!I26*IF($G26='Cost Escalators'!$B$4,'Cost Escalators'!$B$6,IF($G26='Cost Escalators'!$C$4,'Cost Escalators'!$C$6,'Cost Escalators'!$E$6)) -> -56615.21675 | J26: ='Input Data'!J26*IF($G26='Cost Escalators'!$B$4,'Cost Escalators'!$B$6,IF($G26='Cost Escalators'!$C$4,'Cost Escalators'!$C$6,'Cost Escalators'!$E$6)) -> 0 | K26: ='Input Data'!K26*IF($G26='Cost Escalators'!$B$4,'Cost Escalators'!$B$6,IF($G26='Cost Escalators'!$C$4,'Cost Escalators'!$C$6,'Cost Escalators'!$E$6)) -> 0 | L26: ='Input Data'!L26*IF($G26='Cost Escalators'!$B$4,'Cost Escalators'!$B$6,IF($G26='Cost Escalators'!$C$4,'Cost Escalators'!$C$6,'Cost Escalators'!$E$6)) -> 0 | M26: ='Input Data'!M26*IF($G26='Cost Escalators'!$B$4,'Cost Escalators'!$B$6,IF($G26='Cost Escalators'!$C$4,'Cost Escalators'!$C$6,'Cost Escalators'!$E$6)) -> 0 | N26: ='Input Data'!N26*IF($G26='Cost Escalators'!$B$4,'Cost Escalators'!$B$6,IF($G26='Cost Escalators'!$C$4,'Cost Escalators'!$C$6,'Cost Escalators'!$E$6)) -> 0 | O26: ='Input Data'!O26*IF($G26='Cost Escalators'!$B$4,'Cost Escalators'!$B$6,IF($G26='Cost Escalators'!$C$4,'Cost Escalators'!$C$6,'Cost Escalators'!$E$6)) -> 0 | P26: ='Input Data'!P26*IF($G26='Cost Escalators'!$B$4,'Cost Escalators'!$B$6,IF($G26='Cost Escalators'!$C$4,'Cost Escalators'!$C$6,'Cost Escalators'!$E$6)) -> 0 | R26: 0 | S26: 0 | T26: 0 | U26: 0 | W26: =IF(OR(A26='Cost Escalators'!A$68,A26='Cost Escalators'!A$69,A26='Cost Escalators'!A$70,A26='Cost Escalators'!A$71),SUM(H26:L26),0) -> 0
A27: ='Input Data'!A27 -> 5739 | B27: ='Input Data'!B27 -> Motor Vehicles & Mobile Plant | C27: ='Input Data'!C27 -> TG Mobile Plant | D27: ='Input Data'!D27 -> PS Motor Vehicles | E27: ='Input Data'!E27 -> Input_Prog_Commit | F27: ='Input Data'!F27 -> 0 | G27: ='Input Data'!G27 -> 2013 | H27: ='Input Data'!H27*IF($G27='Cost Escalators'!$B$4,'Cost Escalators'!$B$6,IF($G27='Cost Escalators'!$C$4,'Cost Escalators'!$C$6,'Cost Escalators'!$E$6)) -> 0 | I27: ='Input Data'!I27*IF($G27='Cost Escalators'!$B$4,'Cost Escalators'!$B$6,IF($G27='Cost Escalators'!$C$4,'Cost Escalators'!$C$6,'Cost Escalators'!$E$6)) -> 0 | J27: ='Input Data'!J27*IF($G27='Cost Escalators'!$B$4,'Cost Escalators'!$B$6,IF($G27='Cost Escalators'!$C$4,'Cost Escalators'!$C$6,'Cost Escalators'!$E$6)) -> 0 | K27: ='Input Data'!K27*IF($G27='Cost Escalators'!$B$4,'Cost Escalators'!$B$6,IF($G27='Cost Escalators'!$C$4,'Cost Escalators'!$C$6,'Cost Escalators'!$E$6)) -> 0 | L27: ='Input Data'!L27*IF($G27='Cost Escalators'!$B$4,'Cost Escalators'!$B$6,IF($G27='Cost Escalators'!$C$4,'Cost Escalators'!$C$6,'Cost Escalators'!$E$6)) -> 0 | M27: ='Input Data'!M27*IF($G27='Cost Escalators'!$B$4,'Cost Escalators'!$B$6,IF($G27='Cost Escalators'!$C$4,'Cost Escalators'!$C$6,'Cost Escalators'!$E$6)) -> 3004840.777 | N27: ='Input Data'!N27*IF($G27='Cost Escalators'!$B$4,'Cost Escalators'!$B$6,IF($G27='Cost Escalators'!$C$4,'Cost Escalators'!$C$6,'Cost Escalators'!$E$6)) -> 1814135.742 | O27: ='Input Data'!O27*IF($G27='Cost Escalators'!$B$4,'Cost Escalators'!$B$6,IF($G27='Cost Escalators'!$C$4,'Cost Escalators'!$C$6,'Cost Escalators'!$E$6)) -> 1691743.08 | P27: ='Input Data'!P27*IF($G27='Cost Escalators'!$B$4,'Cost Escalators'!$B$6,IF($G27='Cost Escalators'!$C$4,'Cost Escalators'!$C$6,'Cost Escalators'!$E$6)) -> 2241067.5 | R27: 3004840.777 | S27: 1814135.742 | T27: 1691743.08 | U27: 2241067.5 | W27: =IF(OR(A27='Cost Escalators'!A$68,A27='Cost Escalators'!A$69,A27='Cost Escalators'!A$70,A27='Cost Escalators'!A$71),SUM(H27:L27),0) -> 0
A28: ='Input Data'!A28 -> 5777 | B28: ='Input Data'!B28 -> Motor Vehicles & Mobile Plant | C28: ='Input Data'!C28 -> TG Business Vehicles | D28: ='Input Data'!D28 -> PS Motor Vehicles | E28: ='Input Data'!E28 -> Input_Prog_Commit | F28: ='Input Data'!F28 -> 0 | G28: ='Input Data'!G28 -> 2013 | H28: ='Input Data'!H28*IF($G28='Cost Escalators'!$B$4,'Cost Escalators'!$B$6,IF($G28='Cost Escalators'!$C$4,'Cost Escalators'!$C$6,'Cost Escalators'!$E$6)) -> 0 | I28: ='Input Data'!I28*IF($G28='Cost Escalators'!$B$4,'Cost Escalators'!$B$6,IF($G28='Cost Escalators'!$C$4,'Cost Escalators'!$C$6,'Cost Escalators'!$E$6)) -> 0 | J28: ='Input Data'!J28*IF($G28='Cost Escalators'!$B$4,'Cost Escalators'!$B$6,IF($G28='Cost Escalators'!$C$4,'Cost Escalators'!$C$6,'Cost Escalators'!$E$6)) -> 0 | K28: ='Input Data'!K28*IF($G28='Cost Escalators'!$B$4,'Cost Escalators'!$B$6,IF($G28='Cost Escalators'!$C$4,'Cost Escalators'!$C$6,'Cost Escalators'!$E$6)) -> 0 | L28: ='Input Data'!L28*IF($G28='Cost Escalators'!$B$4,'Cost Escalators'!$B$6,IF($G28='Cost Escalators'!$C$4,'Cost Escalators'!$C$6,'Cost Escalators'!$E$6)) -> 0 | M28: ='Input Data'!M28*IF($G28='Cost Escalators'!$B$4,'Cost Escalators'!$B$6,IF($G28='Cost Escalators'!$C$4,'Cost Escalators'!$C$6,'Cost Escalators'!$E$6)) -> 5975616.903 | N28: ='Input Data'!N28*IF($G28='Cost Escalators'!$B$4,'Cost Escalators'!$B$6,IF($G28='Cost Escalators'!$C$4,'Cost Escalators'!$C$6,'Cost Escalators'!$E$6)) -> 5926537.012 | O28: ='Input Data'!O28*IF($G28='Cost Escalators'!$B$4,'Cost Escalators'!$B$6,IF($G28='Cost Escalators'!$C$4,'Cost Escalators'!$C$6,'Cost Escalators'!$E$6)) -> 7578927.232 | P28: ='Input Data'!P28*IF($G28='Cost Escalators'!$B$4,'Cost Escalators'!$B$6,IF($G28='Cost Escalators'!$C$4,'Cost Escalators'!$C$6,'Cost Escalators'!$E$6)) -> 8365785.231 | R28: 5975616.903 | S28: 5926537.012 | T28: 7578927.232 | U28: 8365785.231 | W28: =IF(OR(A28='Cost Escalators'!A$68,A28='Cost Escalators'!A$69,A28='Cost Escalators'!A$70,A28='Cost Escalators'!A$71),SUM(H28:L28),0) -> 0
A29: ='Input Data'!A29 -> 0 | B29: ='Input Data'!B29 -> Motor Vehicles & Mobile Plant | C29: ='Input Data'!C29 -> Capital Program Delivery | D29: ='Input Data'!D29 -> PS Motor Vehicles | E29: ='Input Data'!E29 -> Input_Prog_Commit | F29: ='Input Data'!F29 -> 0 | G29: ='Input Data'!G29 -> 2013 | H29: ='Input Data'!H29*IF($G29='Cost Escalators'!$B$4,'Cost Escalators'!$B$6,IF($G29='Cost Escalators'!$C$4,'Cost Escalators'!$C$6,'Cost Escalators'!$E$6)) -> -461.4051481 | I29: ='Input Data'!I29*IF($G29='Cost Escalators'!$B$4,'Cost Escalators'!$B$6,IF($G29='Cost Escalators'!$C$4,'Cost Escalators'!$C$6,'Cost Escalators'!$E$6)) -> 77697.57807 | J29: ='Input Data'!J29*IF($G29='Cost Escalators'!$B$4,'Cost Escalators'!$B$6,IF($G29='Cost Escalators'!$C$4,'Cost Escalators'!$C$6,'Cost Escalators'!$E$6)) -> 88689.55283 | K29: ='Input Data'!K29*IF($G29='Cost Escalators'!$B$4,'Cost Escalators'!$B$6,IF($G29='Cost Escalators'!$C$4,'Cost Escalators'!$C$6,'Cost Escalators'!$E$6)) -> 154015.3844 | L29: ='Input Data'!L29*IF($G29='Cost Escalators'!$B$4,'Cost Escalators'!$B$6,IF($G29='Cost Escalators'!$C$4,'Cost Escalators'!$C$6,'Cost Escalators'!$E$6)) -> 0 | M29: ='Input Data'!M29*IF($G29='Cost Escalators'!$B$4,'Cost Escalators'!$B$6,IF($G29='Cost Escalators'!$C$4,'Cost Escalators'!$C$6,'Cost Escalators'!$E$6)) -> 0 | N29: ='Input Data'!N29*IF($G29='Cost Escalators'!$B$4,'Cost Escalators'!$B$6,IF($G29='Cost Escalators'!$C$4,'Cost Escalators'!$C$6,'Cost Escalators'!$E$6)) -> 0 | O29: ='Input Data'!O29*IF($G29='Cost Escalators'!$B$4,'Cost Escalators'!$B$6,IF($G29='Cost Escalators'!$C$4,'Cost Escalators'!$C$6,'Cost Escalators'!$E$6)) -> 0 | P29: ='Input Data'!P29*IF($G29='Cost Escalators'!$B$4,'Cost Escalators'!$B$6,IF($G29='Cost Escalators'!$C$4,'Cost Escalators'!$C$6,'Cost Escalators'!$E$6)) -> 0 | R29: 0 | S29: 0 | T29: 0 | U29: 0 | W29: =IF(OR(A29='Cost Escalators'!A$68,A29='Cost Escalators'!A$69,A29='Cost Escalators'!A$70,A29='Cost Escalators'!A$71),SUM(H29:L29),0) -> 0
A30: ='Input Data'!A30 -> 0 | B30: ='Input Data'!B30 -> Motor Vehicles & Mobile Plant | C30: ='Input Data'!C30 -> Finance & Information Systems | D30: ='Input Data'!D30 -> PS Motor Vehicles | E30: ='Input Data'!E30 -> Input_Prog_Commit | F30: ='Input Data'!F30 -> 0 | G30: ='Input Data'!G30 -> 2013 | H30: ='Input Data'!H30*IF($G30='Cost Escalators'!$B$4,'Cost Escalators'!$B$6,IF($G30='Cost Escalators'!$C$4,'Cost Escalators'!$C$6,'Cost Escalators'!$E$6)) -> 2168.12002 | I30: ='Input Data'!I30*IF($G30='Cost Escalators'!$B$4,'Cost Escalators'!$B$6,IF($G30='Cost Escalators'!$C$4,'Cost Escalators'!$C$6,'Cost Escalators'!$E$6)) -> 61074.63003 | J30: ='Input Data'!J30*IF($G30='Cost Escalators'!$B$4,'Cost Escalators'!$B$6,IF($G30='Cost Escalators'!$C$4,'Cost Escalators'!$C$6,'Cost Escalators'!$E$6)) -> 13501.35001 | K30: ='Input Data'!K30*IF($G30='Cost Escalators'!$B$4,'Cost Escalators'!$B$6,IF($G30='Cost Escalators'!$C$4,'Cost Escalators'!$C$6,'Cost Escalators'!$E$6)) -> 0 | L30: ='Input Data'!L30*IF($G30='Cost Escalators'!$B$4,'Cost Escalators'!$B$6,IF($G30='Cost Escalators'!$C$4,'Cost Escalators'!$C$6,'Cost Escalators'!$E$6)) -> 0 | M30: ='Input Data'!M30*IF($G30='Cost Escalators'!$B$4,'Cost Escalators'!$B$6,IF($G30='Cost Escalators'!$C$4,'Cost Escalators'!$C$6,'Cost Escalators'!$E$6)) -> 0 | N30: ='Input Data'!N30*IF($G30='Cost Escalators'!$B$4,'Cost Escalators'!$B$6,IF($G30='Cost Escalators'!$C$4,'Cost Escalators'!$C$6,'Cost Escalators'!$E$6)) -> 0 | O30: ='Input Data'!O30*IF($G30='Cost Escalators'!$B$4,'Cost Escalators'!$B$6,IF($G30='Cost Escalators'!$C$4,'Cost Escalators'!$C$6,'Cost Escalators'!$E$6)) -> 0 | P30: ='Input Data'!P30*IF($G30='Cost Escalators'!$B$4,'Cost Escalators'!$B$6,IF($G30='Cost Escalators'!$C$4,'Cost Escalators'!$C$6,'Cost Escalators'!$E$6)) -> 0 | R30: 0 | S30: 0 | T30: 0 | U30: 0 | W30: =IF(OR(A30='Cost Escalators'!A$68,A30='Cost Escalators'!A$69,A30='Cost Escalators'!A$70,A30='Cost Escalators'!A$71),SUM(H30:L30),0) -> 0
A31: ='Input Data'!A31 -> 0 | B31: ='Input Data'!B31 -> Motor Vehicles & Mobile Plant | C31: ='Input Data'!C31 -> Network Planning & Performance | D31: ='Input Data'!D31 -> PS Motor Vehicles | E31: ='Input Data'!E31 -> Input_Prog_Commit | F31: ='Input Data'!F31 -> 0 | G31: ='Input Data'!G31 -> 2013 | H31: ='Input Data'!H31*IF($G31='Cost Escalators'!$B$4,'Cost Escalators'!$B$6,IF($G31='Cost Escalators'!$C$4,'Cost Escalators'!$C$6,'Cost Escalators'!$E$6)) -> 0 | I31: ='Input Data'!I31*IF($G31='Cost Escalators'!$B$4,'Cost Escalators'!$B$6,IF($G31='Cost Escalators'!$C$4,'Cost Escalators'!$C$6,'Cost Escalators'!$E$6)) -> 19300.31523 | J31: ='Input Data'!J31*IF($G31='Cost Escalators'!$B$4,'Cost Escalators'!$B$6,IF($G31='Cost Escalators'!$C$4,'Cost Escalators'!$C$6,'Cost Escalators'!$E$6)) -> 0 | K31: ='Input Data'!K31*IF($G31='Cost Escalators'!$B$4,'Cost Escalators'!$B$6,IF($G31='Cost Escalators'!$C$4,'Cost Escalators'!$C$6,'Cost Escalators'!$E$6)) -> 0 | L31: ='Input Data'!L31*IF($G31='Cost Escalators'!$B$4,'Cost Escalators'!$B$6,IF($G31='Cost Escalators'!$C$4,'Cost Escalators'!$C$6,'Cost Escalators'!$E$6)) -> 0 | M31: ='Input Data'!M31*IF($G31='Cost Escalators'!$B$4,'Cost Escalators'!$B$6,IF($G31='Cost Escalators'!$C$4,'Cost Escalators'!$C$6,'Cost Escalators'!$E$6)) -> 0 | N31: ='Input Data'!N31*IF($G31='Cost Escalators'!$B$4,'Cost Escalators'!$B$6,IF($G31='Cost Escalators'!$C$4,'Cost Escalators'!$C$6,'Cost Escalators'!$E$6)) -> 0 | O31: ='Input Data'!O31*IF($G31='Cost Escalators'!$B$4,'Cost Escalators'!$B$6,IF($G31='Cost Escalators'!$C$4,'Cost Escalators'!$C$6,'Cost Escalators'!$E$6)) -> 0 | P31: ='Input Data'!P31*IF($G31='Cost Escalators'!$B$4,'Cost Escalators'!$B$6,IF($G31='Cost Escalators'!$C$4,'Cost Escalators'!$C$6,'Cost Escalators'!$E$6)) -> 0 | R31: 0 | S31: 0 | T31: 0 | U31: 0 | W31: =IF(OR(A31='Cost Escalators'!A$68,A31='Cost Escalators'!A$69,A31='Cost Escalators'!A$70,A31='Cost Escalators'!A$71),SUM(H31:L31),0) -> 0
A32: ='Input Data'!A32 -> 0 | B32: ='Input Data'!B32 -> Motor Vehicles & Mobile Plant | C32: ='Input Data'!C32 -> Network Services & Operations | D32: ='Input Data'!D32 -> PS Motor Vehicles | E32: ='Input Data'!E32 -> Input_Prog_Commit | F32: ='Input Data'!F32 -> 0 | G32: ='Input Data'!G32 -> 2013 | H32: ='Input Data'!H32*IF($G32='Cost Escalators'!$B$4,'Cost Escalators'!$B$6,IF($G32='Cost Escalators'!$C$4,'Cost Escalators'!$C$6,'Cost Escalators'!$E$6)) -> 1163236.046 | I32: ='Input Data'!I32*IF($G32='Cost Escalators'!$B$4,'Cost Escalators'!$B$6,IF($G32='Cost Escalators'!$C$4,'Cost Escalators'!$C$6,'Cost Escalators'!$E$6)) -> 2521138.284 | J32: ='Input Data'!J32*IF($G32='Cost Escalators'!$B$4,'Cost Escalators'!$B$6,IF($G32='Cost Escalators'!$C$4,'Cost Escalators'!$C$6,'Cost Escalators'!$E$6)) -> 3512969.09 | K32: ='Input Data'!K32*IF($G32='Cost Escalators'!$B$4,'Cost Escalators'!$B$6,IF($G32='Cost Escalators'!$C$4,'Cost Escalators'!$C$6,'Cost Escalators'!$E$6)) -> 1539948.707 | L32: ='Input Data'!L32*IF($G32='Cost Escalators'!$B$4,'Cost Escalators'!$B$6,IF($G32='Cost Escalators'!$C$4,'Cost Escalators'!$C$6,'Cost Escalators'!$E$6)) -> 0 | M32: ='Input Data'!M32*IF($G32='Cost Escalators'!$B$4,'Cost Escalators'!$B$6,IF($G32='Cost Escalators'!$C$4,'Cost Escalators'!$C$6,'Cost Escalators'!$E$6)) -> 0 | N32: ='Input Data'!N32*IF($G32='Cost Escalators'!$B$4,'Cost Escalators'!$B$6,IF($G32='Cost Escalators'!$C$4,'Cost Escalators'!$C$6,'Cost Escalators'!$E$6)) -> 0 | O32: ='Input Data'!O32*IF($G32='Cost Escalators'!$B$4,'Cost Escalators'!$B$6,IF($G32='Cost Escalators'!$C$4,'Cost Escalators'!$C$6,'Cost Escalators'!$E$6)) -> 0 | P32: ='Input Data'!P32*IF($G32='Cost Escalators'!$B$4,'Cost Escalators'!$B$6,IF($G32='Cost Escalators'!$C$4,'Cost Escalators'!$C$6,'Cost Escalators'!$E$6)) -> 0 | R32: 0 | S32: 0 | T32: 0 | U32: 0 | W32: =IF(OR(A32='Cost Escalators'!A$68,A32='Cost Escalators'!A$69,A32='Cost Escalators'!A$70,A32='Cost Escalators'!A$71),SUM(H32:L32),0) -> 0
A33: ='Input Data'!A33 -> 0 | B33: ='Input Data'!B33 -> Motor Vehicles & Mobile Plant | C33: ='Input Data'!C33 -> People, Strategy & Corporate Services | D33: ='Input Data'!D33 -> PS Motor Vehicles | E33: ='Input Data'!E33 -> Input_Prog_Commit | F33: ='Input Data'!F33 -> 0 | G33: ='Input Data'!G33 -> 2013 | H33: ='Input Data'!H33*IF($G33='Cost Escalators'!$B$4,'Cost Escalators'!$B$6,IF($G33='Cost Escalators'!$C$4,'Cost Escalators'!$C$6,'Cost Escalators'!$E$6)) -> 20385.85521 | I33: ='Input Data'!I33*IF($G33='Cost Escalators'!$B$4,'Cost Escalators'!$B$6,IF($G33='Cost Escalators'!$C$4,'Cost Escalators'!$C$6,'Cost Escalators'!$E$6)) -> 74027.82714 | J33: ='Input Data'!J33*IF($G33='Cost Escalators'!$B$4,'Cost Escalators'!$B$6,IF($G33='Cost Escalators'!$C$4,'Cost Escalators'!$C$6,'Cost Escalators'!$E$6)) -> 207040.3656 | K33: ='Input Data'!K33*IF($G33='Cost Escalators'!$B$4,'Cost Escalators'!$B$6,IF($G33='Cost Escalators'!$C$4,'Cost Escalators'!$C$6,'Cost Escalators'!$E$6)) -> 0 | L33: ='Input Data'!L33*IF($G33='Cost Escalators'!$B$4,'Cost Escalators'!$B$6,IF($G33='Cost Escalators'!$C$4,'Cost Escalators'!$C$6,'Cost Escalators'!$E$6)) -> 0 | M33: ='Input Data'!M33*IF($G33='Cost Escalators'!$B$4,'Cost Escalators'!$B$6,IF($G33='Cost Escalators'!$C$4,'Cost Escalators'!$C$6,'Cost Escalators'!$E$6)) -> 0 | N33: ='Input Data'!N33*IF($G33='Cost Escalators'!$B$4,'Cost Escalators'!$B$6,IF($G33='Cost Escalators'!$C$4,'Cost Escalators'!$C$6,'Cost Escalators'!$E$6)) -> 0 | O33: ='Input Data'!O33*IF($G33='Cost Escalators'!$B$4,'Cost Escalators'!$B$6,IF($G33='Cost Escalators'!$C$4,'Cost Escalators'!$C$6,'Cost Escalators'!$E$6)) -> 0 | P33: ='Input Data'!P33*IF($G33='Cost Escalators'!$B$4,'Cost Escalators'!$B$6,IF($G33='Cost Escalators'!$C$4,'Cost Escalators'!$C$6,'Cost Escalators'!$E$6)) -> 0 | R33: 0 | S33: 0 | T33: 0 | U33: 0 | W33: =IF(OR(A33='Cost Escalators'!A$68,A33='Cost Escalators'!A$69,A33='Cost Escalators'!A$70,A33='Cost Escalators'!A$71),SUM(H33:L33),0) -> 0
A34: ='Input Data'!A34 -> 0 | B34: ='Input Data'!B34 -> Motor Vehicles & Mobile Plant | C34: ='Input Data'!C34 -> People, Strategy & Corporate Services | D34: ='Input Data'!D34 -> PS Motor Vehicles | E34: ='Input Data'!E34 -> Input_Prog_Commit | F34: ='Input Data'!F34 -> 0 | G34: ='Input Data'!G34 -> 2013 | H34: ='Input Data'!H34*IF($G34='Cost Escalators'!$B$4,'Cost Escalators'!$B$6,IF($G34='Cost Escalators'!$C$4,'Cost Escalators'!$C$6,'Cost Escalators'!$E$6)) -> 12434050.01 | I34: ='Input Data'!I34*IF($G34='Cost Escalators'!$B$4,'Cost Escalators'!$B$6,IF($G34='Cost Escalators'!$C$4,'Cost Escalators'!$C$6,'Cost Escalators'!$E$6)) -> 7888970.108 | J34: ='Input Data'!J34*IF($G34='Cost Escalators'!$B$4,'Cost Escalators'!$B$6,IF($G34='Cost Escalators'!$C$4,'Cost Escalators'!$C$6,'Cost Escalators'!$E$6)) -> 10005081.85 | K34: ='Input Data'!K34*IF($G34='Cost Escalators'!$B$4,'Cost Escalators'!$B$6,IF($G34='Cost Escalators'!$C$4,'Cost Escalators'!$C$6,'Cost Escalators'!$E$6)) -> 8552898.674 | L34: ='Input Data'!L34*IF($G34='Cost Escalators'!$B$4,'Cost Escalators'!$B$6,IF($G34='Cost Escalators'!$C$4,'Cost Escalators'!$C$6,'Cost Escalators'!$E$6)) -> 9837226.427 | M34: ='Input Data'!M34*IF($G34='Cost Escalators'!$B$4,'Cost Escalators'!$B$6,IF($G34='Cost Escalators'!$C$4,'Cost Escalators'!$C$6,'Cost Escalators'!$E$6)) -> 0 | N34: ='Input Data'!N34*IF($G34='Cost Escalators'!$B$4,'Cost Escalators'!$B$6,IF($G34='Cost Escalators'!$C$4,'Cost Escalators'!$C$6,'Cost Escalators'!$E$6)) -> 0 | O34: ='Input Data'!O34*IF($G34='Cost Escalators'!$B$4,'Cost Escalators'!$B$6,IF($G34='Cost Escalators'!$C$4,'Cost Escalators'!$C$6,'Cost Escalators'!$E$6)) -> 0 | P34: ='Input Data'!P34*IF($G34='Cost Escalators'!$B$4,'Cost Escalators'!$B$6,IF($G34='Cost Escalators'!$C$4,'Cost Escalators'!$C$6,'Cost Escalators'!$E$6)) -> 0 | R34: 0 | S34: 0 | T34: 0 | U34: 0 | W34: =IF(OR(A34='Cost Escalators'!A$68,A34='Cost Escalators'!A$69,A34='Cost Escalators'!A$70,A34='Cost Escalators'!A$71),SUM(H34:L34),0) -> 0
A35: ='Input Data'!A35 -> 6424 | B35: ='Input Data'!B35 -> Cables | C35: ='Input Data'!C35 -> 42 Tunnel (Sydney Park) Water Treatment Plant | D35: ='Input Data'!D35 -> PS Network Asset Replacement | E35: ='Input Data'!E35 -> Input_Prog_Commit | F35: ='Input Data'!F35 -> 0 | G35: ='Input Data'!G35 -> 2013 | H35: ='Input Data'!H35*IF($G35='Cost Escalators'!$B$4,'Cost Escalators'!$B$6,IF($G35='Cost Escalators'!$C$4,'Cost Escalators'!$C$6,'Cost Escalators'!$E$6)) -> 117864.1216 | I35: ='Input Data'!I35*IF($G35='Cost Escalators'!$B$4,'Cost Escalators'!$B$6,IF($G35='Cost Escalators'!$C$4,'Cost Escalators'!$C$6,'Cost Escalators'!$E$6)) -> -155605.3712 | J35: ='Input Data'!J35*IF($G35='Cost Escalators'!$B$4,'Cost Escalators'!$B$6,IF($G35='Cost Escalators'!$C$4,'Cost Escalators'!$C$6,'Cost Escalators'!$E$6)) -> 0 | K35: ='Input Data'!K35*IF($G35='Cost Escalators'!$B$4,'Cost Escalators'!$B$6,IF($G35='Cost Escalators'!$C$4,'Cost Escalators'!$C$6,'Cost Escalators'!$E$6)) -> 0 | L35: ='Input Data'!L35*IF($G35='Cost Escalators'!$B$4,'Cost Escalators'!$B$6,IF($G35='Cost Escalators'!$C$4,'Cost Escalators'!$C$6,'Cost Escalators'!$E$6)) -> 0 | M35: ='Input Data'!M35*IF($G35='Cost Escalators'!$B$4,'Cost Escalators'!$B$6,IF($G35='Cost Escalators'!$C$4,'Cost Escalators'!$C$6,'Cost Escalators'!$E$6)) -> 0 | N35: ='Input Data'!N35*IF($G35='Cost Escalators'!$B$4,'Cost Escalators'!$B$6,IF($G35='Cost Escalators'!$C$4,'Cost Escalators'!$C$6,'Cost Escalators'!$E$6)) -> 0 | O35: ='Input Data'!O35*IF($G35='Cost Escalators'!$B$4,'Cost Escalators'!$B$6,IF($G35='Cost Escalators'!$C$4,'Cost Escalators'!$C$6,'Cost Escalators'!$E$6)) -> 0 | P35: ='Input Data'!P35*IF($G35='Cost Escalators'!$B$4,'Cost Escalators'!$B$6,IF($G35='Cost Escalators'!$C$4,'Cost Escalators'!$C$6,'Cost Escalators'!$E$6)) -> 0 | R35: 0 | S35: 0 | T35: 0 | U35: 0 | W35: =IF(OR(A35='Cost Escalators'!A$68,A35='Cost Escalators'!A$69,A35='Cost Escalators'!A$70,A35='Cost Escalators'!A$71),SUM(H35:L35),0) -> 0
A36: ='Input Data'!A36 -> 0 | B36: ='Input Data'!B36 -> Cables | C36: ='Input Data'!C36 -> Network Asset Replacement | D36: ='Input Data'!D36 -> PS Network Asset Replacement | E36: ='Input Data'!E36 -> Input_Prog_Commit | F36: ='Input Data'!F36 -> 0 | G36: ='Input Data'!G36 -> 2013 | H36: ='Input Data'!H36*IF($G36='Cost Escalators'!$B$4,'Cost Escalators'!$B$6,IF($G36='Cost Escalators'!$C$4,'Cost Escalators'!$C$6,'Cost Escalators'!$E$6)) -> 117159.6339 | I36: ='Input Data'!I36*IF($G36='Cost Escalators'!$B$4,'Cost Escalators'!$B$6,IF($G36='Cost Escalators'!$C$4,'Cost Escalators'!$C$6,'Cost Escalators'!$E$6)) -> 52343.75139 | J36: ='Input Data'!J36*IF($G36='Cost Escalators'!$B$4,'Cost Escalators'!$B$6,IF($G36='Cost Escalators'!$C$4,'Cost Escalators'!$C$6,'Cost Escalators'!$E$6)) -> 32823.32035 | K36: ='Input Data'!K36*IF($G36='Cost Escalators'!$B$4,'Cost Escalators'!$B$6,IF($G36='Cost Escalators'!$C$4,'Cost Escalators'!$C$6,'Cost Escalators'!$E$6)) -> 23598.36742 | L36: ='Input Data'!L36*IF($G36='Cost Escalators'!$B$4,'Cost Escalators'!$B$6,IF($G36='Cost Escalators'!$C$4,'Cost Escalators'!$C$6,'Cost Escalators'!$E$6)) -> 0 | M36: ='Input Data'!M36*IF($G36='Cost Escalators'!$B$4,'Cost Escalators'!$B$6,IF($G36='Cost Escalators'!$C$4,'Cost Escalators'!$C$6,'Cost Escalators'!$E$6)) -> 0 | N36: ='Input Data'!N36*IF($G36='Cost Escalators'!$B$4,'Cost Escalators'!$B$6,IF($G36='Cost Escalators'!$C$4,'Cost Escalators'!$C$6,'Cost Escalators'!$E$6)) -> 0 | O36: ='Input Data'!O36*IF($G36='Cost Escalators'!$B$4,'Cost Escalators'!$B$6,IF($G36='Cost Escalators'!$C$4,'Cost Escalators'!$C$6,'Cost Escalators'!$E$6)) -> 0 | P36: ='Input Data'!P36*IF($G36='Cost Escalators'!$B$4,'Cost Escalators'!$B$6,IF($G36='Cost Escalators'!$C$4,'Cost Escalators'!$C$6,'Cost Escalators'!$E$6)) -> 0 | R36: 0 | S36: 0 | T36: 0 | U36: 0 | W36: =IF(OR(A36='Cost Escalators'!A$68,A36='Cost Escalators'!A$69,A36='Cost Escalators'!A$70,A36='Cost Escalators'!A$71),SUM(H36:L36),0) -> 0
A37: ='Input Data'!A37 -> 4967 | B37: ='Input Data'!B37 -> Communications | C37: ='Input Data'!C37 -> Installation of PLC Voice Equipment | D37: ='Input Data'!D37 -> PS Network Asset Replacement | E37: ='Input Data'!E37 -> Input_Prog_Commit | F37: ='Input Data'!F37 -> 0 | G37: ='Input Data'!G37 -> 2014 | H37: ='Input Data'!H37*IF($G37='Cost Escalators'!$B$4,'Cost Escalators'!$B$6,IF($G37='Cost Escalators'!$C$4,'Cost Escalators'!$C$6,'Cost Escalators'!$E$6)) -> 0 | I37: ='Input Data'!I37*IF($G37='Cost Escalators'!$B$4,'Cost Escalators'!$B$6,IF($G37='Cost Escalators'!$C$4,'Cost Escalators'!$C$6,'Cost Escalators'!$E$6)) -> 0 | J37: ='Input Data'!J37*IF($G37='Cost Escalators'!$B$4,'Cost Escalators'!$B$6,IF($G37='Cost Escalators'!$C$4,'Cost Escalators'!$C$6,'Cost Escalators'!$E$6)) -> 0 | K37: ='Input Data'!K37*IF($G37='Cost Escalators'!$B$4,'Cost Escalators'!$B$6,IF($G37='Cost Escalators'!$C$4,'Cost Escalators'!$C$6,'Cost Escalators'!$E$6)) -> 0 | L37: ='Input Data'!L37*IF($G37='Cost Escalators'!$B$4,'Cost Escalators'!$B$6,IF($G37='Cost Escalators'!$C$4,'Cost Escalators'!$C$6,'Cost Escalators'!$E$6)) -> 0 | M37: ='Input Data'!M37*IF($G37='Cost Escalators'!$B$4,'Cost Escalators'!$B$6,IF($G37='Cost Escalators'!$C$4,'Cost Escalators'!$C$6,'Cost Escalators'!$E$6)) -> 660032.5052 | N37: ='Input Data'!N37*IF($G37='Cost Escalators'!$B$4,'Cost Escalators'!$B$6,IF($G37='Cost Escalators'!$C$4,'Cost Escalators'!$C$6,'Cost Escalators'!$E$6)) -> 440021.6701 | O37: ='Input Data'!O37*IF($G37='Cost Escalators'!$B$4,'Cost Escalators'!$B$6,IF($G37='Cost Escalators'!$C$4,'Cost Escalators'!$C$6,'Cost Escalators'!$E$6)) -> 385018.9614 | P37: ='Input Data'!P37*IF($G37='Cost Escalators'!$B$4,'Cost Escalators'!$B$6,IF($G37='Cost Escalators'!$C$4,'Cost Escalators'!$C$6,'Cost Escalators'!$E$6)) -> 0 | R37: 660032.5052 | S37: 440021.6701 | T37: 385018.9614 | U37: 0 | W37: =IF(OR(A37='Cost Escalators'!A$68,A37='Cost Escalators'!A$69,A37='Cost Escalators'!A$70,A37='Cost Escalators'!A$71),SUM(H37:L37),0) -> 0
A38: ='Input Data'!A38 -> 4968 | B38: ='Input Data'!B38 -> Communications | C38: ='Input Data'!C38 -> Installation of PLC Intertrips | D38: ='Input Data'!D38 -> PS Network Asset Replacement | E38: ='Input Data'!E38 -> Input_Prog_Commit | F38: ='Input Data'!F38 -> 0 | G38: ='Input Data'!G38 -> 2014 | H38: ='Input Data'!H38*IF($G38='Cost Escalators'!$B$4,'Cost Escalators'!$B$6,IF($G38='Cost Escalators'!$C$4,'Cost Escalators'!$C$6,'Cost Escalators'!$E$6)) -> 0 | I38: ='Input Data'!I38*IF($G38='Cost Escalators'!$B$4,'Cost Escalators'!$B$6,IF($G38='Cost Escalators'!$C$4,'Cost Escalators'!$C$6,'Cost Escalators'!$E$6)) -> 0 | J38: ='Input Data'!J38*IF($G38='Cost Escalators'!$B$4,'Cost Escalators'!$B$6,IF($G38='Cost Escalators'!$C$4,'Cost Escalators'!$C$6,'Cost Escalators'!$E$6)) -> 0 | K38: ='Input Data'!K38*IF($G38='Cost Escalators'!$B$4,'Cost Escalators'!$B$6,IF($G38='Cost Escalators'!$C$4,'Cost Escalators'!$C$6,'Cost Escalators'!$E$6)) -> 0 | L38: ='Input Data'!L38*IF($G38='Cost Escalators'!$B$4,'Cost Escalators'!$B$6,IF($G38='Cost Escalators'!$C$4,'Cost Escalators'!$C$6,'Cost Escalators'!$E$6)) -> 0 | M38: ='Input Data'!M38*IF($G38='Cost Escalators'!$B$4,'Cost Escalators'!$B$6,IF($G38='Cost Escalators'!$C$4,'Cost Escalators'!$C$6,'Cost Escalators'!$E$6)) -> 229930.659 | N38: ='Input Data'!N38*IF($G38='Cost Escalators'!$B$4,'Cost Escalators'!$B$6,IF($G38='Cost Escalators'!$C$4,'Cost Escalators'!$C$6,'Cost Escalators'!$E$6)) -> 344895.9885 | O38: ='Input Data'!O38*IF($G38='Cost Escalators'!$B$4,'Cost Escalators'!$B$6,IF($G38='Cost Escalators'!$C$4,'Cost Escalators'!$C$6,'Cost Escalators'!$E$6)) -> 114965.3295 | P38: ='Input Data'!P38*IF($G38='Cost Escalators'!$B$4,'Cost Escalators'!$B$6,IF($G38='Cost Escalators'!$C$4,'Cost Escalators'!$C$6,'Cost Escalators'!$E$6)) -> 172447.9942 | R38: 229930.659 | S38: 344895.9885 | T38: 114965.3295 | U38: 172447.9942 | W38: =IF(OR(A38='Cost Escalators'!A$68,A38='Cost Escalators'!A$69,A38='Cost Escalators'!A$70,A38='Cost Escalators'!A$71),SUM(H38:L38),0) -> 0
A39: ='Input Data'!A39 -> 4969 | B39: ='Input Data'!B39 -> Communications | C39: ='Input Data'!C39 -> Installation of VF Intertrips | D39: ='Input Data'!D39 -> PS Network Asset Replacement | E39: ='Input Data'!E39 -> Input_Prog_Commit | F39: ='Input Data'!F39 -> 0 | G39: ='Input Data'!G39 -> 2014 | H39: ='Input Data'!H39*IF($G39='Cost Escalators'!$B$4,'Cost Escalators'!$B$6,IF($G39='Cost Escalators'!$C$4,'Cost Escalators'!$C$6,'Cost Escalators'!$E$6)) -> 0 | I39: ='Input Data'!I39*IF($G39='Cost Escalators'!$B$4,'Cost Escalators'!$B$6,IF($G39='Cost Escalators'!$C$4,'Cost Escalators'!$C$6,'Cost Escalators'!$E$6)) -> 0 | J39: ='Input Data'!J39*IF($G39='Cost Escalators'!$B$4,'Cost Escalators'!$B$6,IF($G39='Cost Escalators'!$C$4,'Cost Escalators'!$C$6,'Cost Escalators'!$E$6)) -> 0 | K39: ='Input Data'!K39*IF($G39='Cost Escalators'!$B$4,'Cost Escalators'!$B$6,IF($G39='Cost Escalators'!$C$4,'Cost Escalators'!$C$6,'Cost Escalators'!$E$6)) -> 0 | L39: ='Input Data'!L39*IF($G39='Cost Escalators'!$B$4,'Cost Escalators'!$B$6,IF($G39='Cost Escalators'!$C$4,'Cost Escalators'!$C$6,'Cost Escalators'!$E$6)) -> 0 | M39: ='Input Data'!M39*IF($G39='Cost Escalators'!$B$4,'Cost Escalators'!$B$6,IF($G39='Cost Escalators'!$C$4,'Cost Escalators'!$C$6,'Cost Escalators'!$E$6)) -> 53152.99928 | N39: ='Input Data'!N39*IF($G39='Cost Escalators'!$B$4,'Cost Escalators'!$B$6,IF($G39='Cost Escalators'!$C$4,'Cost Escalators'!$C$6,'Cost Escalators'!$E$6)) -> 212611.9971 | O39: ='Input Data'!O39*IF($G39='Cost Escalators'!$B$4,'Cost Escalators'!$B$6,IF($G39='Cost Escalators'!$C$4,'Cost Escalators'!$C$6,'Cost Escalators'!$E$6)) -> 186035.4975 | P39: ='Input Data'!P39*IF($G39='Cost Escalators'!$B$4,'Cost Escalators'!$B$6,IF($G39='Cost Escalators'!$C$4,'Cost Escalators'!$C$6,'Cost Escalators'!$E$6)) -> 159458.9978 | R39: 53152.99928 | S39: 212611.9971 | T39: 186035.4975 | U39: 159458.9978 | W39: =IF(OR(A39='Cost Escalators'!A$68,A39='Cost Escalators'!A$69,A39='Cost Escalators'!A$70,A39='Cost Escalators'!A$71),SUM(H39:L39),0) -> 0
A40: ='Input Data'!A40 -> 7425 | B40: ='Input Data'!B40 -> Communications | C40: ='Input Data'!C40 -> SSZ Upgrade Work | D40: ='Input Data'!D40 -> PS Network Asset Replacement | E40: ='Input Data'!E40 -> Input_Prog_Commit | F40: ='Input Data'!F40 -> 0 | G40: ='Input Data'!G40 -> 2014 | H40: ='Input Data'!H40*IF($G40='Cost Escalators'!$B$4,'Cost Escalators'!$B$6,IF($G40='Cost Escalators'!$C$4,'Cost Escalators'!$C$6,'Cost Escalators'!$E$6)) -> 0 | I40: ='Input Data'!I40*IF($G40='Cost Escalators'!$B$4,'Cost Escalators'!$B$6,IF($G40='Cost Escalators'!$C$4,'Cost Escalators'!$C$6,'Cost Escalators'!$E$6)) -> 0 | J40: ='Input Data'!J40*IF($G40='Cost Escalators'!$B$4,'Cost Escalators'!$B$6,IF($G40='Cost Escalators'!$C$4,'Cost Escalators'!$C$6,'Cost Escalators'!$E$6)) -> 0 | K40: ='Input Data'!K40*IF($G40='Cost Escalators'!$B$4,'Cost Escalators'!$B$6,IF($G40='Cost Escalators'!$C$4,'Cost Escalators'!$C$6,'Cost Escalators'!$E$6)) -> 0 | L40: ='Input Data'!L40*IF($G40='Cost Escalators'!$B$4,'Cost Escalators'!$B$6,IF($G40='Cost Escalators'!$C$4,'Cost Escalators'!$C$6,'Cost Escalators'!$E$6)) -> 0 | M40: ='Input Data'!M40*IF($G40='Cost Escalators'!$B$4,'Cost Escalators'!$B$6,IF($G40='Cost Escalators'!$C$4,'Cost Escalators'!$C$6,'Cost Escalators'!$E$6)) -> 68982.57782 | N40: ='Input Data'!N40*IF($G40='Cost Escalators'!$B$4,'Cost Escalators'!$B$6,IF($G40='Cost Escalators'!$C$4,'Cost Escalators'!$C$6,'Cost Escalators'!$E$6)) -> 34491.28891 | O40: ='Input Data'!O40*IF($G40='Cost Escalators'!$B$4,'Cost Escalators'!$B$6,IF($G40='Cost Escalators'!$C$4,'Cost Escalators'!$C$6,'Cost Escalators'!$E$6)) -> 77605.40004 | P40: ='Input Data'!P40*IF($G40='Cost Escalators'!$B$4,'Cost Escalators'!$B$6,IF($G40='Cost Escalators'!$C$4,'Cost Escalators'!$C$6,'Cost Escalators'!$E$6)) -> 25868.46668 | R40: 68982.57782 | S40: 34491.28891 | T40: 77605.40004 | U40: 25868.46668 | W40: =IF(OR(A40='Cost Escalators'!A$68,A40='Cost Escalators'!A$69,A40='Cost Escalators'!A$70,A40='Cost Escalators'!A$71),SUM(H40:L40),0) -> 0
A41: ='Input Data'!A41 -> 0 | B41: ='Input Data'!B41 -> Communications | C41: ='Input Data'!C41 -> Network Asset Replacement | D41: ='Input Data'!D41 -> PS Network Asset Replacement | E41: ='Input Data'!E41 -> Input_Prog_Commit | F41: ='Input Data'!F41 -> 0 | G41: ='Input Data'!G41 -> 2013 | H41: ='Input Data'!H41*IF($G41='Cost Escalators'!$B$4,'Cost Escalators'!$B$6,IF($G41='Cost Escalators'!$C$4,'Cost Escalators'!$C$6,'Cost Escalators'!$E$6)) -> 1354698.018 | I41: ='Input Data'!I41*IF($G41='Cost Escalators'!$B$4,'Cost Escalators'!$B$6,IF($G41='Cost Escalators'!$C$4,'Cost Escalators'!$C$6,'Cost Escalators'!$E$6)) -> 1462555.107 | J41: ='Input Data'!J41*IF($G41='Cost Escalators'!$B$4,'Cost Escalators'!$B$6,IF($G41='Cost Escalators'!$C$4,'Cost Escalators'!$C$6,'Cost Escalators'!$E$6)) -> 0 | K41: ='Input Data'!K41*IF($G41='Cost Escalators'!$B$4,'Cost Escalators'!$B$6,IF($G41='Cost Escalators'!$C$4,'Cost Escalators'!$C$6,'Cost Escalators'!$E$6)) -> 0 | L41: ='Input Data'!L41*IF($G41='Cost Escalators'!$B$4,'Cost Escalators'!$B$6,IF($G41='Cost Escalators'!$C$4,'Cost Escalators'!$C$6,'Cost Escalators'!$E$6)) -> 0 | M41: ='Input Data'!M41*IF($G41='Cost Escalators'!$B$4,'Cost Escalators'!$B$6,IF($G41='Cost Escalators'!$C$4,'Cost Escalators'!$C$6,'Cost Escalators'!$E$6)) -> 0 | N41: ='Input Data'!N41*IF($G41='Cost Escalators'!$B$4,'Cost Escalators'!$B$6,IF($G41='Cost Escalators'!$C$4,'Cost Escalators'!$C$6,'Cost Escalators'!$E$6)) -> 0 | O41: ='Input Data'!O41*IF($G41='Cost Escalators'!$B$4,'Cost Escalators'!$B$6,IF($G41='Cost Escalators'!$C$4,'Cost Escalators'!$C$6,'Cost Escalators'!$E$6)) -> 0 | P41: ='Input Data'!P41*IF($G41='Cost Escalators'!$B$4,'Cost Escalators'!$B$6,IF($G41='Cost Escalators'!$C$4,'Cost Escalators'!$C$6,'Cost Escalators'!$E$6)) -> 0 | R41: 0 | S41: 0 | T41: 0 | U41: 0 | W41: =IF(OR(A41='Cost Escalators'!A$68,A41='Cost Escalators'!A$69,A41='Cost Escalators'!A$70,A41='Cost Escalators'!A$71),SUM(H41:L41),0) -> 0
A42: ='Input Data'!A42 -> 0 | B42: ='Input Data'!B42 -> Communications | C42: ='Input Data'!C42 -> Network Asset Replacement | D42: ='Input Data'!D42 -> PS Network Asset Replacement | E42: ='Input Data'!E42 -> Input_Prog_Commit | F42: ='Input Data'!F42 -> 0 | G42: ='Input Data'!G42 -> 2013 | H42: ='Input Data'!H42*IF($G42='Cost Escalators'!$B$4,'Cost Escalators'!$B$6,IF($G42='Cost Escalators'!$C$4,'Cost Escalators'!$C$6,'Cost Escalators'!$E$6)) -> 0 | I42: ='Input Data'!I42*IF($G42='Cost Escalators'!$B$4,'Cost Escalators'!$B$6,IF($G42='Cost Escalators'!$C$4,'Cost Escalators'!$C$6,'Cost Escalators'!$E$6)) -> 0 | J42: ='Input Data'!J42*IF($G42='Cost Escalators'!$B$4,'Cost Escalators'!$B$6,IF($G42='Cost Escalators'!$C$4,'Cost Escalators'!$C$6,'Cost Escalators'!$E$6)) -> 373094.5228 | K42: ='Input Data'!K42*IF($G42='Cost Escalators'!$B$4,'Cost Escalators'!$B$6,IF($G42='Cost Escalators'!$C$4,'Cost Escalators'!$C$6,'Cost Escalators'!$E$6)) -> 3282824.457 | L42: ='Input Data'!L42*IF($G42='Cost Escalators'!$B$4,'Cost Escalators'!$B$6,IF($G42='Cost Escalators'!$C$4,'Cost Escalators'!$C$6,'Cost Escalators'!$E$6)) -> 23123.07152 | M42: ='Input Data'!M42*IF($G42='Cost Escalators'!$B$4,'Cost Escalators'!$B$6,IF($G42='Cost Escalators'!$C$4,'Cost Escalators'!$C$6,'Cost Escalators'!$E$6)) -> 0 | N42: ='Input Data'!N42*IF($G42='Cost Escalators'!$B$4,'Cost Escalators'!$B$6,IF($G42='Cost Escalators'!$C$4,'Cost Escalators'!$C$6,'Cost Escalators'!$E$6)) -> 0 | O42: ='Input Data'!O42*IF($G42='Cost Escalators'!$B$4,'Cost Escalators'!$B$6,IF($G42='Cost Escalators'!$C$4,'Cost Escalators'!$C$6,'Cost Escalators'!$E$6)) -> 0 | P42: ='Input Data'!P42*IF($G42='Cost Escalators'!$B$4,'Cost Escalators'!$B$6,IF($G42='Cost Escalators'!$C$4,'Cost Escalators'!$C$6,'Cost Escalators'!$E$6)) -> 0 | R42: 0 | S42: 0 | T42: 0 | U42: 0 | W42: =IF(OR(A42='Cost Escalators'!A$68,A42='Cost Escalators'!A$69,A42='Cost Escalators'!A$70,A42='Cost Escalators'!A$71),SUM(H42:L42),0) -> 0
A43: ='Input Data'!A43 -> 4978 | B43: ='Input Data'!B43 -> Controls & Alarms | C43: ='Input Data'!C43 -> Installation of RTU Equipment | D43: ='Input Data'!D43 -> PS Network Asset Replacement | E43: ='Input Data'!E43 -> Input_Prog_Commit | F43: ='Input Data'!F43 -> 0 | G43: ='Input Data'!G43 -> 2014 | H43: ='Input Data'!H43*IF($G43='Cost Escalators'!$B$4,'Cost Escalators'!$B$6,IF($G43='Cost Escalators'!$C$4,'Cost Escalators'!$C$6,'Cost Escalators'!$E$6)) -> 0 | I43: ='Input Data'!I43*IF($G43='Cost Escalators'!$B$4,'Cost Escalators'!$B$6,IF($G43='Cost Escalators'!$C$4,'Cost Escalators'!$C$6,'Cost Escalators'!$E$6)) -> 0 | J43: ='Input Data'!J43*IF($G43='Cost Escalators'!$B$4,'Cost Escalators'!$B$6,IF($G43='Cost Escalators'!$C$4,'Cost Escalators'!$C$6,'Cost Escalators'!$E$6)) -> 0 | K43: ='Input Data'!K43*IF($G43='Cost Escalators'!$B$4,'Cost Escalators'!$B$6,IF($G43='Cost Escalators'!$C$4,'Cost Escalators'!$C$6,'Cost Escalators'!$E$6)) -> 0 | L43: ='Input Data'!L43*IF($G43='Cost Escalators'!$B$4,'Cost Escalators'!$B$6,IF($G43='Cost Escalators'!$C$4,'Cost Escalators'!$C$6,'Cost Escalators'!$E$6)) -> 0 | M43: ='Input Data'!M43*IF($G43='Cost Escalators'!$B$4,'Cost Escalators'!$B$6,IF($G43='Cost Escalators'!$C$4,'Cost Escalators'!$C$6,'Cost Escalators'!$E$6)) -> 1842866.083 | N43: ='Input Data'!N43*IF($G43='Cost Escalators'!$B$4,'Cost Escalators'!$B$6,IF($G43='Cost Escalators'!$C$4,'Cost Escalators'!$C$6,'Cost Escalators'!$E$6)) -> 2580012.516 | O43: ='Input Data'!O43*IF($G43='Cost Escalators'!$B$4,'Cost Escalators'!$B$6,IF($G43='Cost Escalators'!$C$4,'Cost Escalators'!$C$6,'Cost Escalators'!$E$6)) -> 675717.5637 | P43: ='Input Data'!P43*IF($G43='Cost Escalators'!$B$4,'Cost Escalators'!$B$6,IF($G43='Cost Escalators'!$C$4,'Cost Escalators'!$C$6,'Cost Escalators'!$E$6)) -> 860004.172 | R43: 1842866.083 | S43: 2580012.516 | T43: 675717.5637 | U43: 860004.172 | W43: =IF(OR(A43='Cost Escalators'!A$68,A43='Cost Escalators'!A$69,A43='Cost Escalators'!A$70,A43='Cost Escalators'!A$71),SUM(H43:L43),0) -> 0
A44: ='Input Data'!A44 -> 0 | B44: ='Input Data'!B44 -> Controls & Alarms | C44: ='Input Data'!C44 -> Network Asset Replacement | D44: ='Input Data'!D44 -> PS Network Asset Replacement | E44: ='Input Data'!E44 -> Input_Prog_Commit | F44: ='Input Data'!F44 -> 0 | G44: ='Input Data'!G44 -> 2013 | H44: ='Input Data'!H44*IF($G44='Cost Escalators'!$B$4,'Cost Escalators'!$B$6,IF($G44='Cost Escalators'!$C$4,'Cost Escalators'!$C$6,'Cost Escalators'!$E$6)) -> 1844593.364 | I44: ='Input Data'!I44*IF($G44='Cost Escalators'!$B$4,'Cost Escalators'!$B$6,IF($G44='Cost Escalators'!$C$4,'Cost Escalators'!$C$6,'Cost Escalators'!$E$6)) -> 2639624.886 | J44: ='Input Data'!J44*IF($G44='Cost Escalators'!$B$4,'Cost Escalators'!$B$6,IF($G44='Cost Escalators'!$C$4,'Cost Escalators'!$C$6,'Cost Escalators'!$E$6)) -> 0 | K44: ='Input Data'!K44*IF($G44='Cost Escalators'!$B$4,'Cost Escalators'!$B$6,IF($G44='Cost Escalators'!$C$4,'Cost Escalators'!$C$6,'Cost Escalators'!$E$6)) -> 0 | L44: ='Input Data'!L44*IF($G44='Cost Escalators'!$B$4,'Cost Escalators'!$B$6,IF($G44='Cost Escalators'!$C$4,'Cost Escalators'!$C$6,'Cost Escalators'!$E$6)) -> 0 | M44: ='Input Data'!M44*IF($G44='Cost Escalators'!$B$4,'Cost Escalators'!$B$6,IF($G44='Cost Escalators'!$C$4,'Cost Escalators'!$C$6,'Cost Escalators'!$E$6)) -> 0 | N44: ='Input Data'!N44*IF($G44='Cost Escalators'!$B$4,'Cost Escalators'!$B$6,IF($G44='Cost Escalators'!$C$4,'Cost Escalators'!$C$6,'Cost Escalators'!$E$6)) -> 0 | O44: ='Input Data'!O44*IF($G44='Cost Escalators'!$B$4,'Cost Escalators'!$B$6,IF($G44='Cost Escalators'!$C$4,'Cost Escalators'!$C$6,'Cost Escalators'!$E$6)) -> 0 | P44: ='Input Data'!P44*IF($G44='Cost Escalators'!$B$4,'Cost Escalators'!$B$6,IF($G44='Cost Escalators'!$C$4,'Cost Escalators'!$C$6,'Cost Escalators'!$E$6)) -> 0 | R44: 0 | S44: 0 | T44: 0 | U44: 0 | W44: =IF(OR(A44='Cost Escalators'!A$68,A44='Cost Escalators'!A$69,A44='Cost Escalators'!A$70,A44='Cost Escalators'!A$71),SUM(H44:L44),0) -> 0
A45: ='Input Data'!A45 -> 0 | B45: ='Input Data'!B45 -> Controls & Alarms | C45: ='Input Data'!C45 -> Network Asset Replacement | D45: ='Input Data'!D45 -> PS Network Asset Replacement | E45: ='Input Data'!E45 -> Input_Prog_Commit | F45: ='Input Data'!F45 -> 0 | G45: ='Input Data'!G45 -> 2013 | H45: ='Input Data'!H45*IF($G45='Cost Escalators'!$B$4,'Cost Escalators'!$B$6,IF($G45='Cost Escalators'!$C$4,'Cost Escalators'!$C$6,'Cost Escalators'!$E$6)) -> 0 | I45: ='Input Data'!I45*IF($G45='Cost Escalators'!$B$4,'Cost Escalators'!$B$6,IF($G45='Cost Escalators'!$C$4,'Cost Escalators'!$C$6,'Cost Escalators'!$E$6)) -> 0 | J45: ='Input Data'!J45*IF($G45='Cost Escalators'!$B$4,'Cost Escalators'!$B$6,IF($G45='Cost Escalators'!$C$4,'Cost Escalators'!$C$6,'Cost Escalators'!$E$6)) -> 3540662.435 | K45: ='Input Data'!K45*IF($G45='Cost Escalators'!$B$4,'Cost Escalators'!$B$6,IF($G45='Cost Escalators'!$C$4,'Cost Escalators'!$C$6,'Cost Escalators'!$E$6)) -> 2649015.362 | L45: ='Input Data'!L45*IF($G45='Cost Escalators'!$B$4,'Cost Escalators'!$B$6,IF($G45='Cost Escalators'!$C$4,'Cost Escalators'!$C$6,'Cost Escalators'!$E$6)) -> 0 | M45: ='Input Data'!M45*IF($G45='Cost Escalators'!$B$4,'Cost Escalators'!$B$6,IF($G45='Cost Escalators'!$C$4,'Cost Escalators'!$C$6,'Cost Escalators'!$E$6)) -> 0 | N45: ='Input Data'!N45*IF($G45='Cost Escalators'!$B$4,'Cost Escalators'!$B$6,IF($G45='Cost Escalators'!$C$4,'Cost Escalators'!$C$6,'Cost Escalators'!$E$6)) -> 0 | O45: ='Input Data'!O45*IF($G45='Cost Escalators'!$B$4,'Cost Escalators'!$B$6,IF($G45='Cost Escalators'!$C$4,'Cost Escalators'!$C$6,'Cost Escalators'!$E$6)) -> 0 | P45: ='Input Data'!P45*IF($G45='Cost Escalators'!$B$4,'Cost Escalators'!$B$6,IF($G45='Cost Escalators'!$C$4,'Cost Escalators'!$C$6,'Cost Escalators'!$E$6)) -> 0 | R45: 0 | S45: 0 | T45: 0 | U45: 0 | W45: =IF(OR(A45='Cost Escalators'!A$68,A45='Cost Escalators'!A$69,A45='Cost Escalators'!A$70,A45='Cost Escalators'!A$71),SUM(H45:L45),0) -> 0
A46: ='Input Data'!A46 -> 5071 | B46: ='Input Data'!B46 -> HV Buildings & Civil Work | C46: ='Input Data'!C46 -> Perimeter Security Fence | D46: ='Input Data'!D46 -> PS Network Asset Replacement | E46: ='Input Data'!E46 -> Input_Prog_Commit | F46: ='Input Data'!F46 -> 0 | G46: ='Input Data'!G46 -> 2014 | H46: ='Input Data'!H46*IF($G46='Cost Escalators'!$B$4,'Cost Escalators'!$B$6,IF($G46='Cost Escalators'!$C$4,'Cost Escalators'!$C$6,'Cost Escalators'!$E$6)) -> 0 | I46: ='Input Data'!I46*IF($G46='Cost Escalators'!$B$4,'Cost Escalators'!$B$6,IF($G46='Cost Escalators'!$C$4,'Cost Escalators'!$C$6,'Cost Escalators'!$E$6)) -> 0 | J46: ='Input Data'!J46*IF($G46='Cost Escalators'!$B$4,'Cost Escalators'!$B$6,IF($G46='Cost Escalators'!$C$4,'Cost Escalators'!$C$6,'Cost Escalators'!$E$6)) -> 0 | K46: ='Input Data'!K46*IF($G46='Cost Escalators'!$B$4,'Cost Escalators'!$B$6,IF($G46='Cost Escalators'!$C$4,'Cost Escalators'!$C$6,'Cost Escalators'!$E$6)) -> 0 | L46: ='Input Data'!L46*IF($G46='Cost Escalators'!$B$4,'Cost Escalators'!$B$6,IF($G46='Cost Escalators'!$C$4,'Cost Escalators'!$C$6,'Cost Escalators'!$E$6)) -> 0 | M46: ='Input Data'!M46*IF($G46='Cost Escalators'!$B$4,'Cost Escalators'!$B$6,IF($G46='Cost Escalators'!$C$4,'Cost Escalators'!$C$6,'Cost Escalators'!$E$6)) -> 0 | N46: ='Input Data'!N46*IF($G46='Cost Escalators'!$B$4,'Cost Escalators'!$B$6,IF($G46='Cost Escalators'!$C$4,'Cost Escalators'!$C$6,'Cost Escalators'!$E$6)) -> 0 | O46: ='Input Data'!O46*IF($G46='Cost Escalators'!$B$4,'Cost Escalators'!$B$6,IF($G46='Cost Escalators'!$C$4,'Cost Escalators'!$C$6,'Cost Escalators'!$E$6)) -> 0 | P46: ='Input Data'!P46*IF($G46='Cost Escalators'!$B$4,'Cost Escalators'!$B$6,IF($G46='Cost Escalators'!$C$4,'Cost Escalators'!$C$6,'Cost Escalators'!$E$6)) -> 0 | R46: 0 | S46: 0 | T46: 0 | U46: 0 | W46: =IF(OR(A46='Cost Escalators'!A$68,A46='Cost Escalators'!A$69,A46='Cost Escalators'!A$70,A46='Cost Escalators'!A$71),SUM(H46:L46),0) -> 0
A47: ='Input Data'!A47 -> 5077 | B47: ='Input Data'!B47 -> HV Buildings & Civil Work | C47: ='Input Data'!C47 -> Switchyard Security Fence | D47: ='Input Data'!D47 -> PS Network Asset Replacement | E47: ='Input Data'!E47 -> Input_Prog_Commit | F47: ='Input Data'!F47 -> 0 | G47: ='Input Data'!G47 -> 2014 | H47: ='Input Data'!H47*IF($G47='Cost Escalators'!$B$4,'Cost Escalators'!$B$6,IF($G47='Cost Escalators'!$C$4,'Cost Escalators'!$C$6,'Cost Escalators'!$E$6)) -> 0 | I47: ='Input Data'!I47*IF($G47='Cost Escalators'!$B$4,'Cost Escalators'!$B$6,IF($G47='Cost Escalators'!$C$4,'Cost Escalators'!$C$6,'Cost Escalators'!$E$6)) -> 0 | J47: ='Input Data'!J47*IF($G47='Cost Escalators'!$B$4,'Cost Escalators'!$B$6,IF($G47='Cost Escalators'!$C$4,'Cost Escalators'!$C$6,'Cost Escalators'!$E$6)) -> 0 | K47: ='Input Data'!K47*IF($G47='Cost Escalators'!$B$4,'Cost Escalators'!$B$6,IF($G47='Cost Escalators'!$C$4,'Cost Escalators'!$C$6,'Cost Escalators'!$E$6)) -> 0 | L47: ='Input Data'!L47*IF($G47='Cost Escalators'!$B$4,'Cost Escalators'!$B$6,IF($G47='Cost Escalators'!$C$4,'Cost Escalators'!$C$6,'Cost Escalators'!$E$6)) -> 0 | M47: ='Input Data'!M47*IF($G47='Cost Escalators'!$B$4,'Cost Escalators'!$B$6,IF($G47='Cost Escalators'!$C$4,'Cost Escalators'!$C$6,'Cost Escalators'!$E$6)) -> 0 | N47: ='Input Data'!N47*IF($G47='Cost Escalators'!$B$4,'Cost Escalators'!$B$6,IF($G47='Cost Escalators'!$C$4,'Cost Escalators'!$C$6,'Cost Escalators'!$E$6)) -> 0 | O47: ='Input Data'!O47*IF($G47='Cost Escalators'!$B$4,'Cost Escalators'!$B$6,IF($G47='Cost Escalators'!$C$4,'Cost Escalators'!$C$6,'Cost Escalators'!$E$6)) -> 0 | P47: ='Input Data'!P47*IF($G47='Cost Escalators'!$B$4,'Cost Escalators'!$B$6,IF($G47='Cost Escalators'!$C$4,'Cost Escalators'!$C$6,'Cost Escalators'!$E$6)) -> 0 | R47: 0 | S47: 0 | T47: 0 | U47: 0 | W47: =IF(OR(A47='Cost Escalators'!A$68,A47='Cost Escalators'!A$69,A47='Cost Escalators'!A$70,A47='Cost Escalators'!A$71),SUM(H47:L47),0) -> 0
A48: ='Input Data'!A48 -> 5098 | B48: ='Input Data'!B48 -> HV Buildings & Civil Work | C48: ='Input Data'!C48 -> Fire Protection Systems | D48: ='Input Data'!D48 -> PS Network Asset Replacement | E48: ='Input Data'!E48 -> Input_Prog_Commit | F48: ='Input Data'!F48 -> 0 | G48: ='Input Data'!G48 -> 2014 | H48: ='Input Data'!H48*IF($G48='Cost Escalators'!$B$4,'Cost Escalators'!$B$6,IF($G48='Cost Escalators'!$C$4,'Cost Escalators'!$C$6,'Cost Escalators'!$E$6)) -> 0 | I48: ='Input Data'!I48*IF($G48='Cost Escalators'!$B$4,'Cost Escalators'!$B$6,IF($G48='Cost Escalators'!$C$4,'Cost Escalators'!$C$6,'Cost Escalators'!$E$6)) -> 0 | J48: ='Input Data'!J48*IF($G48='Cost Escalators'!$B$4,'Cost Escalators'!$B$6,IF($G48='Cost Escalators'!$C$4,'Cost Escalators'!$C$6,'Cost Escalators'!$E$6)) -> 0 | K48: ='Input Data'!K48*IF($G48='Cost Escalators'!$B$4,'Cost Escalators'!$B$6,IF($G48='Cost Escalators'!$C$4,'Cost Escalators'!$C$6,'Cost Escalators'!$E$6)) -> 0 | L48: ='Input Data'!L48*IF($G48='Cost Escalators'!$B$4,'Cost Escalators'!$B$6,IF($G48='Cost Escalators'!$C$4,'Cost Escalators'!$C$6,'Cost Escalators'!$E$6)) -> 0 | M48: ='Input Data'!M48*IF($G48='Cost Escalators'!$B$4,'Cost Escalators'!$B$6,IF($G48='Cost Escalators'!$C$4,'Cost Escalators'!$C$6,'Cost Escalators'!$E$6)) -> 0 | N48: ='Input Data'!N48*IF($G48='Cost Escalators'!$B$4,'Cost Escalators'!$B$6,IF($G48='Cost Escalators'!$C$4,'Cost Escalators'!$C$6,'Cost Escalators'!$E$6)) -> 198475.5 | O48: ='Input Data'!O48*IF($G48='Cost Escalators'!$B$4,'Cost Escalators'!$B$6,IF($G48='Cost Escalators'!$C$4,'Cost Escalators'!$C$6,'Cost Escalators'!$E$6)) -> 198475.5 | P48: ='Input Data'!P48*IF($G48='Cost Escalators'!$B$4,'Cost Escalators'!$B$6,IF($G48='Cost Escalators'!$C$4,'Cost Escalators'!$C$6,'Cost Escalators'!$E$6)) -> 0 | R48: 0 | S48: 198475.5 | T48: 198475.5 | U48: 0 | W48: =IF(OR(A48='Cost Escalators'!A$68,A48='Cost Escalators'!A$69,A48='Cost Escalators'!A$70,A48='Cost Escalators'!A$71),SUM(H48:L48),0) -> 0
A49: ='Input Data'!A49 -> 5161 | B49: ='Input Data'!B49 -> HV Buildings & Civil Work | C49: ='Input Data'!C49 -> Depot Building Improvements and Upgrades | D49: ='Input Data'!D49 -> PS Network Asset Replacement | E49: ='Input Data'!E49 -> Input_Prog_Commit | F49: ='Input Data'!F49 -> 0 | G49: ='Input Data'!G49 -> 2014 | H49: ='Input Data'!H49*IF($G49='Cost Escalators'!$B$4,'Cost Escalators'!$B$6,IF($G49='Cost Escalators'!$C$4,'Cost Escalators'!$C$6,'Cost Escalators'!$E$6)) -> 0 | I49: ='Input Data'!I49*IF($G49='Cost Escalators'!$B$4,'Cost Escalators'!$B$6,IF($G49='Cost Escalators'!$C$4,'Cost Escalators'!$C$6,'Cost Escalators'!$E$6)) -> 0 | J49: ='Input Data'!J49*IF($G49='Cost Escalators'!$B$4,'Cost Escalators'!$B$6,IF($G49='Cost Escalators'!$C$4,'Cost Escalators'!$C$6,'Cost Escalators'!$E$6)) -> 0 | K49: ='Input Data'!K49*IF($G49='Cost Escalators'!$B$4,'Cost Escalators'!$B$6,IF($G49='Cost Escalators'!$C$4,'Cost Escalators'!$C$6,'Cost Escalators'!$E$6)) -> 0 | L49: ='Input Data'!L49*IF($G49='Cost Escalators'!$B$4,'Cost Escalators'!$B$6,IF($G49='Cost Escalators'!$C$4,'Cost Escalators'!$C$6,'Cost Escalators'!$E$6)) -> 0 | M49: ='Input Data'!M49*IF($G49='Cost Escalators'!$B$4,'Cost Escalators'!$B$6,IF($G49='Cost Escalators'!$C$4,'Cost Escalators'!$C$6,'Cost Escalators'!$E$6)) -> 648750 | N49: ='Input Data'!N49*IF($G49='Cost Escalators'!$B$4,'Cost Escalators'!$B$6,IF($G49='Cost Escalators'!$C$4,'Cost Escalators'!$C$6,'Cost Escalators'!$E$6)) -> 0 | O49: ='Input Data'!O49*IF($G49='Cost Escalators'!$B$4,'Cost Escalators'!$B$6,IF($G49='Cost Escalators'!$C$4,'Cost Escalators'!$C$6,'Cost Escalators'!$E$6)) -> 150000 | P49: ='Input Data'!P49*IF($G49='Cost Escalators'!$B$4,'Cost Escalators'!$B$6,IF($G49='Cost Escalators'!$C$4,'Cost Escalators'!$C$6,'Cost Escalators'!$E$6)) -> 0 | R49: 648750 | S49: 0 | T49: 150000 | U49: 0 | W49: =IF(OR(A49='Cost Escalators'!A$68,A49='Cost Escalators'!A$69,A49='Cost Escalators'!A$70,A49='Cost Escalators'!A$71),SUM(H49:L49),0) -> 0
A50: ='Input Data'!A50 -> 5201 | B50: ='Input Data'!B50 -> HV Buildings & Civil Work | C50: ='Input Data'!C50 -> Substations Building and Property | D50: ='Input Data'!D50 -> PS Network Asset Replacement | E50: ='Input Data'!E50 -> Input_Prog_Commit | F50: ='Input Data'!F50 -> 0 | G50: ='Input Data'!G50 -> 2014 | H50: ='Input Data'!H50*IF($G50='Cost Escalators'!$B$4,'Cost Escalators'!$B$6,IF($G50='Cost Escalators'!$C$4,'Cost Escalators'!$C$6,'Cost Escalators'!$E$6)) -> 0 | I50: ='Input Data'!I50*IF($G50='Cost Escalators'!$B$4,'Cost Escalators'!$B$6,IF($G50='Cost Escalators'!$C$4,'Cost Escalators'!$C$6,'Cost Escalators'!$E$6)) -> 0 | J50: ='Input Data'!J50*IF($G50='Cost Escalators'!$B$4,'Cost Escalators'!$B$6,IF($G50='Cost Escalators'!$C$4,'Cost Escalators'!$C$6,'Cost Escalators'!$E$6)) -> 0 | K50: ='Input Data'!K50*IF($G50='Cost Escalators'!$B$4,'Cost Escalators'!$B$6,IF($G50='Cost Escalators'!$C$4,'Cost Escalators'!$C$6,'Cost Escalators'!$E$6)) -> 0 | L50: ='Input Data'!L50*IF($G50='Cost Escalators'!$B$4,'Cost Escalators'!$B$6,IF($G50='Cost Escalators'!$C$4,'Cost Escalators'!$C$6,'Cost Escalators'!$E$6)) -> 0 | M50: ='Input Data'!M50*IF($G50='Cost Escalators'!$B$4,'Cost Escalators'!$B$6,IF($G50='Cost Escalators'!$C$4,'Cost Escalators'!$C$6,'Cost Escalators'!$E$6)) -> 2965255.045 | N50: ='Input Data'!N50*IF($G50='Cost Escalators'!$B$4,'Cost Escalators'!$B$6,IF($G50='Cost Escalators'!$C$4,'Cost Escalators'!$C$6,'Cost Escalators'!$E$6)) -> 854308.51 | O50: ='Input Data'!O50*IF($G50='Cost Escalators'!$B$4,'Cost Escalators'!$B$6,IF($G50='Cost Escalators'!$C$4,'Cost Escalators'!$C$6,'Cost Escalators'!$E$6)) -> 679063.8896 | P50: ='Input Data'!P50*IF($G50='Cost Escalators'!$B$4,'Cost Escalators'!$B$6,IF($G50='Cost Escalators'!$C$4,'Cost Escalators'!$C$6,'Cost Escalators'!$E$6)) -> 362305.6218 | R50: 2965255.045 | S50: 854308.51 | T50: 679063.8896 | U50: 362305.6218 | W50: =IF(OR(A50='Cost Escalators'!A$68,A50='Cost Escalators'!A$69,A50='Cost Escalators'!A$70,A50='Cost Escalators'!A$71),SUM(H50:L50),0) -> 0
A51: ='Input Data'!A51 -> 5949 | B51: ='Input Data'!B51 -> HV Buildings & Civil Work | C51: ='Input Data'!C51 -> Air Conditioning in Relay Rooms | D51: ='Input Data'!D51 -> PS Network Asset Replacement | E51: ='Input Data'!E51 -> Input_Prog_Commit | F51: ='Input Data'!F51 -> 0 | G51: ='Input Data'!G51 -> 2014 | H51: ='Input Data'!H51*IF($G51='Cost Escalators'!$B$4,'Cost Escalators'!$B$6,IF($G51='Cost Escalators'!$C$4,'Cost Escalators'!$C$6,'Cost Escalators'!$E$6)) -> 0 | I51: ='Input Data'!I51*IF($G51='Cost Escalators'!$B$4,'Cost Escalators'!$B$6,IF($G51='Cost Escalators'!$C$4,'Cost Escalators'!$C$6,'Cost Escalators'!$E$6)) -> 0 | J51: ='Input Data'!J51*IF($G51='Cost Escalators'!$B$4,'Cost Escalators'!$B$6,IF($G51='Cost Escalators'!$C$4,'Cost Escalators'!$C$6,'Cost Escalators'!$E$6)) -> 0 | K51: ='Input Data'!K51*IF($G51='Cost Escalators'!$B$4,'Cost Escalators'!$B$6,IF($G51='Cost Escalators'!$C$4,'Cost Escalators'!$C$6,'Cost Escalators'!$E$6)) -> 0 | L51: ='Input Data'!L51*IF($G51='Cost Escalators'!$B$4,'Cost Escalators'!$B$6,IF($G51='Cost Escalators'!$C$4,'Cost Escalators'!$C$6,'Cost Escalators'!$E$6)) -> 0 | M51: ='Input Data'!M51*IF($G51='Cost Escalators'!$B$4,'Cost Escalators'!$B$6,IF($G51='Cost Escalators'!$C$4,'Cost Escalators'!$C$6,'Cost Escalators'!$E$6)) -> 520918.485 | N51: ='Input Data'!N51*IF($G51='Cost Escalators'!$B$4,'Cost Escalators'!$B$6,IF($G51='Cost Escalators'!$C$4,'Cost Escalators'!$C$6,'Cost Escalators'!$E$6)) -> 0 | O51: ='Input Data'!O51*IF($G51='Cost Escalators'!$B$4,'Cost Escalators'!$B$6,IF($G51='Cost Escalators'!$C$4,'Cost Escalators'!$C$6,'Cost Escalators'!$E$6)) -> 0 | P51: ='Input Data'!P51*IF($G51='Cost Escalators'!$B$4,'Cost Escalators'!$B$6,IF($G51='Cost Escalators'!$C$4,'Cost Escalators'!$C$6,'Cost Escalators'!$E$6)) -> 0 | R51: 520918.485 | S51: 0 | T51: 0 | U51: 0 | W51: =IF(OR(A51='Cost Escalators'!A$68,A51='Cost Escalators'!A$69,A51='Cost Escalators'!A$70,A51='Cost Escalators'!A$71),SUM(H51:L51),0) -> 0
A52: ='Input Data'!A52 -> 6337 | B52: ='Input Data'!B52 -> HV Buildings & Civil Work | C52: ='Input Data'!C52 -> Security Fence Replace D-Pales | D52: ='Input Data'!D52 -> PS Network Asset Replacement | E52: ='Input Data'!E52 -> Input_Prog_Commit | F52: ='Input Data'!F52 -> 0 | G52: ='Input Data'!G52 -> 2014 | H52: ='Input Data'!H52*IF($G52='Cost Escalators'!$B$4,'Cost Escalators'!$B$6,IF($G52='Cost Escalators'!$C$4,'Cost Escalators'!$C$6,'Cost Escalators'!$E$6)) -> 0 | I52: ='Input Data'!I52*IF($G52='Cost Escalators'!$B$4,'Cost Escalators'!$B$6,IF($G52='Cost Escalators'!$C$4,'Cost Escalators'!$C$6,'Cost Escalators'!$E$6)) -> 0 | J52: ='Input Data'!J52*IF($G52='Cost Escalators'!$B$4,'Cost Escalators'!$B$6,IF($G52='Cost Escalators'!$C$4,'Cost Escalators'!$C$6,'Cost Escalators'!$E$6)) -> 0 | K52: ='Input Data'!K52*IF($G52='Cost Escalators'!$B$4,'Cost Escalators'!$B$6,IF($G52='Cost Escalators'!$C$4,'Cost Escalators'!$C$6,'Cost Escalators'!$E$6)) -> 0 | L52: ='Input Data'!L52*IF($G52='Cost Escalators'!$B$4,'Cost Escalators'!$B$6,IF($G52='Cost Escalators'!$C$4,'Cost Escalators'!$C$6,'Cost Escalators'!$E$6)) -> 0 | M52: ='Input Data'!M52*IF($G52='Cost Escalators'!$B$4,'Cost Escalators'!$B$6,IF($G52='Cost Escalators'!$C$4,'Cost Escalators'!$C$6,'Cost Escalators'!$E$6)) -> 0 | N52: ='Input Data'!N52*IF($G52='Cost Escalators'!$B$4,'Cost Escalators'!$B$6,IF($G52='Cost Escalators'!$C$4,'Cost Escalators'!$C$6,'Cost Escalators'!$E$6)) -> 0 | O52: ='Input Data'!O52*IF($G52='Cost Escalators'!$B$4,'Cost Escalators'!$B$6,IF($G52='Cost Escalators'!$C$4,'Cost Escalators'!$C$6,'Cost Escalators'!$E$6)) -> 0 | P52: ='Input Data'!P52*IF($G52='Cost Escalators'!$B$4,'Cost Escalators'!$B$6,IF($G52='Cost Escalators'!$C$4,'Cost Escalators'!$C$6,'Cost Escalators'!$E$6)) -> 0 | R52: 0 | S52: 0 | T52: 0 | U52: 0 | W52: =IF(OR(A52='Cost Escalators'!A$68,A52='Cost Escalators'!A$69,A52='Cost Escalators'!A$70,A52='Cost Escalators'!A$71),SUM(H52:L52),0) -> 0
A53: ='Input Data'!A53 -> 0 | B53: ='Input Data'!B53 -> HV Buildings & Civil Work | C53: ='Input Data'!C53 -> Network Asset Replacement | D53: ='Input Data'!D53 -> PS Network Asset Replacement | E53: ='Input Data'!E53 -> Input_Prog_Commit | F53: ='Input Data'!F53 -> 0 | G53: ='Input Data'!G53 -> 2013 | H53: ='Input Data'!H53*IF($G53='Cost Escalators'!$B$4,'Cost Escalators'!$B$6,IF($G53='Cost Escalators'!$C$4,'Cost Escalators'!$C$6,'Cost Escalators'!$E$6)) -> 1789164.488 | I53: ='Input Data'!I53*IF($G53='Cost Escalators'!$B$4,'Cost Escalators'!$B$6,IF($G53='Cost Escalators'!$C$4,'Cost Escalators'!$C$6,'Cost Escalators'!$E$6)) -> 1243690.142 | J53: ='Input Data'!J53*IF($G53='Cost Escalators'!$B$4,'Cost Escalators'!$B$6,IF($G53='Cost Escalators'!$C$4,'Cost Escalators'!$C$6,'Cost Escalators'!$E$6)) -> 4896134.579 | K53: ='Input Data'!K53*IF($G53='Cost Escalators'!$B$4,'Cost Escalators'!$B$6,IF($G53='Cost Escalators'!$C$4,'Cost Escalators'!$C$6,'Cost Escalators'!$E$6)) -> 4958289.483 | L53: ='Input Data'!L53*IF($G53='Cost Escalators'!$B$4,'Cost Escalators'!$B$6,IF($G53='Cost Escalators'!$C$4,'Cost Escalators'!$C$6,'Cost Escalators'!$E$6)) -> 0 | M53: ='Input Data'!M53*IF($G53='Cost Escalators'!$B$4,'Cost Escalators'!$B$6,IF($G53='Cost Escalators'!$C$4,'Cost Escalators'!$C$6,'Cost Escalators'!$E$6)) -> 0 | N53: ='Input Data'!N53*IF($G53='Cost Escalators'!$B$4,'Cost Escalators'!$B$6,IF($G53='Cost Escalators'!$C$4,'Cost Escalators'!$C$6,'Cost Escalators'!$E$6)) -> 0 | O53: ='Input Data'!O53*IF($G53='Cost Escalators'!$B$4,'Cost Escalators'!$B$6,IF($G53='Cost Escalators'!$C$4,'Cost Escalators'!$C$6,'Cost Escalators'!$E$6)) -> 0 | P53: ='Input Data'!P53*IF($G53='Cost Escalators'!$B$4,'Cost Escalators'!$B$6,IF($G53='Cost Escalators'!$C$4,'Cost Escalators'!$C$6,'Cost Escalators'!$E$6)) -> 0 | R53: 0 | S53: 0 | T53: 0 | U53: 0 | W53: =IF(OR(A53='Cost Escalators'!A$68,A53='Cost Escalators'!A$69,A53='Cost Escalators'!A$70,A53='Cost Escalators'!A$71),SUM(H53:L53),0) -> 0
A54: ='Input Data'!A54 -> 5651 | B54: ='Input Data'!B54 -> IT | C54: ='Input Data'!C54 -> SCADA Upgrade | D54: ='Input Data'!D54 -> PS Network Asset Replacement | E54: ='Input Data'!E54 -> Input_Prog_Commit | F54: ='Input Data'!F54 -> 0 | G54: ='Input Data'!G54 -> 2014 | H54: ='Input Data'!H54*IF($G54='Cost Escalators'!$B$4,'Cost Escalators'!$B$6,IF($G54='Cost Escalators'!$C$4,'Cost Escalators'!$C$6,'Cost Escalators'!$E$6)) -> 0 | I54: ='Input Data'!I54*IF($G54='Cost Escalators'!$B$4,'Cost Escalators'!$B$6,IF($G54='Cost Escalators'!$C$4,'Cost Escalators'!$C$6,'Cost Escalators'!$E$6)) -> 0 | J54: ='Input Data'!J54*IF($G54='Cost Escalators'!$B$4,'Cost Escalators'!$B$6,IF($G54='Cost Escalators'!$C$4,'Cost Escalators'!$C$6,'Cost Escalators'!$E$6)) -> 0 | K54: ='Input Data'!K54*IF($G54='Cost Escalators'!$B$4,'Cost Escalators'!$B$6,IF($G54='Cost Escalators'!$C$4,'Cost Escalators'!$C$6,'Cost Escalators'!$E$6)) -> 0 | L54: ='Input Data'!L54*IF($G54='Cost Escalators'!$B$4,'Cost Escalators'!$B$6,IF($G54='Cost Escalators'!$C$4,'Cost Escalators'!$C$6,'Cost Escalators'!$E$6)) -> 0 | M54: ='Input Data'!M54*IF($G54='Cost Escalators'!$B$4,'Cost Escalators'!$B$6,IF($G54='Cost Escalators'!$C$4,'Cost Escalators'!$C$6,'Cost Escalators'!$E$6)) -> 1515000 | N54: ='Input Data'!N54*IF($G54='Cost Escalators'!$B$4,'Cost Escalators'!$B$6,IF($G54='Cost Escalators'!$C$4,'Cost Escalators'!$C$6,'Cost Escalators'!$E$6)) -> 0 | O54: ='Input Data'!O54*IF($G54='Cost Escalators'!$B$4,'Cost Escalators'!$B$6,IF($G54='Cost Escalators'!$C$4,'Cost Escalators'!$C$6,'Cost Escalators'!$E$6)) -> 0 | P54: ='Input Data'!P54*IF($G54='Cost Escalators'!$B$4,'Cost Escalators'!$B$6,IF($G54='Cost Escalators'!$C$4,'Cost Escalators'!$C$6,'Cost Escalators'!$E$6)) -> 0 | R54: 1515000 | S54: 0 | T54: 0 | U54: 0 | W54: =IF(OR(A54='Cost Escalators'!A$68,A54='Cost Escalators'!A$69,A54='Cost Escalators'!A$70,A54='Cost Escalators'!A$71),SUM(H54:L54),0) -> 0
A55: ='Input Data'!A55 -> 8238 | B55: ='Input Data'!B55 -> IT | C55: ='Input Data'!C55 -> SCADA Facilities Augmentation | D55: ='Input Data'!D55 -> PS Network Asset Replacement | E55: ='Input Data'!E55 -> Input_Prog_Commit | F55: ='Input Data'!F55 -> 0 | G55: ='Input Data'!G55 -> 2014 | H55: ='Input Data'!H55*IF($G55='Cost Escalators'!$B$4,'Cost Escalators'!$B$6,IF($G55='Cost Escalators'!$C$4,'Cost Escalators'!$C$6,'Cost Escalators'!$E$6)) -> 0 | I55: ='Input Data'!I55*IF($G55='Cost Escalators'!$B$4,'Cost Escalators'!$B$6,IF($G55='Cost Escalators'!$C$4,'Cost Escalators'!$C$6,'Cost Escalators'!$E$6)) -> 0 | J55: ='Input Data'!J55*IF($G55='Cost Escalators'!$B$4,'Cost Escalators'!$B$6,IF($G55='Cost Escalators'!$C$4,'Cost Escalators'!$C$6,'Cost Escalators'!$E$6)) -> 0 | K55: ='Input Data'!K55*IF($G55='Cost Escalators'!$B$4,'Cost Escalators'!$B$6,IF($G55='Cost Escalators'!$C$4,'Cost Escalators'!$C$6,'Cost Escalators'!$E$6)) -> 0 | L55: ='Input Data'!L55*IF($G55='Cost Escalators'!$B$4,'Cost Escalators'!$B$6,IF($G55='Cost Escalators'!$C$4,'Cost Escalators'!$C$6,'Cost Escalators'!$E$6)) -> 0 | M55: ='Input Data'!M55*IF($G55='Cost Escalators'!$B$4,'Cost Escalators'!$B$6,IF($G55='Cost Escalators'!$C$4,'Cost Escalators'!$C$6,'Cost Escalators'!$E$6)) -> 375000 | N55: ='Input Data'!N55*IF($G55='Cost Escalators'!$B$4,'Cost Escalators'!$B$6,IF($G55='Cost Escalators'!$C$4,'Cost Escalators'!$C$6,'Cost Escalators'!$E$6)) -> 0 | O55: ='Input Data'!O55*IF($G55='Cost Escalators'!$B$4,'Cost Escalators'!$B$6,IF($G55='Cost Escalators'!$C$4,'Cost Escalators'!$C$6,'Cost Escalators'!$E$6)) -> 0 | P55: ='Input Data'!P55*IF($G55='Cost Escalators'!$B$4,'Cost Escalators'!$B$6,IF($G55='Cost Escalators'!$C$4,'Cost Escalators'!$C$6,'Cost Escalators'!$E$6)) -> 0 | R55: 375000 | S55: 0 | T55: 0 | U55: 0 | W55: =IF(OR(A55='Cost Escalators'!A$68,A55='Cost Escalators'!A$69,A55='Cost Escalators'!A$70,A55='Cost Escalators'!A$71),SUM(H55:L55),0) -> 0
A56: ='Input Data'!A56 -> 5923 | B56: ='Input Data'!B56 -> Metering | C56: ='Input Data'!C56 -> Replacement of Siements 7EC Meters | D56: ='Input Data'!D56 -> PS Network Asset Replacement | E56: ='Input Data'!E56 -> Input_Prog_Commit | F56: ='Input Data'!F56 -> 0 | G56: ='Input Data'!G56 -> 2014 | H56: ='Input Data'!H56*IF($G56='Cost Escalators'!$B$4,'Cost Escalators'!$B$6,IF($G56='Cost Escalators'!$C$4,'Cost Escalators'!$C$6,'Cost Escalators'!$E$6)) -> 0 | I56: ='Input Data'!I56*IF($G56='Cost Escalators'!$B$4,'Cost Escalators'!$B$6,IF($G56='Cost Escalators'!$C$4,'Cost Escalators'!$C$6,'Cost Escalators'!$E$6)) -> 0 | J56: ='Input Data'!J56*IF($G56='Cost Escalators'!$B$4,'Cost Escalators'!$B$6,IF($G56='Cost Escalators'!$C$4,'Cost Escalators'!$C$6,'Cost Escalators'!$E$6)) -> 0 | K56: ='Input Data'!K56*IF($G56='Cost Escalators'!$B$4,'Cost Escalators'!$B$6,IF($G56='Cost Escalators'!$C$4,'Cost Escalators'!$C$6,'Cost Escalators'!$E$6)) -> 0 | L56: ='Input Data'!L56*IF($G56='Cost Escalators'!$B$4,'Cost Escalators'!$B$6,IF($G56='Cost Escalators'!$C$4,'Cost Escalators'!$C$6,'Cost Escalators'!$E$6)) -> 0 | M56: ='Input Data'!M56*IF($G56='Cost Escalators'!$B$4,'Cost Escalators'!$B$6,IF($G56='Cost Escalators'!$C$4,'Cost Escalators'!$C$6,'Cost Escalators'!$E$6)) -> 0 | N56: ='Input Data'!N56*IF($G56='Cost Escalators'!$B$4,'Cost Escalators'!$B$6,IF($G56='Cost Escalators'!$C$4,'Cost Escalators'!$C$6,'Cost Escalators'!$E$6)) -> 0 | O56: ='Input Data'!O56*IF($G56='Cost Escalators'!$B$4,'Cost Escalators'!$B$6,IF($G56='Cost Escalators'!$C$4,'Cost Escalators'!$C$6,'Cost Escalators'!$E$6)) -> 241838.665 | P56: ='Input Data'!P56*IF($G56='Cost Escalators'!$B$4,'Cost Escalators'!$B$6,IF($G56='Cost Escalators'!$C$4,'Cost Escalators'!$C$6,'Cost Escalators'!$E$6)) -> 0 | R56: 0 | S56: 0 | T56: 241838.665 | U56: 0 | W56: =IF(OR(A56='Cost Escalators'!A$68,A56='Cost Escalators'!A$69,A56='Cost Escalators'!A$70,A56='Cost Escalators'!A$71),SUM(H56:L56),0) -> 0
A57: ='Input Data'!A57 -> 5925 | B57: ='Input Data'!B57 -> Metering | C57: ='Input Data'!C57 -> Replacement of Email A1R-AL Meters | D57: ='Input Data'!D57 -> PS Network Asset Replacement | E57: ='Input Data'!E57 -> Input_Prog_Commit | F57: ='Input Data'!F57 -> 0 | G57: ='Input Data'!G57 -> 2014 | H57: ='Input Data'!H57*IF($G57='Cost Escalators'!$B$4,'Cost Escalators'!$B$6,IF($G57='Cost Escalators'!$C$4,'Cost Escalators'!$C$6,'Cost Escalators'!$E$6)) -> 0 | I57: ='Input Data'!I57*IF($G57='Cost Escalators'!$B$4,'Cost Escalators'!$B$6,IF($G57='Cost Escalators'!$C$4,'Cost Escalators'!$C$6,'Cost Escalators'!$E$6)) -> 0 | J57: ='Input Data'!J57*IF($G57='Cost Escalators'!$B$4,'Cost Escalators'!$B$6,IF($G57='Cost Escalators'!$C$4,'Cost Escalators'!$C$6,'Cost Escalators'!$E$6)) -> 0 | K57: ='Input Data'!K57*IF($G57='Cost Escalators'!$B$4,'Cost Escalators'!$B$6,IF($G57='Cost Escalators'!$C$4,'Cost Escalators'!$C$6,'Cost Escalators'!$E$6)) -> 0 | L57: ='Input Data'!L57*IF($G57='Cost Escalators'!$B$4,'Cost Escalators'!$B$6,IF($G57='Cost Escalators'!$C$4,'Cost Escalators'!$C$6,'Cost Escalators'!$E$6)) -> 0 | M57: ='Input Data'!M57*IF($G57='Cost Escalators'!$B$4,'Cost Escalators'!$B$6,IF($G57='Cost Escalators'!$C$4,'Cost Escalators'!$C$6,'Cost Escalators'!$E$6)) -> 0 | N57: ='Input Data'!N57*IF($G57='Cost Escalators'!$B$4,'Cost Escalators'!$B$6,IF($G57='Cost Escalators'!$C$4,'Cost Escalators'!$C$6,'Cost Escalators'!$E$6)) -> 0 | O57: ='Input Data'!O57*IF($G57='Cost Escalators'!$B$4,'Cost Escalators'!$B$6,IF($G57='Cost Escalators'!$C$4,'Cost Escalators'!$C$6,'Cost Escalators'!$E$6)) -> 0 | P57: ='Input Data'!P57*IF($G57='Cost Escalators'!$B$4,'Cost Escalators'!$B$6,IF($G57='Cost Escalators'!$C$4,'Cost Escalators'!$C$6,'Cost Escalators'!$E$6)) -> 0 | R57: 0 | S57: 0 | T57: 0 | U57: 0 | W57: =IF(OR(A57='Cost Escalators'!A$68,A57='Cost Escalators'!A$69,A57='Cost Escalators'!A$70,A57='Cost Escalators'!A$71),SUM(H57:L57),0) -> 0
A58: ='Input Data'!A58 -> 5926 | B58: ='Input Data'!B58 -> Metering | C58: ='Input Data'!C58 -> Replacement of CEWE CEP/CEQ Meters | D58: ='Input Data'!D58 -> PS Network Asset Replacement | E58: ='Input Data'!E58 -> Input_Prog_Commit | F58: ='Input Data'!F58 -> 0 | G58: ='Input Data'!G58 -> 2014 | H58: ='Input Data'!H58*IF($G58='Cost Escalators'!$B$4,'Cost Escalators'!$B$6,IF($G58='Cost Escalators'!$C$4,'Cost Escalators'!$C$6,'Cost Escalators'!$E$6)) -> 0 | I58: ='Input Data'!I58*IF($G58='Cost Escalators'!$B$4,'Cost Escalators'!$B$6,IF($G58='Cost Escalators'!$C$4,'Cost Escalators'!$C$6,'Cost Escalators'!$E$6)) -> 0 | J58: ='Input Data'!J58*IF($G58='Cost Escalators'!$B$4,'Cost Escalators'!$B$6,IF($G58='Cost Escalators'!$C$4,'Cost Escalators'!$C$6,'Cost Escalators'!$E$6)) -> 0 | K58: ='Input Data'!K58*IF($G58='Cost Escalators'!$B$4,'Cost Escalators'!$B$6,IF($G58='Cost Escalators'!$C$4,'Cost Escalators'!$C$6,'Cost Escalators'!$E$6)) -> 0 | L58: ='Input Data'!L58*IF($G58='Cost Escalators'!$B$4,'Cost Escalators'!$B$6,IF($G58='Cost Escalators'!$C$4,'Cost Escalators'!$C$6,'Cost Escalators'!$E$6)) -> 0 | M58: ='Input Data'!M58*IF($G58='Cost Escalators'!$B$4,'Cost Escalators'!$B$6,IF($G58='Cost Escalators'!$C$4,'Cost Escalators'!$C$6,'Cost Escalators'!$E$6)) -> 331827.1262 | N58: ='Input Data'!N58*IF($G58='Cost Escalators'!$B$4,'Cost Escalators'!$B$6,IF($G58='Cost Escalators'!$C$4,'Cost Escalators'!$C$6,'Cost Escalators'!$E$6)) -> 0 | O58: ='Input Data'!O58*IF($G58='Cost Escalators'!$B$4,'Cost Escalators'!$B$6,IF($G58='Cost Escalators'!$C$4,'Cost Escalators'!$C$6,'Cost Escalators'!$E$6)) -> 0 | P58: ='Input Data'!P58*IF($G58='Cost Escalators'!$B$4,'Cost Escalators'!$B$6,IF($G58='Cost Escalators'!$C$4,'Cost Escalators'!$C$6,'Cost Escalators'!$E$6)) -> 0 | R58: 331827.1262 | S58: 0 | T58: 0 | U58: 0 | W58: =IF(OR(A58='Cost Escalators'!A$68,A58='Cost Escalators'!A$69,A58='Cost Escalators'!A$70,A58='Cost Escalators'!A$71),SUM(H58:L58),0) -> 0
A59: ='Input Data'!A59 -> 5927 | B59: ='Input Data'!B59 -> Metering | C59: ='Input Data'!C59 -> Replacement of Ferrari Disc Pulsing Meters | D59: ='Input Data'!D59 -> PS Network Asset Replacement | E59: ='Input Data'!E59 -> Input_Prog_Commit | F59: ='Input Data'!F59 -> 0 | G59: ='Input Data'!G59 -> 2014 | H59: ='Input Data'!H59*IF($G59='Cost Escalators'!$B$4,'Cost Escalators'!$B$6,IF($G59='Cost Escalators'!$C$4,'Cost Escalators'!$C$6,'Cost Escalators'!$E$6)) -> 0 | I59: ='Input Data'!I59*IF($G59='Cost Escalators'!$B$4,'Cost Escalators'!$B$6,IF($G59='Cost Escalators'!$C$4,'Cost Escalators'!$C$6,'Cost Escalators'!$E$6)) -> 0 | J59: ='Input Data'!J59*IF($G59='Cost Escalators'!$B$4,'Cost Escalators'!$B$6,IF($G59='Cost Escalators'!$C$4,'Cost Escalators'!$C$6,'Cost Escalators'!$E$6)) -> 0 | K59: ='Input Data'!K59*IF($G59='Cost Escalators'!$B$4,'Cost Escalators'!$B$6,IF($G59='Cost Escalators'!$C$4,'Cost Escalators'!$C$6,'Cost Escalators'!$E$6)) -> 0 | L59: ='Input Data'!L59*IF($G59='Cost Escalators'!$B$4,'Cost Escalators'!$B$6,IF($G59='Cost Escalators'!$C$4,'Cost Escalators'!$C$6,'Cost Escalators'!$E$6)) -> 0 | M59: ='Input Data'!M59*IF($G59='Cost Escalators'!$B$4,'Cost Escalators'!$B$6,IF($G59='Cost Escalators'!$C$4,'Cost Escalators'!$C$6,'Cost Escalators'!$E$6)) -> 228462.9996 | N59: ='Input Data'!N59*IF($G59='Cost Escalators'!$B$4,'Cost Escalators'!$B$6,IF($G59='Cost Escalators'!$C$4,'Cost Escalators'!$C$6,'Cost Escalators'!$E$6)) -> 152308.6664 | O59: ='Input Data'!O59*IF($G59='Cost Escalators'!$B$4,'Cost Escalators'!$B$6,IF($G59='Cost Escalators'!$C$4,'Cost Escalators'!$C$6,'Cost Escalators'!$E$6)) -> 262309.3699 | P59: ='Input Data'!P59*IF($G59='Cost Escalators'!$B$4,'Cost Escalators'!$B$6,IF($G59='Cost Escalators'!$C$4,'Cost Escalators'!$C$6,'Cost Escalators'!$E$6)) -> 169231.8516 | R59: 228462.9996 | S59: 152308.6664 | T59: 262309.3699 | U59: 169231.8516 | W59: =IF(OR(A59='Cost Escalators'!A$68,A59='Cost Escalators'!A$69,A59='Cost Escalators'!A$70,A59='Cost Escalators'!A$71),SUM(H59:L59),0) -> 0
A60: ='Input Data'!A60 -> 6296 | B60: ='Input Data'!B60 -> Metering | C60: ='Input Data'!C60 -> Upgrade Site Metering Schemes | D60: ='Input Data'!D60 -> PS Network Asset Replacement | E60: ='Input Data'!E60 -> Input_Prog_Commit | F60: ='Input Data'!F60 -> 0 | G60: ='Input Data'!G60 -> 2014 | H60: ='Input Data'!H60*IF($G60='Cost Escalators'!$B$4,'Cost Escalators'!$B$6,IF($G60='Cost Escalators'!$C$4,'Cost Escalators'!$C$6,'Cost Escalators'!$E$6)) -> 0 | I60: ='Input Data'!I60*IF($G60='Cost Escalators'!$B$4,'Cost Escalators'!$B$6,IF($G60='Cost Escalators'!$C$4,'Cost Escalators'!$C$6,'Cost Escalators'!$E$6)) -> 0 | J60: ='Input Data'!J60*IF($G60='Cost Escalators'!$B$4,'Cost Escalators'!$B$6,IF($G60='Cost Escalators'!$C$4,'Cost Escalators'!$C$6,'Cost Escalators'!$E$6)) -> 0 | K60: ='Input Data'!K60*IF($G60='Cost Escalators'!$B$4,'Cost Escalators'!$B$6,IF($G60='Cost Escalators'!$C$4,'Cost Escalators'!$C$6,'Cost Escalators'!$E$6)) -> 0 | L60: ='Input Data'!L60*IF($G60='Cost Escalators'!$B$4,'Cost Escalators'!$B$6,IF($G60='Cost Escalators'!$C$4,'Cost Escalators'!$C$6,'Cost Escalators'!$E$6)) -> 0 | M60: ='Input Data'!M60*IF($G60='Cost Escalators'!$B$4,'Cost Escalators'!$B$6,IF($G60='Cost Escalators'!$C$4,'Cost Escalators'!$C$6,'Cost Escalators'!$E$6)) -> 362757.9974 | N60: ='Input Data'!N60*IF($G60='Cost Escalators'!$B$4,'Cost Escalators'!$B$6,IF($G60='Cost Escalators'!$C$4,'Cost Escalators'!$C$6,'Cost Escalators'!$E$6)) -> 483677.3299 | O60: ='Input Data'!O60*IF($G60='Cost Escalators'!$B$4,'Cost Escalators'!$B$6,IF($G60='Cost Escalators'!$C$4,'Cost Escalators'!$C$6,'Cost Escalators'!$E$6)) -> 45015.9075 | P60: ='Input Data'!P60*IF($G60='Cost Escalators'!$B$4,'Cost Escalators'!$B$6,IF($G60='Cost Escalators'!$C$4,'Cost Escalators'!$C$6,'Cost Escalators'!$E$6)) -> 606412.2498 | R60: 362757.9974 | S60: 483677.3299 | T60: 45015.9075 | U60: 606412.2498 | W60: =IF(OR(A60='Cost Escalators'!A$68,A60='Cost Escalators'!A$69,A60='Cost Escalators'!A$70,A60='Cost Escalators'!A$71),SUM(H60:L60),0) -> 0
A61: ='Input Data'!A61 -> 0 | B61: ='Input Data'!B61 -> Metering | C61: ='Input Data'!C61 -> Network Asset Replacement | D61: ='Input Data'!D61 -> PS Network Asset Replacement | E61: ='Input Data'!E61 -> Input_Prog_Commit | F61: ='Input Data'!F61 -> 0 | G61: ='Input Data'!G61 -> 2013 | H61: ='Input Data'!H61*IF($G61='Cost Escalators'!$B$4,'Cost Escalators'!$B$6,IF($G61='Cost Escalators'!$C$4,'Cost Escalators'!$C$6,'Cost Escalators'!$E$6)) -> 1260039.538 | I61: ='Input Data'!I61*IF($G61='Cost Escalators'!$B$4,'Cost Escalators'!$B$6,IF($G61='Cost Escalators'!$C$4,'Cost Escalators'!$C$6,'Cost Escalators'!$E$6)) -> 749122.9255 | J61: ='Input Data'!J61*IF($G61='Cost Escalators'!$B$4,'Cost Escalators'!$B$6,IF($G61='Cost Escalators'!$C$4,'Cost Escalators'!$C$6,'Cost Escalators'!$E$6)) -> 0 | K61: ='Input Data'!K61*IF($G61='Cost Escalators'!$B$4,'Cost Escalators'!$B$6,IF($G61='Cost Escalators'!$C$4,'Cost Escalators'!$C$6,'Cost Escalators'!$E$6)) -> 0 | L61: ='Input Data'!L61*IF($G61='Cost Escalators'!$B$4,'Cost Escalators'!$B$6,IF($G61='Cost Escalators'!$C$4,'Cost Escalators'!$C$6,'Cost Escalators'!$E$6)) -> 0 | M61: ='Input Data'!M61*IF($G61='Cost Escalators'!$B$4,'Cost Escalators'!$B$6,IF($G61='Cost Escalators'!$C$4,'Cost Escalators'!$C$6,'Cost Escalators'!$E$6)) -> 0 | N61: ='Input Data'!N61*IF($G61='Cost Escalators'!$B$4,'Cost Escalators'!$B$6,IF($G61='Cost Escalators'!$C$4,'Cost Escalators'!$C$6,'Cost Escalators'!$E$6)) -> 0 | O61: ='Input Data'!O61*IF($G61='Cost Escalators'!$B$4,'Cost Escalators'!$B$6,IF($G61='Cost Escalators'!$C$4,'Cost Escalators'!$C$6,'Cost Escalators'!$E$6)) -> 0 | P61: ='Input Data'!P61*IF($G61='Cost Escalators'!$B$4,'Cost Escalators'!$B$6,IF($G61='Cost Escalators'!$C$4,'Cost Escalators'!$C$6,'Cost Escalators'!$E$6)) -> 0 | R61: 0 | S61: 0 | T61: 0 | U61: 0 | W61: =IF(OR(A61='Cost Escalators'!A$68,A61='Cost Escalators'!A$69,A61='Cost Escalators'!A$70,A61='Cost Escalators'!A$71),SUM(H61:L61),0) -> 0
A62: ='Input Data'!A62 -> 0 | B62: ='Input Data'!B62 -> Metering | C62: ='Input Data'!C62 -> Network Asset Replacement | D62: ='Input Data'!D62 -> PS Network Asset Replacement | E62: ='Input Data'!E62 -> Input_Prog_Commit | F62: ='Input Data'!F62 -> 0 | G62: ='Input Data'!G62 -> 2013 | H62: ='Input Data'!H62*IF($G62='Cost Escalators'!$B$4,'Cost Escalators'!$B$6,IF($G62='Cost Escalators'!$C$4,'Cost Escalators'!$C$6,'Cost Escalators'!$E$6)) -> 0 | I62: ='Input Data'!I62*IF($G62='Cost Escalators'!$B$4,'Cost Escalators'!$B$6,IF($G62='Cost Escalators'!$C$4,'Cost Escalators'!$C$6,'Cost Escalators'!$E$6)) -> 0 | J62: ='Input Data'!J62*IF($G62='Cost Escalators'!$B$4,'Cost Escalators'!$B$6,IF($G62='Cost Escalators'!$C$4,'Cost Escalators'!$C$6,'Cost Escalators'!$E$6)) -> 1782065.504 | K62: ='Input Data'!K62*IF($G62='Cost Escalators'!$B$4,'Cost Escalators'!$B$6,IF($G62='Cost Escalators'!$C$4,'Cost Escalators'!$C$6,'Cost Escalators'!$E$6)) -> 3104047.581 | L62: ='Input Data'!L62*IF($G62='Cost Escalators'!$B$4,'Cost Escalators'!$B$6,IF($G62='Cost Escalators'!$C$4,'Cost Escalators'!$C$6,'Cost Escalators'!$E$6)) -> 0 | M62: ='Input Data'!M62*IF($G62='Cost Escalators'!$B$4,'Cost Escalators'!$B$6,IF($G62='Cost Escalators'!$C$4,'Cost Escalators'!$C$6,'Cost Escalators'!$E$6)) -> 0 | N62: ='Input Data'!N62*IF($G62='Cost Escalators'!$B$4,'Cost Escalators'!$B$6,IF($G62='Cost Escalators'!$C$4,'Cost Escalators'!$C$6,'Cost Escalators'!$E$6)) -> 0 | O62: ='Input Data'!O62*IF($G62='Cost Escalators'!$B$4,'Cost Escalators'!$B$6,IF($G62='Cost Escalators'!$C$4,'Cost Escalators'!$C$6,'Cost Escalators'!$E$6)) -> 0 | P62: ='Input Data'!P62*IF($G62='Cost Escalators'!$B$4,'Cost Escalators'!$B$6,IF($G62='Cost Escalators'!$C$4,'Cost Escalators'!$C$6,'Cost Escalators'!$E$6)) -> 0 | R62: 0 | S62: 0 | T62: 0 | U62: 0 | W62: =IF(OR(A62='Cost Escalators'!A$68,A62='Cost Escalators'!A$69,A62='Cost Escalators'!A$70,A62='Cost Escalators'!A$71),SUM(H62:L62),0) -> 0
A63: ='Input Data'!A63 -> 4946 | B63: ='Input Data'!B63 -> Protection | C63: ='Input Data'!C63 -> Replacement of H-Type Relays - Key Metro Sites | D63: ='Input Data'!D63 -> PS Network Asset Replacement | E63: ='Input Data'!E63 -> Input_Prog_Commit | F63: ='Input Data'!F63 -> 0 | G63: ='Input Data'!G63 -> 2014 | H63: ='Input Data'!H63*IF($G63='Cost Escalators'!$B$4,'Cost Escalators'!$B$6,IF($G63='Cost Escalators'!$C$4,'Cost Escalators'!$C$6,'Cost Escalators'!$E$6)) -> 0 | I63: ='Input Data'!I63*IF($G63='Cost Escalators'!$B$4,'Cost Escalators'!$B$6,IF($G63='Cost Escalators'!$C$4,'Cost Escalators'!$C$6,'Cost Escalators'!$E$6)) -> 0 | J63: ='Input Data'!J63*IF($G63='Cost Escalators'!$B$4,'Cost Escalators'!$B$6,IF($G63='Cost Escalators'!$C$4,'Cost Escalators'!$C$6,'Cost Escalators'!$E$6)) -> 0 | K63: ='Input Data'!K63*IF($G63='Cost Escalators'!$B$4,'Cost Escalators'!$B$6,IF($G63='Cost Escalators'!$C$4,'Cost Escalators'!$C$6,'Cost Escalators'!$E$6)) -> 0 | L63: ='Input Data'!L63*IF($G63='Cost Escalators'!$B$4,'Cost Escalators'!$B$6,IF($G63='Cost Escalators'!$C$4,'Cost Escalators'!$C$6,'Cost Escalators'!$E$6)) -> 0 | M63: ='Input Data'!M63*IF($G63='Cost Escalators'!$B$4,'Cost Escalators'!$B$6,IF($G63='Cost Escalators'!$C$4,'Cost Escalators'!$C$6,'Cost Escalators'!$E$6)) -> 0 | N63: ='Input Data'!N63*IF($G63='Cost Escalators'!$B$4,'Cost Escalators'!$B$6,IF($G63='Cost Escalators'!$C$4,'Cost Escalators'!$C$6,'Cost Escalators'!$E$6)) -> 0 | O63: ='Input Data'!O63*IF($G63='Cost Escalators'!$B$4,'Cost Escalators'!$B$6,IF($G63='Cost Escalators'!$C$4,'Cost Escalators'!$C$6,'Cost Escalators'!$E$6)) -> 0 | P63: ='Input Data'!P63*IF($G63='Cost Escalators'!$B$4,'Cost Escalators'!$B$6,IF($G63='Cost Escalators'!$C$4,'Cost Escalators'!$C$6,'Cost Escalators'!$E$6)) -> 0 | R63: 0 | S63: 0 | T63: 0 | U63: 0 | W63: =IF(OR(A63='Cost Escalators'!A$68,A63='Cost Escalators'!A$69,A63='Cost Escalators'!A$70,A63='Cost Escalators'!A$71),SUM(H63:L63),0) -> 0
A64: ='Input Data'!A64 -> 4947 | B64: ='Input Data'!B64 -> Protection | C64: ='Input Data'!C64 -> Replacement of H-Type Relays - Remaining Sites | D64: ='Input Data'!D64 -> PS Network Asset Replacement | E64: ='Input Data'!E64 -> Input_Prog_Commit | F64: ='Input Data'!F64 -> 0 | G64: ='Input Data'!G64 -> 2014 | H64: ='Input Data'!H64*IF($G64='Cost Escalators'!$B$4,'Cost Escalators'!$B$6,IF($G64='Cost Escalators'!$C$4,'Cost Escalators'!$C$6,'Cost Escalators'!$E$6)) -> 0 | I64: ='Input Data'!I64*IF($G64='Cost Escalators'!$B$4,'Cost Escalators'!$B$6,IF($G64='Cost Escalators'!$C$4,'Cost Escalators'!$C$6,'Cost Escalators'!$E$6)) -> 0 | J64: ='Input Data'!J64*IF($G64='Cost Escalators'!$B$4,'Cost Escalators'!$B$6,IF($G64='Cost Escalators'!$C$4,'Cost Escalators'!$C$6,'Cost Escalators'!$E$6)) -> 0 | K64: ='Input Data'!K64*IF($G64='Cost Escalators'!$B$4,'Cost Escalators'!$B$6,IF($G64='Cost Escalators'!$C$4,'Cost Escalators'!$C$6,'Cost Escalators'!$E$6)) -> 0 | L64: ='Input Data'!L64*IF($G64='Cost Escalators'!$B$4,'Cost Escalators'!$B$6,IF($G64='Cost Escalators'!$C$4,'Cost Escalators'!$C$6,'Cost Escalators'!$E$6)) -> 0 | M64: ='Input Data'!M64*IF($G64='Cost Escalators'!$B$4,'Cost Escalators'!$B$6,IF($G64='Cost Escalators'!$C$4,'Cost Escalators'!$C$6,'Cost Escalators'!$E$6)) -> 0 | N64: ='Input Data'!N64*IF($G64='Cost Escalators'!$B$4,'Cost Escalators'!$B$6,IF($G64='Cost Escalators'!$C$4,'Cost Escalators'!$C$6,'Cost Escalators'!$E$6)) -> 0 | O64: ='Input Data'!O64*IF($G64='Cost Escalators'!$B$4,'Cost Escalators'!$B$6,IF($G64='Cost Escalators'!$C$4,'Cost Escalators'!$C$6,'Cost Escalators'!$E$6)) -> 0 | P64: ='Input Data'!P64*IF($G64='Cost Escalators'!$B$4,'Cost Escalators'!$B$6,IF($G64='Cost Escalators'!$C$4,'Cost Escalators'!$C$6,'Cost Escalators'!$E$6)) -> 57500.11916 | R64: 0 | S64: 0 | T64: 0 | U64: 57500.11916 | W64: =IF(OR(A64='Cost Escalators'!A$68,A64='Cost Escalators'!A$69,A64='Cost Escalators'!A$70,A64='Cost Escalators'!A$71),SUM(H64:L64),0) -> 0
